Workbook

Sheet START
A1: =muni -> Choose name from list

Sheet Instructions
D2: 2020
X4: Yes
X5: No
W7: Type of Entities Range: | X7: Parent Municipality
X8: Consolidated Information
W10: Date of Adjustment
W19: MTREF Range: | X19: 2013
X20: 2014
X21: 2015
X22: 2016
X23: 2017
X24: 2018
X25: 2019
X26: 2020
X27: 2021
X28: 2022
X29: 2023
X30: 2024
X31: 2025
X32: 2026
W33: MTREF Linked:
W34: MTREF:
X35: 11
W36: Fin Year: | X36: =INDEX(X19:X33,X35,1) -> 2023
X38: =MTREF&"/"&RIGHT(MTREF,2)+1 -> 2023/24

Sheet Template names (hidden)
A1: Common sheet headings
A2: Head1 | B2: =HLOOKUP(MTREF,Headings,2) -> 2022/23 | C2: Prior year -1
A3: Head1A | B3: =HLOOKUP(MTREF,Headings,3) -> 2021/22 | C3: Prior year -2
A4: Head1B | B4: =HLOOKUP(MTREF,Headings,4) -> 2020/21 | C4: Prior year -3
A5: Head2 | B5: =HLOOKUP(MTREF,Headings,7) -> Budget Year 2023/24 | C5: Year of approved budget
A6: Head2A | B6: =HLOOKUP(MTREF,Headings,6) -> 2023/24 | C6: Approved budget year
A7: Head3 | B7: =HLOOKUP(MTREF,Headings,5) -> 2023/24 Medium Term Revenue & Expenditure Framework | C7: MTREF header name
A8: Head3A | B8: Medium Term Revenue and Expenditure Framework
A9: Head4 | B9: Current year
A10: Head5 | B10: Audited Outcome
A11: Head5A | B11: Outcome
A12: Head5B | B12: Pre-audit outcome
A13: Head6 | B13: Original Budget
A14: Head7 | B14: Adjusted Budget
A15: Head8 | B15: Full Year Forecast
A16: Head9 | B16: =HLOOKUP(MTREF,Headings,7) -> Budget Year 2023/24 | C16: 1st year of MTREF | D16: Year1
A17: Head10 | B17: =HLOOKUP(MTREF,Headings,8) -> Budget Year +1 2024/25 | C17: 2nd year of MTREF | D17: Year2
A18: Head11 | B18: =HLOOKUP(MTREF,Headings,9) -> Budget Year +2 2025/26 | C18: 3rd year of MTREF | D18: Year3
A19: Head24 | B19: Description | D19: Desc
A20: Head26 | B20: Vote Description | D20: VDesc
A21: Head27 | B21: Ref
A22: Head27a | B22: References
A23: Head28 | B23: Surplus/ (Deficit) for the year | D23: Result
A24: Head29 | B24: Annual target 2007/08
A25: Head30 | B25: Revised target 2007/08
A26: Head31 | B26: Quarter ended 30 September
A27: Head32 | B27: Quarter ended 31 December
A28: Head33 | B28: Quarter ended 31 March
A29: Head34 | B29: Quarter ended 30 June
A30: Head35 | B30: Variance explanation
A31: Head36 | B31: YTD Actual 31 Dec
A32: Head37 | B32: YTD Budget 31 Dec
A33: Head38 | B33: Monthly actual
A34: Head39 | B34: YearTD actual
A35: Head40 | B35: YearTD budget
A36: Head41 | B36: YTD variance
A37: Head42 | B37: Surplus/ (Deficit) for the yr/period
A38: Head43 | B38: =Head3&" Summary" -> 2023/24 Medium Term Revenue & Expenditure Framework Summary
A39: Head44 | B39: 2001 Census
A40: Head45 | B40: 2011 Census
A41: Head46 | B41: - Adjustments Budget - January 2007
A42: Head47 | B42: Previous target year to complete
A43: Head48 | B43: Present value
A44: Head49
A45: Head50 | B45: Other Adjusts.
A46: Head51 | B46: Accum. Funds
A47: Head52 | B47: Multi-year capital
A48: Head53 | B48: Unfore. Unavoid.
A49: Head54 | B49: Prior Adjusted
A50: Head55 | B50: Nat. or Prov. Govt
A51: Head56 | B51: Total Adjusts.
A52: Head57 | B52: Month DD, YYYY -
A53: Head58 | B53: Parent muni.
A54: Head59 | B54: Downward adjusts
A55: SFPerf1 | B55: Budgeted Financial Performance
A56: SFPerf2 | B56: Forecast Financial Performance
A57: SFPos1 | B57: Budgeted Financial Position
A58: SFPos2 | B58: Forecast Financial Position
A59: Cash1 | B59: Budget Cash Flow
A60: Cash2 | B60: Forecast Cash Flow
A61: RandM | B61: Expenditure includes repairs & maintenance of R'000
A62: Standard nomenclature
A63: Muni | B63: ='Lookup and lists'!B28 -> Choose name from list
A64: Municipal Entities | B64: 1 | C64: Type of report: | D64: 3
A65: =IF((MuniEntities=1)*(MuniType=2),"YES","NO") -> NO | B65: Does this municipality have entities (consolidated budget and entity budgets required)? YES/NO
A66: Mid Year Review/Adjustment Budget schedules & tables | E66: Consolidated header | F66: Parent municipality header
A67: ADJSum | B67: =D67&IF(Consolques="YES",E67,F67) -> Table B1 Adjustments Budget Summary | D67: Table B1 | E67: ="Consolidated "&F67 -> Consolidated Adjustments Budget Summary | F67: ="Adjustments Budget Summary" -> Adjustments Budget Summary
A68: ADJ2 | B68: Table B3 Adjustments Budget Financial Performance (revenue and expenditure by municipal vote) | D68: Table B3 | E68: ="Consolidated "&F68 -> Consolidated Adjustments Budget Financial Performance (revenue and expenditure by municipal vote) | F68: ="Adjustments Budget Financial Performance (revenue and expenditure by municipal vote)" -> Adjustments Budget Financial Performance (revenue and expenditure by municipal vote)
A69: ADJ3 | B69: Table B2 Adjustments Budget Financial Performance (functional classification) | D69: Table B2 | E69: Consolidated Adjustments Budget Financial Performance (functional classification) | F69: ="Adjustments Budget Financial Performance (functional classification)" -> Adjustments Budget Financial Performance (functional classification)
A70: ADJ4 | B70: Table B4 Adjustments Budget Financial Performance (revenue and expenditure) | D70: Table B4 | E70: Consolidated Adjustments Budget Financial Performance (revenue and expenditure) | F70: ="Adjustments Budget Financial Performance (revenue and expenditure)" -> Adjustments Budget Financial Performance (revenue and expenditure)
A71: ADJ5 | B71: Table B5 Adjustments Capital Expenditure Budget by vote and funding | D71: Table B5 | E71: Consolidated Adjustments Capital Expenditure Budget by vote and funding | F71: ="Adjustments Capital Expenditure Budget by vote and funding" -> Adjustments Capital Expenditure Budget by vote and funding
A72: ADJ6 | B72: Table B6 Adjustments Budget Financial Position | D72: Table B6 | E72: Consolidated Adjustments Budget Financial Position | F72: ="Adjustments Budget Financial Position" -> Adjustments Budget Financial Position
A73: ADJ7 | B73: Table B7 Adjustments Budget Cash Flows | D73: Table B7 | E73: Consolidated Adjustments Budget Cash Flows | F73: ="Adjustments Budget Cash Flows" -> Adjustments Budget Cash Flows
A74: ADJ8 | B74: Table B8 Cash backed reserves/accumulated surplus reconciliation | D74: Table B8 | E74: Consolidated Cash backed reserves/accumulated surplus reconciliation | F74: ="Cash backed reserves/accumulated surplus reconciliation" -> Cash backed reserves/accumulated surplus reconciliation
A75: ADJ9 | B75: Table B9 Asset Management | D75: Table B9 | E75: Consolidated Asset Management | F75: ="Asset Management" -> Asset Management
A76: ADJ10 | B76: Table B10 Basic service delivery measurement | D76: Table B10 | E76: Consolidated Basic service delivery measurement | F76: ="Basic service delivery measurement" -> Basic service delivery measurement
A77: ADJB1 | B77: Supporting Table SB1 Supporting detail to 'Budgeted Financial Performance' | D77: =D101&"Table SB1 " -> Supporting Table SB1 | E77: Consolidated Supporting detail to 'Budgeted Financial Performance' | F77: ="Supporting detail to 'Budgeted Financial Performance'" -> Supporting detail to 'Budgeted Financial Performance'
A78: ADJB2 | B78: Supporting Table SB2 Supporting detail to 'Financial Position Budget' | D78: =D101&"Table SB2 " -> Supporting Table SB2 | E78: Consolidated Supporting detail to 'Financial Position Budget' | F78: ="Supporting detail to 'Financial Position Budget'" -> Supporting detail to 'Financial Position Budget'
A79: ADJB3 | B79: Supporting Table SB3 Adjustments to the SDBIP - performance objectives | D79: =D101&"Table SB3 " -> Supporting Table SB3 | E79: Consolidated Adjustments to the SDBIP - performance objectives | F79: ="Adjustments to the SDBIP - performance objectives" -> Adjustments to the SDBIP - performance objectives
A80: ADJB4 | B80: Supporting Table SB4 Adjustments to budgeted performance indicators and benchmarks | D80: =D101&"Table SB4 " -> Supporting Table SB4 | E80: Consolidated Adjustments to budgeted performance indicators and benchmarks | F80: ="Adjustments to budgeted performance indicators and benchmarks" -> Adjustments to budgeted performance indicators and benchmarks
A81: ADJB5 | B81: Supporting Table SB5 Adjustments Budget - social, economic and demographic statistics and assumptions | D81: =D101&"Table SB5 " -> Supporting Table SB5 | E81: Consolidated Adjustments Budget - social, economic and demographic statistics and assumptions | F81: ="Adjustments Budget - social, economic and demographic statistics and assumptions" -> Adjustments Budget - social, economic and demographic statistics and assumptions
A82: ADJB6 | B82: Supporting Table SB6 Adjustments Budget - funding measurement | D82: =D101&"Table SB6 " -> Supporting Table SB6 | E82: Consolidated Adjustments Budget - funding measurement | F82: ="Adjustments Budget - funding measurement" -> Adjustments Budget - funding measurement
A83: ADJB7 | B83: Supporting Table SB7 Adjustments Budget - transfers and grant receipts | D83: =D101&"Table SB7 " -> Supporting Table SB7 | E83: Consolidated Adjustments Budget - transfers and grant receipts | F83: ="Adjustments Budget - transfers and grant receipts" -> Adjustments Budget - transfers and grant receipts
A84: ADJB8 | B84: Supporting Table SB8 Adjustments Budget - expenditure on transfers and grant programme | D84: =D101&"Table SB8 " -> Supporting Table SB8 | E84: Consolidated Adjustments Budget - expenditure on transfers and grant programme | F84: ="Adjustments Budget - expenditure on transfers and grant programme" -> Adjustments Budget - expenditure on transfers and grant programme
A85: ADJB9 | B85: Supporting Table SB9 Adjustments Budget - reconciliation of transfers, grant receipts, and unspent funds | D85: =D101&"Table SB9 " -> Supporting Table SB9 | E85: Consolidated Adjustments Budget - reconciliation of transfers, grant receipts, and unspent funds | F85: ="Adjustments Budget - reconciliation of transfers, grant receipts, and unspent funds" -> Adjustments Budget - reconciliation of transfers, grant receipts, and unspent funds
A86: ADJB10 | B86: Supporting Table SB10 Adjustments Budget - transfers and grants made by the municipality | D86: =D101&"Table SB10 " -> Supporting Table SB10 | E86: Consolidated Adjustments Budget - transfers and grants made by the municipality | F86: ="Adjustments Budget - transfers and grants made by the municipality" -> Adjustments Budget - transfers and grants made by the municipality
A87: ADJB11 | B87: Supporting Table SB11 Adjustments Budget - councillor and staff benefits | D87: =D101&"Table SB11 " -> Supporting Table SB11 | E87: Consolidated Adjustments Budget - councillor and staff benefits | F87: ="Adjustments Budget - councillor and staff benefits" -> Adjustments Budget - councillor and staff benefits
A88: ADJB12 | B88: Supporting Table SB12 Adjustments Budget - monthly revenue and expenditure (municipal vote) | D88: =D101&"Table SB12 " -> Supporting Table SB12 | E88: Consolidated Adjustments Budget - monthly revenue and expenditure (municipal vote) | F88: ="Adjustments Budget - monthly revenue and expenditure (municipal vote)" -> Adjustments Budget - monthly revenue and expenditure (municipal vote)
A89: ADJB13 | B89: Supporting Table SB13 Adjustments Budget - monthly revenue and expenditure (functional classification) | D89: =D101&"Table SB13 " -> Supporting Table SB13 | E89: Consolidated Adjustments Budget - monthly revenue and expenditure (functional classification) | F89: ="Adjustments Budget - monthly revenue and expenditure (functional classification)" -> Adjustments Budget - monthly revenue and expenditure (functional classification)
A90: ADJB14 | B90: Supporting Table SB14 Adjustments Budget - monthly revenue and expenditure | D90: =D101&"Table SB14 " -> Supporting Table SB14 | E90: Consolidated Adjustments Budget - monthly revenue and expenditure | F90: ="Adjustments Budget - monthly revenue and expenditure" -> Adjustments Budget - monthly revenue and expenditure
A91: ADJB15 | B91: Supporting Table SB15 Adjustments Budget - monthly cash flow | D91: =D101&"Table SB15 " -> Supporting Table SB15 | E91: Consolidated Adjustments Budget - monthly cash flow | F91: ="Adjustments Budget - monthly cash flow" -> Adjustments Budget - monthly cash flow
A92: ADJB16 | B92: Supporting Table SB16 Adjustments Budget - monthly capital expenditure (municipal vote) | D92: =D101&"Table SB16 " -> Supporting Table SB16 | E92: Consolidated Adjustments Budget - monthly capital expenditure (municipal vote) | F92: ="Adjustments Budget - monthly capital expenditure (municipal vote)" -> Adjustments Budget - monthly capital expenditure (municipal vote)
A93: ADJB17 | B93: Supporting Table SB17 Adjustments Budget - monthly capital expenditure (functional classification) | D93: =D101&"Table SB17 " -> Supporting Table SB17 | E93: Consolidated Adjustments Budget - monthly capital expenditure (functional classification) | F93: ="Adjustments Budget - monthly capital expenditure (functional classification)" -> Adjustments Budget - monthly capital expenditure (functional classification)
A94: ADJB18a | B94: Supporting Table SB18a Adjustments Budget - capital expenditure on new assets by asset class | D94: =D101&"Table SB18a " -> Supporting Table SB18a | E94: Consolidated Adjustments Budget - capital expenditure on new assets by asset class | F94: ="Adjustments Budget - capital expenditure on new assets by asset class" -> Adjustments Budget - capital expenditure on new assets by asset class
A95: ADJB18b | B95: Supporting Table SB18b Adjustments Budget - capital expenditure on renewal of existing assets by asset class | D95: =D101&"Table SB18b " -> Supporting Table SB18b | E95: ="Consolidated "&F95 -> Consolidated Adjustments Budget - capital expenditure on renewal of existing assets by asset class | F95: ="Adjustments Budget - capital expenditure on renewal of existing assets by asset class" -> Adjustments Budget - capital expenditure on renewal of existing assets by asset class
A96: ADJB18c | B96: Supporting Table SB18c Adjustments Budget - expenditure on repairs and maintenance by asset class | D96: =D101&"Table SB18c " -> Supporting Table SB18c | E96: ="Consolidated "&F96 -> Consolidated Adjustments Budget - expenditure on repairs and maintenance by asset class | F96: ="Adjustments Budget - expenditure on repairs and maintenance by asset class" -> Adjustments Budget - expenditure on repairs and maintenance by asset class
A97: ADJB18d | B97: Supporting Table SB18d Adjustments Budget - depreciation by asset class | D97: =D101&"Table SB18d " -> Supporting Table SB18d | E97: ="Consolidated "&F97 -> Consolidated Adjustments Budget - depreciation by asset class | F97: ="Adjustments Budget - depreciation by asset class" -> Adjustments Budget - depreciation by asset class
A98: ADJB18e | B98: Supporting Table SB18e Adjustments Budget - capital expenditure on upgrading of existing assets by asset class | D98: =D101&"Table SB18e " -> Supporting Table SB18e | E98: ="Consolidated "&F98 -> Consolidated Adjustments Budget - capital expenditure on upgrading of existing assets by asset class | F98: ="Adjustments Budget - capital expenditure on upgrading of existing assets by asset class" -> Adjustments Budget - capital expenditure on upgrading of existing assets by asset class
A99: ADJB19 | B99: Supporting Table SB19 List of capital programmes and projects affected by Adjustments Budget | D99: =D101&"Table SB19 " -> Supporting Table SB19 | E99: Consolidated List of capital programmes and projects affected by Adjustments Budget | F99: ="List of capital programmes and projects affected by Adjustments Budget" -> List of capital programmes and projects affected by Adjustments Budget
A100: ADJB20 | B100: Supporting Table SB20 Not required | D100: =D101&"Table SB20 " -> Supporting Table SB20 | E100: ="Adjusted Budget Municipal Entity Performance Summary" -> Adjusted Budget Municipal Entity Performance Summary | F100: Not required
D101: Supporting

Sheet Lookup and lists (hidden)
A1: Description | B1: 2013 | C1: 2014 | D1: 2015 | E1: 2016 | F1: 2017 | G1: 2018 | H1: 2019 | I1: 2020 | J1: 2021 | K1: 2022 | L1: 2023 | M1: 2024 | N1: 2025 | O1: 2026 | Q1: Grants: | R1: National - opex | S1: Provincial - opex | T1: National - capex | U1: Provincial - capex | V1: YESNO
A2: ='Template names'!C2 -> Prior year -1 | B2: =B1-1&"/"&RIGHT(B1,2)-0 -> 2012/13 | C2: =C1-1&"/"&RIGHT(C1,2)-0 -> 2013/14 | D2: =D1-1&"/"&RIGHT(D1,2)-0 -> 2014/15 | E2: =E1-1&"/"&RIGHT(E1,2)-0 -> 2015/16 | F2: 2016/17 | G2: 2017/18 | H2: 2018/19 | I2: 2019/20 | J2: 2020/21 | K2: 2021/22 | L2: 2022/23 | M2: 2023/24 | N2: 2024/25 | O2: 2025/26 | R2: Local Government Equitable Share | S2: Health subsidy | T2: Municipal Infrastructure Grant (MIG) | U2: Agriculture | V2: Yes
A3: ='Template names'!C3 -> Prior year -2 | B3: =B1-2&"/"&RIGHT(B1,2)-1 -> 2011/12 | C3: =C1-2&"/"&RIGHT(C1,2)-1 -> 2012/13 | D3: =D1-2&"/"&RIGHT(D1,2)-1 -> 2013/14 | E3: =E1-2&"/"&RIGHT(E1,2)-1 -> 2014/15 | F3: 2015/16 | G3: 2016/17 | H3: 2017/18 | I3: 2018/19 | J3: 2019/20 | K3: 2020/21 | L3: 2021/22 | M3: 2022/23 | N3: 2023/24 | O3: 2024/25 | R3: RSC Levy Replacement | S3: Ambulance subsidy | T3: Public Transport and Systems | U3: Education | V3: No
A4: ='Template names'!C4 -> Prior year -3 | B4: =B1-3&"/"&RIGHT(B1,2)-2 -> 2010/11 | C4: =C1-3&"/"&RIGHT(C1,2)-2 -> 2011/12 | D4: =D1-3&"/"&RIGHT(D1,2)-2 -> 2012/13 | E4: =E1-3&"/"&RIGHT(E1,2)-2 -> 2013/14 | F4: 2014/15 | G4: 2015/16 | H4: 2016/17 | I4: 2017/18 | J4: 2018/19 | K4: 2019/20 | L4: 2020/21 | M4: 2021/22 | N4: 2022/23 | O4: 2023/24 | R4: Finance Management | S4: Housing | T4: Rural Transport Services and Infrastructure | U4: Health
A5: ='Template names'!C7 -> MTREF header name | B5: =B1&"/"&RIGHT(B1,2)+1&" Medium Term Revenue & Expenditure Framework" -> 2013/14 Medium Term Revenue & Expenditure Framework | C5: =C1&"/"&RIGHT(C1,2)+1&" Medium Term Revenue & Expenditure Framework" -> 2014/15 Medium Term Revenue & Expenditure Framework | D5: =D1&"/"&RIGHT(D1,2)+1&" Medium Term Revenue & Expenditure Framework" -> 2015/16 Medium Term Revenue & Expenditure Framework | E5: =E1&"/"&RIGHT(E1,2)+1&" Medium Term Revenue & Expenditure Framework" -> 2016/17 Medium Term Revenue & Expenditure Framework | F5: 2017/18 Medium Term Revenue & Expenditure Framework | G5: 2018/19 Medium Term Revenue & Expenditure Framework | H5: 2019/20 Medium Term Revenue & Expenditure Framework | I5: 2020/21 Medium Term Revenue & Expenditure Framework | J5: 2021/22 Medium Term Revenue & Expenditure Framework | K5: 2022/23 Medium Term Revenue & Expenditure Framework | L5: 2023/24 Medium Term Revenue & Expenditure Framework | M5: 2024/25 Medium Term Revenue & Expenditure Framework | N5: 2025/26 Medium Term Revenue & Expenditure Framework | O5: 2026/27 Medium Term Revenue & Expenditure Framework | R5: Municipal Systems Improvement | S5: Sport and Recreation | T5: Regional Bulk Infrastructure | U5: Housing and Local Government
A6: ='Template names'!C6 -> Approved budget year | B6: =B1&"/"&RIGHT(B1,2)+1 -> 2013/14 | C6: =C1&"/"&RIGHT(C1,2)+1 -> 2014/15 | D6: =D1&"/"&RIGHT(D1,2)+1 -> 2015/16 | E6: =E1&"/"&RIGHT(E1,2)+1 -> 2016/17 | F6: 2017/18 | G6: 2018/19 | H6: 2019/20 | I6: 2020/21 | J6: 2021/22 | K6: 2022/23 | L6: 2023/24 | M6: 2024/25 | N6: 2025/26 | O6: 2026/27 | R6: Water Services Operating Subsidy | T6: Rural Households Infrastructure | U6: Other Departments
A7: ='Template names'!C16 -> 1st year of MTREF | B7: ="Budget Year "&B1&"/"&RIGHT(B1,2)+1 -> Budget Year 2013/14 | C7: ="Budget Year "&C1&"/"&RIGHT(C1,2)+1 -> Budget Year 2014/15 | D7: ="Budget Year "&D1&"/"&RIGHT(D1,2)+1 -> Budget Year 2015/16 | E7: ="Budget Year "&E1&"/"&RIGHT(E1,2)+1 -> Budget Year 2016/17 | F7: Budget Year 2017/18 | G7: Budget Year 2018/19 | H7: Budget Year 2019/20 | I7: Budget Year 2020/21 | J7: Budget Year 2021/22 | K7: Budget Year 2022/23 | L7: Budget Year 2023/24 | M7: Budget Year 2024/25 | N7: Budget Year 2025/26 | O7: Budget Year 2026/27 | R7: Energy Efficiency and Demand Management | T7: Neighbourhood Development Partnership | U7: Public Works, Roads, Transport
A8: ='Template names'!C17 -> 2nd year of MTREF | B8: ="Budget Year +1 "&B1+1&"/"&RIGHT(B1,2)+2 -> Budget Year +1 2014/15 | C8: ="Budget Year +1 "&C1+1&"/"&RIGHT(C1,2)+2 -> Budget Year +1 2015/16 | D8: ="Budget Year +1 "&D1+1&"/"&RIGHT(D1,2)+2 -> Budget Year +1 2016/17 | E8: ="Budget Year +1 "&E1+1&"/"&RIGHT(E1,2)+2 -> Budget Year +1 2017/18 | F8: Budget Year +1 2018/19 | G8: Budget Year +1 2019/20 | H8: Budget Year +1 2020/21 | I8: Budget Year +1 2021/22 | J8: Budget Year +1 2022/23 | K8: Budget Year +1 2023/24 | L8: Budget Year +1 2024/25 | M8: Budget Year +1 2025/26 | N8: Budget Year +1 2026/27 | O8: Budget Year +1 2027/28 | R8: Integrated National Electrification Programme | T8: 2010 FIFA World Cup Stadiums Development | U8: Sport and Recreation
A9: ='Template names'!C18 -> 3rd year of MTREF | B9: ="Budget Year +2 "&B1+2&"/"&RIGHT(B1,2)+3 -> Budget Year +2 2015/16 | C9: ="Budget Year +2 "&C1+2&"/"&RIGHT(C1,2)+3 -> Budget Year +2 2016/17 | D9: ="Budget Year +2 "&D1+2&"/"&RIGHT(D1,2)+3 -> Budget Year +2 2017/18 | E9: ="Budget Year +2 "&E1+2&"/"&RIGHT(E1,2)+3 -> Budget Year +2 2018/19 | F9: Budget Year +2 2019/20 | G9: Budget Year +2 2020/21 | H9: Budget Year +2 2021/22 | I9: Budget Year +2 2022/23 | J9: Budget Year +2 2023/24 | K9: Budget Year +2 2024/25 | L9: Budget Year +2 2025/26 | M9: Budget Year +2 2026/27 | N9: Budget Year +2 2027/28 | O9: Budget Year +2 2028/29 | R9: Municipal Drought Relief
A10: Adjustments Budget | B10: ="Annual target " & B1&"/"&RIGHT(B1,2)+1 -> Annual target 2013/14 | C10: ="Annual target " & C1&"/"&RIGHT(C1,2)+1 -> Annual target 2014/15 | D10: ="Annual target " & D1&"/"&RIGHT(D1,2)+1 -> Annual target 2015/16 | E10: ="Annual target " & E1&"/"&RIGHT(E1,2)+1 -> Annual target 2016/17 | F10: Annual target 2017/18 | G10: Annual target 2018/19 | H10: Annual target 2019/20 | I10: Annual target 2020/21 | J10: Annual target 2021/22 | K10: Annual target 2022/23 | L10: Annual target 2023/24 | M10: Annual target 2024/25 | N10: Annual target 2025/26 | O10: Annual target 2026/27 | R10: 2010 FIFA World Cup Operating
A11: NOTE: This sheet should not be directly amended - select headings from sheet 'S' | R11: Electricity Demand Side Management
R12: EPWP Incentive
R15: Asset Class | S15: Asset sub-class Old | T15: Asset sub-class | U15: IUDF | V15: MTSF
R17: Roads Infrastructure | S17: Roads, Pavements & Bridges | T17: Roads | U17: Spatial integration | V17: Quality basic education
R18: Storm water Infrastructure | S18: Storm water | T18: Road Structures | U18: Inclusion and access | V18: A long and healthy life for all South Africans
R19: Electrical Infrastructure | S19: Generation | T19: Road Furniture | U19: Growth | V19: All people in South Africa are and feel safe
R20: Water Supply Infrastructure | S20: Transmission & Reticulation | T20: Capital Spares | U20: Governance | V20: Decent employment through inclusive growth
R21: Sanitation Infrastructure | S21: Street Lighting | T21: Drainage Collection | V21: A skilled and capable workforce to support an inclusive growth path
R22: Solid Waste Infrastructure | S22: Dams & Reservoirs | T22: Storm water Conveyance | V22: An efficient, competitive and responsive economic infrastructure network
R23: Rail Infrastructure | S23: Water purification | T23: Attenuation | V23: Vibrant, equitable, sustainable rural communities contributing towards food security for all
R24: Coastal Infrastructure | S24: Reticulation | T24: Power Plants | V24: Sustainable human settlements and improved quality of household life
R25: Information and Communication Infrastructure | S25: Sewerage purification | T25: HV Substations | V25: Responsive, accountable, effective and efficient local government
R26: Community Facilities | S26: Waste Management | T26: HV Switching Station | V26: Protect and enhance our environmental assets and natural resources
A27: Name link | B27: 1 | R27: Sport and Recreation Facilities | S27: Transportation | T27: HV Transmission Conductors | V27: Create a better South Africa and contribute to a better Africa and a better world
A28: Name of Muni | B28: =INDEX(B29:B312,B27,1) -> Choose name from list | R28: Heritage assets | S28: Gas | T28: MV Substations | V28: An efficient, effective and development-oriented public service
B29: Choose name from list | C29: Set name on 'Instructions' sheet | R29: Revenue Generating | S29: Parks & gardens | T29: MV Switching Stations | V29: A comprehensive, responsive and sustainable social protection system
B30: BUF Buffalo City | C30: EC EASTERN CAPE | R30: Non-revenue Generating | S30: Sportsfields & stadia | T30: MV Networks | V30: A diverse, socially cohesive society with a common national identity
B31: NMA Nelson Mandela Bay | C31: EC EASTERN CAPE | R31: Operational Buildings | S31: Swimming pools | T31: LV Networks
B32: EC101 Dr Beyers Naude | C32: EC EASTERN CAPE | R32: Housing | S32: Community halls | T32: Capital Spares
B33: EC102 Blue Crane Route | C33: EC EASTERN CAPE | R33: Biological or Cultivated Assets | S33: Libraries | T33: Dams and Weirs
B34: EC104 Makana | C34: EC EASTERN CAPE | R34: Servitudes | S34: Recreational facilities | T34: Boreholes
B35: EC105 Ndlambe | C35: EC EASTERN CAPE | R35: Licences and Rights | S35: Fire, safety & emergency | T35: Reservoirs
B36: EC106 Sundays River Valley | C36: EC EASTERN CAPE | R36: Computer Equipment | S36: Security and policing | T36: Pump Stations
B37: EC108 Kouga | C37: EC EASTERN CAPE | R37: Furniture and Office Equipment | S37: Buses | T37: Water Treatment Works
B38: EC109 Kou-Kamma | C38: EC EASTERN CAPE | R38: Machinery and Equipment | S38: Clinics | T38: Bulk Mains
B39: DC10 Sarah Baartman | C39: EC EASTERN CAPE | R39: Transport Assets | S39: Museums & Art Galleries | T39: Distribution
B40: EC121 Mbhashe | C40: EC EASTERN CAPE | R40: Land | S40: Cemeteries | T40: Distribution Points
B41: EC122 Mnquma | C41: EC EASTERN CAPE | R41: Zoo's, Marine and Non-biological Animals | S41: Social rental housing | T41: PRV Stations
B42: EC123 Great Kei | C42: EC EASTERN CAPE | S42: Buildings | T42: Capital Spares
B43: EC124 Amahlathi | C43: EC EASTERN CAPE | S43: Housing development | T43: Pump Station
B44: EC126 Ngqushwa | C44: EC EASTERN CAPE | S44: General vehicles | T44: Reticulation
B45: EC129 Raymond Mhlaba | C45: EC EASTERN CAPE | S45: Specialised vehicles - Refuse | T45: Waste Water Treatment Works
B46: DC12 Amathole | C46: EC EASTERN CAPE | S46: Specialised vehicles - Fire | T46: Outfall Sewers
B47: EC131 Inxuba Yethemba | C47: EC EASTERN CAPE | S47: Specialised vehicles - Conservancy | T47: Toilet Facilities
B48: EC135 Intsika Yethu | C48: EC EASTERN CAPE | S48: Specialised vehicles - Ambulances | T48: Capital Spares
B49: EC136 Emalahleni (Ec) | C49: EC EASTERN CAPE | S49: Plant & equipment | T49: Landfill Sites
B50: EC137 Engcobo | C50: EC EASTERN CAPE | S50: Computers - hardware/equipment | T50: Waste Transfer Stations
B51: EC138 Sakhisizwe | C51: EC EASTERN CAPE | S51: Furniture and other office equipment | T51: Waste Processing Facilities
B52: EC139 Enoch Mgijima | C52: EC EASTERN CAPE | S52: Abattoirs | T52: Waste Drop-off Points
B53: DC13 Chris Hani | C53: EC EASTERN CAPE | S53: Markets | T53: Waste Separation Facilities
B54: EC141 Elundini | C54: EC EASTERN CAPE | S54: Civic Land and Buildings | T54: Electricity Generation Facilities
B55: EC142 Senqu | C55: EC EASTERN CAPE | S55: Other Buildings | T55: Capital Spares
B56: EC145 Walter Sisulu | C56: EC EASTERN CAPE | S56: Other Land | T56: Rail Lines
B57: DC14 Joe Gqabi | C57: EC EASTERN CAPE | S57: Surplus Assets - (Investment or Inventory) | T57: Rail Structures
B58: EC153 Ngquza Hills | C58: EC EASTERN CAPE | S58: Computers - software & programming | T58: Rail Furniture
B59: EC154 Port St Johns | C59: EC EASTERN CAPE | S59: Other | T59: Drainage Collection
B60: EC155 Nyandeni | C60: EC EASTERN CAPE | T60: Storm water Conveyance
B61: EC156 Mhlontlo | C61: EC EASTERN CAPE | R61: SB 19 | T61: Attenuation
B62: EC157 King Sabata Dalindyebo | C62: EC EASTERN CAPE | R62: Yes | T62: MV Substations
B63: DC15 O .R. Tambo | C63: EC EASTERN CAPE | R63: No | T63: LV Networks
B64: EC441 Matatiele | C64: EC EASTERN CAPE | T64: Capital Spares
B65: EC442 Umzimvubu | C65: EC EASTERN CAPE | T65: Sand Pumps
B66: EC443 Winnie Madikizela Mandela | C66: EC EASTERN CAPE | T66: Piers
B67: EC444 Ntabankulu | C67: EC EASTERN CAPE | T67: Revetments
B68: DC44 Alfred Nzo | C68: EC EASTERN CAPE | T68: Promenades
B69: MAN Mangaung | C69: FS FREE STATE | T69: Capital Spares
B70: FS161 Letsemeng | C70: FS FREE STATE | T70: Data Centres
B71: FS162 Kopanong | C71: FS FREE STATE | T71: Core Layers
B72: FS163 Mohokare | C72: FS FREE STATE | T72: Distribution Layers
B73: DC16 Xhariep | C73: FS FREE STATE | T73: Capital Spares
B74: FS181 Masilonyana | C74: FS FREE STATE | T74: Halls
B75: FS182 Tokologo | C75: FS FREE STATE | T75: Centres
B76: FS183 Tswelopele | C76: FS FREE STATE | T76: Crèches
B77: FS184 Matjhabeng | C77: FS FREE STATE | T77: Clinics/Care Centres
B78: FS185 Nala | C78: FS FREE STATE | T78: Fire/Ambulance Stations
B79: DC18 Lejweleputswa | C79: FS FREE STATE | T79: Testing Stations
B80: FS191 Setsoto | C80: FS FREE STATE | T80: Museums
B81: FS192 Dihlabeng | C81: FS FREE STATE | T81: Galleries
B82: FS193 Nketoana | C82: FS FREE STATE | T82: Theatres
B83: FS194 Maluti-a-Phofung | C83: FS FREE STATE | T83: Libraries
B84: FS195 Phumelela | C84: FS FREE STATE | T84: Cemeteries/Crematoria
B85: FS196 Mantsopa | C85: FS FREE STATE | T85: Police
B86: DC19 Thabo Mofutsanyana | C86: FS FREE STATE | T86: Purls
B87: FS201 Moqhaka | C87: FS FREE STATE | T87: Public Open Space
B88: FS203 Ngwathe | C88: FS FREE STATE | T88: Nature Reserves
B89: FS204 Metsimaholo | C89: FS FREE STATE | T89: Public Ablution Facilities
B90: FS205 Mafube | C90: FS FREE STATE | T90: Markets
B91: DC20 Fezile Dabi | C91: FS FREE STATE | T91: Stalls
B92: EKU City of Ekurhuleni | C92: GT GAUTENG | T92: Abattoirs
B93: JHB City Of Johannesburg | C93: GT GAUTENG | T93: Airports
B94: TSH City Of Tshwane | C94: GT GAUTENG | T94: Taxi Ranks/Bus Terminals
B95: GT421 Emfuleni | C95: GT GAUTENG | T95: Capital Spares
B96: GT422 Midvaal | C96: GT GAUTENG | T96: Indoor Facilities
B97: GT423 Lesedi | C97: GT GAUTENG | T97: Outdoor Facilities
B98: DC42 Sedibeng | C98: GT GAUTENG | T98: Capital Spares
B99: GT481 Mogale City | C99: GT GAUTENG | T99: Monuments
B100: GT484 Merafong City | C100: GT GAUTENG | T100: Historic Buildings
B101: GT485 Rand West City | C101: GT GAUTENG | T101: Works of Art
B102: DC48 West Rand | C102: GT GAUTENG | T102: Conservation Areas
B103: ETH eThekwini | C103: KZN KWAZULU-NATAL | T103: Other Heritage
B104: KZN212 Umdoni | C104: KZN KWAZULU-NATAL | T104: Improved Property
B105: KZN213 Umzumbe | C105: KZN KWAZULU-NATAL | T105: Unimproved Property
B106: KZN214 uMuziwabantu | C106: KZN KWAZULU-NATAL | T106: Municipal Offices
B107: KZN216 Ray Nkonyeni | C107: KZN KWAZULU-NATAL | T107: Pay/Enquiry Points
B108: DC21 Ugu | C108: KZN KWAZULU-NATAL | T108: Building Plan Offices
B109: KZN221 uMshwathi | C109: KZN KWAZULU-NATAL | T109: Workshops
B110: KZN222 uMngeni | C110: KZN KWAZULU-NATAL | T110: Yards
B111: KZN223 Mpofana | C111: KZN KWAZULU-NATAL | T111: Stores
B112: KZN224 Impendle | C112: KZN KWAZULU-NATAL | T112: Laboratories
B113: KZN225 Msunduzi | C113: KZN KWAZULU-NATAL | T113: Training Centres
B114: KZN226 Mkhambathini | C114: KZN KWAZULU-NATAL | T114: Manufacturing Plant
B115: KZN227 Richmond | C115: KZN KWAZULU-NATAL | T115: Depots
B116: DC22 uMgungundlovu | C116: KZN KWAZULU-NATAL | T116: Capital Spares
B117: KZN235 Okhahlamba | C117: KZN KWAZULU-NATAL | T117: Staff Housing
B118: KZN237 Inkosi Langalibalele | C118: KZN KWAZULU-NATAL | T118: Social Housing
B119: KZN238 Alfred Duma | C119: KZN KWAZULU-NATAL | T119: Capital Spares
B120: DC23 Uthukela | C120: KZN KWAZULU-NATAL | T120: Water Rights
B121: KZN241 Endumeni | C121: KZN KWAZULU-NATAL | T121: Effluent Licenses
B122: KZN242 Nquthu | C122: KZN KWAZULU-NATAL | T122: Solid Waste Licenses
B123: KZN244 Msinga | C123: KZN KWAZULU-NATAL | T123: Computer Software and Applications
B124: KZN245 Umvoti | C124: KZN KWAZULU-NATAL | T124: Load Settlement Software Applications
B125: DC24 Umzinyathi | C125: KZN KWAZULU-NATAL | T125: Unspecified
B126: KZN252 Newcastle | C126: KZN KWAZULU-NATAL
B127: KZN253 Emadlangeni | C127: KZN KWAZULU-NATAL
B128: KZN254 Dannhauser | C128: KZN KWAZULU-NATAL
B129: DC25 Amajuba | C129: KZN KWAZULU-NATAL
B130: KZN261 eDumbe | C130: KZN KWAZULU-NATAL
B131: KZN262 uPhongolo | C131: KZN KWAZULU-NATAL
B132: KZN263 Abaqulusi | C132: KZN KWAZULU-NATAL
B133: KZN265 Nongoma | C133: KZN KWAZULU-NATAL
B134: KZN266 Ulundi | C134: KZN KWAZULU-NATAL
B135: DC26 Zululand | C135: KZN KWAZULU-NATAL
B136: KZN271 Umhlabuyalingana | C136: KZN KWAZULU-NATAL
B137: KZN272 Jozini | C137: KZN KWAZULU-NATAL
B138: KZN275 Mtubatuba | C138: KZN KWAZULU-NATAL
B139: KZN276 Hlabisa Big Five | C139: KZN KWAZULU-NATAL
B140: DC27 Umkhanyakude | C140: KZN KWAZULU-NATAL
B141: KZN281 Mfolozi | C141: KZN KWAZULU-NATAL
B142: KZN282 uMhlathuze | C142: KZN KWAZULU-NATAL
B143: KZN284 uMlalazi | C143: KZN KWAZULU-NATAL
B144: KZN285 Mthonjaneni | C144: KZN KWAZULU-NATAL
B145: KZN286 Nkandla | C145: KZN KWAZULU-NATAL
B146: DC28 King Cetshwayo | C146: KZN KWAZULU-NATAL
B147: KZN291 Mandeni | C147: KZN KWAZULU-NATAL
B148: KZN292 KwaDukuza | C148: KZN KWAZULU-NATAL
B149: KZN293 Ndwedwe | C149: KZN KWAZULU-NATAL
B150: KZN294 Maphumulo | C150: KZN KWAZULU-NATAL
B151: DC29 iLembe | C151: KZN KWAZULU-NATAL
B152: KZN433 Greater Kokstad | C152: KZN KWAZULU-NATAL
B153: KZN434 Ubuhlebezwe | C153: KZN KWAZULU-NATAL
B154: KZN435 Umzimkhulu | C154: KZN KWAZULU-NATAL
B155: KZN436 Dr Nkosazana Dlamini Zuma | C155: KZN KWAZULU-NATAL
B156: DC43 Harry Gwala | C156: KZN KWAZULU-NATAL
B157: LIM331 Greater Giyani | C157: LIM LIMPOPO
B158: LIM332 Greater Letaba | C158: LIM LIMPOPO
B159: LIM333 Greater Tzaneen | C159: LIM LIMPOPO
B160: LIM334 Ba-Phalaborwa | C160: LIM LIMPOPO
B161: LIM335 Maruleng | C161: LIM LIMPOPO
B162: DC33 Mopani | C162: LIM LIMPOPO
B163: LIM341 Musina | C163: LIM LIMPOPO
B164: LIM343 Thulamela | C164: LIM LIMPOPO
B165: LIM344 Makhado | C165: LIM LIMPOPO
B166: LIM345 Collins Chabane | C166: LIM LIMPOPO
B167: DC34 Vhembe | C167: LIM LIMPOPO
B168: LIM351 Blouberg | C168: LIM LIMPOPO
B169: LIM353 Molemole | C169: LIM LIMPOPO
B170: LIM354 Polokwane | C170: LIM LIMPOPO
B171: LIM355 Lepelle-Nkumpi | C171: LIM LIMPOPO
B172: DC35 Capricorn | C172: LIM LIMPOPO
B173: LIM361 Thabazimbi | C173: LIM LIMPOPO
B174: LIM362 Lephalale | C174: LIM LIMPOPO
B175: LIM366 Bela Bela | C175: LIM LIMPOPO
B176: LIM367 Mogalakwena | C176: LIM LIMPOPO
B177: LIM368 Modimolle-Mookgopong | C177: LIM LIMPOPO
B178: DC36 Waterberg | C178: LIM LIMPOPO
B179: LIM471 Ephraim Mogale | C179: LIM LIMPOPO
B180: LIM472 Elias Motsoaledi | C180: LIM LIMPOPO
B181: LIM473 Makhuduthamaga | C181: LIM LIMPOPO
B182: LIM476 Tubatse Fetakgomo | C182: LIM LIMPOPO
B183: DC47 Sekhukhune | C183: LIM LIMPOPO
B184: MP301 Albert Luthuli | C184: MP MPUMALANGA
B185: MP302 Msukaligwa | C185: MP MPUMALANGA
B186: MP303 Mkhondo | C186: MP MPUMALANGA
B187: MP304 Pixley Ka Seme (MP) | C187: MP MPUMALANGA
B188: MP305 Lekwa | C188: MP MPUMALANGA
B189: MP306 Dipaleseng | C189: MP MPUMALANGA
B190: MP307 Govan Mbeki | C190: MP MPUMALANGA
B191: DC30 Gert Sibande | C191: MP MPUMALANGA
B192: MP311 Victor Khanye | C192: MP MPUMALANGA
B193: MP312 Emalahleni (Mp) | C193: MP MPUMALANGA
B194: MP313 Steve Tshwete | C194: MP MPUMALANGA
B195: MP314 Emakhazeni | C195: MP MPUMALANGA
B196: MP315 Thembisile Hani | C196: MP MPUMALANGA
B197: MP316 Dr J.S. Moroka | C197: MP MPUMALANGA
B198: DC31 Nkangala | C198: MP MPUMALANGA
B199: MP321 Thaba Chweu | C199: MP MPUMALANGA
B200: MP324 Nkomazi | C200: MP MPUMALANGA
B201: MP325 Bushbuckridge | C201: MP MPUMALANGA
B202: MP326 City of Mbombela | C202: MP MPUMALANGA
B203: DC32 Ehlanzeni | C203: MP MPUMALANGA
... 84 more rows

Sheet Org structure
A1: Organisational Structure Votes | C1: Organisational Structure Sub-Votes | E1: Display Sub-Votes
A2: =B2&" - "&C2 -> Vote 1 - City Manager | B2: Vote 1 | C2: City Manager
A3: =B13&" - "& C13 -> Vote 2 - City Finance | B3: 1.1 | C3: Internal Audit and Compliance | D3: =CONCATENATE(B3, " - ", C3) -> 1,1 - Internal Audit and Compliance | E3: 1.1 - Internal Audit and Compliance
A4: =B24&" - "&C24 -> Vote 3 - Corporate Services | B4: 1.2 | C4: Office of the City Manager | D4: 1,2 - Office of the City Manager | E4: 1.2 - Office of the City Manager
A5: =B35&" - "&C35 -> Vote 4 - Community Services and Social Equity | B5: 1.3 | C5: Political Support | D5: 1,3 - Political Support | E5: 1.3 - Political Support
A6: =B46&" - "&C46 -> Vote 5 - Infrastructure Services | B6: 1.4 | C6: [Name of sub-vote] | D6: 1,4 - [Name of sub-vote] | E6: 1.4 - Strategic Planning
A7: =B57&" - "&C57 -> Vote 6 - Sustainable Development and City Enterprises | B7: 1.5 | C7: [Name of sub-vote] | D7: 1,5 - [Name of sub-vote]
A8: =B68&" - "&C68 -> Vote 7 - Electricity | B8: 1.6 | C8: [Name of sub-vote] | D8: 1,6 - [Name of sub-vote]
A9: =B79&" - "&C79 -> Vote 8 - [NAME OF VOTE 8] | B9: 1.7 | C9: [Name of sub-vote] | D9: 1,7 - [Name of sub-vote]
A10: =B90&" - "&C90 -> Vote 9 - [NAME OF VOTE 9] | B10: 1.8 | C10: [Name of sub-vote] | D10: 1,8 - [Name of sub-vote]
A11: =B101&" - "&C101 -> Vote 10 - [NAME OF VOTE 10] | B11: 1.9 | C11: [Name of sub-vote] | D11: 1,9 - [Name of sub-vote]
A12: =B112&" - "&C112 -> Vote 11 - [NAME OF VOTE 11] | B12: 1.10 | C12: [Name of sub-vote] | D12: 1.10 - [Name of sub-vote]
A13: =B123&" - "&C123 -> Vote 12 - [NAME OF VOTE 12] | B13: Vote 2 | C13: City Finance
A14: =B134&" - "&C134 -> Vote 13 - [NAME OF VOTE 13] | B14: 2.1 | C14: Asset Management | D14: 2,1 - Asset Management | E14: 2.1 - Asset Management
A15: =B145&" - "&C145 -> Vote 14 - [NAME OF VOTE 14] | B15: 2.2 | C15: Budget and Treasury Management | D15: 2,2 - Budget and Treasury Management | E15: 2.2 - Budget and Treasury Management
A16: =B156&" - "&C156 -> Vote 15 - [NAME OF VOTE 15] | B16: 2.3 | C16: Expenditure Management | D16: 2,3 - Expenditure Management | E16: 2.3 - Expenditure Management
B17: 2.4 | C17: Revenue Management | D17: 2,4 - Revenue Management | E17: 2.4 - Revenue Management
B18: 2.5 | C18: Supply Chain Management | D18: 2,5 - Supply Chain Management | E18: 2.5 - Supply Chain Management
B19: 2.6 | C19: [Name of sub-vote] | D19: =CONCATENATE(B19, " - ", C19) -> 2,6 - [Name of sub-vote]
B20: 2.7 | C20: [Name of sub-vote] | D20: 2,7 - [Name of sub-vote]
B21: 2.8 | C21: [Name of sub-vote] | D21: 2,8 - [Name of sub-vote]
B22: 2.9 | C22: [Name of sub-vote] | D22: 2,9 - [Name of sub-vote]
B23: 2.10 | C23: [Name of sub-vote] | D23: 2.10 - [Name of sub-vote]
B24: Vote 3 | C24: Corporate Services
B25: 3.1 | C25: Human Resources Management | D25: 3,1 - Human Resources Management | E25: Human Resources Management
B26: 3.2 | C26: Information Technology | D26: 3,2 - Information Technology | E26: Information Technology
B27: 3.3 | C27: Legal Services | D27: 3,3 - Legal Services | E27: Legal Services
B28: 3.4 | C28: Secretariat and Auxiliary Services | D28: 3,4 - Secretariat and Auxiliary Services | E28: Secretariat and Auxiliary Services
B29: 3.5 | C29: General Manager: Corporate Service | D29: 3,5 - General Manager: Corporate Service | E29: General Manager: Corporate Service
B30: 3.6 | C30: [Name of sub-vote] | D30: =CONCATENATE(B30, " - ", C30) -> 3,6 - [Name of sub-vote]
B31: 3.7 | C31: [Name of sub-vote] | D31: 3,7 - [Name of sub-vote]
B32: 3.8 | C32: [Name of sub-vote] | D32: 3,8 - [Name of sub-vote]
B33: 3.9 | C33: [Name of sub-vote] | D33: 3,9 - [Name of sub-vote]
B34: 3.10 | C34: [Name of sub-vote] | D34: 3.10 - [Name of sub-vote]
B35: Vote 4 | C35: Community Services and Social Equity
B36: 4.1 | C36: Area Based Management | D36: 4,1 - Area Based Management | E36: 4.1 - Area Based Management
B37: 4.2 | C37: Public Safety, Emergency Services and Enforcement | D37: 4,2 - Public Safety, Emergency Services and Enforcement | E37: 4.2 - Public Safety, Emergency Services and Enforcement
B38: 4.3 | C38: Recreation and Facilities | D38: 4,3 - Recreation and Facilities | E38: 4.3 - Recreation and Facilities
B39: 4.4 | C39: Waste Management | D39: 4,4 - Waste Management | E39: 4.4 - Waste Management
B40: 4.5 | C40: [Name of sub-vote] | D40: =CONCATENATE(B40, " - ", C40) -> 4,5 - [Name of sub-vote]
B41: 4.6 | C41: [Name of sub-vote] | D41: 4,6 - [Name of sub-vote]
B42: 4.7 | C42: [Name of sub-vote] | D42: 4,7 - [Name of sub-vote]
B43: 4.8 | C43: [Name of sub-vote] | D43: 4,8 - [Name of sub-vote]
B44: 4.9 | C44: [Name of sub-vote] | D44: 4,9 - [Name of sub-vote]
B45: 4.10 | C45: [Name of sub-vote] | D45: 4.10 - [Name of sub-vote]
B46: Vote 5 | C46: Infrastructure Services
B47: 5.1 | C47: Project Management Office | D47: 5,1 - Project Management Office | E47: 5.1 - Project Management Office
B48: 5.2 | C48: Roads and Transportation | D48: 5,2 - Roads and Transportation | E48: 5.2 - Roads and Transportation
B49: 5.3 | C49: Water and Sanitation | D49: 5,3 - Water and Sanitation | E49: 5.3 - Water and Sanitation
B50: 5.4 | C50: General Manager: Infrastructure | D50: 5,4 - General Manager: Infrastructure | E50: 5.4 - General Manager: Infrastructure
B51: 5.5 | C51: [Name of sub-vote] | D51: =CONCATENATE(B51, " - ", C51) -> 5,5 - [Name of sub-vote]
B52: 5.6 | C52: [Name of sub-vote] | D52: 5,6 - [Name of sub-vote]
B53: 5.7 | C53: [Name of sub-vote] | D53: 5,7 - [Name of sub-vote]
B54: 5.8 | C54: [Name of sub-vote] | D54: 5,8 - [Name of sub-vote]
B55: 5.9 | C55: [Name of sub-vote] | D55: 5,9 - [Name of sub-vote]
B56: 5.10 | C56: [Name of sub-vote] | D56: 5.10 - [Name of sub-vote]
B57: Vote 6 | C57: Sustainable Development and City Enterprises
B58: 6.1 | C58: City Entities | D58: 6,1 - City Entities | E58: 6.1 - City Entities
B59: 6.2 | C59: Development Services | D59: 6,2 - Development Services | E59: 6.2 - Development Services
B60: 6.3 | C60: Human Settlement Development | D60: 6,3 - Human Settlement Development | E60: 6.3 - Human Settlement Development
B61: 6.4 | C61: Town Planning | D61: 6,4 - Town Planning | E61: 6.4 - Town Planning
B62: 6.5 | C62: General Manager: Sustainable Development and City Enterprises | D62: 6,5 - General Manager: Sustainable Development and City Enterprises | E62: 6.5 - General Manager: Sustainable Development and City Enterprises
B63: 6.6 | C63: [Name of sub-vote] | D63: =CONCATENATE(B63, " - ", C63) -> 6,6 - [Name of sub-vote]
B64: 6.7 | C64: [Name of sub-vote] | D64: 6,7 - [Name of sub-vote]
B65: 6.8 | C65: [Name of sub-vote] | D65: 6,8 - [Name of sub-vote]
B66: 6.9 | C66: [Name of sub-vote] | D66: 6,9 - [Name of sub-vote]
B67: 6.10 | C67: [Name of sub-vote] | D67: 6.10 - [Name of sub-vote]
B68: Vote 7 | C68: Electricity
B69: 7.1 | C69: Electricity planning | D69: 7,1 - Electricity planning | E69: 7.1 Electricity planning
B70: 7.2 | C70: Methods and Standards | D70: 7,2 - Methods and Standards | E70: 7.2 Methods and Standards
B71: 7.3 | C71: Operations and Maintenance | D71: 7,3 - Operations and Maintenance | E71: 7.3 Operations and Maintenance
B72: 7.4 | C72: Revenue Management | D72: 7,4 - Revenue Management | E72: 7.4 Revenue Management
B73: 7.5 | C73: General Manager Electricity | D73: 7,5 - General Manager Electricity | E73: 7.5 General Manager Electricity
B74: 7.6 | C74: [Name of sub-vote] | D74: =CONCATENATE(B74, " - ", C74) -> 7,6 - [Name of sub-vote]
B75: 7.7 | C75: [Name of sub-vote] | D75: 7,7 - [Name of sub-vote]
B76: 7.8 | C76: [Name of sub-vote] | D76: 7,8 - [Name of sub-vote]
B77: 7.9 | C77: [Name of sub-vote] | D77: 7,9 - [Name of sub-vote]
B78: 7.10 | C78: [Name of sub-vote] | D78: 7.10 - [Name of sub-vote]
B79: Vote 8 | C79: [NAME OF VOTE 8]
B80: 8.1 | C80: [Name of sub-vote] | D80: =CONCATENATE(B80, " - ", C80) -> 8,1 - [Name of sub-vote] | E80: 8.1 - [Name of sub-vote]
B81: 8.2 | C81: [Name of sub-vote] | D81: 8,2 - [Name of sub-vote]
B82: 8.3 | C82: [Name of sub-vote] | D82: 8,3 - [Name of sub-vote]
B83: 8.4 | C83: [Name of sub-vote] | D83: 8,4 - [Name of sub-vote]
B84: 8.5 | C84: [Name of sub-vote] | D84: 8,5 - [Name of sub-vote]
B85: 8.6 | C85: [Name of sub-vote] | D85: 8,6 - [Name of sub-vote]
B86: 8.7 | C86: [Name of sub-vote] | D86: 8,7 - [Name of sub-vote]
B87: 8.8 | C87: [Name of sub-vote] | D87: 8,8 - [Name of sub-vote]
B88: 8.9 | C88: [Name of sub-vote] | D88: 8,9 - [Name of sub-vote]
B89: 8.10 | C89: [Name of sub-vote] | D89: 8.10 - [Name of sub-vote]
B90: Vote 9 | C90: [NAME OF VOTE 9]
B91: 9.1 | C91: [Name of sub-vote] | D91: =CONCATENATE(B91, " - ", C91) -> 9,1 - [Name of sub-vote] | E91: 9.1 - [Name of sub-vote]
B92: 9.2 | C92: [Name of sub-vote] | D92: 9,2 - [Name of sub-vote]
B93: 9.3 | C93: [Name of sub-vote] | D93: 9,3 - [Name of sub-vote]
B94: 9.4 | C94: [Name of sub-vote] | D94: 9,4 - [Name of sub-vote]
B95: 9.5 | C95: [Name of sub-vote] | D95: 9,5 - [Name of sub-vote]
B96: 9.6 | C96: [Name of sub-vote] | D96: 9,6 - [Name of sub-vote]
B97: 9.7 | C97: [Name of sub-vote] | D97: 9,7 - [Name of sub-vote]
B98: 9.8 | C98: [Name of sub-vote] | D98: 9,8 - [Name of sub-vote]
B99: 9.9 | C99: [Name of sub-vote] | D99: 9,9 - [Name of sub-vote]
B100: 9.10 | C100: [Name of sub-vote] | D100: 9.10 - [Name of sub-vote]
B101: Vote 10 | C101: [NAME OF VOTE 10]
B102: 10.1 | C102: [Name of sub-vote] | D102: =CONCATENATE(B102, " - ", C102) -> 10,1 - [Name of sub-vote] | E102: 10.1 - [Name of sub-vote]
B103: 10.2 | C103: [Name of sub-vote] | D103: 10,2 - [Name of sub-vote]
B104: 10.3 | C104: [Name of sub-vote] | D104: 10,3 - [Name of sub-vote]
B105: 10.4 | C105: [Name of sub-vote] | D105: 10,4 - [Name of sub-vote]
B106: 10.5 | C106: [Name of sub-vote] | D106: 10,5 - [Name of sub-vote]
B107: 10.6 | C107: [Name of sub-vote] | D107: 10,6 - [Name of sub-vote]
B108: 10.7 | C108: [Name of sub-vote] | D108: 10,7 - [Name of sub-vote]
B109: 10.8 | C109: [Name of sub-vote] | D109: 10,8 - [Name of sub-vote]
B110: 10.9 | C110: [Name of sub-vote] | D110: 10,9 - [Name of sub-vote]
B111: 10.10 | C111: [Name of sub-vote] | D111: 10.10 - [Name of sub-vote]
B112: Vote 11 | C112: [NAME OF VOTE 11]
B113: 11.1 | C113: [Name of sub-vote] | D113: =CONCATENATE(B113, " - ", C113) -> 11,1 - [Name of sub-vote] | E113: 11.1 - [Name of sub-vote]
B114: 11.2 | C114: [Name of sub-vote] | D114: 11,2 - [Name of sub-vote]
B115: 11.3 | C115: [Name of sub-vote] | D115: 11,3 - [Name of sub-vote]
B116: 11.4 | C116: [Name of sub-vote] | D116: 11,4 - [Name of sub-vote]
B117: 11.5 | C117: [Name of sub-vote] | D117: 11,5 - [Name of sub-vote]
B118: 11.6 | C118: [Name of sub-vote] | D118: 11,6 - [Name of sub-vote]
B119: 11.7 | C119: [Name of sub-vote] | D119: 11,7 - [Name of sub-vote]
B120: 11.8 | C120: [Name of sub-vote] | D120: 11,8 - [Name of sub-vote]
B121: 11.9 | C121: [Name of sub-vote] | D121: 11,9 - [Name of sub-vote]
B122: 11.10 | C122: [Name of sub-vote] | D122: 11.10 - [Name of sub-vote]
B123: Vote 12 | C123: [NAME OF VOTE 12]
B124: 12.1 | C124: [Name of sub-vote] | D124: =CONCATENATE(B124, " - ", C124) -> 12,1 - [Name of sub-vote] | E124: 12.1 - [Name of sub-vote]
B125: 12.2 | C125: [Name of sub-vote] | D125: 12,2 - [Name of sub-vote]
B126: 12.3 | C126: [Name of sub-vote] | D126: 12,3 - [Name of sub-vote]
B127: 12.4 | C127: [Name of sub-vote] | D127: 12,4 - [Name of sub-vote]
B128: 12.5 | C128: [Name of sub-vote] | D128: 12,5 - [Name of sub-vote]
B129: 12.6 | C129: [Name of sub-vote] | D129: 12,6 - [Name of sub-vote]
B130: 12.7 | C130: [Name of sub-vote] | D130: 12,7 - [Name of sub-vote]
B131: 12.8 | C131: [Name of sub-vote] | D131: 12,8 - [Name of sub-vote]
B132: 12.9 | C132: [Name of sub-vote] | D132: 12,9 - [Name of sub-vote]
B133: 12.10 | C133: [Name of sub-vote] | D133: 12.10 - [Name of sub-vote]
B134: Vote 13 | C134: [NAME OF VOTE 13]
B135: 13.1 | C135: [Name of sub-vote] | D135: =CONCATENATE(B135, " - ", C135) -> 13,1 - [Name of sub-vote] | E135: 13.1 - [Name of sub-vote]
B136: 13.2 | C136: [Name of sub-vote] | D136: 13,2 - [Name of sub-vote]
B137: 13.3 | C137: [Name of sub-vote] | D137: 13,3 - [Name of sub-vote]
B138: 13.4 | C138: [Name of sub-vote] | D138: 13,4 - [Name of sub-vote]
B139: 13.5 | C139: [Name of sub-vote] | D139: 13,5 - [Name of sub-vote]
B140: 13.6 | C140: [Name of sub-vote] | D140: 13,6 - [Name of sub-vote]
B141: 13.7 | C141: [Name of sub-vote] | D141: 13,7 - [Name of sub-vote]
B142: 13.8 | C142: [Name of sub-vote] | D142: 13,8 - [Name of sub-vote]
B143: 13.9 | C143: [Name of sub-vote] | D143: 13,9 - [Name of sub-vote]
B144: 13.10 | C144: [Name of sub-vote] | D144: 13.10 - [Name of sub-vote]
B145: Vote 14 | C145: [NAME OF VOTE 14]
B146: 14.1 | C146: [Name of sub-vote] | D146: =CONCATENATE(B146, " - ", C146) -> 14,1 - [Name of sub-vote] | E146: 14.1 - [Name of sub-vote]
B147: 14.2 | C147: [Name of sub-vote] | D147: 14,2 - [Name of sub-vote]
B148: 14.3 | C148: [Name of sub-vote] | D148: 14,3 - [Name of sub-vote]
B149: 14.4 | C149: [Name of sub-vote] | D149: 14,4 - [Name of sub-vote]
B150: 14.5 | C150: [Name of sub-vote] | D150: 14,5 - [Name of sub-vote]
B151: 14.6 | C151: [Name of sub-vote] | D151: 14,6 - [Name of sub-vote]
B152: 14.7 | C152: [Name of sub-vote] | D152: 14,7 - [Name of sub-vote]
B153: 14.8 | C153: [Name of sub-vote] | D153: 14,8 - [Name of sub-vote]
B154: 14.9 | C154: [Name of sub-vote] | D154: 14,9 - [Name of sub-vote]
B155: 14.10 | C155: [Name of sub-vote] | D155: 14.10 - [Name of sub-vote]
B156: Vote 15 | C156: [NAME OF VOTE 15]
B157: 15.1 | C157: [Name of sub-vote] | D157: =CONCATENATE(B157, " - ", C157) -> 15,1 - [Name of sub-vote] | E157: 15.1 - [Name of sub-vote]
B158: 15.2 | C158: [Name of sub-vote] | D158: 15,2 - [Name of sub-vote]
B159: 15.3 | C159: [Name of sub-vote] | D159: 15,3 - [Name of sub-vote]
B160: 15.4 | C160: [Name of sub-vote] | D160: 15,4 - [Name of sub-vote]
B161: 15.5 | C161: [Name of sub-vote] | D161: 15,5 - [Name of sub-vote]
B162: 15.6 | C162: [Name of sub-vote] | D162: 15,6 - [Name of sub-vote]
B163: 15.7 | C163: [Name of sub-vote] | D163: 15,7 - [Name of sub-vote]
B164: 15.8 | C164: [Name of sub-vote] | D164: 15,8 - [Name of sub-vote]
B165: 15.9 | C165: [Name of sub-vote] | D165: 15,9 - [Name of sub-vote]
B166: 15.10 | C166: [Name of sub-vote] | D166: 15.10 - [Name of sub-vote]

Sheet Contacts
A1: ='Template names'!$B$63&" - "&" Contact Information" -> Choose name from list - Contact Information
A3: A. GENERAL INFORMATION
A4: Municipality | B4: ='Template names'!$B$63 -> Choose name from list | C4: Set name on 'Instructions' sheet
A6: Grade | C6: 1 Grade in terms of the Remuneration of Public Office Bearers Act.
A8: Province | B8: =IF(B4>" ",VLOOKUP(B4,'Lookup and lists'!B29:C312,2, FALSE)," ") -> Set name on 'Instructions' sheet
A10: Web Address
A12: e-mail Address
A14: B. CONTACT INFORMATION
A15: Postal address:
A16: P.O. Box
A17: City / Town
A18: Postal Code
A20: Street address
A21: Building
A22: Street No. & Name
A23: City / Town
A24: Postal Code
A26: General Contacts
A27: Telephone number
A28: Fax number
A30: C. POLITICAL LEADERSHIP
A31: Speaker: | C31: Secretary/PA to the Speaker:
A32: ID Number | C32: ID Number
A33: Title | C33: Title
A34: Name | C34: Name
A35: Telephone number | C35: Telephone number
A36: Cell number | C36: Cell number
A37: Fax number | C37: Fax number
A38: E-mail address | C38: E-mail address
A40: Mayor/Executive Mayor: | C40: Secretary/PA to the Mayor/Executive Mayor:
A41: ID Number | C41: ID Number
A42: Title | C42: Title
A43: Name | C43: Name
A44: Telephone number | C44: Telephone number
A45: Cell number | C45: Cell number
A46: Fax number | C46: Fax number
A47: E-mail address | C47: E-mail address
A49: Deputy Mayor/Executive Mayor: | C49: Secretary/PA to the Deputy Mayor/Executive Mayor:
A50: ID Number | C50: ID Number
A51: Title | C51: Title
A52: Name | C52: Name
A53: Telephone number | C53: Telephone number
A54: Cell number | C54: Cell number
A55: Fax number | C55: Fax number
A56: E-mail address | C56: E-mail address
A58: D. MANAGEMENT LEADERSHIP
A59: Municipal Manager: | C59: Secretary/PA to the Municipal Manager:
A60: ID Number | C60: ID Number
A61: Title | C61: Title
A62: Name | C62: Name
A63: Telephone number | C63: Telephone number
A64: Cell number | C64: Cell number
A65: Fax number | C65: Fax number
A66: E-mail address | C66: E-mail address
A68: Chief Financial Officer | C68: Secretary/PA to the Chief Financial Officer
A69: ID Number | C69: ID Number
A70: Title | C70: Title
A71: Name | C71: Name
A72: Telephone number | C72: Telephone number
A73: Cell number | C73: Cell number
A74: Fax number | C74: Fax number
A75: E-mail address | C75: E-mail address
A77: Official responsible for submitting financial information | C77: Official responsible for submitting financial information
A78: ID Number | C78: ID Number
A79: Title | C79: Title
A80: Name | C80: Name
A81: Telephone number | C81: Telephone number
A82: Cell number | C82: Cell number
A83: Fax number | C83: Fax number
A84: E-mail address | C84: E-mail address
A85: Official responsible for submitting financial information | C85: Official responsible for submitting financial information
A86: ID Number | C86: ID Number
A87: Title | C87: Title
A88: Name | C88: Name
A89: Telephone number | C89: Telephone number
A90: Cell number | C90: Cell number
A91: Fax number | C91: Fax number
A92: E-mail address | C92: E-mail address
A93: Official responsible for submitting financial information | C93: Official responsible for submitting financial information
A94: ID Number | C94: ID Number
A95: Title | C95: Title
A96: Name | C96: Name
A97: Telephone number | C97: Telephone number
A98: Cell number | C98: Cell number
A99: Fax number | C99: Fax number
A100: E-mail address | C100: E-mail address
A101: Official responsible for submitting financial information | C101: Official responsible for submitting financial information
A102: ID Number | C102: ID Number
A103: Title | C103: Title
A104: Name | C104: Name
A105: Telephone number | C105: Telephone number
A106: Cell number | C106: Cell number
A107: Fax number | C107: Fax number
A108: E-mail address | C108: E-mail address
A109: Official responsible for submitting financial information | C109: Official responsible for submitting financial information
A110: ID Number | C110: ID Number
A111: Title | C111: Title
A112: Name | C112: Name
A113: Telephone number | C113: Telephone number
A114: Cell number | C114: Cell number
A115: Fax number | C115: Fax number
A116: E-mail address | C116: E-mail address
A117: Official responsible for submitting financial information | C117: Official responsible for submitting financial information
A118: ID Number | C118: ID Number
A119: Title | C119: Title
A120: Name | C120: Name
A121: Telephone number | C121: Telephone number
A122: Cell number | C122: Cell number
A123: Fax number | C123: Fax number
A124: E-mail address | C124: E-mail address
A125: Official responsible for submitting financial information | C125: Official responsible for submitting financial information
A126: ID Number | C126: ID Number
A127: Title | C127: Title
A128: Name | C128: Name
A129: Telephone number | C129: Telephone number
A130: Cell number | C130: Cell number
A131: Fax number | C131: Fax number
A132: E-mail address | C132: E-mail address
A133: Official responsible for submitting financial information
A134: ID Number
A135: Title
A136: Name
A137: Telephone number
A138: Cell number
A139: Fax number
A140: E-mail address

Sheet B1-Sum
A1: =muni&" - "&adjsum&" - "&Date -> Choose name from list - Table B1 Adjustments Budget Summary -
A2: =desc -> Description | B2: =Head2 -> Budget Year 2023/24 | K2: =Head10 -> Budget Year +1 2024/25 | L2: =Head11 -> Budget Year +2 2025/26
B3: =Head6 -> Original Budget | C3: =Head54 -> Prior Adjusted | D3: =Head51 -> Accum. Funds | E3: =Head52 -> Multi-year capital | F3: =Head53 -> Unfore. Unavoid. | G3: =Head55 -> Nat. or Prov. Govt | H3: =Head50 -> Other Adjusts. | I3: =Head56 -> Total Adjusts. | J3: =Head7 -> Adjusted Budget | K3: =Head7 -> Adjusted Budget | L3: =Head7 -> Adjusted Budget
C4: 1 | D4: 2 | E4: 3 | F4: 4 | G4: 5 | H4: 6 | I4: 7 | J4: 8
A5: R thousands | B5: A | C5: A1 | D5: B | E5: C | F5: D | G5: E | H5: F | I5: G | J5: H
A6: Financial Performance
A7: Property rates | B7: =SUM('B4-FinPerf RE'!C23) -> 1526985082 | C7: =SUM('B4-FinPerf RE'!D23) -> 0 | D7: =SUM('B4-FinPerf RE'!E23) -> 0 | E7: =SUM('B4-FinPerf RE'!F23) -> 0 | F7: =SUM('B4-FinPerf RE'!G23) -> 0 | G7: =SUM('B4-FinPerf RE'!H23) -> 0 | H7: =SUM('B4-FinPerf RE'!I23) -> 0 | I7: =SUM('B4-FinPerf RE'!J23) -> 0 | J7: =SUM('B4-FinPerf RE'!K23) -> 1526985082 | K7: =SUM('B4-FinPerf RE'!L23) -> 1601807351 | L7: =SUM('B4-FinPerf RE'!M23) -> 1677092296
A8: Service charges | B8: =SUM('B4-FinPerf RE'!C8:C11) -> 5135631234 | C8: =SUM('B4-FinPerf RE'!D8:D11) -> 0 | D8: =SUM('B4-FinPerf RE'!E8:E11) -> 0 | E8: =SUM('B4-FinPerf RE'!F8:F11) -> 0 | F8: =SUM('B4-FinPerf RE'!G8:G11) -> 0 | G8: =SUM('B4-FinPerf RE'!H8:H11) -> 0 | H8: =SUM('B4-FinPerf RE'!I8:I11) -> -219463339.2 | I8: =SUM('B4-FinPerf RE'!J8:J11) -> -219463339.2 | J8: =SUM('B4-FinPerf RE'!K8:K11) -> 4916167895 | K8: =SUM('B4-FinPerf RE'!L8:L11) -> 5819379974 | L8: =SUM('B4-FinPerf RE'!M8:M11) -> 6693474808
A9: Investment revenue | B9: ='B4-FinPerf RE'!C16 -> 18052025.28 | C9: ='B4-FinPerf RE'!D16 -> 0 | D9: ='B4-FinPerf RE'!E16 -> 0 | E9: ='B4-FinPerf RE'!F16 -> 0 | F9: ='B4-FinPerf RE'!G16 -> 0 | G9: ='B4-FinPerf RE'!H16 -> 0 | H9: ='B4-FinPerf RE'!I16 -> 0 | I9: ='B4-FinPerf RE'!J16 -> 0 | J9: ='B4-FinPerf RE'!K16 -> 18052025.28 | K9: ='B4-FinPerf RE'!L16 -> 19225406.93 | L9: ='B4-FinPerf RE'!M16 -> 20494283.78
A10: Transfers recognised - operational | B10: ='B4-FinPerf RE'!C27 -> 838135150 | C10: ='B4-FinPerf RE'!D27 -> 0 | D10: ='B4-FinPerf RE'!E27 -> 0 | E10: ='B4-FinPerf RE'!F27 -> 0 | F10: ='B4-FinPerf RE'!G27 -> 0 | G10: ='B4-FinPerf RE'!H27 -> 0 | H10: ='B4-FinPerf RE'!I27 -> 7880475.88 | I10: ='B4-FinPerf RE'!J27 -> 7880475.88 | J10: ='B4-FinPerf RE'!K27 -> 846015625.9 | K10: ='B4-FinPerf RE'!L27 -> 906229405 | L10: ='B4-FinPerf RE'!M27 -> 982611448
A11: Other own revenue | B11: =+B12-SUM(B7:B10) -> 601922633.9 | C11: =+C12-SUM(C7:C10) -> 0 | D11: 0 | E11: 0 | F11: 0 | G11: 0 | H11: 0 | I11: 0 | J11: 601922633.9 | K11: 634943668.8 | L11: 664786022
A12: Total Revenue (excluding capital transfers and contributions) | B12: =+'B4-FinPerf RE'!C34 -> 8120726125 | C12: =+'B4-FinPerf RE'!D34 -> 0 | D12: =+'B4-FinPerf RE'!E34 -> 0 | E12: =+'B4-FinPerf RE'!F34 -> 0 | F12: =+'B4-FinPerf RE'!G34 -> 0 | G12: =+'B4-FinPerf RE'!H34 -> 0 | H12: =+'B4-FinPerf RE'!I34 -> -211582863.3 | I12: =+'B4-FinPerf RE'!J34 -> -211582863.3 | J12: =+'B4-FinPerf RE'!K34 -> 7909143262 | K12: =+'B4-FinPerf RE'!L34 -> 8981585805 | L12: =+'B4-FinPerf RE'!M34 -> 1.003845886e+10
A13: Employee costs | B13: ='B4-FinPerf RE'!C37 -> 1793148355 | C13: ='B4-FinPerf RE'!D37 -> 0 | D13: ='B4-FinPerf RE'!E37 -> 0 | E13: ='B4-FinPerf RE'!F37 -> 0 | F13: ='B4-FinPerf RE'!G37 -> 0 | G13: ='B4-FinPerf RE'!H37 -> 0 | H13: ='B4-FinPerf RE'!I37 -> -76576633.36 | I13: =SUM(D13:H13) -> -76576633.36 | J13: =IF(C13=0,B13+I13,C13+I13) -> 1716571722 | K13: ='B4-FinPerf RE'!L37 -> 1844151109 | L13: ='B4-FinPerf RE'!M37 -> 1914587680
A14: Remuneration of councillors | B14: ='B4-FinPerf RE'!C38 -> 62699934.99 | C14: ='B4-FinPerf RE'!D38 -> 0 | D14: ='B4-FinPerf RE'!E38 -> 0 | E14: ='B4-FinPerf RE'!F38 -> 0 | F14: ='B4-FinPerf RE'!G38 -> 0 | G14: ='B4-FinPerf RE'!H38 -> 0 | H14: ='B4-FinPerf RE'!I38 -> 0 | I14: 0 | J14: 62699934.99 | K14: ='B4-FinPerf RE'!L38 -> 65521432.06 | L14: ='B4-FinPerf RE'!M38 -> 68469896.51
A15: Depreciation & asset impairment | B15: ='B4-FinPerf RE'!C41+'B4-FinPerf RE'!C42 -> 1061615984 | C15: ='B4-FinPerf RE'!D41+'B4-FinPerf RE'!D42 -> 0 | D15: ='B4-FinPerf RE'!E41+'B4-FinPerf RE'!E42 -> 0 | E15: ='B4-FinPerf RE'!F41+'B4-FinPerf RE'!F42 -> 0 | F15: ='B4-FinPerf RE'!G41+'B4-FinPerf RE'!G42 -> 0 | G15: ='B4-FinPerf RE'!H41+'B4-FinPerf RE'!H42 -> 0 | H15: ='B4-FinPerf RE'!I41+'B4-FinPerf RE'!I42 -> 834194.24 | I15: ='B4-FinPerf RE'!J41+'B4-FinPerf RE'!J42 -> 834194.24 | J15: ='B4-FinPerf RE'!K41+'B4-FinPerf RE'!K42 -> 1062450178 | K15: ='B4-FinPerf RE'!L41+'B4-FinPerf RE'!L42 -> 1108526714 | L15: ='B4-FinPerf RE'!M41+'B4-FinPerf RE'!M42 -> 1159684201
A16: Finance charges | B16: ='B4-FinPerf RE'!C43 -> 40400879.72 | C16: ='B4-FinPerf RE'!D43 -> 0 | D16: ='B4-FinPerf RE'!E43 -> 0 | E16: ='B4-FinPerf RE'!F43 -> 0 | F16: ='B4-FinPerf RE'!G43 -> 0 | G16: ='B4-FinPerf RE'!H43 -> 0 | H16: ='B4-FinPerf RE'!I43 -> 0 | I16: ='B4-FinPerf RE'!J43 -> 0 | J16: ='B4-FinPerf RE'!K43 -> 40400879.72 | K16: ='B4-FinPerf RE'!L43 -> 42218920.59 | L16: ='B4-FinPerf RE'!M43 -> 44118763.82
A17: Inventory consumed and bulk purchases | B17: =SUM('B4-FinPerf RE'!C39:C40) -> 3484629036 | C17: =SUM('B4-FinPerf RE'!D39:D40) -> 0 | D17: =SUM('B4-FinPerf RE'!E39:E40) -> 0 | E17: =SUM('B4-FinPerf RE'!F39:F40) -> 0 | F17: =SUM('B4-FinPerf RE'!G39:G40) -> 0 | G17: =SUM('B4-FinPerf RE'!H39:H40) -> 0 | H17: =SUM('B4-FinPerf RE'!I39:I40) -> 107561429.7 | I17: =SUM('B4-FinPerf RE'!J39:J40) -> 107561429.7 | J17: =SUM('B4-FinPerf RE'!K39:K40) -> 3592190466 | K17: =SUM('B4-FinPerf RE'!L39:L40) -> 4085009866 | L17: =SUM('B4-FinPerf RE'!M39:M40) -> 4592887780
A18: Transfers and subsidies | B18: ='B4-FinPerf RE'!C45 -> 51023535.29 | C18: ='B4-FinPerf RE'!D45 -> 0 | D18: ='B4-FinPerf RE'!E45 -> 0 | E18: ='B4-FinPerf RE'!F45 -> 0 | F18: ='B4-FinPerf RE'!G45 -> 0 | G18: ='B4-FinPerf RE'!H45 -> 0 | H18: ='B4-FinPerf RE'!I45 -> -36396934.25 | I18: -36396934.25 | J18: 14626601.04 | K18: ='B4-FinPerf RE'!L45 -> 69096411.35 | L18: ='B4-FinPerf RE'!M45 -> 72361126.67
A19: Other expenditure | B19: =+B20-SUM(B13:B18) -> 1211682070 | C19: =+C20-SUM(C13:C18) -> 0 | D19: 0 | E19: 0 | F19: 0 | G19: 0 | H19: -136610461.1 | I19: -136610461.1 | J19: 1075071609 | K19: 1274206690 | L19: 1333161241
A20: Total Expenditure | B20: =+'B4-FinPerf RE'!C50 -> 7705199795 | C20: =+'B4-FinPerf RE'!D50 -> 0 | D20: =+'B4-FinPerf RE'!E50 -> 0 | E20: =+'B4-FinPerf RE'!F50 -> 0 | F20: =+'B4-FinPerf RE'!G50 -> 0 | G20: =+'B4-FinPerf RE'!H50 -> 0 | H20: =+'B4-FinPerf RE'!I50 -> -141188404.8 | I20: =+'B4-FinPerf RE'!J50 -> -141188404.8 | J20: =+'B4-FinPerf RE'!K50 -> 7564011390 | K20: =+'B4-FinPerf RE'!L50 -> 8488731143 | L20: =+'B4-FinPerf RE'!M50 -> 9185270689
A21: Surplus/(Deficit) | B21: =B12-B20 -> 415526330.3 | C21: 0 | D21: 0 | E21: 0 | F21: 0 | G21: 0 | H21: -70394458.47 | I21: -70394458.47 | J21: 345131871.8 | K21: 492854662 | L21: 853188169
A22: ='B4-FinPerf RE'!A53 -> Transfers and subsidies - capital (monetary allocations) | B22: ='B4-FinPerf RE'!C53 -> 448700054.9 | C22: ='B4-FinPerf RE'!D53 -> 0 | D22: ='B4-FinPerf RE'!E53 -> 0 | E22: ='B4-FinPerf RE'!F53 -> 0 | F22: ='B4-FinPerf RE'!G53 -> 0 | G22: ='B4-FinPerf RE'!H53 -> 0 | H22: ='B4-FinPerf RE'!I53 -> 87456148.5 | I22: ='B4-FinPerf RE'!J53 -> 87456148.5 | J22: ='B4-FinPerf RE'!K53 -> 536156203.4 | K22: ='B4-FinPerf RE'!L53 -> 321309343.2 | L22: ='B4-FinPerf RE'!M53 -> 327881560
A23: Transfers and subsidies - capital (in-kind - all) | B23: ='B4-FinPerf RE'!C54 -> 0 | C23: ='B4-FinPerf RE'!D54 -> 0 | D23: ='B4-FinPerf RE'!E54 -> 0 | E23: ='B4-FinPerf RE'!F54 -> 0 | F23: ='B4-FinPerf RE'!G54 -> 0 | G23: ='B4-FinPerf RE'!H54 -> 0 | H23: ='B4-FinPerf RE'!I54 -> 0 | I23: ='B4-FinPerf RE'!J54 -> 0 | J23: ='B4-FinPerf RE'!K54 -> 0 | K23: ='B4-FinPerf RE'!L54 -> 0 | L23: ='B4-FinPerf RE'!M54 -> 0
A24: Surplus/(Deficit) after capital transfers & contributions | B24: =B21+SUM(B22:B23) -> 864226385.2 | C24: 0 | D24: 0 | E24: 0 | F24: 0 | G24: 0 | H24: 17061690.03 | I24: =SUM(D24:H24) -> 17061690.03 | J24: =IF(C24=0,B24+I24,C24+I24) -> 881288075.2 | K24: 814164005.2 | L24: 1181069729
A25: Share of surplus/ (deficit) of associate | B25: ='B4-FinPerf RE'!C61 -> 0 | C25: ='B4-FinPerf RE'!D61 -> 0 | D25: ='B4-FinPerf RE'!E61 -> 0 | E25: ='B4-FinPerf RE'!F61 -> 0 | F25: ='B4-FinPerf RE'!G61 -> 0 | G25: ='B4-FinPerf RE'!H61 -> 0 | H25: ='B4-FinPerf RE'!I61 -> 0 | I25: ='B4-FinPerf RE'!J61 -> 0 | J25: ='B4-FinPerf RE'!K61 -> 0 | K25: ='B4-FinPerf RE'!L61 -> 0 | L25: ='B4-FinPerf RE'!M61 -> 0
A26: Surplus/ (Deficit) for the year | B26: =B24+B25 -> 864226385.2 | C26: 0 | D26: 0 | E26: 0 | F26: 0 | G26: 0 | H26: 17061690.03 | I26: 17061690.03 | J26: 881288075.2 | K26: 814164005.2 | L26: 1181069729
A28: Capital expenditure & funds sources
A29: Capital expenditure | B29: ='B5-Capex'!C42 -> 768760054 | C29: ='B5-Capex'!D42 -> 0 | D29: ='B5-Capex'!E42 -> 0 | E29: ='B5-Capex'!F42 -> 0 | F29: ='B5-Capex'!G42 -> 0 | G29: ='B5-Capex'!H42 -> 0 | H29: ='B5-Capex'!I42 -> 33783899.45 | I29: =SUM(D29:H29) -> 33783899.45 | J29: =IF(C29=0,B29+I29,C29+I29) -> 802543953.5 | K29: ='B5-Capex'!L42 -> 581309343.2 | L29: ='B5-Capex'!M42 -> 447881560
A30: Transfers recognised - capital | B30: ='B5-Capex'!C72 -> 448700054.9 | C30: ='B5-Capex'!D72 -> 0 | D30: ='B5-Capex'!E72 -> 0 | E30: ='B5-Capex'!F72 -> 0 | F30: ='B5-Capex'!G72 -> 0 | G30: ='B5-Capex'!H72 -> 0 | H30: ='B5-Capex'!I72 -> 87456148.5 | I30: =SUM(D30:H30) -> 87456148.5 | J30: =IF(C30=0,B30+I30,C30+I30) -> 536156203.4 | K30: ='B5-Capex'!L72 -> 321309343.2 | L30: ='B5-Capex'!M72 -> 327881560
A32: Borrowing | B32: ='B5-Capex'!C74 -> 200000000 | C32: ='B5-Capex'!D74 -> 0 | D32: ='B5-Capex'!E74 -> 0 | E32: ='B5-Capex'!F74 -> 0 | F32: ='B5-Capex'!G74 -> 0 | G32: ='B5-Capex'!H74 -> 0 | H32: ='B5-Capex'!I74 -> -83725050 | I32: =SUM(D32:H32) -> -83725050 | J32: =IF(C32=0,B32+I32,C32+I32) -> 116274950 | K32: ='B5-Capex'!L74 -> 150000000 | L32: ='B5-Capex'!M74 -> 0
A33: Internally generated funds | B33: ='B5-Capex'!C75 -> 120059999 | C33: ='B5-Capex'!D75 -> 0 | D33: ='B5-Capex'!E75 -> 0 | E33: ='B5-Capex'!F75 -> 0 | F33: ='B5-Capex'!G75 -> 0 | G33: ='B5-Capex'!H75 -> 0 | H33: ='B5-Capex'!I75 -> 30052800.95 | I33: =SUM(D33:H33) -> 30052800.95 | J33: =IF(C33=0,B33+I33,C33+I33) -> 150112800 | K33: ='B5-Capex'!L75 -> 110000000 | L33: ='B5-Capex'!M75 -> 120000000
A34: Total sources of capital funds | B34: =+B30+B32+B33 -> 768760054 | C34: =+C30+C32+C33 -> 0 | D34: 0 | E34: 0 | F34: 0 | G34: 0 | H34: 33783899.45 | I34: =SUM(D34:H34) -> 33783899.45 | J34: =IF(C34=0,B34+I34,C34+I34) -> 802543953.5 | K34: 581309343.2 | L34: 447881560
A36: Financial position
A37: Total current assets | B37: ='B6-FinPos'!C15 -> 2928028759 | C37: ='B6-FinPos'!D15 -> 0 | D37: ='B6-FinPos'!E15 -> 0 | E37: ='B6-FinPos'!F15 -> 0 | F37: ='B6-FinPos'!G15 -> 0 | G37: ='B6-FinPos'!H15 -> 0 | H37: ='B6-FinPos'!I15 -> 1880169198 | I37: =SUM(D37:H37) -> 1880169198 | J37: =IF(C37=0,B37+I37,C37+I37) -> 4808197957 | K37: ='B6-FinPos'!L15 -> 856619638.6 | L37: ='B6-FinPos'!M15 -> 168826755.7
A38: Total non current assets | B38: ='B6-FinPos'!C27 -> 9298982591 | C38: ='B6-FinPos'!D27 -> 0 | D38: ='B6-FinPos'!E27 -> 0 | E38: ='B6-FinPos'!F27 -> 0 | F38: ='B6-FinPos'!G27 -> 0 | G38: ='B6-FinPos'!H27 -> 0 | H38: ='B6-FinPos'!I27 -> -124202399.3 | I38: =SUM(D38:H38) -> -124202399.3 | J38: =IF(C38=0,B38+I38,C38+I38) -> 9174780192 | K38: ='B6-FinPos'!L27 -> 9063070469 | L38: ='B6-FinPos'!M27 -> 7989097536
A39: Total current liabilities | B39: ='B6-FinPos'!C40 -> 1647578966 | C39: ='B6-FinPos'!D40 -> 0 | D39: ='B6-FinPos'!E40 -> 0 | E39: ='B6-FinPos'!F40 -> 0 | F39: ='B6-FinPos'!G40 -> 0 | G39: ='B6-FinPos'!H40 -> 0 | H39: ='B6-FinPos'!I40 -> 675718728.6 | I39: =SUM(D39:H39) -> 675718728.6 | J39: =IF(C39=0,B39+I39,C39+I39) -> 2323297695 | K39: ='B6-FinPos'!L40 -> 2323690605 | L39: ='B6-FinPos'!M40 -> 2432904063
A40: Total non current liabilities | B40: ='B6-FinPos'!C47 -> 855012692 | C40: ='B6-FinPos'!D47 -> 0 | D40: ='B6-FinPos'!E47 -> 0 | E40: ='B6-FinPos'!F47 -> 0 | F40: ='B6-FinPos'!G47 -> 0 | G40: ='B6-FinPos'!H47 -> 0 | H40: ='B6-FinPos'!I47 -> -196538864 | I40: =SUM(D40:H40) -> -196538864 | J40: =IF(C40=0,B40+I40,C40+I40) -> 658473828 | K40: ='B6-FinPos'!L47 -> 1449035967 | L40: ='B6-FinPos'!M47 -> 939063004.3
A41: Community wealth/Equity | B41: ='B6-FinPos'!C56 -> 9724419692 | C41: ='B6-FinPos'!D56 -> 0 | D41: ='B6-FinPos'!E56 -> 0 | E41: ='B6-FinPos'!F56 -> 0 | F41: ='B6-FinPos'!G56 -> 0 | G41: ='B6-FinPos'!H56 -> 0 | H41: ='B6-FinPos'!I56 -> 1276786934 | I41: =SUM(D41:H41) -> 1276786934 | J41: =IF(C41=0,B41+I41,C41+I41) -> 1.100120663e+10 | K41: ='B6-FinPos'!L56 -> 9265421637 | L41: ='B6-FinPos'!M56 -> 1.005087481e+10
A43: Cash flows
A44: Net cash from (used) operating | B44: ='B7-CFlow'!C19 -> 946660441.4 | C44: ='B7-CFlow'!D19 -> 0 | D44: ='B7-CFlow'!E19 -> 0 | E44: ='B7-CFlow'!F19 -> 0 | F44: ='B7-CFlow'!G19 -> 0 | G44: ='B7-CFlow'!H19 -> 0 | H44: ='B7-CFlow'!I19 -> 78716426.57 | I44: =SUM(D44:H44) -> 78716426.57 | J44: =IF(C44=0,B44+I44,C44+I44) -> 1025376868 | K44: ='B7-CFlow'!L19 -> 2680642034 | L44: ='B7-CFlow'!M19 -> 3198854144
A45: Net cash from (used) investing | B45: ='B7-CFlow'!C29 -> -768501055 | C45: ='B7-CFlow'!D29 -> 0 | D45: ='B7-CFlow'!E29 -> 0 | E45: ='B7-CFlow'!F29 -> 0 | F45: ='B7-CFlow'!G29 -> 0 | G45: ='B7-CFlow'!H29 -> 0 | H45: ='B7-CFlow'!I29 -> -52788517 | I45: =SUM(D45:H45) -> -52788517 | J45: =IF(C45=0,B45+I45,C45+I45) -> -821289572 | K45: ='B7-CFlow'!L29 -> -668665745 | L45: ='B7-CFlow'!M29 -> -515231794
A46: Net cash from (used) financing | B46: ='B7-CFlow'!C38 -> 177000000 | C46: ='B7-CFlow'!D38 -> 0 | D46: ='B7-CFlow'!E38 -> 0 | E46: ='B7-CFlow'!F38 -> 0 | F46: ='B7-CFlow'!G38 -> 0 | G46: ='B7-CFlow'!H38 -> 0 | H46: ='B7-CFlow'!I38 -> -83725050 | I46: =SUM(D46:H46) -> -83725050 | J46: =IF(C46=0,B46+I46,C46+I46) -> 93274950 | K46: ='B7-CFlow'!L38 -> 126000000 | L46: ='B7-CFlow'!M38 -> -26000000
A47: Cash/cash equivalents at the year end | B47: ='B7-CFlow'!C42 -> 602889386.4 | C47: ='B7-CFlow'!D42 -> 0 | D47: ='B7-CFlow'!E42 -> 0 | E47: ='B7-CFlow'!F42 -> 0 | F47: ='B7-CFlow'!G42 -> 0 | G47: ='B7-CFlow'!H42 -> 0 | H47: ='B7-CFlow'!I42 -> 205874869.6 | I47: =SUM(D47:H47) -> 205874869.6 | J47: =IF(C47=0,B47+I47,C47+I47) -> 808764256 | K47: ='B7-CFlow'!L42 -> 2904856254 | L47: ='B7-CFlow'!M42 -> 3937922528
A49: Cash backing/surplus reconciliation
A50: Cash and investments available | B50: ='B8-ResRecon'!C10 -> 1272279145 | C50: ='B8-ResRecon'!D10 -> 0 | D50: ='B8-ResRecon'!E10 -> 0 | E50: ='B8-ResRecon'!F10 -> 0 | F50: ='B8-ResRecon'!G10 -> 0 | G50: ='B8-ResRecon'!H10 -> 0 | H50: ='B8-ResRecon'!I10 -> 293499532 | I50: =SUM(D50:H50) -> 293499532 | J50: =IF(C50=0,B50+I50,C50+I50) -> 1565778677 | K50: ='B8-ResRecon'!L10 -> 1358458824 | L50: ='B8-ResRecon'!M10 -> 2305731680
A51: Application of cash and investments | B51: ='B8-ResRecon'!C20 -> -523024225.8 | C51: ='B8-ResRecon'!D20 -> 0 | D51: ='B8-ResRecon'!E20 -> 0 | E51: ='B8-ResRecon'!F20 -> 0 | F51: ='B8-ResRecon'!G20 -> 0 | G51: ='B8-ResRecon'!H20 -> 0 | H51: ='B8-ResRecon'!I20 -> -698107717.2 | I51: =SUM(D51:H51) -> -698107717.2 | J51: =IF(C51=0,B51+I51,C51+I51) -> -1221131943 | K51: ='B8-ResRecon'!L20 -> 223097416.1 | L51: ='B8-ResRecon'!M20 -> 791036987.4
A52: Balance - surplus (shortfall) | B52: =B50-B51 -> 1795303371 | C52: 0 | D52: 0 | E52: 0 | F52: 0 | G52: 0 | H52: 991607249.2 | I52: 991607249.2 | J52: 2786910620 | K52: 1135361408 | L52: 1514694692
A54: Asset Management
A55: Asset register summary (WDV) | B55: ='B9-Asset'!C180 -> 7261155343 | C55: ='B9-Asset'!D180 -> 0 | D55: ='B9-Asset'!E180 -> 0 | E55: ='B9-Asset'!F180 -> 0 | F55: ='B9-Asset'!G180 -> 0 | G55: ='B9-Asset'!H180 -> 0 | H55: ='B9-Asset'!I180 -> 0 | I55: =SUM(D55:H55) -> 0 | J55: =IF(C55=0,B55+I55,C55+I55) -> 7261155343 | K55: ='B9-Asset'!L180 -> 7616951955 | L55: ='B9-Asset'!M180 -> 7974948697
A56: Depreciation | B56: ='B9-Asset'!C183 -> 461615984 | C56: ='B9-Asset'!D183 -> 0 | D56: ='B9-Asset'!E183 -> 0 | E56: ='B9-Asset'!F183 -> 0 | F56: ='B9-Asset'!G183 -> 0 | G56: ='B9-Asset'!H183 -> 0 | H56: ='B9-Asset'!I183 -> 834162.6332 | I56: =SUM(D56:H56) -> 834162.6332 | J56: =IF(C56=0,B56+I56,C56+I56) -> 462450146.6 | K56: ='B9-Asset'!L183 -> 481526714 | L56: ='B9-Asset'!M183 -> 503215201
A57: Renewal and Upgrading of Existing Assets | B57: ='B9-Asset'!C42+'B9-Asset'!C77 -> 260820500 | C57: ='B9-Asset'!D42+'B9-Asset'!D77 -> 0 | D57: ='B9-Asset'!E42+'B9-Asset'!E77 -> 0 | E57: ='B9-Asset'!F42+'B9-Asset'!F77 -> 0 | F57: ='B9-Asset'!G42+'B9-Asset'!G77 -> 0 | G57: ='B9-Asset'!H42+'B9-Asset'!H77 -> 0 | H57: ='B9-Asset'!I42+'B9-Asset'!I77 -> 117496381.5 | I57: =SUM(D57:H57) -> 117496381.5 | J57: =IF(C57=0,B57+I57,C57+I57) -> 378316881.5 | K57: ='B9-Asset'!L42+'B9-Asset'!L77 -> 405063245 | L57: ='B9-Asset'!M42+'B9-Asset'!M77 -> 286388196.1
A58: Repairs and Maintenance | B58: ='B9-Asset'!C184 -> 573286476.2 | C58: ='B9-Asset'!D184 -> 0 | D58: ='B9-Asset'!E184 -> 0 | E58: ='B9-Asset'!F184 -> 0 | F58: ='B9-Asset'!G184 -> 0 | G58: ='B9-Asset'!H184 -> 0 | H58: ='B9-Asset'!I184 -> -87930353.89 | I58: =SUM(D58:H58) -> -87930353.89 | J58: =IF(C58=0,B58+I58,C58+I58) -> 485356122.3 | K58: ='B9-Asset'!L184 -> 600586963.5 | L58: ='B9-Asset'!M184 -> 630046846.8
A60: Free services
A61: Cost of Free Basic Services provided | B61: ='B10-SerDel'!C62 -> 0 | C61: ='B10-SerDel'!D62 -> 0 | D61: ='B10-SerDel'!E62 -> 0 | E61: ='B10-SerDel'!F62 -> 0 | F61: ='B10-SerDel'!G62 -> 0 | G61: ='B10-SerDel'!H62 -> 0 | H61: ='B10-SerDel'!I62 -> 0 | I61: ='B10-SerDel'!J62 -> 0 | J61: ='B10-SerDel'!K62 -> 0 | K61: ='B10-SerDel'!L62 -> 0 | L61: ='B10-SerDel'!M62 -> 0
A62: Revenue cost of free services provided | B62: ='B10-SerDel'!C81 -> 368680147.7 | C62: ='B10-SerDel'!D81 -> 0 | D62: ='B10-SerDel'!E81 -> 0 | E62: ='B10-SerDel'!F81 -> 0 | F62: ='B10-SerDel'!G81 -> 0 | G62: ='B10-SerDel'!H81 -> 0 | H62: ='B10-SerDel'!I81 -> 0 | I62: ='B10-SerDel'!J81 -> 0 | J62: ='B10-SerDel'!K81 -> 368680147.7 | K62: ='B10-SerDel'!L81 -> 389715857.2 | L62: ='B10-SerDel'!M81 -> 411643111.9
A63: Households below minimum service level
A64: Water: | B64: ='B10-SerDel'!C16 -> 8505.0944 | C64: ='B10-SerDel'!D16 -> 0 | D64: ='B10-SerDel'!E16 -> 0 | E64: ='B10-SerDel'!F16 -> 0 | F64: ='B10-SerDel'!G16 -> 0 | G64: ='B10-SerDel'!H16 -> 0 | H64: ='B10-SerDel'!I16 -> 0 | I64: =SUM(D64:H64) -> 0 | J64: =IF(C64=0,B64+I64,C64+I64) -> 8505.0944 | K64: ='B10-SerDel'!L16 -> 0 | L64: ='B10-SerDel'!M16 -> 0
A65: Sanitation/sewerage: | B65: ='B10-SerDel'!C28 -> 1184.4888 | C65: ='B10-SerDel'!D28 -> 0 | D65: ='B10-SerDel'!E28 -> 0 | E65: ='B10-SerDel'!F28 -> 0 | F65: ='B10-SerDel'!G28 -> 0 | G65: ='B10-SerDel'!H28 -> 0 | H65: ='B10-SerDel'!I28 -> 0 | I65: =SUM(D65:H65) -> 0 | J65: =IF(C65=0,B65+I65,C65+I65) -> 1184.4888 | K65: ='B10-SerDel'!L28 -> 0 | L65: ='B10-SerDel'!M28 -> 0
A66: Energy: | B66: ='B10-SerDel'!C37 -> 8000 | C66: ='B10-SerDel'!D37 -> 0 | D66: ='B10-SerDel'!E37 -> 0 | E66: ='B10-SerDel'!F37 -> 0 | F66: ='B10-SerDel'!G37 -> 0 | G66: ='B10-SerDel'!H37 -> 0 | H66: ='B10-SerDel'!I37 -> 0 | I66: =SUM(D66:H66) -> 0 | J66: =IF(C66=0,B66+I66,C66+I66) -> 8000 | K66: ='B10-SerDel'!L37 -> 0 | L66: ='B10-SerDel'!M37 -> 0
A67: Refuse: | B67: ='B10-SerDel'!C47 -> 40770.3172 | C67: ='B10-SerDel'!D47 -> 0 | D67: ='B10-SerDel'!E47 -> 0 | E67: ='B10-SerDel'!F47 -> 0 | F67: ='B10-SerDel'!G47 -> 0 | G67: ='B10-SerDel'!H47 -> 0 | H67: ='B10-SerDel'!I47 -> 0 | I67: =SUM(D67:H67) -> 0 | J67: =IF(C67=0,B67+I67,C67+I67) -> 40770.3172 | K67: ='B10-SerDel'!L47 -> 0 | L67: ='B10-SerDel'!M47 -> 0
A69: References
A70: 1. Only complete if a previous adjusted budget has been approved in the same financial year. Reflect most recent adjusted budget.
A71: 2. Additional cash-backed accumulated funds/unspent funds (MFMA section 18(1)(b) and section 28(2)(e)) identified after the Original Budget approved and after annual financial statements audited (note: only where underspending could not reasonably have been foreseen)
A72: 3. Increases of funds approved under MFMA section 31
A73: 4. Adjustments approved in accordance with MFMA section 29
A74: 5. Adjustments to transfers from National or Provincial Government
A75: 6. Adjusts. = 'Other' Adjustments proposed to be approved; including revenue under-collection (MFMA section 28(2)(a)); additional revenue appropriation on existing programmes (section 28(2))(b); projected savings (section 28(2)(d)); error correction (section 28(2)(f))
A76: 7. G = B + C + D + E + F
A77: 8. Adjusted Budget H = (A or A1/2 etc) + G

Sheet B2-FinPerf SC
A1: =muni&" - "&_ADJ3&" - "&Date -> Choose name from list - Table B2 Adjustments Budget Financial Performance (functional classification) -
A2: ="Standard "&desc -> Standard Description | B2: =head27 -> Ref | C2: =Head2 -> Budget Year 2023/24 | L2: =Head10 -> Budget Year +1 2024/25 | M2: =Head11 -> Budget Year +2 2025/26
C3: =Head6 -> Original Budget | D3: =Head54 -> Prior Adjusted | E3: =Head51 -> Accum. Funds | F3: =Head52 -> Multi-year capital | G3: =Head53 -> Unfore. Unavoid. | H3: =Head55 -> Nat. or Prov. Govt | I3: =Head50 -> Other Adjusts. | J3: =Head56 -> Total Adjusts. | K3: =Head7 -> Adjusted Budget | L3: =Head7 -> Adjusted Budget | M3: =Head7 -> Adjusted Budget
D4: 5 | E4: =D4+1 -> 6 | F4: 7 | G4: 8 | H4: 9 | I4: 10 | J4: 11 | K4: 12
A5: R thousands | B5: 1, 4 | C5: A | D5: A1 | E5: B | F5: C | G5: D | H5: E | I5: F | J5: G | K5: H
A6: Revenue - Functional
A7: Governance and administration | C7: =SUM(C8:C10) -> 2375779979 | D7: =SUM(D8:D10) -> 0 | E7: 0 | F7: 0 | G7: 0 | H7: 0 | I7: 155293544.4 | J7: =SUM(J8:J10) -> 155293544.4 | K7: =SUM(K8:K10) -> 2531073523 | L7: =SUM(L8:L10) -> 2499277464 | M7: =SUM(M8:M10) -> 2655166954
A8: Executive and council | C8: =B2B!C8 -> 4979000 | D8: =B2B!D8 -> 0 | E8: =B2B!E8 -> 0 | F8: =B2B!F8 -> 0 | G8: =B2B!G8 -> 0 | H8: =B2B!H8 -> 0 | I8: =B2B!I8 -> -278000 | J8: =SUM(E8:I8) -> -278000 | K8: =IF(D8=0,C8+J8,D8+J8) -> 4701000 | L8: =B2B!L8 -> 0 | M8: =B2B!M8 -> 0
A9: Finance and administration | C9: =B2B!C11 -> 2370800979 | D9: =B2B!D11 -> 0 | E9: =B2B!E11 -> 0 | F9: =B2B!F11 -> 0 | G9: =B2B!G11 -> 0 | H9: =B2B!H11 -> 0 | I9: =B2B!I11 -> 155571544.4 | J9: =SUM(E9:I9) -> 155571544.4 | K9: =IF(D9=0,C9+J9,D9+J9) -> 2526372523 | L9: =B2B!L11 -> 2499277464 | M9: =B2B!M11 -> 2655166954
A10: Internal audit | C10: =B2B!C25 -> 0 | D10: =B2B!D25 -> 0 | E10: =B2B!E25 -> 0 | F10: =B2B!F25 -> 0 | G10: =B2B!G25 -> 0 | H10: =B2B!H25 -> 0 | I10: =B2B!I25 -> 0 | J10: =SUM(E10:I10) -> 0 | K10: =IF(D10=0,C10+J10,D10+J10) -> 0 | L10: =B2B!L25 -> 0 | M10: =B2B!M25 -> 0
A11: Community and public safety | C11: =SUM(C12:C16) -> 338866615 | D11: =SUM(D12:D16) -> 0 | E11: 0 | F11: 0 | G11: 0 | H11: 0 | I11: -12276711.64 | J11: =SUM(J12:J16) -> -12276711.64 | K11: =SUM(K12:K16) -> 326589903.4 | L11: =SUM(L12:L16) -> 343724927.5 | M11: =SUM(M12:M16) -> 359601534.9
A12: Community and social services | C12: =B2B!C28 -> 276753844.2 | D12: =B2B!D28 -> 0 | E12: =B2B!E28 -> 0 | F12: =B2B!F28 -> 0 | G12: =B2B!G28 -> 0 | H12: =B2B!H28 -> 0 | I12: =B2B!I28 -> -196889169.7 | J12: =SUM(E12:I12) -> -196889169.7 | K12: =IF(D12=0,C12+J12,D12+J12) -> 79864674.56 | L12: =B2B!L28 -> 282672023.2 | M12: =B2B!M28 -> 295768116.8
A13: Sport and recreation | C13: =B2B!C50 -> 21223330.41 | D13: =B2B!D50 -> 0 | E13: =B2B!E50 -> 0 | F13: =B2B!F50 -> 0 | G13: =B2B!G50 -> 0 | H13: =B2B!H50 -> 0 | I13: =B2B!I50 -> 19689460 | J13: =SUM(E13:I13) -> 19689460 | K13: =IF(D13=0,C13+J13,D13+J13) -> 40912790.41 | L13: =B2B!L50 -> 22263273.6 | M13: =B2B!M50 -> 23309647.46
A14: Public safety | C14: =B2B!C56 -> 8568779.072 | D14: =B2B!D56 -> 0 | E14: =B2B!E56 -> 0 | F14: =B2B!F56 -> 0 | G14: =B2B!G56 -> 0 | H14: =B2B!H56 -> 0 | I14: =B2B!I56 -> 0 | J14: =SUM(E14:I14) -> 0 | K14: =IF(D14=0,C14+J14,D14+J14) -> 8568779.072 | L14: =B2B!L56 -> 8988649.246 | M14: =B2B!M56 -> 9411115.761
A15: Housing | C15: =B2B!C65 -> 32320661.28 | D15: =B2B!D65 -> 0 | E15: =B2B!E65 -> 0 | F15: =B2B!F65 -> 0 | G15: =B2B!G65 -> 0 | H15: =B2B!H65 -> 0 | I15: =B2B!I65 -> 164922998 | J15: =SUM(E15:I15) -> 164922998 | K15: =IF(D15=0,C15+J15,D15+J15) -> 197243659.3 | L15: =B2B!L65 -> 29800981.49 | M15: =B2B!M65 -> 31112654.87
A16: Health | C16: =B2B!C68 -> 0 | D16: =B2B!D68 -> 0 | E16: =B2B!E68 -> 0 | F16: =B2B!F68 -> 0 | G16: =B2B!G68 -> 0 | H16: =B2B!H68 -> 0 | I16: =B2B!I68 -> 0 | J16: =SUM(E16:I16) -> 0 | K16: =IF(D16=0,C16+J16,D16+J16) -> 0 | L16: =B2B!L68 -> 0 | M16: =B2B!M68 -> 0
A17: Economic and environmental services | C17: =SUM(C18:C20) -> 55600947.45 | D17: =SUM(D18:D20) -> 0 | E17: 0 | F17: 0 | G17: 0 | H17: 0 | I17: 142167942.5 | J17: =SUM(J18:J20) -> 142167942.5 | K17: =SUM(K18:K20) -> 197768889.9 | L17: =SUM(L18:L20) -> 47167489.11 | M17: =SUM(M18:M20) -> 47974361.1
A18: Planning and development | C18: =B2B!C77 -> 47684582.16 | D18: =B2B!D77 -> 0 | E18: =B2B!E77 -> 0 | F18: =B2B!F77 -> 0 | G18: =B2B!G77 -> 0 | H18: =B2B!H77 -> 0 | I18: =B2B!I77 -> 89567942.48 | J18: =SUM(E18:I18) -> 89567942.48 | K18: =IF(D18=0,C18+J18,D18+J18) -> 137252524.6 | L18: =B2B!L77 -> 45825734.21 | M18: =B2B!M77 -> 46569543.72
A19: Road transport | C19: =B2B!C88 -> 0 | D19: =B2B!D88 -> 0 | E19: =B2B!E88 -> 0 | F19: =B2B!F88 -> 0 | G19: =B2B!G88 -> 0 | H19: =B2B!H88 -> 0 | I19: =B2B!I88 -> 52600000 | J19: =SUM(E19:I19) -> 52600000 | K19: =IF(D19=0,C19+J19,D19+J19) -> 52600000 | L19: =B2B!L88 -> 0 | M19: =B2B!M88 -> 0
A20: Environmental protection | C20: =B2B!C93 -> 7916365.286 | D20: =B2B!D93 -> 0 | E20: =B2B!E93 -> 0 | F20: =B2B!F93 -> 0 | G20: =B2B!G93 -> 0 | H20: =B2B!H93 -> 0 | I20: =B2B!I93 -> 0 | J20: =SUM(E20:I20) -> 0 | K20: =IF(D20=0,C20+J20,D20+J20) -> 7916365.286 | L20: =B2B!L93 -> 1341754.903 | M20: =B2B!M93 -> 1404817.384
A21: Trading services | C21: =SUM(C22:C25) -> 5698134020 | D21: =SUM(D22:D25) -> 0 | E21: 0 | F21: 0 | G21: 0 | H21: 0 | I21: -422662708.5 | J21: -422662708.5 | K21: 5275471312 | L21: 6299141016 | M21: 7184674852
A22: Energy sources | C22: =B2B!C101 -> 4028755846 | D22: =B2B!D101 -> 0 | E22: =B2B!E101 -> 0 | F22: =B2B!F101 -> 0 | G22: =B2B!G101 -> 0 | H22: =B2B!H101 -> 0 | I22: =B2B!I101 -> -315785431.3 | J22: =SUM(E22:I22) -> -315785431.3 | K22: =IF(D22=0,C22+J22,D22+J22) -> 3712970414 | L22: =B2B!L101 -> 4521615548 | M22: =B2B!M101 -> 5323721089
A23: Water management | C23: =B2B!C105 -> 1300958056 | D23: =B2B!D105 -> 0 | E23: =B2B!E105 -> 0 | F23: =B2B!F105 -> 0 | G23: =B2B!G105 -> 0 | H23: =B2B!H105 -> 0 | I23: =B2B!I105 -> -173345506.4 | J23: =SUM(E23:I23) -> -173345506.4 | K23: =IF(D23=0,C23+J23,D23+J23) -> 1127612549 | L23: =B2B!L105 -> 1391052514 | M23: =B2B!M105 -> 1456299661
A24: Waste water management | C24: =B2B!C109 -> 209646015.9 | D24: =B2B!D109 -> 0 | E24: =B2B!E109 -> 0 | F24: =B2B!F109 -> 0 | G24: =B2B!G109 -> 0 | H24: =B2B!H109 -> 0 | I24: =B2B!I109 -> 74367353.68 | J24: =SUM(E24:I24) -> 74367353.68 | K24: =IF(D24=0,C24+J24,D24+J24) -> 284013369.6 | L24: =B2B!L109 -> 219918670.7 | M24: =B2B!M109 -> 230254848.2
A25: Waste management | C25: =B2B!C114 -> 158774103.1 | D25: =B2B!D114 -> 0 | E25: =B2B!E114 -> 0 | F25: =B2B!F114 -> 0 | G25: =B2B!G114 -> 0 | H25: =B2B!H114 -> 0 | I25: =B2B!I114 -> -7899124.413 | J25: =SUM(E25:I25) -> -7899124.413 | K25: =IF(D25=0,C25+J25,D25+J25) -> 150874978.7 | L25: =B2B!L114 -> 166554283.7 | M25: =B2B!M114 -> 174399254.3
A26: Other | C26: =B2B!C119 -> 101044616.3 | D26: =B2B!D119 -> 0 | E26: =B2B!E119 -> 0 | F26: =B2B!F119 -> 0 | G26: =B2B!G119 -> 0 | H26: =B2B!H119 -> 0 | I26: =B2B!I119 -> 13351221.19 | J26: =SUM(E26:I26) -> 13351221.19 | K26: =IF(D26=0,C26+J26,D26+J26) -> 114395837.5 | L26: =B2B!L119 -> 113584253.1 | M26: =B2B!M119 -> 118922713
A27: ="Total "&A6 -> Total Revenue - Functional | B27: 2 | C27: =C7+C11+C17+C21+C26 -> 8569426178 | D27: =D7+D11+D17+D21+D26 -> 0 | E27: 0 | F27: 0 | G27: 0 | H27: 0 | I27: -124126712 | J27: -124126712 | K27: 8445299466 | L27: 9302895150 | M27: 1.036634041e+10
A29: Expenditure - Functional
A30: Governance and administration | C30: =SUM(C31:C33) -> 1480552759 | D30: =SUM(D31:D33) -> 0 | E30: 0 | F30: 0 | G30: 0 | H30: 0 | I30: 260177805.8 | J30: =SUM(J31:J33) -> 260177805.8 | K30: =SUM(K31:K33) -> 1740730565 | L30: =SUM(L31:L33) -> 1542103257 | M30: =SUM(M31:M33) -> 1613275976
A31: Executive and council | C31: =B2B!C130 -> 258320031.1 | D31: =B2B!D130 -> 0 | E31: =B2B!E130 -> 0 | F31: =B2B!F130 -> 0 | G31: =B2B!G130 -> 0 | H31: =B2B!H130 -> 0 | I31: =B2B!I130 -> -108050117.1 | J31: =SUM(E31:I31) -> -108050117.1 | K31: =IF(D31=0,C31+J31,D31+J31) -> 150269914 | L31: =B2B!L130 -> 264803117.2 | M31: =B2B!M130 -> 276751640
A32: Finance and administration | C32: =B2B!C133 -> 1193777693 | D32: =B2B!D133 -> 0 | E32: =B2B!E133 -> 0 | F32: =B2B!F133 -> 0 | G32: =B2B!G133 -> 0 | H32: =B2B!H133 -> 0 | I32: =B2B!I133 -> 366534804.9 | J32: =SUM(E32:I32) -> 366534804.9 | K32: =IF(D32=0,C32+J32,D32+J32) -> 1560312497 | L32: =B2B!L133 -> 1247497428 | M32: =B2B!M133 -> 1305345255
A33: Internal audit | C33: =B2B!C147 -> 28455035.46 | D33: =B2B!D147 -> 0 | E33: =B2B!E147 -> 0 | F33: =B2B!F147 -> 0 | G33: =B2B!G147 -> 0 | H33: =B2B!H147 -> 0 | I33: =B2B!I147 -> 1693118.016 | J33: =SUM(E33:I33) -> 1693118.016 | K33: =IF(D33=0,C33+J33,D33+J33) -> 30148153.48 | L33: =B2B!L147 -> 29802712.06 | M33: =B2B!M147 -> 31179080.5
A34: Community and public safety | C34: =SUM(C35:C39) -> 537195647.4 | D34: =SUM(D35:D39) -> 0 | E34: 0 | F34: 0 | G34: 0 | H34: 0 | I34: 103614143.5 | J34: =SUM(J35:J39) -> 103614143.5 | K34: =SUM(K35:K39) -> 640809790.9 | L34: =SUM(L35:L39) -> 544305473.6 | M34: =SUM(M35:M39) -> 557714486.8
A35: Community and social services | C35: =B2B!C150 -> 135893001.6 | D35: =B2B!D150 -> 0 | E35: =B2B!E150 -> 0 | F35: =B2B!F150 -> 0 | G35: =B2B!G150 -> 0 | H35: =B2B!H150 -> 0 | I35: =B2B!I150 -> 13569211.25 | J35: =SUM(E35:I35) -> 13569211.25 | K35: =IF(D35=0,C35+J35,D35+J35) -> 149462212.8 | L35: =B2B!L150 -> 142179459.4 | M35: =B2B!M150 -> 149432538.7
A36: Sport and recreation | C36: =B2B!C172 -> 130424689 | D36: =B2B!D172 -> 0 | E36: =B2B!E172 -> 0 | F36: =B2B!F172 -> 0 | G36: =B2B!G172 -> 0 | H36: =B2B!H172 -> 0 | I36: =B2B!I172 -> 3759053.524 | J36: =SUM(E36:I36) -> 3759053.524 | K36: =IF(D36=0,C36+J36,D36+J36) -> 134183742.6 | L36: =B2B!L172 -> 136399028.7 | M36: =B2B!M172 -> 142592177.4
A37: Public safety | C37: =B2B!C178 -> 222097496 | D37: =B2B!D178 -> 0 | E37: =B2B!E178 -> 0 | F37: =B2B!F178 -> 0 | G37: =B2B!G178 -> 0 | H37: =B2B!H178 -> 0 | I37: =B2B!I178 -> 37241851.91 | J37: =SUM(E37:I37) -> 37241851.91 | K37: =IF(D37=0,C37+J37,D37+J37) -> 259339347.9 | L37: =B2B!L178 -> 214970215.5 | M37: =B2B!M178 -> 212883780.7
A38: Housing | C38: =B2B!C187 -> 35263319.41 | D38: =B2B!D187 -> 0 | E38: =B2B!E187 -> 0 | F38: =B2B!F187 -> 0 | G38: =B2B!G187 -> 0 | H38: =B2B!H187 -> 0 | I38: =B2B!I187 -> 52378196.78 | J38: =SUM(E38:I38) -> 52378196.78 | K38: =IF(D38=0,C38+J38,D38+J38) -> 87641516.19 | L38: =B2B!L187 -> 36629554.1 | M38: =B2B!M187 -> 38042103.52
A39: Health | C39: =B2B!C190 -> 13517141.35 | D39: =B2B!D190 -> 0 | E39: =B2B!E190 -> 0 | F39: =B2B!F190 -> 0 | G39: =B2B!G190 -> 0 | H39: =B2B!H190 -> 0 | I39: =B2B!I190 -> -3334169.973 | J39: =SUM(E39:I39) -> -3334169.973 | K39: =IF(D39=0,C39+J39,D39+J39) -> 10182971.38 | L39: =B2B!L190 -> 14127215.91 | M39: =B2B!M190 -> 14763886.41
A40: Economic and environmental services | C40: =SUM(C41:C43) -> 513621030.7 | D40: =SUM(D41:D43) -> 0 | E40: 0 | F40: 0 | G40: 0 | H40: 0 | I40: -22670342.65 | J40: =SUM(J41:J43) -> -22670342.65 | K40: =SUM(K41:K43) -> 490950688.1 | L40: =SUM(L41:L43) -> 536409574.7 | M40: =SUM(M41:M43) -> 560925958.9
A41: Planning and development | C41: =B2B!C199 -> 84862819.17 | D41: =B2B!D199 -> 0 | E41: =B2B!E199 -> 0 | F41: =B2B!F199 -> 0 | G41: =B2B!G199 -> 0 | H41: =B2B!H199 -> 0 | I41: =B2B!I199 -> 19195667.17 | J41: =SUM(E41:I41) -> 19195667.17 | K41: =IF(D41=0,C41+J41,D41+J41) -> 104058486.3 | L41: =B2B!L199 -> 87699044.72 | M41: =B2B!M199 -> 91678229.84
A42: Road transport | C42: =B2B!C210 -> 402475671.2 | D42: =B2B!D210 -> 0 | E42: =B2B!E210 -> 0 | F42: =B2B!F210 -> 0 | G42: =B2B!G210 -> 0 | H42: =B2B!H210 -> 0 | I42: =B2B!I210 -> -41068775.4 | J42: =SUM(E42:I42) -> -41068775.4 | K42: =IF(D42=0,C42+J42,D42+J42) -> 361406895.8 | L42: =B2B!L210 -> 421231370.1 | M42: =B2B!M210 -> 440524713.8
A43: Environmental protection | C43: =B2B!C215 -> 26282540.4 | D43: =B2B!D215 -> 0 | E43: =B2B!E215 -> 0 | F43: =B2B!F215 -> 0 | G43: =B2B!G215 -> 0 | H43: =B2B!H215 -> 0 | I43: =B2B!I215 -> -797234.4158 | J43: =SUM(E43:I43) -> -797234.4158 | K43: =IF(D43=0,C43+J43,D43+J43) -> 25485305.98 | L43: =B2B!L215 -> 27479159.84 | M43: =B2B!M215 -> 28723015.27
A44: Trading services | C44: =SUM(C45:C48) -> 5109852271 | D44: =SUM(D45:D48) -> 0 | E44: 0 | F44: 0 | G44: 0 | H44: 0 | I44: -481708497.1 | J44: -481708497.1 | K44: 4628143774 | L44: 5799171444 | M44: 6383560579
A45: Energy sources | C45: =B2B!C223 -> 3289791560 | D45: =B2B!D223 -> 0 | E45: =B2B!E223 -> 0 | F45: =B2B!F223 -> 0 | G45: =B2B!G223 -> 0 | H45: =B2B!H223 -> 0 | I45: =B2B!I223 -> -176629904.5 | J45: =SUM(E45:I45) -> -176629904.5 | K45: =IF(D45=0,C45+J45,D45+J45) -> 3113161655 | L45: =B2B!L223 -> 3880684085 | M45: =B2B!M223 -> 4376467642
A46: Water management | C46: =B2B!C227 -> 1293156974 | D46: =B2B!D227 -> 0 | E46: =B2B!E227 -> 0 | F46: =B2B!F227 -> 0 | G46: =B2B!G227 -> 0 | H46: =B2B!H227 -> 0 | I46: =B2B!I227 -> -295984827.9 | J46: =SUM(E46:I46) -> -295984827.9 | K46: =IF(D46=0,C46+J46,D46+J46) -> 997172145.6 | L46: =B2B!L227 -> 1355688448 | M46: =B2B!M227 -> 1418970449
A47: Waste water management | C47: =B2B!C231 -> 399300023.2 | D47: =B2B!D231 -> 0 | E47: =B2B!E231 -> 0 | F47: =B2B!F231 -> 0 | G47: =B2B!G231 -> 0 | H47: =B2B!H231 -> 0 | I47: =B2B!I231 -> -30782127.8 | J47: =SUM(E47:I47) -> -30782127.8 | K47: =IF(D47=0,C47+J47,D47+J47) -> 368517895.4 | L47: =B2B!L231 -> 429298391.7 | M47: =B2B!M231 -> 448533338.6
A48: Waste management | C48: =B2B!C236 -> 127603714.5 | D48: =B2B!D236 -> 0 | E48: =B2B!E236 -> 0 | F48: =B2B!F236 -> 0 | G48: =B2B!G236 -> 0 | H48: =B2B!H236 -> 0 | I48: =B2B!I236 -> 21688363.13 | J48: =SUM(E48:I48) -> 21688363.13 | K48: =IF(D48=0,C48+J48,D48+J48) -> 149292077.6 | L48: =B2B!L236 -> 133500518.5 | M48: =B2B!M236 -> 139589148.9
A49: Other | C49: =B2B!C241 -> 63978086.85 | D49: =B2B!D241 -> 0 | E49: =B2B!E241 -> 0 | F49: =B2B!F241 -> 0 | G49: =B2B!G241 -> 0 | H49: =B2B!H241 -> 0 | I49: =B2B!I241 -> -601516.0746 | J49: =SUM(E49:I49) -> -601516.0746 | K49: =IF(D49=0,C49+J49,D49+J49) -> 63376570.78 | L49: =B2B!L241 -> 66741393.7 | M49: =B2B!M241 -> 69793688.57
A50: ="Total "&A29 -> Total Expenditure - Functional | B50: 3 | C50: =C30+C34+C40+C44+C49 -> 7705199795 | D50: =D30+D34+D40+D44+D49 -> 0 | E50: 0 | F50: 0 | G50: 0 | H50: 0 | I50: -141188406.5 | J50: -141188406.5 | K50: 7564011389 | L50: 8488731143 | M50: 9185270689
A51: Surplus/ (Deficit) for the year | C51: =C27-C50 -> 864226383 | D51: 0 | E51: 0 | F51: 0 | G51: 0 | H51: 0 | I51: 17061694.44 | J51: 17061694.44 | K51: 881288077.4 | L51: 814164007 | M51: 1181069726
A52: =head27a -> References
A53: 1. Government Finance Statistics Functions and Sub-functions are standardised to assist the compilation of national and international accounts for comparison purposes
A54: 2. Total Revenue by standard classification must reconcile to Total Operating Revenue shown in the Adjustments Budget Financial Performance (revenue and expenditure)
A55: 3. Total Operating Expenditure by standard classification must reconcile to Total Operating Expenditure shown in the Adjustments Budget Financial Performance (revenue and expenditure)
A56: 4. All amounts must be classified under a standard classification (modified GFS). The GFS function 'Other' is only for Abbatoirs, Air Transport, Markets and Tourism - and if used must be supported by footnotes. Nothing else may be placed under 'Other'. Assign associate share to relevant classification
A57: 5. Only complete if a previous adjusted budget has been approved in the same financial year. Reflect most recent adjusted budget.
A58: 6. Additional cash-backed accumulated funds/unspent funds (MFMA section 18(1)(b) and section 28(2)(e)) identified after the Original Budget approved and after annual financial statements audited (note: only where underspending could not reasonably have been foreseen)
A59: 7. Increases of funds approved under MFMA section 31
A60: 8. Adjustments approved in accordance with MFMA section 29
A61: 9. Adjustments to transfers from National or Provincial Government
A62: 10. Adjusts. = 'Other' Adjustments proposed to be approved; including revenue under-collection (MFMA section 28(2)(a)); additional revenue appropriation on existing programmes (section 28(2))(b); projected savings (section 28(2)(d)); error correction (section 28(2)(f))
A63: 11. G = B + C + D + E + F
A64: 12. Adjusted Budget H = (A or A1/2 etc) + G

Sheet B2B
A1: =muni&" - "&_ADJ3&" - B"&" - "&Date -> Choose name from list - Table B2 Adjustments Budget Financial Performance (functional classification) - B -
A2: ="Standard Classification "&desc -> Standard Classification Description | B2: =head27 -> Ref | C2: =Head2 -> Budget Year 2023/24 | L2: =Head10 -> Budget Year +1 2024/25 | M2: =Head11 -> Budget Year +2 2025/26
C3: =Head6 -> Original Budget | D3: =Head54 -> Prior Adjusted | E3: =Head51 -> Accum. Funds | F3: =Head52 -> Multi-year capital | G3: =Head53 -> Unfore. Unavoid. | H3: =Head55 -> Nat. or Prov. Govt | I3: =Head50 -> Other Adjusts. | J3: =Head56 -> Total Adjusts. | K3: =Head7 -> Adjusted Budget | L3: =Head7 -> Adjusted Budget | M3: =Head7 -> Adjusted Budget
D4: 5 | E4: =D4+1 -> 6 | F4: 7 | G4: 8 | H4: 9 | I4: 10 | J4: 11 | K4: 12
A5: R thousand | B5: 1 | C5: A | D5: A1 | E5: B | F5: C | G5: D | H5: E | I5: F | J5: G | K5: H
A6: Revenue - Functional
A7: Municipal governance and administration | C7: =C8+C11+C25 -> 2375779979 | D7: 0 | E7: 0 | F7: 0 | G7: 0 | H7: 0 | I7: 155293544.4 | J7: =SUM(E7:I7) -> 155293544.4 | K7: =IF(D7=0,C7+J7,D7+J7) -> 2531073523 | L7: =L8+L11+L25 -> 2499277464 | M7: =M8+M11+M25 -> 2655166954
A8: Executive and council | C8: =SUM(C9:C10) -> 4979000 | D8: =SUM(D9:D10) -> 0 | E8: 0 | F8: 0 | G8: 0 | H8: 0 | I8: -278000 | J8: =SUM(E8:I8) -> -278000 | K8: =IF(D8=0,C8+J8,D8+J8) -> 4701000 | L8: =SUM(L9:L10) -> 0 | M8: =SUM(M9:M10) -> 0
A9: Mayor and Council | C9: 0 | J9: =SUM(E9:I9) -> 0 | K9: =IF(D9=0,C9+J9,D9+J9) -> 0
A10: Municipal Manager, Town Secretary and Chief Executive | C10: 4979000 | I10: -278000 | J10: =SUM(E10:I10) -> -278000 | K10: =IF(D10=0,C10+J10,D10+J10) -> 4701000
A11: Finance and administration | C11: =SUM(C12:C24) -> 2370800979 | D11: 0 | E11: 0 | F11: 0 | G11: 0 | H11: 0 | I11: 155571544.4 | J11: 155571544.4 | K11: 2526372523 | L11: =SUM(L12:L24) -> 2499277464 | M11: =SUM(M12:M24) -> 2655166954
A12: Administrative and Corporate Support | C12: 607186.8648 | I12: -607186.8648 | J12: -607186.8648 | K12: 0 | L12: 636939.0212 | M12: 666875.1552
A13: Asset Management | C13: 13390566.77 | I13: 0.003150001168 | J13: 0.003150001168 | K13: 13390566.77 | L13: 14046704.54 | M13: 14706899.65
A14: Finance | C14: 2305482256 | I14: 156779594.3 | J14: 156779594.3 | K14: 2462261851 | L14: 2432018767 | M14: 2583791479
A15: Fleet Management | C15: 0 | J15: 0 | K15: 0 | L15: 0 | M15: 0
A16: Human Resources | C16: 12513790.28 | I16: -600863.0174 | J16: -600863.0174 | K16: 11912927.26 | L16: 11866323.36 | M16: 13379659.52
A17: Information Technology | C17: 2472.42645 | I17: 0.00355 | J17: 0.00355 | K17: 2472.43 | L17: 2593.575346 | M17: 2715.473387
A18: Legal Services | C18: 315314.2694 | I18: 0.0005999999703 | J18: 0.0005999999703 | K18: 315314.27 | L18: 330764.6686 | M18: 346310.608
A19: Marketing, Customer Relations, Publicity and Media Co-ordination | C19: 0 | J19: 0 | K19: 0 | L19: 0 | M19: 0
A20: Property Services | C20: 38156452.56 | I20: -0.007500007749 | J20: -0.007500007749 | K20: 38156452.55 | L20: 40026118.73 | M20: 41907346.31
A21: Risk Management | C21: 0 | J21: 0 | K21: 0 | L21: 0 | M21: 0
A22: Security Services | C22: 0 | J22: 0 | K22: 0 | L22: 0 | M22: 0
A23: Supply Chain Management | C23: 332939.1845 | I23: -0.004500000039 | J23: -0.004500000039 | K23: 332939.18 | L23: 349253.2045 | M23: 365668.1052
A24: Valuation Service | C24: 0 | J24: 0 | K24: 0 | L24: 0 | M24: 0
A25: Internal audit | C25: =SUM(C26:C26) -> 0 | D25: 0 | E25: 0 | F25: 0 | G25: 0 | H25: 0 | I25: 0 | J25: 0 | K25: 0 | L25: 0 | M25: 0
A26: Governance Function | J26: 0 | K26: 0
A27: Community and public safety | C27: =C28+C50+C56+C65+C68 -> 338866615 | D27: 0 | E27: 0 | F27: 0 | G27: 0 | H27: 0 | I27: -12276711.64 | J27: -12276711.64 | K27: 326589903.4 | L27: =L28+L50+L56+L65+L68 -> 343724927.5 | M27: =M28+M50+M56+M65+M68 -> 359601534.9
A28: Community and social services | C28: =SUM(C29:C49) -> 276753844.2 | D28: 0 | E28: 0 | F28: 0 | G28: 0 | H28: 0 | I28: -196889169.7 | J28: -196889169.7 | K28: 79864674.56 | L28: 282672023.2 | M28: 295768116.8
A29: Aged Care | C29: 0 | J29: 0 | K29: 0 | L29: 0 | M29: 0
A30: Agricultural | C30: 0 | J30: 0 | K30: 0 | L30: 0 | M30: 0
A31: Animal Care and Diseases | C31: 0 | J31: 0 | K31: 0 | L31: 0 | M31: 0
A32: Cemeteries, Funeral Parlours and Crematoriums | C32: 16617370.72 | I32: 0.001599997282 | J32: 0.001599997282 | K32: 16617370.72 | L32: 17431621.88 | M32: 18250908.11
A33: Child Care Facilities | C33: 0 | J33: 0 | K33: 0 | L33: 0 | M33: 0
A34: Community Halls and Facilities | C34: 245427473.6 | I34: -198323953.2 | J34: -198323953.2 | K34: 47103520.47 | L34: 249927401.5 | M34: 260778208.4
A35: Consumer Protection | C35: 0 | J35: 0 | K35: 0 | L35: 0 | M35: 0
A36: Cultural Matters | C36: 0 | J36: 0 | K36: 0 | L36: 0 | M36: 0
A37: Disaster Management | C37: 0 | J37: 0 | K37: 0 | L37: 0 | M37: 0
A38: Education | C38: 0 | J38: 0 | K38: 0 | L38: 0 | M38: 0
A39: Indigenous and Customary Law | C39: 0 | J39: 0 | K39: 0 | L39: 0 | M39: 0
A40: Industrial Promotion | C40: 0 | J40: 0 | K40: 0 | L40: 0 | M40: 0
A41: Language Policy | C41: 0 | J41: 0 | K41: 0 | L41: 0 | M41: 0
A42: Libraries and Archives | C42: 13537999.91 | I42: -13657600.53 | J42: -13657600.53 | K42: -119600.62 | L42: 14272999.81 | M42: 15749000.35
A43: Literacy Programmes | C43: 0 | J43: 0 | K43: 0 | L43: 0 | M43: 0
A44: Media Services | C44: 0 | J44: 0 | K44: 0 | L44: 0 | M44: 0
A45: Museums and Art Galleries | C45: 1171000 | I45: 15092383.99 | J45: 15092383.99 | K45: 16263383.99 | L45: 1040000 | M45: 990000
A46: Population Development | C46: 0 | J46: 0 | K46: 0 | L46: 0 | M46: 0
A47: Provincial Cultural Matters | C47: 0 | J47: 0 | K47: 0 | L47: 0 | M47: 0
A48: Theatres | C48: 0 | J48: 0 | K48: 0 | L48: 0 | M48: 0
A49: Zoo's | C49: 0 | J49: 0 | K49: 0 | L49: 0 | M49: 0
A50: Sport and recreation | C50: =SUM(C51:C55) -> 21223330.41 | D50: 0 | E50: 0 | F50: 0 | G50: 0 | H50: 0 | I50: 19689460 | J50: 19689460 | K50: 40912790.41 | L50: 22263273.6 | M50: 23309647.46
A51: Beaches and Jetties | C51: 0 | J51: 0 | K51: 0 | L51: 0 | M51: 0
A52: Casinos, Racing, Gambling, Wagering | C52: 0 | J52: 0 | K52: 0 | L52: 0 | M52: 0
A53: Community Parks (including Nurseries) | C53: 0 | J53: 0 | K53: 0 | L53: 0 | M53: 0
A54: Recreational Facilities | C54: 21223330.41 | J54: 0 | K54: 21223330.41 | L54: 22263273.6 | M54: 23309647.46
A55: Sports Grounds and Stadiums | C55: 0 | I55: 19689460 | J55: 19689460 | K55: 19689460 | L55: 0 | M55: 0
A56: Public safety | C56: =SUM(C57:C64) -> 8568779.072 | D56: 0 | E56: 0 | F56: 0 | G56: 0 | H56: 0 | I56: 0 | J56: 0 | K56: 8568779.072 | L56: 8988649.246 | M56: 9411115.761
A57: Civil Defence | C57: 0 | J57: 0 | K57: 0 | L57: 0 | M57: 0
A58: Cleansing | C58: 0 | J58: 0 | K58: 0 | L58: 0 | M58: 0
A59: Control of Public Nuisances | C59: 0 | J59: 0 | K59: 0 | L59: 0 | M59: 0
A60: Fencing and Fences | C60: 0 | J60: 0 | K60: 0 | L60: 0 | M60: 0
A61: Fire Fighting and Protection | C61: 397088.8729 | J61: 0 | K61: 397088.8729 | L61: 416546.2277 | M61: 436123.9004
A62: Licensing and Control of Animals | C62: 0 | J62: 0 | K62: 0 | L62: 0 | M62: 0
A63: Police Forces, Traffic and Street Parking Control | C63: 8171690.199 | J63: =SUM(E63:I63) -> 0 | K63: =IF(D63=0,C63+J63,D63+J63) -> 8171690.199 | L63: 8572103.019 | M63: 8974991.86
A64: Pounds | C64: 0 | J64: 0 | K64: 0 | L64: 0 | M64: 0
A65: Housing | C65: =SUM(C66:C67) -> 32320661.28 | D65: =SUM(D66:D67) -> 0 | E65: 0 | F65: 0 | G65: 0 | H65: 0 | I65: 164922998 | J65: 164922998 | K65: 197243659.3 | L65: =SUM(L66:L67) -> 29800981.49 | M65: =SUM(M66:M67) -> 31112654.87
A66: Housing | C66: 32320661.28 | I66: 164922998 | J66: 164922998 | K66: 197243659.3 | L66: 29800981.49 | M66: 31112654.87
A67: Informal Settlements | C67: 0 | J67: 0 | K67: 0 | L67: 0 | M67: 0
A68: Health | C68: =SUM(C69:C75) -> 0 | D68: =SUM(D69:D75) -> 0 | E68: 0 | F68: 0 | G68: 0 | H68: 0 | I68: 0 | J68: 0 | K68: 0 | L68: =SUM(L69:L75) -> 0 | M68: =SUM(M69:M75) -> 0
A69: Ambulance | J69: 0 | K69: 0
A70: Health Services | J70: 0 | K70: 0
A71: Laboratory Services | J71: 0 | K71: 0
A72: Food Control | J72: 0 | K72: 0
A73: Health Surveillance and Prevention of Communicable Diseases including immunizations | J73: 0 | K73: 0
A74: Vector Control | J74: 0 | K74: 0
A75: Chemical Safety | J75: =SUM(E75:I75) -> 0 | K75: =IF(D75=0,C75+J75,D75+J75) -> 0
A76: Economic and environmental services | C76: =C77+C88+C93 -> 55600947.45 | D76: 0 | E76: 0 | F76: 0 | G76: 0 | H76: 0 | I76: 142167942.5 | J76: 142167942.5 | K76: 197768889.9 | L76: =L77+L88+L93 -> 47167489.11 | M76: =M77+M88+M93 -> 47974361.1
A77: Planning and development | C77: =SUM(C78:C87) -> 47684582.16 | D77: =SUM(D78:D87) -> 0 | E77: 0 | F77: 0 | G77: 0 | H77: 0 | I77: 89567942.48 | J77: 89567942.48 | K77: 137252524.6 | L77: =SUM(L78:L87) -> 45825734.21 | M77: =SUM(M78:M87) -> 46569543.72
A78: Billboards | C78: 0 | J78: 0 | K78: 0 | L78: 0 | M78: 0
A79: Corporate Wide Strategic Planning (IDPs, LEDs) | C79: 0 | J79: 0 | K79: 0 | L79: 0 | M79: 0
A80: Central City Improvement District | C80: 0 | J80: 0 | K80: 0 | L80: 0 | M80: 0
A81: Development Facilitation | C81: 0 | J81: 0 | K81: 0 | L81: 0 | M81: 0
A82: Economic Development/Planning | C82: 0 | I82: 11014562.57 | J82: 11014562.57 | K82: 11014562.57 | L82: 0 | M82: 0
A83: Regional Planning and Development | C83: 0 | J83: 0 | K83: 0 | L83: 0 | M83: 0
A84: Town Planning, Building Regulations and Enforcement, and City Engineer | C84: 47684582.16 | I84: 78553379.91 | J84: 78553379.91 | K84: 126237962.1 | L84: 45825734.21 | M84: 46569543.72
A85: Project Management Unit | C85: 0 | J85: 0 | K85: 0 | L85: 0 | M85: 0
A86: Provincial Planning | C86: 0 | J86: 0 | K86: 0 | L86: 0 | M86: 0
A87: Support to Local Municipalities | C87: 0 | J87: 0 | K87: 0 | L87: 0 | M87: 0
A88: Road transport | C88: =SUM(C89:C92) -> 0 | D88: 0 | E88: 0 | F88: 0 | G88: 0 | H88: 0 | I88: 52600000 | J88: 52600000 | K88: 52600000 | L88: =SUM(L89:L92) -> 0 | M88: =SUM(M89:M92) -> 0
A89: Public Transport | J89: 0 | K89: 0
A90: Road and Traffic Regulation | J90: 0 | K90: 0
A91: Roads | I91: 52600000 | J91: 52600000 | K91: 52600000
A92: Taxi Ranks | J92: 0 | K92: 0
A93: Environmental protection | C93: =SUM(C94:C99) -> 7916365.286 | D93: =SUM(D94:D99) -> 0 | E93: 0 | F93: 0 | G93: 0 | H93: 0 | I93: 0 | J93: 0 | K93: 7916365.286 | L93: =SUM(L94:L99) -> 1341754.903 | M93: =SUM(M94:M99) -> 1404817.384
A94: Biodiversity and Landscape | C94: 0 | J94: 0 | K94: 0 | L94: 0 | M94: 0
A95: Coastal Protection | C95: 0 | J95: 0 | K95: 0 | L95: 0 | M95: 0
A96: Indigenous Forests | C96: 0 | J96: 0 | K96: 0 | L96: 0 | M96: 0
A97: Nature Conservation | C97: 0 | J97: 0 | K97: 0 | L97: 0 | M97: 0
A98: Pollution Control | C98: 7916365.286 | J98: 0 | K98: 7916365.286 | L98: 1341754.903 | M98: 1404817.384
A99: Soil Conservation | C99: 0 | J99: 0 | K99: 0 | L99: 0 | M99: 0
A100: Trading services | C100: =C101+C105+C109+C114 -> 5698134020 | D100: =D101+D105+D109+D114 -> 0 | E100: 0 | F100: 0 | G100: 0 | H100: 0 | I100: -422662708.5 | J100: -422662708.5 | K100: 5275471312 | L100: 6299141016 | M100: 7184674852
A101: Energy sources | C101: =SUM(C102:C104) -> 4028755846 | D101: =SUM(D102:D104) -> 0 | E101: 0 | F101: 0 | G101: 0 | H101: 0 | I101: -315785431.3 | J101: -315785431.3 | K101: 3712970414 | L101: =SUM(L102:L104) -> 4521615548 | M101: =SUM(M102:M104) -> 5323721089
A102: Electricity | C102: 4028755846 | I102: -315785431.3 | J102: -315785431.3 | K102: 3712970414 | L102: 4521615548 | M102: 5323721089
A103: Street Lighting and Signal Systems | J103: 0 | K103: 0 | L103: 0 | M103: 0
A104: Nonelectric Energy | J104: 0 | K104: 0 | L104: 0 | M104: 0
A105: Water management | C105: =SUM(C106:C108) -> 1300958056 | D105: =SUM(D106:D108) -> 0 | E105: 0 | F105: 0 | G105: 0 | H105: 0 | I105: -173345506.4 | J105: -173345506.4 | K105: 1127612549 | L105: =SUM(L106:L108) -> 1391052514 | M105: =SUM(M106:M108) -> 1456299661
A106: Water Treatment | C106: 0 | J106: 0 | K106: 0 | L106: 0 | M106: 0
A107: Water Distribution | C107: 1300958056 | I107: -173345506.4 | J107: -173345506.4 | K107: 1127612549 | L107: 1391052514 | M107: 1456299661
A108: Water Storage | C108: 0 | J108: 0 | K108: 0 | L108: 0 | M108: 0
A109: Waste water management | C109: =SUM(C110:C113) -> 209646015.9 | D109: =SUM(D110:D113) -> 0 | E109: 0 | F109: 0 | G109: 0 | H109: 0 | I109: 74367353.68 | J109: 74367353.68 | K109: 284013369.6 | L109: =SUM(L110:L113) -> 219918670.7 | M109: =SUM(M110:M113) -> 230254848.2
A110: Public Toilets | J110: 0 | K110: 0 | L110: 0 | M110: 0
A111: Sewerage | C111: 209646015.9 | I111: 74367353.68 | J111: 74367353.68 | K111: 284013369.6 | L111: 219918670.7 | M111: 230254848.2
A112: Storm Water Management | C112: 0 | J112: 0 | K112: 0 | L112: 0 | M112: 0
A113: Waste Water Treatment | C113: 0 | J113: 0 | K113: 0 | L113: 0 | M113: 0
A114: Waste management | C114: =SUM(C115:C118) -> 158774103.1 | D114: =SUM(D115:D118) -> 0 | E114: 0 | F114: 0 | G114: 0 | H114: 0 | I114: -7899124.413 | J114: -7899124.413 | K114: 150874978.7 | L114: 166554283.7 | M114: =SUM(M115:M118) -> 174399254.3
A115: Recycling | C115: 0 | J115: 0 | K115: 0 | L115: 0 | M115: 0
A116: Solid Waste Disposal (Landfill Sites) | C116: 0 | J116: 0 | K116: 0 | L116: 0 | M116: 0
A117: Solid Waste Removal | C117: 158774103.1 | I117: -7899124.413 | J117: -7899124.413 | K117: 150874978.7 | L117: 166554283.7 | M117: 174399254.3
A118: Street Cleaning | C118: 0 | J118: 0 | K118: 0 | L118: 0 | M118: 0
A119: Other | C119: =SUM(C120:C125) -> 101044616.3 | D119: 0 | E119: 0 | F119: 0 | G119: 0 | H119: 0 | I119: 13351221.19 | J119: 13351221.19 | K119: 114395837.5 | L119: 113584253.1 | M119: 118922713
A120: Abattoirs | C120: 0 | J120: 0 | K120: 0 | L120: 0 | M120: 0
A121: Air Transport | C121: 41534302.45 | I121: 3274158.992 | J121: 3274158.992 | K121: 44808461.44 | L121: 46688709.38 | M121: 48883078.72
A122: Forestry | C122: 0 | I122: 10143141.02 | J122: 10143141.02 | K122: 10143141.02 | L122: 0 | M122: 0
A123: Licensing and Regulation | C123: 2292326.484 | I123: 0.03096385393 | J123: 0.03096385393 | K123: 2292326.515 | L123: 2576804.201 | M123: 2697913.998
A124: Markets | C124: 57217987.33 | I124: -66078.85309 | J124: -66078.85309 | K124: 57151908.48 | L124: 64318739.56 | M124: 67341720.32
A125: Tourism | C125: 0 | J125: 0 | K125: 0 | L125: 0 | M125: 0
A126: ="Total "&A6 -> Total Revenue - Functional | B126: 2 | C126: =C7+C27+C76+C100+C119 -> 8569426178 | D126: 0 | E126: 0 | F126: 0 | G126: 0 | H126: 0 | I126: -124126712 | J126: -124126712 | K126: 8445299466 | L126: =L7+L27+L76+L100+L119 -> 9302895150 | M126: =M7+M27+M76+M100+M119 -> 1.036634041e+10
J127: 0 | K127: 0
A128: Expenditure - Functional | J128: 0 | K128: 0
A129: =A7 -> Municipal governance and administration | C129: =C130+C133+C147 -> 1480552759 | D129: 0 | E129: 0 | F129: 0 | G129: 0 | H129: 0 | I129: 260177805.8 | J129: 260177805.8 | K129: 1740730565 | L129: =L130+L133+L147 -> 1542103257 | M129: =M130+M133+M147 -> 1613275976
A130: Executive and council | C130: =SUM(C131:C132) -> 258320031.1 | D130: 0 | E130: 0 | F130: 0 | G130: 0 | H130: 0 | I130: -108050117.1 | J130: -108050117.1 | K130: 150269914 | L130: =SUM(L131:L132) -> 264803117.2 | M130: =SUM(M131:M132) -> 276751640
A131: Mayor and Council | C131: 94350834.42 | I131: 4243310.388 | J131: 4243310.388 | K131: 98594144.81 | L131: 98648657.77 | M131: 103115140.1
A132: Municipal Manager, Town Secretary and Chief Executive | C132: 163969196.6 | I132: -112293427.4 | J132: -112293427.4 | K132: 51675769.19 | L132: 166154459.4 | M132: 173636499.8
A133: Finance and administration | C133: =SUM(C134:C146) -> 1193777693 | D133: 0 | E133: 0 | F133: 0 | G133: 0 | H133: 0 | I133: 366534804.9 | J133: 366534804.9 | K133: 1560312497 | L133: =SUM(L134:L146) -> 1247497428 | M133: =SUM(M134:M146) -> 1305345255
A134: Administrative and Corporate Support | C134: 59777153.1 | I134: 12967363.26 | J134: 12967363.26 | K134: 72744516.36 | L134: 62472392.19 | M134: 65286412.49
A135: Asset Management | C135: 62176445.61 | I135: 22630620.76 | J135: 22630620.76 | K135: 84807066.37 | L135: 65064186.98 | M135: 68039176.18
A136: Finance | C136: 626500972.8 | I136: 305900260.2 | J136: 305900260.2 | K136: 932401233 | L136: 655178990.7 | M136: 685012951.3
A137: Fleet Management | C137: 0 | I137: 0 | J137: 0 | K137: 0 | L137: 0 | M137: 0
A138: Human Resources | C138: 91046088.27 | I138: 21498046.55 | J138: 21498046.55 | K138: 112544134.8 | L138: 94016902.8 | M138: 99271245.09
A139: Information Technology | C139: 57159369.86 | I139: -6980378.833 | J139: =SUM(E139:I139) -> -6980378.833 | K139: =IF(D139=0,C139+J139,D139+J139) -> 50178991.03 | L139: 59856727.51 | M139: 62615940.3
A140: Legal Services | C140: 18240282.65 | I140: 3811950.696 | J140: 3811950.696 | K140: 22052233.35 | L140: 19075018.93 | M140: 19940697.68
A141: Marketing, Customer Relations, Publicity and Media Co-ordination | C141: 19543388.62 | I141: 5307266.693 | J141: 5307266.693 | K141: 24850655.31 | L141: 20422841.1 | M141: 21341868.95
A142: Property Services | C142: 63488452.65 | I142: 2051251.553 | J142: 2051251.553 | K142: 65539704.2 | L142: 66410940.27 | M142: 69433791.14
A143: Risk Management | C143: 0 | I143: 0 | J143: 0 | K143: 0 | L143: 0 | M143: 0
A144: Security Services | C144: 120077387.9 | I144: -5355488.866 | J144: -5355488.866 | K144: 114721899 | L144: 125651183 | M144: 131394815.3
A145: Supply Chain Management | C145: 75768151.16 | I145: 4703912.822 | J145: 4703912.822 | K145: 80472063.98 | L145: 79348244.55 | M145: 83008356.75
A146: Valuation Service | I146: 0 | J146: 0 | K146: 0
A147: Internal audit | C147: =SUM(C148:C148) -> 28455035.46 | D147: 0 | E147: 0 | F147: 0 | G147: 0 | H147: 0 | I147: 1693118.016 | J147: 1693118.016 | K147: 30148153.48 | L147: 29802712.06 | M147: 31179080.5
A148: Governance Function | C148: 28455035.46 | I148: 1693118.016 | J148: 1693118.016 | K148: 30148153.48 | L148: 29802712.06 | M148: 31179080.5
A149: Community and public safety | C149: =C150+C172+C178+C187+C190 -> 537195647.4 | D149: 0 | E149: 0 | F149: 0 | G149: 0 | H149: 0 | I149: 103614143.5 | J149: 103614143.5 | K149: 640809790.9 | L149: =L150+L172+L178+L187+L190 -> 544305473.6 | M149: =M150+M172+M178+M187+M190 -> 557714486.8
A150: Community and social services | C150: =SUM(C151:C171) -> 135893001.6 | D150: 0 | E150: 0 | F150: 0 | G150: 0 | H150: 0 | I150: 13569211.25 | J150: 13569211.25 | K150: 149462212.8 | L150: =SUM(L151:L171) -> 142179459.4 | M150: =SUM(M151:M171) -> 149432538.7
A151: Aged Care | C151: 658027.5577 | I151: -638444.7077 | J151: -638444.7077 | K151: 19582.85 | L151: 687714.7978 | M151: 718701.8258
A152: Agricultural | C152: 0 | J152: 0 | K152: 0 | L152: 0 | M152: 0
A153: Animal Care and Diseases | C153: 1257600 | J153: 0 | K153: 1257600 | L153: 1319222.4 | M153: 1381225.853
A154: Cemeteries, Funeral Parlours and Crematoriums | C154: 32803662.2 | I154: -1769060.998 | J154: -1769060.998 | K154: 31034601.2 | L154: 34289532.86 | M154: 35837652.57
A155: Child Care Facilities | C155: 0 | J155: 0 | K155: 0 | L155: 0 | M155: 0
A156: Community Halls and Facilities | C156: 15799744.62 | I156: 2821224.836 | J156: 2821224.836 | K156: 18620969.46 | L156: 16532121.13 | M156: 17287284.59
A157: Consumer Protection | C157: 0 | J157: 0 | K157: 0 | L157: 0 | M157: 0
A158: Cultural Matters | C158: 0 | J158: 0 | K158: 0 | L158: 0 | M158: 0
A159: Disaster Management | C159: 0 | J159: 0 | K159: 0 | L159: 0 | M159: 0
A160: Education | C160: 0 | J160: 0 | K160: 0 | L160: 0 | M160: 0
A161: Indigenous and Customary Law | C161: 0 | J161: 0 | K161: 0 | L161: 0 | M161: 0
A162: Industrial Promotion | C162: 0 | J162: 0 | K162: 0 | L162: 0 | M162: 0
A163: Language Policy | C163: 0 | J163: 0 | K163: 0 | L163: 0 | M163: 0
A164: Libraries and Archives | C164: 73518450.61 | I164: 7761657.125 | J164: 7761657.125 | K164: 81280107.74 | L164: 76954571.58 | M164: 81252292.27
A165: Literacy Programmes | C165: 0 | J165: 0 | K165: 0 | L165: 0 | M165: 0
A166: Media Services | C166: 0 | J166: 0 | K166: 0 | L166: 0 | M166: 0
A167: Museums and Art Galleries | C167: 6040266.113 | I167: 2176069.197 | J167: 2176069.197 | K167: 8216335.31 | L167: 6314453.804 | M167: 6597282.588
A168: Population Development | C168: 5815250.466 | I168: 3217765.794 | J168: 3217765.794 | K168: 9033016.26 | L168: 6081842.821 | M168: 6358098.988
A169: Provincial Cultural Matters | J169: 0 | K169: 0
A170: Theatres | J170: 0 | K170: 0
A171: Zoo's | J171: 0 | K171: 0
A172: Sport and recreation | C172: =SUM(C173:C177) -> 130424689 | D172: 0 | E172: 0 | F172: 0 | G172: 0 | H172: 0 | I172: 3759053.524 | J172: 3759053.524 | K172: 134183742.6 | L172: =SUM(L173:L177) -> 136399028.7 | M172: =SUM(M173:M177) -> 142592177.4
A173: Beaches and Jetties | J173: 0 | K173: 0
A174: Casinos, Racing, Gambling, Wagering | J174: 0 | K174: 0
A175: Community Parks (including Nurseries) | C175: 72878671.55 | I175: -20555668.37 | J175: -20555668.37 | K175: 52323003.18 | L175: 76186430.92 | M175: 79629621.26
A176: Recreational Facilities | C176: 56465275.91 | I176: 24681521.9 | J176: 24681521.9 | K176: 81146797.81 | L176: 59078899.87 | M176: 61775574.46
A177: Sports Grounds and Stadiums | C177: 1080741.568 | I177: -366799.998 | J177: -366799.998 | K177: 713941.57 | L177: 1133697.905 | M177: 1186981.706
A178: Public safety | C178: =SUM(C179:C186) -> 222097496 | D178: 0 | E178: 0 | F178: 0 | G178: 0 | H178: 0 | I178: 37241851.91 | J178: 37241851.91 | K178: 259339347.9 | L178: =SUM(L179:L186) -> 214970215.5 | M178: =SUM(M179:M186) -> 212883780.7
A179: Civil Defence | C179: 19219679.35 | I179: 15217890.77 | J179: 15217890.77 | K179: 34437570.12 | L179: 20139933.93 | M179: 21101023.38
A180: Cleansing | C180: 0 | J180: 0 | K180: 0 | L180: 0 | M180: 0
A181: Control of Public Nuisances | C181: 0 | J181: 0 | K181: 0 | L181: 0 | M181: 0
A182: Fencing and Fences | C182: 0 | J182: 0 | K182: 0 | L182: 0 | M182: 0
A183: Fire Fighting and Protection | C183: 115276517.8 | I183: 28868444.46 | J183: 28868444.46 | K183: 144144962.3 | L183: 103259223.2 | M183: 96076472.08
A184: Licensing and Control of Animals | C184: 0 | J184: =SUM(E184:I184) -> 0 | K184: =IF(D184=0,C184+J184,D184+J184) -> 0 | L184: 0 | M184: 0
A185: Police Forces, Traffic and Street Parking Control | C185: 87601298.84 | I185: -6844483.317 | J185: =SUM(E185:I185) -> -6844483.317 | K185: =IF(D185=0,C185+J185,D185+J185) -> 80756815.52 | L185: 91571058.41 | M185: 95706285.27
A186: Pounds | C186: 0 | E186: 0 | J186: 0 | K186: 0 | L186: 0 | M186: 0
A187: Housing | C187: =SUM(C188:C189) -> 35263319.41 | D187: =SUM(D188:D189) -> 0 | E187: 0 | F187: 0 | G187: 0 | H187: 0 | I187: 52378196.78 | J187: 52378196.78 | K187: 87641516.19 | L187: 36629554.1 | M187: 38042103.52
A188: Housing | C188: 35263319.41 | I188: 52378196.78 | J188: 52378196.78 | K188: 87641516.19 | L188: 36629554.1 | M188: 38042103.52
A189: Informal Settlements | J189: 0 | K189: 0
A190: Health | C190: =SUM(C191:C197) -> 13517141.35 | D190: 0 | E190: 0 | F190: 0 | G190: 0 | H190: 0 | I190: -3334169.973 | J190: -3334169.973 | K190: 10182971.38 | L190: =SUM(L191:L197) -> 14127215.91 | M190: =SUM(M191:M197) -> 14763886.41
A191: Ambulance | J191: 0 | K191: 0
A192: Health Services | C192: 13517141.35 | I192: -3334169.973 | J192: -3334169.973 | K192: 10182971.38 | L192: 14127215.91 | M192: 14763886.41
A193: =A71 -> Laboratory Services | J193: 0 | K193: 0
A194: Food Control | J194: 0 | K194: 0
A195: Health Surveillance and Prevention of Communicable Diseases including immunizations | J195: 0 | K195: 0
A196: Vector Control | J196: 0 | K196: 0
A197: Chemical Safety | J197: 0 | K197: 0
A198: Economic and environmental services | C198: =C199+C210+C215 -> 513621030.7 | D198: 0 | E198: 0 | F198: 0 | G198: 0 | H198: 0 | I198: -22670342.65 | J198: -22670342.65 | K198: 490950688.1 | L198: =L199+L210+L215 -> 536409574.7 | M198: =M199+M210+M215 -> 560925958.9
A199: Planning and development | C199: =SUM(C200:C209) -> 84862819.17 | D199: 0 | E199: 0 | F199: 0 | G199: 0 | H199: 0 | I199: 19195667.17 | J199: 19195667.17 | K199: 104058486.3 | L199: =SUM(L200:L209) -> 87699044.72 | M199: =SUM(M200:M209) -> 91678229.84
A200: Billboards | C200: 0 | J200: 0 | K200: 0 | L200: 0 | M200: 0
... 54 more rows

Sheet B3-FinPerf V
A1: =muni&" - "&_ADJ2&" - "&Date -> Choose name from list - Table B3 Adjustments Budget Financial Performance (revenue and expenditure by municipal vote) -
A2: =Vdesc -> Vote Description | B2: =head27 -> Ref | C2: =Head2 -> Budget Year 2023/24 | L2: =Head10 -> Budget Year +1 2024/25 | M2: =Head11 -> Budget Year +2 2025/26
C3: =Head6 -> Original Budget | D3: =Head54 -> Prior Adjusted | E3: =Head51 -> Accum. Funds | F3: =Head52 -> Multi-year capital | G3: =Head53 -> Unfore. Unavoid. | H3: =Head55 -> Nat. or Prov. Govt | I3: =Head50 -> Other Adjusts. | J3: =Head56 -> Total Adjusts. | K3: =Head7 -> Adjusted Budget | L3: =Head7 -> Adjusted Budget | M3: =Head7 -> Adjusted Budget
A4: [Insert departmental structure etc] | D4: 3 | E4: 4 | F4: 5 | G4: 6 | H4: 7 | I4: 8 | J4: 9 | K4: 10
A5: R thousands | C5: A | D5: A1 | E5: B | F5: C | G5: D | H5: E | I5: F | J5: G | K5: H
A6: Revenue by Vote | B6: 1
A7: =B3B!A7 -> Vote 1 - City Manager | C7: =B3B!C7 -> 0 | D7: =B3B!D7 -> 0 | E7: =B3B!E7 -> 0 | F7: =B3B!F7 -> 0 | G7: =B3B!G7 -> 0 | H7: =B3B!H7 -> 0 | I7: =B3B!I7 -> 0 | J7: =SUM(E7:I7) -> 0 | K7: =IF(D7=0,C7+J7,D7+J7) -> 0 | L7: =B3B!L7 -> 0 | M7: =B3B!M7 -> 0
A8: =B3B!A18 -> Vote 2 - City Finance | C8: =B3B!C18 -> 2342934597 | D8: =B3B!D18 -> 0 | E8: =B3B!E18 -> 0 | F8: =B3B!F18 -> 0 | G8: =B3B!G18 -> 0 | H8: =B3B!H18 -> 0 | I8: =B3B!I18 -> 253188826.9 | J8: 253188826.9 | K8: 2596123424 | L8: =B3B!L18 -> 2471595105 | M8: =B3B!M18 -> 2625593187
A9: =B3B!A29 -> Vote 3 - Corporate Services | C9: =B3B!C29 -> 7980216.973 | D9: =B3B!D29 -> 0 | E9: =B3B!E29 -> 0 | F9: =B3B!F29 -> 0 | G9: =B3B!G29 -> 0 | H9: =B3B!H29 -> 0 | I9: =B3B!I29 -> -69304.9933 | J9: -69304.9933 | K9: 7910911.98 | L9: =B3B!L29 -> 3148276.605 | M9: =B3B!M29 -> 3296245.605
A10: =B3B!A40 -> Vote 4 - Community Services and Social Equity | C10: =B3B!C40 -> 497013172.7 | D10: =B3B!D40 -> 0 | E10: =B3B!E40 -> 0 | F10: =B3B!F40 -> 0 | G10: =B3B!G40 -> 0 | H10: =B3B!H40 -> 0 | I10: =B3B!I40 -> -200798404.9 | J10: -200798404.9 | K10: 296214767.8 | L10: =B3B!L40 -> 513912687.2 | M10: =B3B!M40 -> 537992891.3
A11: =B3B!A51 -> Vote 5 - Infrastructure Services | C11: =B3B!C51 -> 1520657146 | D11: =B3B!D51 -> 0 | E11: =B3B!E51 -> 0 | F11: =B3B!F51 -> 0 | G11: =B3B!G51 -> 0 | H11: =B3B!H51 -> 0 | I11: =B3B!I51 -> -47187710.77 | J11: -47187710.77 | K11: 1473469435 | L11: =B3B!L51 -> 1620256217 | M11: =B3B!M51 -> 1696742341
A12: =B3B!A62 -> Vote 6 - Sustainable Development and City Enterprises | C12: =B3B!C62 -> 200280366 | D12: =B3B!D62 -> 0 | E12: =B3B!E62 -> 0 | F12: =B3B!F62 -> 0 | G12: =B3B!G62 -> 0 | H12: =B3B!H62 -> 0 | I12: =B3B!I62 -> 272812379.8 | J12: 272812379.8 | K12: 473092745.8 | L12: =B3B!L62 -> 202212592.4 | M12: =B3B!M62 -> 210118731.5
A13: =B3B!A73 -> Vote 7 - Electricity | C13: =B3B!C73 -> 4000560679 | D13: =B3B!D73 -> 0 | E13: =B3B!E73 -> 0 | F13: =B3B!F73 -> 0 | G13: =B3B!G73 -> 0 | H13: =B3B!H73 -> 0 | I13: =B3B!I73 -> -402072498 | J13: -402072498 | K13: 3598488181 | L13: =B3B!L73 -> 4491770272 | M13: =B3B!M73 -> 5292597018
A14: =B3B!A84 -> Vote 8 - [NAME OF VOTE 8] | C14: =B3B!C84 -> 0 | D14: =B3B!D84 -> 0 | E14: =B3B!E84 -> 0 | F14: =B3B!F84 -> 0 | G14: =B3B!G84 -> 0 | H14: =B3B!H84 -> 0 | I14: =B3B!I84 -> 0 | J14: 0 | K14: 0 | L14: =B3B!L84 -> 0 | M14: =B3B!M84 -> 0
A15: =B3B!A95 -> Vote 9 - [NAME OF VOTE 9] | C15: =B3B!C95 -> 0 | D15: =B3B!D95 -> 0 | E15: =B3B!E95 -> 0 | F15: =B3B!F95 -> 0 | G15: =B3B!G95 -> 0 | H15: =B3B!H95 -> 0 | I15: =B3B!I95 -> 0 | J15: 0 | K15: 0 | L15: =B3B!L95 -> 0 | M15: =B3B!M95 -> 0
A16: =B3B!A106 -> Vote 10 - [NAME OF VOTE 10] | C16: =B3B!C106 -> 0 | D16: =B3B!D106 -> 0 | E16: =B3B!E106 -> 0 | F16: =B3B!F106 -> 0 | G16: =B3B!G106 -> 0 | H16: =B3B!H106 -> 0 | I16: =B3B!I106 -> 0 | J16: 0 | K16: 0 | L16: =B3B!L106 -> 0 | M16: =B3B!M106 -> 0
A17: =B3B!A117 -> Vote 11 - [NAME OF VOTE 11] | C17: =B3B!C117 -> 0 | D17: =B3B!D117 -> 0 | E17: =B3B!E117 -> 0 | F17: =B3B!F117 -> 0 | G17: =B3B!G117 -> 0 | H17: =B3B!H117 -> 0 | I17: =B3B!I117 -> 0 | J17: 0 | K17: 0 | L17: =B3B!L117 -> 0 | M17: =B3B!M117 -> 0
A18: =B3B!A128 -> Vote 12 - [NAME OF VOTE 12] | C18: =B3B!C128 -> 0 | D18: =B3B!D128 -> 0 | E18: =B3B!E128 -> 0 | F18: =B3B!F128 -> 0 | G18: =B3B!G128 -> 0 | H18: =B3B!H128 -> 0 | I18: =B3B!I128 -> 0 | J18: 0 | K18: 0 | L18: =B3B!L128 -> 0 | M18: =B3B!M128 -> 0
A19: =B3B!A139 -> Vote 13 - [NAME OF VOTE 13] | C19: =B3B!C139 -> 0 | D19: =B3B!D139 -> 0 | E19: =B3B!E139 -> 0 | F19: =B3B!F139 -> 0 | G19: =B3B!G139 -> 0 | H19: =B3B!H139 -> 0 | I19: =B3B!I139 -> 0 | J19: 0 | K19: 0 | L19: =B3B!L139 -> 0 | M19: =B3B!M139 -> 0
A20: =B3B!A150 -> Vote 14 - [NAME OF VOTE 14] | C20: =B3B!C150 -> 0 | D20: =B3B!D150 -> 0 | E20: =B3B!E150 -> 0 | F20: =B3B!F150 -> 0 | G20: =B3B!G150 -> 0 | H20: =B3B!H150 -> 0 | I20: =B3B!I150 -> 0 | J20: 0 | K20: 0 | L20: =B3B!L150 -> 0 | M20: =B3B!M150 -> 0
A21: =B3B!A161 -> Vote 15 - [NAME OF VOTE 15] | C21: =B3B!C161 -> 0 | D21: =B3B!D161 -> 0 | E21: =B3B!E161 -> 0 | F21: =B3B!F161 -> 0 | G21: =B3B!G161 -> 0 | H21: =B3B!H161 -> 0 | I21: =B3B!I161 -> 0 | J21: 0 | K21: 0 | L21: =B3B!L161 -> 0 | M21: =B3B!M161 -> 0
A22: Total Revenue by Vote | B22: 2 | C22: =SUM(C7:C21) -> 8569426178 | D22: =SUM(D7:D21) -> 0 | E22: 0 | F22: 0 | G22: 0 | H22: 0 | I22: -124126712 | J22: =SUM(J7:J21) -> -124126712 | K22: 8445299466 | L22: =SUM(L7:L21) -> 9302895150 | M22: =SUM(M7:M21) -> 10366340415
A24: Expenditure by Vote | B24: 1
A25: =B3B!A175 -> Vote 1 - City Manager | C25: =B3B!C175 -> 300105971.1 | D25: =B3B!D175 -> 0 | E25: =B3B!E175 -> 0 | F25: =B3B!F175 -> 0 | G25: =B3B!G175 -> 0 | H25: =B3B!H175 -> 0 | I25: =B3B!I175 -> -102702730.5 | J25: =SUM(E25:I25) -> -102702730.5 | K25: =IF(D25=0,C25+J25,D25+J25) -> 197403240.6 | L25: =B3B!L175 -> 313749698.6 | M25: =B3B!M175 -> 327941318.9
A26: =B3B!A186 -> Vote 2 - City Finance | C26: =B3B!C186 -> 799187822.7 | D26: =B3B!D186 -> 0 | E26: =B3B!E186 -> 0 | F26: =B3B!F186 -> 0 | G26: =B3B!G186 -> 0 | H26: =B3B!H186 -> 0 | I26: =B3B!I186 -> 409065048.2 | J26: 409065048.2 | K26: 1208252871 | L26: =B3B!L186 -> 835918652.6 | M26: =B3B!M186 -> 874033756.5
A27: =B3B!A197 -> Vote 3 - Corporate Services | C27: =B3B!C197 -> 195633443.4 | D27: =B3B!D197 -> 0 | E27: =B3B!E197 -> 0 | F27: =B3B!F197 -> 0 | G27: =B3B!G197 -> 0 | H27: =B3B!H197 -> 0 | I27: =B3B!I197 -> -36879518.45 | J27: -36879518.45 | K27: 158753924.9 | L27: =B3B!L197 -> 199465750.2 | M27: =B3B!M197 -> 208563317.9
A28: =B3B!A208 -> Vote 4 - Community Services and Social Equity | C28: =B3B!C208 -> 827458053.8 | D28: =B3B!D208 -> 0 | E28: =B3B!E208 -> 0 | F28: =B3B!F208 -> 0 | G28: =B3B!G208 -> 0 | H28: =B3B!H208 -> 0 | I28: =B3B!I208 -> 414164802.7 | J28: 414164802.7 | K28: 1241622857 | L28: =B3B!L208 -> 865408025.8 | M28: =B3B!M208 -> 905493807.3
A29: =B3B!A219 -> Vote 5 - Infrastructure Services | C29: =B3B!C219 -> 2117250006 | D29: =B3B!D219 -> 0 | E29: =B3B!E219 -> 0 | F29: =B3B!F219 -> 0 | G29: =B3B!G219 -> 0 | H29: =B3B!H219 -> 0 | I29: =B3B!I219 -> -1478124299 | J29: -1478124299 | K29: 639125706.7 | L29: =B3B!L219 -> 2229930568 | M29: =B3B!M219 -> 2332105417
A30: =B3B!A230 -> Vote 6 - Sustainable Development and City Enterprises | C30: =B3B!C230 -> 225419326.3 | D30: =B3B!D230 -> 0 | E30: =B3B!E230 -> 0 | F30: =B3B!F230 -> 0 | G30: =B3B!G230 -> 0 | H30: =B3B!H230 -> 0 | I30: =B3B!I230 -> 443058117.8 | J30: 443058117.8 | K30: 668477444 | L30: =B3B!L230 -> 217071424.5 | M30: =B3B!M230 -> 214896011.9
A31: =B3B!A241 -> Vote 7 - Electricity | C31: =B3B!C241 -> 3240145172 | D31: =B3B!D241 -> 0 | E31: =B3B!E241 -> 0 | F31: =B3B!F241 -> 0 | G31: =B3B!G241 -> 0 | H31: =B3B!H241 -> 0 | I31: =B3B!I241 -> 210230173.1 | J31: 210230173.1 | K31: 3450375345 | L31: =B3B!L241 -> 3827187024 | M31: =B3B!M241 -> 4322237060
A32: =B3B!A252 -> Vote 8 - [NAME OF VOTE 8] | C32: =B3B!C252 -> 0 | D32: =B3B!D252 -> 0 | E32: =B3B!E252 -> 0 | F32: =B3B!F252 -> 0 | G32: =B3B!G252 -> 0 | H32: =B3B!H252 -> 0 | I32: =B3B!I252 -> 0 | J32: 0 | K32: 0 | L32: =B3B!L252 -> 0 | M32: =B3B!M252 -> 0
A33: =B3B!A263 -> Vote 9 - [NAME OF VOTE 9] | C33: =B3B!C263 -> 0 | D33: =B3B!D263 -> 0 | E33: =B3B!E263 -> 0 | F33: =B3B!F263 -> 0 | G33: =B3B!G263 -> 0 | H33: =B3B!H263 -> 0 | I33: =B3B!I263 -> 0 | J33: 0 | K33: 0 | L33: =B3B!L263 -> 0 | M33: =B3B!M263 -> 0
A34: =B3B!A274 -> Vote 10 - [NAME OF VOTE 10] | C34: =B3B!C274 -> 0 | D34: =B3B!D274 -> 0 | E34: =B3B!E274 -> 0 | F34: =B3B!F274 -> 0 | G34: =B3B!G274 -> 0 | H34: =B3B!H274 -> 0 | I34: =B3B!I274 -> 0 | J34: 0 | K34: 0 | L34: =B3B!L274 -> 0 | M34: =B3B!M274 -> 0
A35: =B3B!A285 -> Vote 11 - [NAME OF VOTE 11] | C35: =B3B!C285 -> 0 | D35: =B3B!D285 -> 0 | E35: =B3B!E285 -> 0 | F35: =B3B!F285 -> 0 | G35: =B3B!G285 -> 0 | H35: =B3B!H285 -> 0 | I35: =B3B!I285 -> 0 | J35: 0 | K35: 0 | L35: =B3B!L285 -> 0 | M35: =B3B!M285 -> 0
A36: =B3B!A296 -> Vote 12 - [NAME OF VOTE 12] | C36: =B3B!C296 -> 0 | D36: =B3B!D296 -> 0 | E36: =B3B!E296 -> 0 | F36: =B3B!F296 -> 0 | G36: =B3B!G296 -> 0 | H36: =B3B!H296 -> 0 | I36: =B3B!I296 -> 0 | J36: 0 | K36: 0 | L36: =B3B!L296 -> 0 | M36: =B3B!M296 -> 0
A37: =B3B!A307 -> Vote 13 - [NAME OF VOTE 13] | C37: =B3B!C307 -> 0 | D37: =B3B!D307 -> 0 | E37: =B3B!E307 -> 0 | F37: =B3B!F307 -> 0 | G37: =B3B!G307 -> 0 | H37: =B3B!H307 -> 0 | I37: =B3B!I307 -> 0 | J37: 0 | K37: 0 | L37: =B3B!L307 -> 0 | M37: =B3B!M307 -> 0
A38: =B3B!A318 -> Vote 14 - [NAME OF VOTE 14] | C38: =B3B!C318 -> 0 | D38: =B3B!D318 -> 0 | E38: =B3B!E318 -> 0 | F38: =B3B!F318 -> 0 | G38: =B3B!G318 -> 0 | H38: =B3B!H318 -> 0 | I38: =B3B!I318 -> 0 | J38: 0 | K38: 0 | L38: =B3B!L318 -> 0 | M38: =B3B!M318 -> 0
A39: =B3B!A329 -> Vote 15 - [NAME OF VOTE 15] | C39: =B3B!C329 -> 0 | D39: =B3B!D329 -> 0 | E39: =B3B!E329 -> 0 | F39: =B3B!F329 -> 0 | G39: =B3B!G329 -> 0 | H39: =B3B!H329 -> 0 | I39: =B3B!I329 -> 0 | J39: 0 | K39: 0 | L39: =B3B!L329 -> 0 | M39: =B3B!M329 -> 0
A40: Total Expenditure by Vote | B40: 2 | C40: =SUM(C25:C39) -> 7705199795 | D40: =SUM(D25:D39) -> 0 | E40: 0 | F40: 0 | G40: 0 | H40: 0 | I40: -141188406.5 | J40: =SUM(J25:J39) -> -141188406.5 | K40: =SUM(K25:K39) -> 7564011389 | L40: =SUM(L25:L39) -> 8488731143 | M40: =SUM(M25:M39) -> 9185270689
A41: =result -> Surplus/ (Deficit) for the year | B41: 2 | C41: =C22-C40 -> 864226383 | D41: =D22-D40 -> 0 | E41: 0 | F41: 0 | G41: 0 | H41: 0 | I41: 17061694.44 | J41: 17061694.44 | K41: 881288077.4 | L41: 814164007 | M41: 1181069726
A42: =head27a -> References
A43: 1. Insert 'Vote'; e.g. Department, if different to standard classification structure
A44: 2. Must reconcile to Budgeted Financial Performance (revenue and expenditure)
A45: 3. Only complete if a previous adjusted budget has been approved in the same financial year. Reflect most recent adjusted budget.
A46: 4. Additional cash-backed accumulated funds/unspent funds (MFMA section 18(1)(b) and section 28(2)(e)) identified after the Original Budget approved and after annual financial statements audited (note: only where underspending could not reasonably have been foreseen)
A47: 5. Increases of funds approved under MFMA section 31
A48: 6. Adjustments approved in accordance with MFMA section 29
A49: 7. Adjustments to transfers from National or Provincial Government
A50: 8. Adjusts. = 'Other' Adjustments proposed to be approved; including revenue under-collection (MFMA section 28(2)(a)); additional revenue appropriation on existing programmes (section 28(2))(b); projected savings (section 28(2)(d)); error correction (section 28(2)(f))
A51: 9. G = B + C + D + E + F
A52: 10. Adjusted Budget H = (A or A1/2 etc) + G
A54: check revenue | C54: =C22-'B4-FinPerf RE'!C76 -> 8569426178 | D54: =D22-'B4-FinPerf RE'!D76 -> 0 | E54: =E22-'B4-FinPerf RE'!E76 -> 0 | F54: =F22-'B4-FinPerf RE'!F76 -> 0 | G54: =G22-'B4-FinPerf RE'!G76 -> 0 | H54: =H22-'B4-FinPerf RE'!H76 -> 0 | I54: =I22-'B4-FinPerf RE'!I76 -> -124126712 | J54: =J22-'B4-FinPerf RE'!J76 -> -124126712 | K54: =K22-'B4-FinPerf RE'!K76 -> 8445299466 | L54: =L22-'B4-FinPerf RE'!L76 -> 9302895150 | M54: =M22-'B4-FinPerf RE'!M76 -> 10366340415
A55: check expenditure | C55: =C40-'B4-FinPerf RE'!C50 -> 0 | D55: =D40-'B4-FinPerf RE'!D50 -> 0 | E55: =E40-'B4-FinPerf RE'!E50 -> 0 | F55: =F40-'B4-FinPerf RE'!F50 -> 0 | G55: =G40-'B4-FinPerf RE'!G50 -> 0 | H55: =H40-'B4-FinPerf RE'!H50 -> 0 | I55: =I40-'B4-FinPerf RE'!I50 -> -1.673361391 | J55: =J40-'B4-FinPerf RE'!J50 -> -1.673361391 | K55: =K40-'B4-FinPerf RE'!K50 -> -1.673360825 | L55: =L40-'B4-FinPerf RE'!L50 -> 0 | M55: =M40-'B4-FinPerf RE'!M50 -> 0

Sheet B3B
A1: =muni&" - "&_ADJ2&" - B"&" - "&Date -> Choose name from list - Table B3 Adjustments Budget Financial Performance (revenue and expenditure by municipal vote) - B -
A2: =Vdesc -> Vote Description | B2: =head27 -> Ref | C2: =Head2 -> Budget Year 2023/24 | L2: =Head10 -> Budget Year +1 2024/25 | M2: =Head11 -> Budget Year +2 2025/26
C3: =Head6 -> Original Budget | D3: =Head54 -> Prior Adjusted | E3: =Head51 -> Accum. Funds | F3: =Head52 -> Multi-year capital | G3: =Head53 -> Unfore. Unavoid. | H3: =Head55 -> Nat. or Prov. Govt | I3: =Head50 -> Other Adjusts. | J3: =Head56 -> Total Adjusts. | K3: =Head7 -> Adjusted Budget | L3: =Head7 -> Adjusted Budget | M3: =Head7 -> Adjusted Budget
A4: [Insert departmental structure etc] | D4: 3 | E4: 4 | F4: 5 | G4: 6 | H4: 7 | I4: 8 | J4: 9 | K4: 10
A5: R thousands | C5: A | D5: A1 | E5: B | F5: C | G5: D | H5: E | I5: F | J5: G | K5: H
A6: Revenue by Vote | B6: 1
A7: ='Org structure'!A2 -> Vote 1 - City Manager | C7: =SUM(C8:C17) -> 0 | D7: =SUM(D8:D17) -> 0 | E7: 0 | F7: 0 | G7: 0 | H7: 0 | I7: 0 | J7: =SUM(E7:I7) -> 0 | K7: =IF(D7=0,C7+J7,D7+J7) -> 0 | L7: =SUM(L8:L17) -> 0 | M7: =SUM(M8:M17) -> 0
A8: ='Org structure'!E3 -> 1.1 - Internal Audit and Compliance | J8: =SUM(E8:I8) -> 0 | K8: =IF(D8=0,C8+J8,D8+J8) -> 0
A9: ='Org structure'!E4 -> 1.2 - Office of the City Manager | J9: 0 | K9: 0
A10: ='Org structure'!E5 -> 1.3 - Political Support | J10: 0 | K10: 0
A11: ='Org structure'!E6 -> 1.4 - Strategic Planning | J11: 0 | K11: 0
A12: ='Org structure'!E7 -> 0 | J12: 0 | K12: 0
A13: ='Org structure'!E8 -> 0 | J13: 0 | K13: 0
A14: ='Org structure'!E9 -> 0 | J14: 0 | K14: 0
A15: ='Org structure'!E10 -> 0 | J15: 0 | K15: 0
A16: ='Org structure'!E11 -> 0 | J16: 0 | K16: 0
A17: ='Org structure'!E12 -> 0 | J17: 0 | K17: 0
A18: ='Org structure'!A3 -> Vote 2 - City Finance | C18: =SUM(C19:C28) -> 2342934597 | D18: =SUM(D19:D28) -> 0 | E18: 0 | F18: 0 | G18: 0 | H18: 0 | I18: 253188826.9 | J18: 253188826.9 | K18: 2596123424 | L18: =SUM(L19:L28) -> 2471595105 | M18: =SUM(M19:M28) -> 2625593187
A19: ='Org structure'!E14 -> 2.1 - Asset Management | C19: 19067376.06 | I19: -0.004749994725 | J19: -0.004749994725 | K19: 19067376.06 | L19: 20001677.49 | M19: 20941756.33
A20: ='Org structure'!E15 -> 2.2 - Budget and Treasury Management | C20: 787224025.3 | J20: 0 | K20: 787224025.3 | L20: 857839406.9 | M20: 951820283.8
A21: ='Org structure'!E16 -> 2.3 - Expenditure Management | C21: 411255.6181 | I21: -0.008150000009 | J21: -0.008150000009 | K21: 411255.61 | L21: 431407.1434 | M21: 451683.2792
A22: ='Org structure'!E17 -> 2.4 - Revenue Management | C22: 1535899001 | I22: 253188826.9 | J22: 253188826.9 | K22: 1789087828 | L22: 1592973360 | M22: 1652013796
A23: ='Org structure'!E18 -> 2.5 - Supply Chain Management | C23: 332939.1845 | I23: -0.004500000039 | J23: -0.004500000039 | K23: 332939.18 | L23: 349253.2045 | M23: 365668.1052
A24: ='Org structure'!E19 -> 0 | J24: 0 | K24: 0
A25: ='Org structure'!E20 -> 0 | J25: 0 | K25: 0
A26: ='Org structure'!E21 -> 0 | J26: 0 | K26: 0
A27: ='Org structure'!E22 -> 0 | J27: 0 | K27: 0
A28: ='Org structure'!E23 -> 0 | J28: 0 | K28: 0
A29: ='Org structure'!A4 -> Vote 3 - Corporate Services | C29: =SUM(C30:C39) -> 7980216.973 | D29: 0 | E29: 0 | F29: 0 | G29: 0 | H29: 0 | I29: -69304.9933 | J29: -69304.9933 | K29: 7910911.98 | L29: =SUM(L30:L39) -> 3148276.605 | M29: =SUM(M30:M39) -> 3296245.605
A30: ='Org structure'!E25 -> Human Resources Management | C30: 2683430.277 | I30: 208695.0026 | J30: 208695.0026 | K30: 2892125.28 | L30: 2814918.361 | M30: 2947219.524
A31: ='Org structure'!E26 -> Information Technology | C31: 2472.42645 | I31: 0.00355 | J31: 0.00355 | K31: 2472.43 | L31: 2593.575346 | M31: 2715.473387
A32: ='Org structure'!E27 -> Legal Services | C32: 315314.2694 | I32: 0.0005999999703 | J32: 0.0005999999703 | K32: 315314.27 | L32: 330764.6686 | M32: 346310.608
A33: ='Org structure'!E28 -> Secretariat and Auxiliary Services | C33: 0 | I33: 0 | J33: 0 | K33: 0 | L33: 0 | M33: 0
A34: ='Org structure'!E29 -> General Manager: Corporate Service | C34: 4979000 | I34: -278000 | J34: -278000 | K34: 4701000 | L34: 0 | M34: 0
A35: ='Org structure'!E30 -> 0 | J35: 0 | K35: 0
A36: ='Org structure'!E31 -> 0 | J36: 0 | K36: 0
A37: ='Org structure'!E32 -> 0 | J37: 0 | K37: 0
A38: ='Org structure'!E33 -> 0 | J38: 0 | K38: 0
A39: ='Org structure'!E34 -> 0 | J39: 0 | K39: 0
A40: ='Org structure'!A5 -> Vote 4 - Community Services and Social Equity | C40: =SUM(C41:C50) -> 497013172.7 | D40: 0 | E40: 0 | F40: 0 | G40: 0 | H40: 0 | I40: -200798404.9 | J40: -200798404.9 | K40: 296214767.8 | L40: =SUM(L41:L50) -> 513912687.2 | M40: =SUM(M41:M50) -> 537992891.3
A41: ='Org structure'!E36 -> 4.1 - Area Based Management | C41: 9788096.706 | I41: -0.0155380033 | J41: -0.0155380033 | K41: 9788096.69 | L41: 10267713.44 | M41: 10750295.98
A42: ='Org structure'!E37 -> 4.2 - Public Safety, Emergency Services and Enforcement | C42: 8568779.072 | I42: 0.008256001398 | J42: 0.008256001398 | K42: 8568779.08 | L42: 8988649.246 | M42: 9411115.761
A43: ='Org structure'!E38 -> 4.3 - Recreation and Facilities | C43: 319882193.8 | I43: -192899280.5 | J43: -192899280.5 | K43: 126982913.3 | L43: 328102040.8 | M43: 343432225.3
A44: ='Org structure'!E39 -> 4.4 - Waste Management | C44: 158774103.1 | I44: -7899124.413 | J44: -7899124.413 | K44: 150874978.7 | L44: 166554283.7 | M44: 174399254.3
A45: ='Org structure'!E40 -> 0 | J45: 0 | K45: 0
A46: ='Org structure'!E41 -> 0 | J46: 0 | K46: 0
A47: ='Org structure'!E42 -> 0 | J47: 0 | K47: 0
A48: ='Org structure'!E43 -> 0 | J48: 0 | K48: 0
A49: ='Org structure'!E44 -> 0 | J49: 0 | K49: 0
A50: ='Org structure'!E45 -> 0 | J50: 0 | K50: 0
A51: ='Org structure'!A6 -> Vote 5 - Infrastructure Services | C51: =SUM(C52:C61) -> 1520657146 | D51: =SUM(D52:D61) -> 0 | E51: 0 | F51: 0 | G51: 0 | H51: 0 | I51: -47187710.77 | J51: -47187710.77 | K51: 1473469435 | L51: =SUM(L52:L61) -> 1620256217 | M51: =SUM(M52:M61) -> 1696742341
A52: ='Org structure'!E47 -> 5.1 - Project Management Office | C52: 9830360 | I52: -809558.02 | J52: -809558.02 | K52: 9020801.98 | L52: 9051405 | M52: 10432440
A53: ='Org structure'!E48 -> 5.2 - Roads and Transportation | C53: 222714.297 | I53: 52600000 | J53: 52600000 | K53: 52822714.3 | L53: 233627.2976 | M53: -244607.7805
A54: ='Org structure'!E49 -> 5.3 - Water and Sanitation | C54: 1510604072 | I54: -98978152.75 | J54: -98978152.75 | K54: 1411625919 | L54: 1610971185 | M54: 1686554509
A55: ='Org structure'!E50 -> 5.4 - General Manager: Infrastructure | C55: 0 | I55: 0 | J55: 0 | K55: 0 | L55: 0 | M55: 0
A56: ='Org structure'!E51 -> 0 | J56: 0 | K56: 0
A57: ='Org structure'!E52 -> 0 | J57: 0 | K57: 0
A58: ='Org structure'!E53 -> 0 | J58: 0 | K58: 0
A59: ='Org structure'!E54 -> 0 | J59: 0 | K59: 0
A60: ='Org structure'!E55 -> 0 | J60: 0 | K60: 0
A61: ='Org structure'!E56 -> 0 | J61: 0 | K61: 0
A62: ='Org structure'!A7 -> Vote 6 - Sustainable Development and City Enterprises | C62: =SUM(C63:C72) -> 200280366 | D62: =SUM(D63:D72) -> 0 | E62: 0 | F62: 0 | G62: 0 | H62: 0 | I62: 272812379.8 | J62: 272812379.8 | K62: =IF(D62=0,C62+J62,D62+J62) -> 473092745.8 | L62: =SUM(L63:L72) -> 202212592.4 | M62: =SUM(M63:M72) -> 210118731.5
A63: ='Org structure'!E58 -> 6.1 - City Entities | C63: 110066430.8 | I63: 18300464.13 | J63: 18300464.13 | K63: 128366894.9 | L63: 122667317.6 | M63: 128333801.5
A64: ='Org structure'!E59 -> 6.2 - Development Services | C64: 2292326.484 | I64: 11014562.58 | J64: 11014562.58 | K64: 13306889.06 | L64: 2576804.201 | M64: 2697913.998
A65: ='Org structure'!E60 -> 6.3 - Human Settlement Development | C65: 32320661.28 | I65: 164922998 | J65: 164922998 | K65: 197243659.3 | L65: 29800981.49 | M65: 31112654.87
A66: ='Org structure'!E61 -> 6.4 - Town Planning | C66: 55600947.45 | I66: 78574355.01 | J66: 78574355.01 | K66: 134175302.5 | L66: 47167489.11 | M66: 47974361.1
A67: ='Org structure'!E62 -> 6.5 - General Manager: Sustainable Development and City Enterprises | C67: 0 | I67: 0 | J67: 0 | K67: 0 | L67: 0 | M67: 0
A68: ='Org structure'!E63 -> 0 | J68: 0 | K68: 0
A69: ='Org structure'!E64 -> 0 | J69: 0 | K69: 0
A70: ='Org structure'!E65 -> 0 | J70: 0 | K70: 0
A71: ='Org structure'!E66 -> 0 | J71: 0 | K71: 0
A72: ='Org structure'!E67 -> 0 | J72: =SUM(E72:I72) -> 0 | K72: =IF(D72=0,C72+J72,D72+J72) -> 0
A73: ='Org structure'!A8 -> Vote 7 - Electricity | C73: =SUM(C74:C83) -> 4000560679 | D73: 0 | E73: 0 | F73: 0 | G73: 0 | H73: 0 | I73: -402072498 | J73: -402072498 | K73: 3598488181 | L73: =SUM(L74:L83) -> 4491770272 | M73: =SUM(M74:M83) -> 5292597018
A74: ='Org structure'!E69 -> 7.1 Electricity planning | C74: 12000000 | I74: 0 | J74: 0 | K74: 12000000 | L74: 12000000 | M74: 7314000
A75: ='Org structure'!E70 -> 7.2 Methods and Standards | C75: 0 | I75: 0 | J75: 0 | K75: 0 | L75: 0 | M75: 0
A76: ='Org structure'!E71 -> 7.3 Operations and Maintenance | C76: 0 | I76: 0 | J76: 0 | K76: 0 | L76: 0 | M76: 0
A77: ='Org structure'!E72 -> 7.4 Revenue Management | C77: 3963821822 | I77: -402072498 | J77: -402072498 | K77: 3561749324 | L77: 4453819211 | M77: 5258112257
A78: ='Org structure'!E73 -> 7.5 General Manager Electricity | C78: 24738856.93 | J78: 0 | K78: 24738856.93 | L78: 25951060.92 | M78: 27170760.78
A79: ='Org structure'!E74 -> 0 | J79: 0 | K79: 0
A80: ='Org structure'!E75 -> 0 | J80: 0 | K80: 0
A81: ='Org structure'!E76 -> 0 | J81: 0 | K81: 0
A82: ='Org structure'!E77 -> 0 | J82: 0 | K82: 0
A83: ='Org structure'!E78 -> 0 | J83: 0 | K83: 0
A84: ='Org structure'!A9 -> Vote 8 - [NAME OF VOTE 8] | C84: =SUM(C85:C94) -> 0 | D84: =SUM(D85:D94) -> 0 | E84: 0 | F84: 0 | G84: 0 | H84: 0 | I84: 0 | J84: 0 | K84: 0 | L84: =SUM(L85:L94) -> 0 | M84: =SUM(M85:M94) -> 0
A85: ='Org structure'!E80 -> 8.1 - [Name of sub-vote] | J85: 0 | K85: 0
A86: ='Org structure'!E81 -> 0 | J86: 0 | K86: 0
A87: ='Org structure'!E82 -> 0 | J87: 0 | K87: 0
A88: ='Org structure'!E83 -> 0 | J88: 0 | K88: 0
A89: ='Org structure'!E84 -> 0 | J89: 0 | K89: 0
A90: ='Org structure'!E85 -> 0 | J90: 0 | K90: 0
A91: ='Org structure'!E86 -> 0 | J91: 0 | K91: 0
A92: ='Org structure'!E87 -> 0 | J92: 0 | K92: 0
A93: ='Org structure'!E88 -> 0 | J93: 0 | K93: 0
A94: ='Org structure'!E89 -> 0 | J94: 0 | K94: 0
A95: ='Org structure'!A10 -> Vote 9 - [NAME OF VOTE 9] | C95: =SUM(C96:C105) -> 0 | D95: =SUM(D96:D105) -> 0 | E95: 0 | F95: 0 | G95: 0 | H95: 0 | I95: 0 | J95: 0 | K95: 0 | L95: =SUM(L96:L105) -> 0 | M95: =SUM(M96:M105) -> 0
A96: ='Org structure'!E91 -> 9.1 - [Name of sub-vote] | J96: 0 | K96: 0
A97: ='Org structure'!E92 -> 0 | J97: 0 | K97: 0
A98: ='Org structure'!E93 -> 0 | J98: 0 | K98: 0
A99: ='Org structure'!E94 -> 0 | J99: 0 | K99: 0
A100: ='Org structure'!E95 -> 0 | J100: 0 | K100: 0
A101: ='Org structure'!E96 -> 0 | J101: 0 | K101: 0
A102: ='Org structure'!E97 -> 0 | J102: 0 | K102: 0
A103: ='Org structure'!E98 -> 0 | J103: 0 | K103: 0
A104: ='Org structure'!E99 -> 0 | J104: 0 | K104: 0
A105: ='Org structure'!E100 -> 0 | J105: 0 | K105: 0
A106: ='Org structure'!A11 -> Vote 10 - [NAME OF VOTE 10] | C106: =SUM(C107:C116) -> 0 | D106: =SUM(D107:D116) -> 0 | E106: 0 | F106: 0 | G106: 0 | H106: 0 | I106: 0 | J106: 0 | K106: 0 | L106: =SUM(L107:L116) -> 0 | M106: =SUM(M107:M116) -> 0
A107: ='Org structure'!E102 -> 10.1 - [Name of sub-vote] | J107: 0 | K107: 0
A108: ='Org structure'!E103 -> 0 | J108: 0 | K108: 0
A109: ='Org structure'!E104 -> 0 | J109: 0 | K109: 0
A110: ='Org structure'!E105 -> 0 | J110: 0 | K110: 0
A111: ='Org structure'!E106 -> 0 | J111: 0 | K111: 0
A112: ='Org structure'!E107 -> 0 | J112: 0 | K112: 0
A113: ='Org structure'!E108 -> 0 | J113: 0 | K113: 0
A114: ='Org structure'!E109 -> 0 | J114: 0 | K114: 0
A115: ='Org structure'!E110 -> 0 | J115: 0 | K115: 0
A116: ='Org structure'!E111 -> 0 | J116: 0 | K116: 0
A117: ='Org structure'!A12 -> Vote 11 - [NAME OF VOTE 11] | C117: =SUM(C118:C127) -> 0 | D117: =SUM(D118:D127) -> 0 | E117: 0 | F117: 0 | G117: 0 | H117: 0 | I117: 0 | J117: 0 | K117: 0 | L117: =SUM(L118:L127) -> 0 | M117: =SUM(M118:M127) -> 0
A118: ='Org structure'!E113 -> 11.1 - [Name of sub-vote] | J118: 0 | K118: 0
A119: ='Org structure'!E114 -> 0 | J119: 0 | K119: 0
A120: ='Org structure'!E115 -> 0 | J120: 0 | K120: 0
A121: ='Org structure'!E116 -> 0 | J121: 0 | K121: 0
A122: ='Org structure'!E117 -> 0 | J122: 0 | K122: 0
A123: ='Org structure'!E118 -> 0 | J123: 0 | K123: 0
A124: ='Org structure'!E119 -> 0 | J124: 0 | K124: 0
A125: ='Org structure'!E120 -> 0 | J125: 0 | K125: 0
A126: ='Org structure'!E121 -> 0 | J126: 0 | K126: 0
A127: ='Org structure'!E122 -> 0 | J127: 0 | K127: 0
A128: ='Org structure'!A13 -> Vote 12 - [NAME OF VOTE 12] | C128: =SUM(C129:C138) -> 0 | D128: =SUM(D129:D138) -> 0 | E128: 0 | F128: 0 | G128: 0 | H128: 0 | I128: 0 | J128: 0 | K128: 0 | L128: =SUM(L129:L138) -> 0 | M128: =SUM(M129:M138) -> 0
A129: ='Org structure'!E124 -> 12.1 - [Name of sub-vote] | J129: 0 | K129: 0
A130: ='Org structure'!E125 -> 0 | J130: 0 | K130: 0
A131: ='Org structure'!E126 -> 0 | J131: 0 | K131: 0
A132: ='Org structure'!E127 -> 0 | J132: 0 | K132: 0
A133: ='Org structure'!E128 -> 0 | J133: 0 | K133: 0
A134: ='Org structure'!E129 -> 0 | J134: 0 | K134: 0
A135: ='Org structure'!E130 -> 0 | J135: 0 | K135: 0
A136: ='Org structure'!E131 -> 0 | J136: =SUM(E136:I136) -> 0 | K136: =IF(D136=0,C136+J136,D136+J136) -> 0
A137: ='Org structure'!E132 -> 0 | J137: 0 | K137: 0
A138: ='Org structure'!E133 -> 0 | J138: 0 | K138: 0
A139: ='Org structure'!A14 -> Vote 13 - [NAME OF VOTE 13] | C139: =SUM(C140:C149) -> 0 | D139: =SUM(D140:D149) -> 0 | E139: 0 | F139: 0 | G139: 0 | H139: 0 | I139: 0 | J139: 0 | K139: 0 | L139: =SUM(L140:L149) -> 0 | M139: =SUM(M140:M149) -> 0
A140: ='Org structure'!E135 -> 13.1 - [Name of sub-vote] | J140: 0 | K140: 0
A141: ='Org structure'!E136 -> 0 | J141: 0 | K141: 0
A142: ='Org structure'!E137 -> 0 | J142: 0 | K142: 0
A143: ='Org structure'!E138 -> 0 | J143: 0 | K143: 0
A144: ='Org structure'!E139 -> 0 | J144: 0 | K144: 0
A145: ='Org structure'!E140 -> 0 | J145: 0 | K145: 0
A146: ='Org structure'!E141 -> 0 | J146: 0 | K146: 0
A147: ='Org structure'!E142 -> 0 | J147: 0 | K147: 0
A148: ='Org structure'!E143 -> 0 | J148: 0 | K148: 0
A149: ='Org structure'!E144 -> 0 | J149: 0 | K149: 0
A150: ='Org structure'!A15 -> Vote 14 - [NAME OF VOTE 14] | C150: =SUM(C151:C160) -> 0 | D150: =SUM(D151:D160) -> 0 | E150: 0 | F150: 0 | G150: 0 | H150: 0 | I150: 0 | J150: 0 | K150: 0 | L150: =SUM(L151:L160) -> 0 | M150: =SUM(M151:M160) -> 0
A151: ='Org structure'!E146 -> 14.1 - [Name of sub-vote] | J151: 0 | K151: 0
A152: ='Org structure'!E147 -> 0 | J152: 0 | K152: 0
A153: ='Org structure'!E148 -> 0 | J153: 0 | K153: 0
A154: ='Org structure'!E149 -> 0 | J154: 0 | K154: 0
A155: ='Org structure'!E150 -> 0 | J155: 0 | K155: 0
A156: ='Org structure'!E151 -> 0 | J156: 0 | K156: 0
A157: ='Org structure'!E152 -> 0 | J157: 0 | K157: 0
A158: ='Org structure'!E153 -> 0 | J158: 0 | K158: 0
A159: ='Org structure'!E154 -> 0 | J159: 0 | K159: 0
A160: ='Org structure'!E155 -> 0 | J160: 0 | K160: 0
A161: ='Org structure'!A16 -> Vote 15 - [NAME OF VOTE 15] | C161: =SUM(C162:C171) -> 0 | D161: =SUM(D162:D171) -> 0 | E161: 0 | F161: 0 | G161: 0 | H161: 0 | I161: 0 | J161: 0 | K161: 0 | L161: =SUM(L162:L171) -> 0 | M161: =SUM(M162:M171) -> 0
A162: ='Org structure'!E157 -> 15.1 - [Name of sub-vote] | J162: 0 | K162: 0
A163: ='Org structure'!E158 -> 0 | J163: 0 | K163: 0
A164: ='Org structure'!E159 -> 0 | J164: 0 | K164: 0
A165: ='Org structure'!E160 -> 0 | J165: 0 | K165: 0
A166: ='Org structure'!E161 -> 0 | J166: 0 | K166: 0
A167: ='Org structure'!E162 -> 0 | J167: 0 | K167: 0
A168: ='Org structure'!E163 -> 0 | J168: 0 | K168: 0
A169: ='Org structure'!E164 -> 0 | J169: 0 | K169: 0
A170: ='Org structure'!E165 -> 0 | J170: 0 | K170: 0
A171: ='Org structure'!E166 -> 0 | J171: 0 | K171: 0
A172: Total Revenue by Vote | B172: 2 | C172: =C7+C18+C29+C40+C51+C62+C73+C84+C95+C106+C117+C128+C139+C150+C161 -> 8569426178 | D172: =D7+D18+D29+D40+D51+D62+D73+D84+D95+D106+D117+D128+D139+D150+D161 -> 0 | E172: 0 | F172: 0 | G172: 0 | H172: 0 | I172: -124126712 | J172: =SUM(E172:I172) -> -124126712 | K172: =IF(D172=0,C172+J172,D172+J172) -> 8445299466 | L172: =L7+L18+L29+L40+L51+L62+L73+L84+L95+L106+L117+L128+L139+L150+L161 -> 9302895150 | M172: =M7+M18+M29+M40+M51+M62+M73+M84+M95+M106+M117+M128+M139+M150+M161 -> 10366340415
A174: Expenditure by Vote | B174: 1
A175: =A7 -> Vote 1 - City Manager | C175: =SUM(C176:C185) -> 300105971.1 | D175: 0 | E175: 0 | F175: 0 | G175: 0 | H175: 0 | I175: -102702730.5 | J175: =SUM(E175:I175) -> -102702730.5 | K175: =IF(D175=0,C175+J175,D175+J175) -> 197403240.6 | L175: =SUM(L176:L185) -> 313749698.6 | M175: =SUM(M176:M185) -> 327941318.9
A176: =A8 -> 1.1 - Internal Audit and Compliance | C176: 28455035.46 | I176: 5912674.996 | J176: =SUM(E176:I176) -> 5912674.996 | K176: =IF(D176=0,C176+J176,D176+J176) -> 34367710.46 | L176: 29802712.06 | M176: 31179080.5
A177: 1.2 - Office of the City Manager | C177: 160808892.2 | I177: -115256996.5 | J177: -115256996.5 | K177: 45551895.72 | L177: 168071712.3 | M177: 175648796.7
A178: 1.3 - Political Support | C178: 101392330.3 | I178: 10822038.38 | J178: 10822038.38 | K178: 112214368.7 | L178: 105993325 | M178: 110783133.9
A179: 1.4 - Strategic Planning | C179: 9449713.077 | I179: -4180447.397 | J179: -4180447.397 | K179: 5269265.68 | L179: 9881949.197 | M179: 10330307.9
A180: 0 | J180: 0 | K180: 0
A181: 0 | J181: 0 | K181: 0
A182: 0 | J182: 0 | K182: 0
A183: 0 | J183: 0 | K183: 0
A184: 0 | J184: 0 | K184: 0
A185: 0 | J185: 0 | K185: 0
A186: =A18 -> Vote 2 - City Finance | C186: =SUM(C187:C196) -> 799187822.7 | D186: 0 | E186: 0 | F186: 0 | G186: 0 | H186: 0 | I186: 409065048.2 | J186: 409065048.2 | K186: 1208252871 | L186: =SUM(L187:L196) -> 835918652.6 | M186: =SUM(M187:M196) -> 874033756.5
A187: =A19 -> 2.1 - Asset Management | C187: 81457538.5 | I187: 37058543.44 | J187: 37058543.44 | K187: 118516081.9 | L187: 85241483.17 | M187: 89139427.34
A188: 2.2 - Budget and Treasury Management | C188: 139219805.8 | I188: -46161888.68 | J188: -46161888.68 | K188: 93057917.1 | L188: 145659479.4 | M188: 152402104.1
A189: 2.3 - Expenditure Management | C189: 43561837.16 | I189: 9093483.82 | J189: 9093483.82 | K189: 52655320.98 | L189: 45627500.74 | M189: 47736010.55
A190: 2.4 - Revenue Management | C190: 459180490.1 | I190: 449686473.1 | J190: 449686473.1 | K190: 908866963.2 | L190: 480041944.8 | M190: 501747857.7
A191: 2.5 - Supply Chain Management | C191: 75768151.16 | I191: -40611563.52 | J191: -40611563.52 | K191: 35156587.64 | L191: 79348244.55 | M191: 83008356.75
A192: 0 | J192: 0 | K192: 0
A193: 0 | J193: 0 | K193: 0
A194: 0 | J194: 0 | K194: 0
A195: 0 | J195: 0 | K195: 0
A196: 0 | J196: 0 | K196: 0
A197: Vote 3 - Corporate Services | C197: =SUM(C198:C207) -> 195633443.4 | D197: 0 | E197: 0 | F197: 0 | G197: 0 | H197: 0 | I197: -36879518.45 | J197: -36879518.45 | K197: 158753924.9 | L197: =SUM(L198:L207) -> 199465750.2 | M197: =SUM(M198:M207) -> 208563317.9
A198: Human Resources Management | C198: 82790450.05 | I198: -38722609.29 | J198: -38722609.29 | K198: 44067840.76 | L198: 86616554.46 | M198: 90567029.58
A199: Information Technology | C199: 56146777.96 | I199: 3178324.142 | J199: 3178324.142 | K199: 59325102.1 | L199: 58794568.97 | M199: 61503886.63
A200: Legal Services | C200: 18240282.65 | I200: -16688939.13 | J200: -16688939.13 | K200: 1551343.52 | L200: 19075018.93 | M200: 19940697.68
A201: Secretariat and Auxiliary Services | C201: 25452722.21 | I201: 432074.9596 | J201: 432074.9596 | K201: 25884797.17 | L201: 26593327.91 | M201: 27787527.48
... 144 more rows

Sheet B4-FinPerf RE
A1: =muni&" - "&_ADJ4&" - "&Date -> Choose name from list - Table B4 Adjustments Budget Financial Performance (revenue and expenditure) -
A2: =desc -> Description | B2: =head27 -> Ref | C2: =Head2 -> Budget Year 2023/24 | L2: =Head10 -> Budget Year +1 2024/25 | M2: =Head11 -> Budget Year +2 2025/26
C3: =Head6 -> Original Budget | D3: =Head54 -> Prior Adjusted | E3: =Head51 -> Accum. Funds | F3: =Head52 -> Multi-year capital | G3: =Head53 -> Unfore. Unavoid. | H3: =Head55 -> Nat. or Prov. Govt | I3: =Head50 -> Other Adjusts. | J3: =Head56 -> Total Adjusts. | K3: =Head7 -> Adjusted Budget | L3: =Head7 -> Adjusted Budget | M3: =Head7 -> Adjusted Budget
D4: 3 | E4: 4 | F4: 5 | G4: 6 | H4: 7 | I4: 8 | J4: 9 | K4: 10
A5: R thousands | B5: 1 | C5: A | D5: A1 | E5: B | F5: C | G5: D | H5: E | I5: F | J5: G | K5: H
A6: Revenue By Source
A7: Exchange Revenue
A8: Service charges - Electricity | B8: 2 | C8: ='SB1'!C18 -> 3892818096 | D8: ='SB1'!D18 -> 0 | E8: ='SB1'!E18 -> 0 | F8: ='SB1'!F18 -> 0 | G8: ='SB1'!G18 -> 0 | H8: ='SB1'!H18 -> 0 | I8: ='SB1'!I18 -> -219463339.2 | J8: =SUM(E8:I8) -> -219463339.2 | K8: =IF(D8=0,C8+J8,D8+J8) -> 3673354756 | L8: ='SB1'!L18 -> 4515668991 | M8: ='SB1'!M18 -> 5328489409
A9: Service charges - Water | B9: 2 | C9: ='SB1'!C24 -> 901571501.8 | D9: ='SB1'!D24 -> 0 | E9: ='SB1'!E24 -> 0 | F9: ='SB1'!F24 -> 0 | G9: ='SB1'!G24 -> 0 | H9: ='SB1'!H24 -> 0 | I9: ='SB1'!I24 -> 0 | J9: 0 | K9: 901571501.8 | L9: ='SB1'!L24 -> 945748505.4 | M9: ='SB1'!M24 -> 990198685.1
A10: Service charges - Waste Water Management | B10: 2 | C10: ='SB1'!C30 -> 202499871.9 | D10: ='SB1'!D30 -> 0 | E10: ='SB1'!E30 -> 0 | F10: ='SB1'!F30 -> 0 | G10: ='SB1'!G30 -> 0 | H10: ='SB1'!H30 -> 0 | I10: ='SB1'!I30 -> 0 | J10: 0 | K10: 202499871.9 | L10: ='SB1'!L30 -> 212422365.7 | M10: ='SB1'!M30 -> 222406216.9
A11: Service charges - Waste Management | B11: 2 | C11: ='SB1'!C37 -> 138741765.1 | D11: ='SB1'!D37 -> 0 | E11: ='SB1'!E37 -> 0 | F11: ='SB1'!F37 -> 0 | G11: ='SB1'!G37 -> 0 | H11: ='SB1'!H37 -> 0 | I11: ='SB1'!I37 -> 0 | J11: 0 | K11: 138741765.1 | L11: ='SB1'!L37 -> 145540111.6 | M11: ='SB1'!M37 -> 152380496.9
A12: Sale of Goods and Rendering of Services | J12: 0 | K12: 0
A13: Agency services | C13: 714790.3238 | J13: 0 | K13: 714790.3238 | L13: 749815.0497 | M13: 785056.357
A14: Interest | J14: 0 | K14: 0
A15: Interest earned from Receivables | C15: 198174144 | J15: 0 | K15: 198174144 | L15: 207884677 | M15: 217655258
A16: Interest earned from Current and Non Current Assets | C16: 18052025.28 | J16: 0 | K16: 18052025.28 | L16: 19225406.93 | M16: 20494283.78
A17: Dividends | J17: 0 | K17: 0
A18: Rent on Land | J18: 0 | K18: 0
A19: Rental from Fixed Assets | C19: 104823531.7 | J19: 0 | K19: 104823531.7 | L19: 112623580.5 | M19: 117916888.8
A20: Licence and permits | C20: 2451743.957 | J20: 0 | K20: 2451743.957 | L20: 2667323.606 | M20: 2792687.816
A21: Operational Revenue | C21: 230407182.4 | J21: 0 | K21: 230407182.4 | L21: 249375506.2 | M21: 261096154.9
A22: Non-Exchange Revenue
A23: Property rates | B23: 2 | C23: ='SB1'!C11 -> 1526985082 | D23: ='SB1'!D11 -> 0 | E23: ='SB1'!E11 -> 0 | F23: ='SB1'!F11 -> 0 | G23: ='SB1'!G11 -> 0 | H23: ='SB1'!H11 -> 0 | I23: ='SB1'!I11 -> 0 | J23: ='SB1'!J11 -> 0 | K23: ='SB1'!K11 -> 1526985082 | L23: ='SB1'!L11 -> 1601807351 | M23: ='SB1'!M11 -> 1677092296
A24: Surcharges and Taxes | J24: =SUM(E24:I24) -> 0 | K24: =IF(D24=0,C24+J24,D24+J24) -> 0
A25: Fines, penalties and forfeits | C25: 14659914.48 | J25: =SUM(E25:I25) -> 0 | K25: =IF(D25=0,C25+J25,D25+J25) -> 14659914.48 | L25: 8467564.534 | M25: 8865540.067
A26: Licences or permits | J26: 0 | K26: 0
A27: Transfer and subsidies - Operational | C27: 838135150 | I27: 7880475.88 | J27: 7880475.88 | K27: 846015625.9 | L27: 906229405 | M27: 982611448
A28: Interest | C28: 50691327 | J28: 0 | K28: 50691327 | L28: 53175202 | M28: 55674436
A29: Fuel Levy | J29: 0 | K29: 0
A30: Operational Revenue | J30: 0 | K30: 0
A31: Gains on disposal of Assets | J31: 0 | K31: 0
A32: Other Gains | J32: 0 | K32: 0
A33: Discontinued Operations | J33: =SUM(E33:I33) -> 0 | K33: =IF(D33=0,C33+J33,D33+J33) -> 0
A34: Total Revenue (excluding capital transfers and contributions) | C34: =SUM(C8:C33) -> 8120726125 | D34: =SUM(D8:D33) -> 0 | E34: 0 | F34: 0 | G34: 0 | H34: 0 | I34: -211582863.3 | J34: -211582863.3 | K34: 7909143262 | L34: 8981585805 | M34: 1.003845886e+10
A36: Expenditure By Type
A37: Employee related costs | C37: ='SB1'!C62 -> 1793148355 | D37: ='SB1'!D62 -> 0 | E37: ='SB1'!E62 -> 0 | F37: ='SB1'!F62 -> 0 | G37: ='SB1'!G62 -> 0 | H37: ='SB1'!H62 -> 0 | I37: ='SB1'!I62 -> -76576633.36 | J37: =SUM(E37:I37) -> -76576633.36 | K37: =IF(D37=0,C37+J37,D37+J37) -> 1716571722 | L37: ='SB1'!L62 -> 1844151109 | M37: ='SB1'!M62 -> 1914587680
A38: Remuneration of councillors | C38: 62699934.99 | J38: 0 | K38: 62699934.99 | L38: 65521432.06 | M38: 68469896.51
A39: Bulk purchases - electricity | C39: =+'SB1'!C83 -> 2514000000 | D39: =+'SB1'!D83 -> 0 | E39: =+'SB1'!E83 -> 0 | F39: =+'SB1'!F83 -> 0 | G39: =+'SB1'!G83 -> 0 | H39: =+'SB1'!H83 -> 0 | I39: =+'SB1'!I83 -> 200000000 | J39: 200000000 | K39: 2714000000 | L39: =+'SB1'!L83 -> 3066820000 | M39: =+'SB1'!M83 -> 3526843000
A40: Inventory consumed | C40: ='SB1'!C136 -> 970629036 | D40: ='SB1'!D136 -> 0 | E40: ='SB1'!E136 -> 0 | F40: ='SB1'!F136 -> 0 | G40: ='SB1'!G136 -> 0 | H40: ='SB1'!H136 -> 0 | I40: ='SB1'!I136 -> -92438570.34 | J40: -92438570.34 | K40: 878190465.7 | L40: ='SB1'!L136 -> 1018189866 | M40: ='SB1'!M136 -> 1066044780
A41: Debt impairment | C41: 600000000 | J41: 0 | K41: 600000000 | L41: 627000000 | M41: 656469000
A42: Depreciation and amortisation | C42: 461615984 | I42: 834194.24 | J42: =SUM(E42:I42) -> 834194.24 | K42: =IF(D42=0,C42+J42,D42+J42) -> 462450178.2 | L42: 481526714 | M42: 503215201
A43: Interest | C43: 40400879.72 | J43: =SUM(E43:I43) -> 0 | K43: =IF(D43=0,C43+J43,D43+J43) -> 40400879.72 | L43: 42218920.59 | M43: 44118763.82
A44: Contracted services | C44: ='SB1'!C94 -> 994887837 | D44: ='SB1'!D94 -> 0 | E44: ='SB1'!E94 -> 0 | F44: ='SB1'!F94 -> 0 | G44: ='SB1'!G94 -> 0 | H44: ='SB1'!H94 -> 0 | I44: ='SB1'!I94 -> -139097277.4 | J44: -139097277.4 | K44: 855790559.6 | L44: ='SB1'!L94 -> 1048521830 | M44: ='SB1'!M94 -> 1096908810
A45: Transfers and subsidies | C45: 51023535.29 | I45: -36396934.25 | J45: -36396934.25 | K45: 14626601.04 | L45: 69096411.35 | M45: 72361126.67
A46: Irrecoverable debts written off | J46: =SUM(E46:I46) -> 0 | K46: =IF(D46=0,C46+J46,D46+J46) -> 0
A47: Operational costs | C47: 216794233 | I47: 2486816.25 | J47: =SUM(E47:I47) -> 2486816.25 | K47: =IF(D47=0,C47+J47,D47+J47) -> 219281049.2 | L47: 225684860 | M47: 236252431
A48: Losses on disposal of Assets | J48: =SUM(E48:I48) -> 0 | K48: =IF(D48=0,C48+J48,D48+J48) -> 0
A49: Other Losses | J49: =SUM(E49:I49) -> 0 | K49: =IF(D49=0,C49+J49,D49+J49) -> 0
A50: Total Expenditure | C50: =SUM(C37:C49) -> 7705199795 | D50: 0 | E50: 0 | F50: 0 | G50: 0 | H50: 0 | I50: -141188404.8 | J50: -141188404.8 | K50: 7564011390 | L50: 8488731143 | M50: 9185270689
A52: Surplus/(Deficit) | C52: =C34-C50 -> 415526330.3 | D52: 0 | E52: 0 | F52: 0 | G52: 0 | H52: 0 | I52: -70394458.47 | J52: -70394458.47 | K52: 345131871.8 | L52: 492854662 | M52: 853188169
A53: Transfers and subsidies - capital (monetary allocations) | C53: 448700054.9 | I53: 87456148.5 | J53: =SUM(E53:I53) -> 87456148.5 | K53: =IF(D53=0,C53+J53,D53+J53) -> 536156203.4 | L53: 321309343.2 | M53: 327881560
A54: Transfers and subsidies - capital (in-kind - all) | J54: =SUM(E54:I54) -> 0 | K54: =IF(D54=0,C54+J54,D54+J54) -> 0
A55: Surplus/(Deficit) before taxation | C55: =SUM(C52:C54) -> 864226385.2 | D55: 0 | E55: 0 | F55: 0 | G55: 0 | H55: 0 | I55: 17061690.03 | J55: 17061690.03 | K55: 881288075.2 | L55: 814164005.2 | M55: 1181069729
A56: Income Tax | J56: =SUM(E56:I56) -> 0 | K56: =IF(D56=0,C56+J56,D56+J56) -> 0
A57: Surplus/(Deficit) after taxation | C57: =C55-C56 -> 864226385.2 | D57: 0 | E57: 0 | F57: 0 | G57: 0 | H57: 0 | I57: 17061690.03 | J57: 17061690.03 | K57: 881288075.2 | L57: 814164005.2 | M57: 1181069729
A58: Share of Surplus/Deficit attributable to Joint Venture
A59: Share of Surplus/Deficit attributable to Minorities | J59: =SUM(E59:I59) -> 0 | K59: =IF(D59=0,C59+J59,D59+J59) -> 0
A60: Surplus/(Deficit) attributable to municipality | C60: =SUM(C57:C59) -> 864226385.2 | D60: 0 | E60: 0 | F60: 0 | G60: 0 | H60: 0 | I60: 17061690.03 | J60: 17061690.03 | K60: 881288075.2 | L60: 814164005.2 | M60: 1181069729
A61: Share of Surplus/Deficit attributable to Associate | J61: =SUM(E61:I61) -> 0 | K61: =IF(D61=0,C61+J61,D61+J61) -> 0
A62: Intercompany/Parent subsidiary transactions | J62: =SUM(E62:I62) -> 0 | K62: =IF(D62=0,C62+J62,D62+J62) -> 0
A63: Surplus/ (Deficit) for the year | B63: 1 | C63: =SUM(C60:C62) -> 864226385.2 | D63: =D60+D62 -> 0 | E63: 0 | F63: =SUM(F60:F62) -> 0 | G63: =SUM(G60:G62) -> 0 | H63: 0 | I63: 17061690.03 | J63: 17061690.03 | K63: 881288075.2 | L63: 814164005.2 | M63: 1181069729
A64: =head27a -> References
A65: 1. Classifications are revenue sources and expenditure type
A66: 2. Detail to be provided in Table SB1
A67: 3. Only complete if a previous adjusted budget has been approved in the same financial year. Reflect most recent adjusted budget.
A68: 4. Additional cash-backed accumulated funds/unspent funds (MFMA section 18(1)(b) and section 28(2)(e)) identified after the Original Budget approved and after annual financial statements audited (note: only where underspending could not reasonably have been foreseen)
A69: 5. Increases of funds approved under MFMA section 31
A70: 6. Adjustments approved in accordance with MFMA section 29
A71: 7. Adjustments to transfers from National or Provincial Government
A72: 8. Adjusts. = 'Other' Adjustments proposed to be approved; including revenue under-collection (MFMA section 28(2)(a)); additional revenue appropriation on existing programmes (section 28(2))(b); projected savings (section 28(2)(d)); error correction (section 28(2)(f))
A73: 9. G = B + C + D + E + F
A74: 10. Adjusted Budget H = (A or A1/2 etc) + G

Sheet B5-Capex
A1: =muni&" - "&_ADJ5&" - "&Date -> Choose name from list - Table B5 Adjustments Capital Expenditure Budget by vote and funding -
A2: =desc -> Description | B2: =head27 -> Ref | C2: =Head2 -> Budget Year 2023/24 | L2: =Head10 -> Budget Year +1 2024/25 | M2: =Head11 -> Budget Year +2 2025/26
C3: =Head6 -> Original Budget | D3: =Head54 -> Prior Adjusted | E3: =Head51 -> Accum. Funds | F3: =Head52 -> Multi-year capital | G3: =Head53 -> Unfore. Unavoid. | H3: =Head55 -> Nat. or Prov. Govt | I3: =Head50 -> Other Adjusts. | J3: =Head56 -> Total Adjusts. | K3: =Head7 -> Adjusted Budget | L3: =Head7 -> Adjusted Budget | M3: =Head7 -> Adjusted Budget
D4: 5 | E4: 6 | F4: 7 | G4: 8 | H4: 9 | I4: 10 | J4: 11 | K4: 12
A5: R thousands | C5: A | D5: A1 | E5: B | F5: C | G5: D | H5: E | I5: F | J5: G | K5: H
A6: Capital expenditure - Vote
A7: Multi-year expenditure to be adjusted | B7: 2
A8: =B5B!A8 -> Vote 1 - City Manager | C8: =B5B!C8 -> 0 | D8: =B5B!D8 -> 0 | E8: =B5B!E8 -> 0 | F8: =B5B!F8 -> 0 | G8: =B5B!G8 -> 0 | H8: =B5B!H8 -> 0 | I8: =B5B!I8 -> 0 | J8: =SUM(E8:I8) -> 0 | K8: =IF(D8=0,C8+J8,D8+J8) -> 0 | L8: =B5B!L8 -> 0 | M8: =B5B!M8 -> 0
A9: =B5B!A19 -> Vote 2 - City Finance | C9: =B5B!C19 -> 30000000 | D9: =B5B!D19 -> 0 | E9: =B5B!E19 -> 0 | F9: =B5B!F19 -> 0 | G9: =B5B!G19 -> 0 | H9: =B5B!H19 -> 0 | I9: =B5B!I19 -> 0 | J9: =SUM(E9:I9) -> 0 | K9: 30000000 | L9: =B5B!L19 -> 30000000 | M9: =B5B!M19 -> 30000000
A10: =B5B!A30 -> Vote 3 - Corporate Services | C10: =B5B!C30 -> 10000000 | D10: =B5B!D30 -> 0 | E10: =B5B!E30 -> 0 | F10: =B5B!F30 -> 0 | G10: =B5B!G30 -> 0 | H10: =B5B!H30 -> 0 | I10: =B5B!I30 -> -6682000 | J10: -6682000 | K10: 3318000 | L10: =B5B!L30 -> 10000000 | M10: =B5B!M30 -> 10000000
A11: =B5B!A41 -> Vote 4 - Community Services and Social Equity | C11: =B5B!C41 -> 24886499.05 | D11: =B5B!D41 -> 0 | E11: =B5B!E41 -> 0 | F11: =B5B!F41 -> 0 | G11: =B5B!G41 -> 0 | H11: =B5B!H41 -> 0 | I11: =B5B!I41 -> 43237068.95 | J11: 43237068.95 | K11: 68123568 | L11: =B5B!L41 -> 17455350 | M11: =B5B!M41 -> 26864880
A12: =B5B!A52 -> Vote 5 - Infrastructure Services | C12: =B5B!C52 -> 318102140 | D12: =B5B!D52 -> 0 | E12: =B5B!E52 -> 0 | F12: =B5B!F52 -> 0 | G12: =B5B!G52 -> 0 | H12: =B5B!H52 -> 0 | I12: =B5B!I52 -> -80107646 | J12: -80107646 | K12: 237994494 | L12: =B5B!L52 -> 342432645 | M12: =B5B!M52 -> 305181156.1
A13: =B5B!A63 -> Vote 6 - Sustainable Development and City Enterprises | C13: =B5B!C63 -> 144745414.9 | D13: =B5B!D63 -> 0 | E13: =B5B!E63 -> 0 | F13: =B5B!F63 -> 0 | G13: =B5B!G63 -> 0 | H13: =B5B!H63 -> 0 | I13: =B5B!I63 -> 122221520.5 | J13: 122221520.5 | K13: 266966935.4 | L13: =B5B!L63 -> 6977496.2 | M13: =B5B!M63 -> 700000
A14: =B5B!A74 -> Vote 7 - Electricity | C14: =B5B!C74 -> 175400000 | D14: =B5B!D74 -> 0 | E14: =B5B!E74 -> 0 | F14: =B5B!F74 -> 0 | G14: =B5B!G74 -> 0 | H14: =B5B!H74 -> 0 | I14: =B5B!I74 -> -33425050 | J14: -33425050 | K14: 141974950 | L14: =B5B!L74 -> 128967852 | M14: =B5B!M74 -> 29632523.9
A15: =B5B!A85 -> Vote 8 - [NAME OF VOTE 8] | C15: =B5B!C85 -> 0 | D15: =B5B!D85 -> 0 | E15: =B5B!E85 -> 0 | F15: =B5B!F85 -> 0 | G15: =B5B!G85 -> 0 | H15: =B5B!H85 -> 0 | I15: =B5B!I85 -> 0 | J15: 0 | K15: 0 | L15: =B5B!L85 -> 0 | M15: =B5B!M85 -> 0
A16: =B5B!A96 -> Vote 9 - [NAME OF VOTE 9] | C16: =B5B!C96 -> 0 | D16: =B5B!D96 -> 0 | E16: =B5B!E96 -> 0 | F16: =B5B!F96 -> 0 | G16: =B5B!G96 -> 0 | H16: =B5B!H96 -> 0 | I16: =B5B!I96 -> 0 | J16: 0 | K16: 0 | L16: =B5B!L96 -> 0 | M16: =B5B!M96 -> 0
A17: =B5B!A107 -> Vote 10 - [NAME OF VOTE 10] | C17: =B5B!C107 -> 0 | D17: =B5B!D107 -> 0 | E17: =B5B!E107 -> 0 | F17: =B5B!F107 -> 0 | G17: =B5B!G107 -> 0 | H17: =B5B!H107 -> 0 | I17: =B5B!I107 -> 0 | J17: 0 | K17: 0 | L17: =B5B!L107 -> 0 | M17: =B5B!M107 -> 0
A18: =B5B!A118 -> Vote 11 - [NAME OF VOTE 11] | C18: =B5B!C118 -> 0 | D18: =B5B!D118 -> 0 | E18: =B5B!E118 -> 0 | F18: =B5B!F118 -> 0 | G18: =B5B!G118 -> 0 | H18: =B5B!H118 -> 0 | I18: =B5B!I118 -> 0 | J18: 0 | K18: 0 | L18: =B5B!L118 -> 0 | M18: =B5B!M118 -> 0
A19: =B5B!A129 -> Vote 12 - [NAME OF VOTE 12] | C19: =B5B!C129 -> 0 | D19: =B5B!D129 -> 0 | E19: =B5B!E129 -> 0 | F19: =B5B!F129 -> 0 | G19: =B5B!G129 -> 0 | H19: =B5B!H129 -> 0 | I19: =B5B!I129 -> 0 | J19: 0 | K19: 0 | L19: =B5B!L129 -> 0 | M19: =B5B!M129 -> 0
A20: =B5B!A140 -> Vote 13 - [NAME OF VOTE 13] | C20: =B5B!C140 -> 0 | D20: =B5B!D140 -> 0 | E20: =B5B!E140 -> 0 | F20: =B5B!F140 -> 0 | G20: =B5B!G140 -> 0 | H20: =B5B!H140 -> 0 | I20: =B5B!I140 -> 0 | J20: 0 | K20: 0 | L20: =B5B!L140 -> 0 | M20: =B5B!M140 -> 0
A21: =B5B!A151 -> Vote 14 - [NAME OF VOTE 14] | C21: =B5B!C151 -> 0 | D21: =B5B!D151 -> 0 | E21: =B5B!E151 -> 0 | F21: =B5B!F151 -> 0 | G21: =B5B!G151 -> 0 | H21: =B5B!H151 -> 0 | I21: =B5B!I151 -> 0 | J21: 0 | K21: 0 | L21: =B5B!L151 -> 0 | M21: =B5B!M151 -> 0
A22: =B5B!A162 -> Vote 15 - [NAME OF VOTE 15] | C22: =B5B!C162 -> 0 | D22: =B5B!D162 -> 0 | E22: =B5B!E162 -> 0 | F22: =B5B!F162 -> 0 | G22: =B5B!G162 -> 0 | H22: =B5B!H162 -> 0 | I22: =B5B!I162 -> 0 | J22: 0 | K22: 0 | L22: =B5B!L162 -> 0 | M22: =B5B!M162 -> 0
A23: Capital multi-year expenditure sub-total | B23: 3 | C23: =SUM(C8:C22) -> 703134054 | D23: =SUM(D8:D22) -> 0 | E23: 0 | F23: 0 | G23: 0 | H23: 0 | I23: 45243893.45 | J23: =SUM(J8:J22) -> 45243893.45 | K23: =SUM(K8:K22) -> 748377947.5 | L23: =SUM(L8:L22) -> 535833343.2 | M23: =SUM(M8:M22) -> 402378560
A25: Single-year expenditure to be adjusted | B25: 2
A26: =B5B!A177 -> Vote 1 - City Manager | C26: =B5B!C177 -> 5000000 | D26: =B5B!D177 -> 0 | E26: =B5B!E177 -> 0 | F26: =B5B!F177 -> 0 | G26: =B5B!G177 -> 0 | H26: =B5B!H177 -> 0 | I26: =B5B!I177 -> 2700000 | J26: =SUM(E26:I26) -> 2700000 | K26: =IF(D26=0,C26+J26,D26+J26) -> 7700000 | L26: =B5B!L177 -> 0 | M26: =B5B!M177 -> 0
A27: =B5B!A188 -> Vote 2 - City Finance | C27: =B5B!C188 -> 0 | D27: =B5B!D188 -> 0 | E27: =B5B!E188 -> 0 | F27: =B5B!F188 -> 0 | G27: =B5B!G188 -> 0 | H27: =B5B!H188 -> 0 | I27: =B5B!I188 -> 0 | J27: 0 | K27: 0 | L27: =B5B!L188 -> 0 | M27: =B5B!M188 -> 0
A28: =B5B!A199 -> Vote 3 - Corporate Services | C28: =B5B!C199 -> 10000000 | D28: =B5B!D199 -> 0 | E28: =B5B!E199 -> 0 | F28: =B5B!F199 -> 0 | G28: =B5B!G199 -> 0 | H28: =B5B!H199 -> 0 | I28: =B5B!I199 -> 7000000 | J28: 7000000 | K28: 17000000 | L28: =B5B!L199 -> 10000000 | M28: =B5B!M199 -> 10000000
A29: =B5B!A210 -> Vote 4 - Community Services and Social Equity | C29: =B5B!C210 -> 4000000 | D29: =B5B!D210 -> 0 | E29: =B5B!E210 -> 0 | F29: =B5B!F210 -> 0 | G29: =B5B!G210 -> 0 | H29: =B5B!H210 -> 0 | I29: =B5B!I210 -> 229800 | J29: 229800 | K29: 4229800 | L29: =B5B!L210 -> 0 | M29: =B5B!M210 -> 0
A30: =B5B!A221 -> Vote 5 - Infrastructure Services | C30: =B5B!C221 -> 5000000 | D30: =B5B!D221 -> 0 | E30: =B5B!E221 -> 0 | F30: =B5B!F221 -> 0 | G30: =B5B!G221 -> 0 | H30: =B5B!H221 -> 0 | I30: =B5B!I221 -> 14850000 | J30: 14850000 | K30: 19850000 | L30: =B5B!L221 -> 5000000 | M30: =B5B!M221 -> 5000000
A31: =B5B!A232 -> Vote 6 - Sustainable Development and City Enterprises | C31: =B5B!C232 -> 38026000 | D31: =B5B!D232 -> 0 | E31: =B5B!E232 -> 0 | F31: =B5B!F232 -> 0 | G31: =B5B!G232 -> 0 | H31: =B5B!H232 -> 0 | I31: =B5B!I232 -> -36639794 | J31: -36639794 | K31: 1386206 | L31: =B5B!L232 -> 30476000 | M31: =B5B!M232 -> 30503000
A32: =B5B!A243 -> Vote 7 - Electricity | C32: =B5B!C243 -> 3600000 | D32: =B5B!D243 -> 0 | E32: =B5B!E243 -> 0 | F32: =B5B!F243 -> 0 | G32: =B5B!G243 -> 0 | H32: =B5B!H243 -> 0 | I32: =B5B!I243 -> 400000 | J32: 400000 | K32: 4000000 | L32: =B5B!L243 -> 0 | M32: =B5B!M243 -> 0
A33: =B5B!A254 -> Vote 8 - [NAME OF VOTE 8] | C33: =B5B!C254 -> 0 | D33: =B5B!D254 -> 0 | E33: =B5B!E254 -> 0 | F33: =B5B!F254 -> 0 | G33: =B5B!G254 -> 0 | H33: =B5B!H254 -> 0 | I33: =B5B!I254 -> 0 | J33: 0 | K33: 0 | L33: =B5B!L254 -> 0 | M33: =B5B!M254 -> 0
A34: =B5B!A265 -> Vote 9 - [NAME OF VOTE 9] | C34: =B5B!C265 -> 0 | D34: =B5B!D265 -> 0 | E34: =B5B!E265 -> 0 | F34: =B5B!F265 -> 0 | G34: =B5B!G265 -> 0 | H34: =B5B!H265 -> 0 | I34: =B5B!I265 -> 0 | J34: 0 | K34: 0 | L34: =B5B!L265 -> 0 | M34: =B5B!M265 -> 0
A35: =B5B!A276 -> Vote 10 - [NAME OF VOTE 10] | C35: =B5B!C276 -> 0 | D35: =B5B!D276 -> 0 | E35: =B5B!E276 -> 0 | F35: =B5B!F276 -> 0 | G35: =B5B!G276 -> 0 | H35: =B5B!H276 -> 0 | I35: =B5B!I276 -> 0 | J35: 0 | K35: 0 | L35: =B5B!L276 -> 0 | M35: =B5B!M276 -> 0
A36: =B5B!A287 -> Vote 11 - [NAME OF VOTE 11] | C36: =B5B!C287 -> 0 | D36: =B5B!D287 -> 0 | E36: =B5B!E287 -> 0 | F36: =B5B!F287 -> 0 | G36: =B5B!G287 -> 0 | H36: =B5B!H287 -> 0 | I36: =B5B!I287 -> 0 | J36: 0 | K36: 0 | L36: =B5B!L287 -> 0 | M36: =B5B!M287 -> 0
A37: =B5B!A298 -> Vote 12 - [NAME OF VOTE 12] | C37: =B5B!C298 -> 0 | D37: =B5B!D298 -> 0 | E37: =B5B!E298 -> 0 | F37: =B5B!F298 -> 0 | G37: =B5B!G298 -> 0 | H37: =B5B!H298 -> 0 | I37: =B5B!I298 -> 0 | J37: 0 | K37: =IF(D37=0,C37+J37,D37+J37) -> 0 | L37: =B5B!L298 -> 0 | M37: =B5B!M298 -> 0
A38: =B5B!A309 -> Vote 13 - [NAME OF VOTE 13] | C38: =B5B!C309 -> 0 | D38: =B5B!D309 -> 0 | E38: =B5B!E309 -> 0 | F38: =B5B!F309 -> 0 | G38: =B5B!G309 -> 0 | H38: =B5B!H309 -> 0 | I38: =B5B!I309 -> 0 | J38: 0 | K38: 0 | L38: =B5B!L309 -> 0 | M38: =B5B!M309 -> 0
A39: =B5B!A320 -> Vote 14 - [NAME OF VOTE 14] | C39: =B5B!C320 -> 0 | D39: =B5B!D320 -> 0 | E39: =B5B!E320 -> 0 | F39: =B5B!F320 -> 0 | G39: =B5B!G320 -> 0 | H39: =B5B!H320 -> 0 | I39: =B5B!I320 -> 0 | J39: 0 | K39: 0 | L39: =B5B!L320 -> 0 | M39: =B5B!M320 -> 0
A40: =B5B!A331 -> Vote 15 - [NAME OF VOTE 15] | C40: =B5B!C331 -> 0 | D40: =B5B!D331 -> 0 | E40: =B5B!E331 -> 0 | F40: =B5B!F331 -> 0 | G40: =B5B!G331 -> 0 | H40: =B5B!H331 -> 0 | I40: =B5B!I331 -> 0 | J40: 0 | K40: 0 | L40: =B5B!L331 -> 0 | M40: =B5B!M331 -> 0
A41: Capital single-year expenditure sub-total | C41: =SUM(C26:C40) -> 65626000 | D41: =SUM(D26:D40) -> 0 | E41: 0 | F41: 0 | G41: 0 | H41: 0 | I41: -11459994 | J41: =SUM(J26:J40) -> -11459994 | K41: =SUM(K26:K40) -> 54166006 | L41: =SUM(L26:L40) -> 45476000 | M41: =SUM(M26:M40) -> 45503000
A42: Total Capital Expenditure - Vote | C42: =C41+C23 -> 768760054 | D42: =D41+D23 -> 0 | E42: 0 | F42: 0 | G42: 0 | H42: 0 | I42: 33783899.45 | J42: =J23+J41 -> 33783899.45 | K42: =K23+K41 -> 802543953.5 | L42: =L41+L23 -> 581309343.2 | M42: =M41+M23 -> 447881560
A44: Capital Expenditure - Functional
A45: Governance and administration | C45: =SUM(C46:C48) -> 51000000 | D45: 0 | E45: 0 | F45: 0 | G45: 0 | H45: 0 | I45: 7773054 | J45: =SUM(J46:J48) -> 7773054 | K45: 58773054 | L45: 50000000 | M45: 50000000
A46: Executive and council | C46: 1000000 | I46: 6700000 | J46: =SUM(E46:I46) -> 6700000 | K46: =IF(D46=0,C46+J46,D46+J46) -> 7700000 | L46: 0 | M46: 0
A47: Finance and administration | C47: 50000000 | I47: 1073054 | J47: =SUM(E47:I47) -> 1073054 | K47: =IF(D47=0,C47+J47,D47+J47) -> 51073054 | L47: 50000000 | M47: 50000000
A48: Internal audit | C48: 0 | E48: 0 | J48: =SUM(E48:I48) -> 0 | K48: =IF(D48=0,C48+J48,D48+J48) -> 0 | L48: 0 | M48: 0
A49: Community and public safety | C49: =SUM(C50:C54) -> 169251914 | D49: 0 | E49: 0 | F49: 0 | G49: 0 | H49: 0 | I49: 21314603.53 | J49: =SUM(J50:J54) -> 21314603.53 | K49: 190566517.5 | L49: 19908846.2 | M49: 23067880
A50: Community and social services | C50: 20307499.05 | I50: 15594274.95 | J50: =SUM(E50:I50) -> 15594274.95 | K50: =IF(D50=0,C50+J50,D50+J50) -> 35901774 | L50: 12931350 | M50: 22367880
A51: Sport and recreation | C51: 0 | I51: 8400000 | J51: =SUM(E51:I51) -> 8400000 | K51: =IF(D51=0,C51+J51,D51+J51) -> 8400000 | L51: 0 | M51: 0
A52: Public safety | C52: 4199000 | I52: -3227000 | J52: =SUM(E52:I52) -> -3227000 | K52: =IF(D52=0,C52+J52,D52+J52) -> 972000 | L52: 0 | M52: 0
A53: Housing | C53: 144745414.9 | I53: 547328.58 | J53: =SUM(E53:I53) -> 547328.58 | K53: =IF(D53=0,C53+J53,D53+J53) -> 145292743.5 | L53: 6977496.2 | M53: 700000
A54: Health | C54: 0 | E54: 0 | J54: =SUM(E54:I54) -> 0 | K54: =IF(D54=0,C54+J54,D54+J54) -> 0 | L54: 0 | M54: 0
A55: Economic and environmental services | C55: =SUM(C56:C58) -> 107006000 | D55: 0 | E55: 0 | F55: 0 | G55: 0 | H55: 0 | I55: 85353032.92 | J55: 85353032.92 | K55: 192359032.9 | L55: 121091846 | M55: 133492336.1
A56: Planning and development | C56: 38606000 | I56: 79197032.92 | J56: =SUM(E56:I56) -> 79197032.92 | K56: =IF(D56=0,C56+J56,D56+J56) -> 117803032.9 | L56: 30000000 | M56: 30000000
A57: Road transport | C57: 68400000 | I57: 6156000 | J57: =SUM(E57:I57) -> 6156000 | K57: =IF(D57=0,C57+J57,D57+J57) -> 74556000 | L57: 91091846 | M57: 103492336.1
A58: Environmental protection | C58: 0 | E58: 0 | J58: =SUM(E58:I58) -> 0 | K58: =IF(D58=0,C58+J58,D58+J58) -> 0 | L58: 0 | M58: 0
A59: Trading services | C59: =SUM(C60:C63) -> 438702140 | D59: =SUM(D60:D63) -> 0 | E59: 0 | F59: 0 | G59: 0 | H59: 0 | I59: =SUM(I60:I63) -> -81670950 | J59: =SUM(J60:J63) -> -81670950 | K59: 357031190 | L59: 390308651 | M59: 241321343.9
A60: Energy sources | C60: 179000000 | I60: -33025050 | J60: =SUM(E60:I60) -> -33025050 | K60: =IF(D60=0,C60+J60,D60+J60) -> 145974950 | L60: 128967852 | M60: 29632523.9
A61: Water management | C61: 133924500 | I61: -20044900 | J61: =SUM(E61:I61) -> -20044900 | K61: =IF(D61=0,C61+J61,D61+J61) -> 113879600 | L61: 131163235 | M61: 105099423
A62: Waste water management | C62: 120777640 | I62: -48601000 | J62: =SUM(E62:I62) -> -48601000 | K62: =IF(D62=0,C62+J62,D62+J62) -> 72176640 | L62: 125177564 | M62: 101589397
A63: Waste management | C63: 5000000 | I63: 20000000 | J63: =SUM(E63:I63) -> 20000000 | K63: =IF(D63=0,C63+J63,D63+J63) -> 25000000 | L63: 5000000 | M63: 5000000
A64: Other | C64: 2800000 | I64: 1014159 | J64: =SUM(E64:I64) -> 1014159 | K64: =IF(D64=0,C64+J64,D64+J64) -> 3814159 | L64: 0 | M64: 0
A65: Total Capital Expenditure - Functional | B65: 3 | C65: =C45+C49+C55+C59+C64 -> 768760054 | D65: =D45+D49+D55+D59+D64 -> 0 | E65: 0 | F65: 0 | G65: 0 | H65: 0 | I65: =I45+I49+I55+I59+I64 -> 33783899.45 | J65: 33783899.45 | K65: 802543953.5 | L65: 581309343.2 | M65: 447881560
A67: Funded by:
A68: National Government | C68: 312534640 | I68: 99680376.95 | J68: =SUM(E68:I68) -> 99680376.95 | K68: =IF(D68=0,C68+J68,D68+J68) -> 412215016.9 | L68: 320133343.2 | M68: 326678560
A69: Provincial Government | C69: 136165414.9 | I69: -12224228.45 | J69: =SUM(E69:I69) -> -12224228.45 | K69: =IF(D69=0,C69+J69,D69+J69) -> 123941186.5 | L69: 1176000 | M69: 1203000
A70: District Municipality | J70: =SUM(E70:I70) -> 0 | K70: =IF(D70=0,C70+J70,D70+J70) -> 0
A71: Transfers and subsidies - capital (monetary allocations) (Nat / Prov Departm Agencies, Households, Non-profit Institutions, Private Enterprises, Public Corporatons, Higher Educ Institutions) | J71: =SUM(E71:I71) -> 0 | K71: =IF(D71=0,C71+J71,D71+J71) -> 0
A72: Transfers recognised - capital | B72: 4 | C72: =SUM(C68:C71) -> 448700054.9 | D72: 0 | E72: 0 | F72: 0 | G72: 0 | H72: 0 | I72: 87456148.5 | J72: 87456148.5 | K72: 536156203.4 | L72: 321309343.2 | M72: 327881560
A74: Borrowing | C74: 200000000 | I74: -83725050 | J74: =SUM(E74:I74) -> -83725050 | K74: =IF(D74=0,C74+J74,D74+J74) -> 116274950 | L74: 150000000 | M74: 0
A75: Internally generated funds | C75: 120059999 | I75: 30052800.95 | J75: =SUM(E75:I75) -> 30052800.95 | K75: =IF(D75=0,C75+J75,D75+J75) -> 150112800 | L75: 110000000 | M75: 120000000
A76: Total Capital Funding | C76: =+C72+C74+C75 -> 768760054 | D76: =+D72+D74+D75 -> 0 | E76: 0 | F76: 0 | G76: 0 | H76: 0 | I76: 33783899.45 | J76: 33783899.45 | K76: 802543953.5 | L76: 581309343.2 | M76: 447881560
A77: =head27a -> References
A78: 1. Municipalities may choose to appropriate for capital expenditure for three years or for one year (if one year appropriation projected expenditure required for yr2 and yr3).
A79: 2. Include capital component of PPP unitary payment. Note that capital transfers are only appropriated to municipalities for the budget year
A80: 3. Capital expenditure by standard classification must reconcile to the appropriations by vote
A81: 4. Must reconcile to supporting table SB7 and to Adjustments Budget Financial Performance (revenue and expenditure)
A82: 5. Only complete if a previous adjusted budget has been approved in the same financial year. Reflect most recent adjusted budget.
A83: 6. Additional cash-backed accumulated funds/unspent funds (MFMA section 18(1)(b) and section 28(2)(e)) identified after the Original Budget approved and after annual financial statements audited (note: only where underspending could not reasonably have been foreseen)
A84: 7. Increases of funds approved under MFMA section 31
A85: 8. Adjustments approved in accordance with MFMA section 29
A86: 9. Adjustments to transfers from National or Provincial Government
A87: 10. Adjusts. = 'Other' Adjustments proposed to be approved; including revenue under-collection (MFMA section 28(2)(a)); additional revenue appropriation on existing programmes (section 28(2))(b); projected savings (section 28(2)(d)); error correction (section 28(2)(f))
A88: 11. G = B + C + D + E + F
A89: 12. Adjusted Budget H = (A or A1/2 etc) + G
A91: check balance | C91: =C65-C76 -> 0 | D91: =D65-D76 -> 0 | E91: =E65-E76 -> 0 | H91: =H65-H76 -> 0 | I91: =I65-I76 -> 5.960464478e-08 | J91: =J65-J76 -> 5.960464478e-08 | K91: =K65-K76 -> 0 | L91: =L65-L76 -> 0 | M91: =K23-K76 -> -54166006

Sheet B5B
A1: =muni&" - "&_ADJ5&" - B"&" - "&Date -> Choose name from list - Table B5 Adjustments Capital Expenditure Budget by vote and funding - B -
A2: =Vdesc -> Vote Description | B2: =head27 -> Ref | C2: =Head2 -> Budget Year 2023/24 | L2: =Head10 -> Budget Year +1 2024/25 | M2: =Head11 -> Budget Year +2 2025/26
C3: =Head6 -> Original Budget | D3: =Head54 -> Prior Adjusted | E3: =Head51 -> Accum. Funds | F3: =Head52 -> Multi-year capital | G3: =Head53 -> Unfore. Unavoid. | H3: =Head55 -> Nat. or Prov. Govt | I3: =Head50 -> Other Adjusts. | J3: =Head56 -> Total Adjusts. | K3: =Head7 -> Adjusted Budget | L3: =Head7 -> Adjusted Budget | M3: =Head7 -> Adjusted Budget
A4: [Insert departmental structure etc] | D4: 3 | E4: 4 | F4: 5 | G4: 6 | H4: 7 | I4: 8 | J4: 9 | K4: 10
A5: R thousands | C5: A | D5: A1 | E5: B | F5: C | G5: D | H5: E | I5: F | J5: G | K5: H
A6: Capital expenditure - Municipal Vote
A7: Multi-year expenditure appropriation | B7: 2
A8: ='Org structure'!A2 -> Vote 1 - City Manager | C8: =SUM(C9:C18) -> 0 | D8: =SUM(D9:D18) -> 0 | E8: 0 | F8: 0 | G8: 0 | H8: 0 | I8: 0 | J8: =SUM(E8:I8) -> 0 | K8: =IF(D8=0,C8+J8,D8+J8) -> 0 | L8: =SUM(L9:L18) -> 0 | M8: =SUM(M9:M18) -> 0
A9: ='Org structure'!E3 -> 1.1 - Internal Audit and Compliance | J9: 0 | K9: 0
A10: ='Org structure'!E4 -> 1.2 - Office of the City Manager | J10: 0 | K10: 0
A11: ='Org structure'!E5 -> 1.3 - Political Support | J11: 0 | K11: 0
A12: ='Org structure'!E6 -> 1.4 - Strategic Planning | J12: 0 | K12: 0
A13: ='Org structure'!E7 -> 0 | J13: 0 | K13: 0
A14: ='Org structure'!E8 -> 0 | J14: 0 | K14: 0
A15: ='Org structure'!E9 -> 0 | J15: 0 | K15: 0
A16: ='Org structure'!E10 -> 0 | J16: 0 | K16: 0
A17: ='Org structure'!E11 -> 0 | J17: 0 | K17: 0
A18: ='Org structure'!E12 -> 0 | J18: 0 | K18: 0
A19: ='Org structure'!A3 -> Vote 2 - City Finance | C19: =SUM(C20:C29) -> 30000000 | D19: =SUM(D20:D29) -> 0 | E19: 0 | F19: 0 | G19: 0 | H19: 0 | I19: 0 | J19: 0 | K19: 30000000 | L19: =SUM(L20:L29) -> 30000000 | M19: =SUM(M20:M29) -> 30000000
A20: ='Org structure'!E14 -> 2.1 - Asset Management | C20: 0 | J20: 0 | K20: 0 | L20: 0 | M20: 0
A21: ='Org structure'!E15 -> 2.2 - Budget and Treasury Management | C21: 30000000 | J21: 0 | K21: 30000000 | L21: 30000000 | M21: 30000000
A22: ='Org structure'!E16 -> 2.3 - Expenditure Management | C22: 0 | J22: 0 | K22: 0 | L22: 0 | M22: 0
A23: ='Org structure'!E17 -> 2.4 - Revenue Management | C23: 0 | J23: 0 | K23: 0 | L23: 0 | M23: 0
A24: ='Org structure'!E18 -> 2.5 - Supply Chain Management | C24: 0 | J24: 0 | K24: 0 | L24: 0 | M24: 0
A25: ='Org structure'!E19 -> 0 | J25: 0 | K25: 0
A26: ='Org structure'!E20 -> 0 | J26: 0 | K26: 0
A27: ='Org structure'!E21 -> 0 | J27: 0 | K27: 0
A28: ='Org structure'!E22 -> 0 | J28: 0 | K28: 0
A29: ='Org structure'!E23 -> 0 | J29: 0 | K29: 0
A30: ='Org structure'!A4 -> Vote 3 - Corporate Services | C30: =SUM(C31:C40) -> 10000000 | D30: =SUM(D31:D40) -> 0 | E30: 0 | F30: 0 | G30: 0 | H30: 0 | I30: -6682000 | J30: -6682000 | K30: 3318000 | L30: =SUM(L31:L40) -> 10000000 | M30: =SUM(M31:M40) -> 10000000
A31: ='Org structure'!E25 -> Human Resources Management | C31: 0 | J31: 0 | K31: 0 | L31: 0 | M31: 0
A32: ='Org structure'!E26 -> Information Technology | C32: 10000000 | I32: -7000000 | J32: -7000000 | K32: 3000000 | L32: 10000000 | M32: 10000000
A33: ='Org structure'!E27 -> Legal Services | C33: 0 | J33: 0 | K33: 0 | L33: 0 | M33: 0
A34: ='Org structure'!E28 -> Secretariat and Auxiliary Services | C34: 0 | I34: 318000 | J34: 318000 | K34: 318000 | L34: 0 | M34: 0
A35: ='Org structure'!E29 -> General Manager: Corporate Service | C35: 0 | J35: 0 | K35: 0 | L35: 0 | M35: 0
A36: ='Org structure'!E30 -> 0 | J36: 0 | K36: 0
A37: ='Org structure'!E31 -> 0 | J37: 0 | K37: 0
A38: ='Org structure'!E32 -> 0 | J38: 0 | K38: 0
A39: ='Org structure'!E33 -> 0 | J39: 0 | K39: 0
A40: ='Org structure'!E34 -> 0 | J40: 0 | K40: 0
A41: ='Org structure'!A5 -> Vote 4 - Community Services and Social Equity | C41: =SUM(C42:C51) -> 24886499.05 | D41: =SUM(D42:D51) -> 0 | E41: 0 | F41: 0 | G41: 0 | H41: 0 | I41: 43237068.95 | J41: 43237068.95 | K41: 68123568 | L41: =SUM(L42:L51) -> 17455350 | M41: =SUM(M42:M51) -> 26864880
A42: ='Org structure'!E36 -> 4.1 - Area Based Management | C42: 0 | J42: 0 | K42: 0 | L42: 0 | M42: 0
A43: ='Org structure'!E37 -> 4.2 - Public Safety, Emergency Services and Enforcement | C43: 0 | I43: 665000 | J43: 665000 | K43: 665000 | L43: 0 | M43: 0
A44: ='Org structure'!E38 -> 4.3 - Recreation and Facilities | C44: 19886499.05 | I44: 22572068.95 | J44: 22572068.95 | K44: 42458568 | L44: 12455350 | M44: 21864880
A45: ='Org structure'!E39 -> 4.4 - Waste Management | C45: 5000000 | I45: 20000000 | J45: 20000000 | K45: 25000000 | L45: 5000000 | M45: 5000000
A46: ='Org structure'!E40 -> 0 | J46: 0 | K46: 0
A47: ='Org structure'!E41 -> 0 | J47: 0 | K47: 0
A48: ='Org structure'!E42 -> 0 | J48: 0 | K48: 0
A49: ='Org structure'!E43 -> 0 | J49: 0 | K49: 0
A50: ='Org structure'!E44 -> 0 | J50: 0 | K50: 0
A51: ='Org structure'!E45 -> 0 | J51: 0 | K51: 0
A52: ='Org structure'!A6 -> Vote 5 - Infrastructure Services | C52: =SUM(C53:C62) -> 318102140 | D52: =SUM(D53:D62) -> 0 | E52: 0 | F52: 0 | G52: 0 | H52: 0 | I52: -80107646 | J52: -80107646 | K52: 237994494 | L52: =SUM(L53:L62) -> 342432645 | M52: =SUM(M53:M62) -> 305181156.1
A53: ='Org structure'!E47 -> 5.1 - Project Management Office | C53: 0 | I53: 138254 | J53: 138254 | K53: 138254 | L53: 0 | M53: 0
A54: ='Org structure'!E48 -> 5.2 - Roads and Transportation | C54: 63400000 | I54: 4800000 | J54: 4800000 | K54: 68200000 | L54: 91091846 | M54: 103492336.1
A55: ='Org structure'!E49 -> 5.3 - Water and Sanitation | C55: 254702140 | I55: -85045900 | J55: -85045900 | K55: 169656240 | L55: 251340799 | M55: 201688820
A56: ='Org structure'!E50 -> 5.4 - General Manager: Infrastructure | C56: 0 | E56: 0 | J56: 0 | K56: 0 | L56: 0 | M56: 0
A57: ='Org structure'!E51 -> 0 | J57: 0 | K57: 0
A58: ='Org structure'!E52 -> 0 | J58: 0 | K58: 0
A59: ='Org structure'!E53 -> 0 | J59: 0 | K59: 0
A60: ='Org structure'!E54 -> 0 | J60: 0 | K60: 0
A61: ='Org structure'!E55 -> 0 | J61: 0 | K61: 0
A62: ='Org structure'!E56 -> 0 | J62: 0 | K62: 0
A63: ='Org structure'!A7 -> Vote 6 - Sustainable Development and City Enterprises | C63: =SUM(C64:C73) -> 144745414.9 | D63: =SUM(D64:D73) -> 0 | E63: 0 | F63: 0 | G63: 0 | H63: 0 | I63: 122221520.5 | J63: 122221520.5 | K63: 266966935.4 | L63: =SUM(L64:L73) -> 6977496.2 | M63: =SUM(M64:M73) -> 700000
A64: ='Org structure'!E58 -> 6.1 - City Entities | C64: 0 | I64: 4671159 | J64: 4671159 | K64: 4671159 | L64: 0 | M64: 0
A65: ='Org structure'!E59 -> 6.2 - Development Services | C65: 0 | I65: 31444183.78 | J65: 31444183.78 | K65: 31444183.78 | L65: 0 | M65: 0
A66: ='Org structure'!E60 -> 6.3 - Human Settlement Development | C66: 144745414.9 | I66: 147328.58 | J66: 147328.58 | K66: 144892743.5 | L66: 6977496.2 | M66: 700000
A67: ='Org structure'!E61 -> 6.4 - Town Planning | C67: 0 | I67: 85958849.14 | J67: 85958849.14 | K67: 85958849.14 | L67: 0 | M67: 0
A68: ='Org structure'!E62 -> 6.5 - General Manager: Sustainable Development and City Enterprises | C68: 0 | E68: 0 | J68: 0 | K68: 0 | L68: 0 | M68: 0
A69: ='Org structure'!E63 -> 0 | J69: 0 | K69: 0
A70: ='Org structure'!E64 -> 0 | J70: 0 | K70: 0
A71: ='Org structure'!E65 -> 0 | J71: 0 | K71: 0
A72: ='Org structure'!E66 -> 0 | J72: =SUM(E72:I72) -> 0 | K72: =IF(D72=0,C72+J72,D72+J72) -> 0
A73: ='Org structure'!E67 -> 0 | J73: 0 | K73: 0
A74: ='Org structure'!A8 -> Vote 7 - Electricity | C74: =SUM(C75:C84) -> 175400000 | D74: =SUM(D75:D84) -> 0 | E74: 0 | F74: 0 | G74: 0 | H74: 0 | I74: -33425050 | J74: -33425050 | K74: 141974950 | L74: =SUM(L75:L84) -> 128967852 | M74: =SUM(M75:M84) -> 29632523.9
A75: ='Org structure'!E69 -> 7.1 Electricity planning | C75: 155400000 | I75: -20425050 | J75: -20425050 | K75: 134974950 | L75: 8967852 | M75: 14318523.9
A76: ='Org structure'!E70 -> 7.2 Methods and Standards | C76: 0 | J76: 0 | K76: 0 | L76: 0 | M76: 0
A77: ='Org structure'!E71 -> 7.3 Operations and Maintenance | C77: 0 | J77: 0 | K77: 0 | L77: 0 | M77: 0
A78: ='Org structure'!E72 -> 7.4 Revenue Management | C78: 20000000 | I78: -13000000 | J78: -13000000 | K78: 7000000 | L78: 120000000 | M78: 15314000
A79: ='Org structure'!E73 -> 7.5 General Manager Electricity | C79: 0 | J79: 0 | K79: 0 | L79: 0 | M79: 0
A80: ='Org structure'!E74 -> 0 | J80: 0 | K80: 0
A81: ='Org structure'!E75 -> 0 | J81: 0 | K81: 0
A82: ='Org structure'!E76 -> 0 | J82: 0 | K82: 0
A83: ='Org structure'!E77 -> 0 | J83: 0 | K83: 0
A84: ='Org structure'!E78 -> 0 | J84: 0 | K84: 0
A85: ='Org structure'!A9 -> Vote 8 - [NAME OF VOTE 8] | C85: =SUM(C86:C95) -> 0 | D85: =SUM(D86:D95) -> 0 | E85: 0 | F85: 0 | G85: 0 | H85: 0 | I85: 0 | J85: 0 | K85: 0 | L85: =SUM(L86:L95) -> 0 | M85: =SUM(M86:M95) -> 0
A86: ='Org structure'!E80 -> 8.1 - [Name of sub-vote] | J86: 0 | K86: 0
A87: ='Org structure'!E81 -> 0 | J87: 0 | K87: 0
A88: ='Org structure'!E82 -> 0 | J88: 0 | K88: 0
A89: ='Org structure'!E83 -> 0 | J89: 0 | K89: 0
A90: ='Org structure'!E84 -> 0 | J90: 0 | K90: 0
A91: ='Org structure'!E85 -> 0 | J91: 0 | K91: 0
A92: ='Org structure'!E86 -> 0 | J92: 0 | K92: 0
A93: ='Org structure'!E87 -> 0 | J93: 0 | K93: 0
A94: ='Org structure'!E88 -> 0 | J94: 0 | K94: 0
A95: ='Org structure'!E89 -> 0 | J95: 0 | K95: 0
A96: ='Org structure'!A10 -> Vote 9 - [NAME OF VOTE 9] | C96: =SUM(C97:C106) -> 0 | D96: =SUM(D97:D106) -> 0 | E96: 0 | F96: 0 | G96: 0 | H96: 0 | I96: 0 | J96: 0 | K96: 0 | L96: =SUM(L97:L106) -> 0 | M96: =SUM(M97:M106) -> 0
A97: ='Org structure'!E91 -> 9.1 - [Name of sub-vote] | J97: 0 | K97: 0
A98: ='Org structure'!E92 -> 0 | J98: 0 | K98: 0
A99: ='Org structure'!E93 -> 0 | J99: 0 | K99: 0
A100: ='Org structure'!E94 -> 0 | J100: 0 | K100: 0
A101: ='Org structure'!E95 -> 0 | J101: 0 | K101: 0
A102: ='Org structure'!E96 -> 0 | J102: 0 | K102: 0
A103: ='Org structure'!E97 -> 0 | J103: 0 | K103: 0
A104: ='Org structure'!E98 -> 0 | J104: 0 | K104: 0
A105: ='Org structure'!E99 -> 0 | J105: 0 | K105: 0
A106: ='Org structure'!E100 -> 0 | J106: 0 | K106: 0
A107: ='Org structure'!A11 -> Vote 10 - [NAME OF VOTE 10] | C107: =SUM(C108:C117) -> 0 | D107: =SUM(D108:D117) -> 0 | E107: 0 | F107: 0 | G107: 0 | H107: 0 | I107: 0 | J107: 0 | K107: 0 | L107: =SUM(L108:L117) -> 0 | M107: =SUM(M108:M117) -> 0
A108: ='Org structure'!E102 -> 10.1 - [Name of sub-vote] | J108: 0 | K108: 0
A109: ='Org structure'!E103 -> 0 | J109: 0 | K109: 0
A110: ='Org structure'!E104 -> 0 | J110: 0 | K110: 0
A111: ='Org structure'!E105 -> 0 | J111: 0 | K111: 0
A112: ='Org structure'!E106 -> 0 | J112: 0 | K112: 0
A113: ='Org structure'!E107 -> 0 | J113: 0 | K113: 0
A114: ='Org structure'!E108 -> 0 | J114: 0 | K114: 0
A115: ='Org structure'!E109 -> 0 | J115: 0 | K115: 0
A116: ='Org structure'!E110 -> 0 | J116: 0 | K116: 0
A117: ='Org structure'!E111 -> 0 | J117: 0 | K117: 0
A118: ='Org structure'!A12 -> Vote 11 - [NAME OF VOTE 11] | C118: =SUM(C119:C128) -> 0 | D118: =SUM(D119:D128) -> 0 | E118: 0 | F118: 0 | G118: 0 | H118: 0 | I118: 0 | J118: 0 | K118: 0 | L118: =SUM(L119:L128) -> 0 | M118: =SUM(M119:M128) -> 0
A119: ='Org structure'!E113 -> 11.1 - [Name of sub-vote] | J119: 0 | K119: 0
A120: ='Org structure'!E114 -> 0 | J120: 0 | K120: 0
A121: ='Org structure'!E115 -> 0 | J121: 0 | K121: 0
A122: ='Org structure'!E116 -> 0 | J122: 0 | K122: 0
A123: ='Org structure'!E117 -> 0 | J123: 0 | K123: 0
A124: ='Org structure'!E118 -> 0 | J124: 0 | K124: 0
A125: ='Org structure'!E119 -> 0 | J125: 0 | K125: 0
A126: ='Org structure'!E120 -> 0 | J126: 0 | K126: 0
A127: ='Org structure'!E121 -> 0 | J127: 0 | K127: 0
A128: ='Org structure'!E122 -> 0 | J128: 0 | K128: 0
A129: ='Org structure'!A13 -> Vote 12 - [NAME OF VOTE 12] | C129: =SUM(C130:C139) -> 0 | D129: =SUM(D130:D139) -> 0 | E129: 0 | F129: 0 | G129: 0 | H129: 0 | I129: 0 | J129: 0 | K129: 0 | L129: =SUM(L130:L139) -> 0 | M129: =SUM(M130:M139) -> 0
A130: ='Org structure'!E124 -> 12.1 - [Name of sub-vote] | J130: 0 | K130: 0
A131: ='Org structure'!E125 -> 0 | J131: 0 | K131: 0
A132: ='Org structure'!E126 -> 0 | J132: 0 | K132: 0
A133: ='Org structure'!E127 -> 0 | J133: 0 | K133: 0
A134: ='Org structure'!E128 -> 0 | J134: 0 | K134: 0
A135: ='Org structure'!E129 -> 0 | J135: 0 | K135: 0
A136: ='Org structure'!E130 -> 0 | J136: =SUM(E136:I136) -> 0 | K136: =IF(D136=0,C136+J136,D136+J136) -> 0
A137: ='Org structure'!E131 -> 0 | J137: 0 | K137: 0
A138: ='Org structure'!E132 -> 0 | J138: 0 | K138: 0
A139: ='Org structure'!E133 -> 0 | J139: 0 | K139: 0
A140: ='Org structure'!A14 -> Vote 13 - [NAME OF VOTE 13] | C140: =SUM(C141:C150) -> 0 | D140: =SUM(D141:D150) -> 0 | E140: 0 | F140: 0 | G140: 0 | H140: 0 | I140: 0 | J140: 0 | K140: 0 | L140: =SUM(L141:L150) -> 0 | M140: =SUM(M141:M150) -> 0
A141: ='Org structure'!E135 -> 13.1 - [Name of sub-vote] | J141: 0 | K141: 0
A142: ='Org structure'!E136 -> 0 | J142: 0 | K142: 0
A143: ='Org structure'!E137 -> 0 | J143: 0 | K143: 0
A144: ='Org structure'!E138 -> 0 | J144: 0 | K144: 0
A145: ='Org structure'!E139 -> 0 | J145: 0 | K145: 0
A146: ='Org structure'!E140 -> 0 | J146: 0 | K146: 0
A147: ='Org structure'!E141 -> 0 | J147: 0 | K147: 0
A148: ='Org structure'!E142 -> 0 | J148: 0 | K148: 0
A149: ='Org structure'!E143 -> 0 | J149: 0 | K149: 0
A150: ='Org structure'!E144 -> 0 | J150: 0 | K150: 0
A151: ='Org structure'!A15 -> Vote 14 - [NAME OF VOTE 14] | C151: =SUM(C152:C161) -> 0 | D151: =SUM(D152:D161) -> 0 | E151: 0 | F151: 0 | G151: 0 | H151: 0 | I151: 0 | J151: 0 | K151: 0 | L151: =SUM(L152:L161) -> 0 | M151: =SUM(M152:M161) -> 0
A152: ='Org structure'!E146 -> 14.1 - [Name of sub-vote] | J152: 0 | K152: 0
A153: ='Org structure'!E147 -> 0 | J153: 0 | K153: 0
A154: ='Org structure'!E148 -> 0 | J154: 0 | K154: 0
A155: ='Org structure'!E149 -> 0 | J155: 0 | K155: 0
A156: ='Org structure'!E150 -> 0 | J156: 0 | K156: 0
A157: ='Org structure'!E151 -> 0 | J157: 0 | K157: 0
A158: ='Org structure'!E152 -> 0 | J158: 0 | K158: 0
A159: ='Org structure'!E153 -> 0 | J159: 0 | K159: 0
A160: ='Org structure'!E154 -> 0 | J160: 0 | K160: 0
A161: ='Org structure'!E155 -> 0 | J161: 0 | K161: 0
A162: ='Org structure'!A16 -> Vote 15 - [NAME OF VOTE 15] | C162: =SUM(C163:C172) -> 0 | D162: =SUM(D163:D172) -> 0 | E162: 0 | F162: 0 | G162: 0 | H162: 0 | I162: 0 | J162: 0 | K162: 0 | L162: =SUM(L163:L172) -> 0 | M162: =SUM(M163:M172) -> 0
A163: ='Org structure'!E157 -> 15.1 - [Name of sub-vote] | J163: 0 | K163: 0
A164: ='Org structure'!E158 -> 0 | J164: 0 | K164: 0
A165: ='Org structure'!E159 -> 0 | J165: 0 | K165: 0
A166: ='Org structure'!E160 -> 0 | J166: 0 | K166: 0
A167: ='Org structure'!E161 -> 0 | J167: 0 | K167: 0
A168: ='Org structure'!E162 -> 0 | J168: 0 | K168: 0
A169: ='Org structure'!E163 -> 0 | J169: 0 | K169: 0
A170: ='Org structure'!E164 -> 0 | J170: 0 | K170: 0
A171: ='Org structure'!E165 -> 0 | J171: 0 | K171: 0
A172: ='Org structure'!E166 -> 0 | J172: 0 | K172: 0
A173: Capital multi-year expenditure sub-total | C173: =C8+C19+C30+C41+C52+C63+C74+C85+C96+C107+C118+C129+C140+C151+C162 -> 703134054 | D173: =D8+D19+D30+D41+D52+D63+D74+D85+D96+D107+D118+D129+D140+D151+D162 -> 0 | E173: 0 | F173: 0 | G173: 0 | H173: 0 | I173: 45243893.45 | J173: 45243893.45 | K173: 748377947.5 | L173: =L8+L19+L30+L41+L52+L63+L74+L85+L96+L107+L118+L129+L140+L151+L162 -> 535833343.2 | M173: =M8+M19+M30+M41+M52+M63+M74+M85+M96+M107+M118+M129+M140+M151+M162 -> 402378560
A175: Capital expenditure - Municipal Vote | B175: 2
A176: Single-year expenditure appropriation
A177: =B5B!A8 -> Vote 1 - City Manager | C177: =SUM(C178:C187) -> 5000000 | D177: =SUM(D178:D187) -> 0 | E177: 0 | F177: 0 | G177: 0 | H177: 0 | I177: 2700000 | J177: =SUM(E177:I177) -> 2700000 | K177: =IF(D177=0,C177+J177,D177+J177) -> 7700000 | L177: =SUM(L178:L187) -> 0 | M177: =SUM(M178:M187) -> 0
A178: =B5B!A9 -> 1.1 - Internal Audit and Compliance | C178: 0 | J178: 0 | K178: 0
A179: =B5B!A10 -> 1.2 - Office of the City Manager | C179: 1000000 | I179: 4000000 | J179: 4000000 | K179: 5000000
A180: =B5B!A11 -> 1.3 - Political Support | C180: 0 | I180: 2700000 | J180: 2700000 | K180: 2700000
A181: =B5B!A12 -> 1.4 - Strategic Planning | C181: 4000000 | I181: -4000000 | J181: -4000000 | K181: 0
A182: =B5B!A13 -> 0 | J182: 0 | K182: 0
A183: =B5B!A14 -> 0 | J183: 0 | K183: 0
A184: =B5B!A15 -> 0 | J184: 0 | K184: 0
A185: =B5B!A16 -> 0 | J185: 0 | K185: 0
A186: =B5B!A17 -> 0 | J186: 0 | K186: 0
A187: =B5B!A18 -> 0 | J187: 0 | K187: 0
A188: =B5B!A19 -> Vote 2 - City Finance | C188: =SUM(C189:C198) -> 0 | D188: =SUM(D189:D198) -> 0 | E188: 0 | F188: 0 | G188: 0 | H188: 0 | I188: 0 | J188: 0 | K188: 0 | L188: =SUM(L189:L198) -> 0 | M188: =SUM(M189:M198) -> 0
A189: =B5B!A20 -> 2.1 - Asset Management | J189: 0 | K189: 0
A190: =B5B!A21 -> 2.2 - Budget and Treasury Management | J190: 0 | K190: 0
A191: =B5B!A22 -> 2.3 - Expenditure Management | J191: 0 | K191: 0
A192: =B5B!A23 -> 2.4 - Revenue Management | J192: 0 | K192: 0
A193: =B5B!A24 -> 2.5 - Supply Chain Management | J193: 0 | K193: 0
A194: =B5B!A25 -> 0 | J194: 0 | K194: 0
A195: =B5B!A26 -> 0 | J195: 0 | K195: 0
A196: =B5B!A27 -> 0 | J196: 0 | K196: 0
A197: =B5B!A28 -> 0 | J197: 0 | K197: 0
A198: =B5B!A29 -> 0 | J198: 0 | K198: 0
A199: =B5B!A30 -> Vote 3 - Corporate Services | C199: =SUM(C200:C209) -> 10000000 | D199: =SUM(D200:D209) -> 0 | E199: 0 | F199: 0 | G199: 0 | H199: 0 | I199: 7000000 | J199: 7000000 | K199: 17000000 | L199: =SUM(L200:L209) -> 10000000 | M199: =SUM(M200:M209) -> 10000000
A200: =B5B!A31 -> Human Resources Management | C200: 0 | J200: 0 | K200: 0 | L200: 0 | M200: 0
A201: =B5B!A32 -> Information Technology | C201: 10000000 | I201: 7000000 | J201: 7000000 | K201: 17000000 | L201: 10000000 | M201: 10000000
... 146 more rows

Sheet B6-FinPos
A1: =muni&" - "&_ADJ6&" - "&Date -> Choose name from list - Table B6 Adjustments Budget Financial Position -
A2: =desc -> Description | B2: =head27 -> Ref | C2: =Head2 -> Budget Year 2023/24 | L2: =Head10 -> Budget Year +1 2024/25 | M2: =Head11 -> Budget Year +2 2025/26
C3: =Head6 -> Original Budget | D3: =Head54 -> Prior Adjusted | E3: =Head51 -> Accum. Funds | F3: =Head52 -> Multi-year capital | G3: =Head53 -> Unfore. Unavoid. | H3: =Head55 -> Nat. or Prov. Govt | I3: =Head50 -> Other Adjusts. | J3: =Head56 -> Total Adjusts. | K3: =Head7 -> Adjusted Budget | L3: =Head7 -> Adjusted Budget | M3: =Head7 -> Adjusted Budget
D4: 3 | E4: 4 | F4: 5 | G4: 6 | H4: 7 | I4: 8 | J4: 9 | K4: 10
A5: R thousands | C5: A | D5: A1 | E5: B | F5: C | G5: D | H5: E | I5: F | J5: G | K5: H
A6: ASSETS
A7: Current assets
A8: Cash and cash equivalents | C8: 603973549 | I8: 196701248 | J8: =SUM(E8:I8) -> 196701248 | K8: =IF(D8=0,C8+J8,D8+J8) -> 800674797 | L8: 912151524 | M8: 1838447819
A9: Trade and other receivables from exchange transactions | B9: 1 | C9: ='SB2'!C20 -> 1296255145 | D9: ='SB2'!D20 -> 0 | E9: ='SB2'!E20 -> 0 | F9: ='SB2'!F20 -> 0 | G9: ='SB2'!G20 -> 0 | H9: ='SB2'!H20 -> 0 | I9: ='SB2'!I20 -> 1203048590 | J9: 1203048590 | K9: 2499303735 | L9: ='SB2'!L20 -> 1359771647 | M9: ='SB2'!M20 -> 790750688.5
A10: Receivables from non-exchange transactions | B10: 1 | C10: ='SB2'!C29 -> 668305596 | D10: ='SB2'!D29 -> 0 | E10: ='SB2'!E29 -> 0 | F10: ='SB2'!F29 -> 0 | G10: ='SB2'!G29 -> 0 | H10: ='SB2'!H29 -> 0 | I10: ='SB2'!I29 -> 96798284 | J10: 96798284 | K10: 765103880 | L10: ='SB2'!L29 -> 446307300.2 | M10: ='SB2'!M29 -> 467283860.8
A11: Current portion of non-current receivables | B11: 2 | I11: 93046 | J11: 93046 | K11: 93046
A12: Inventory | C12: 359494469 | D12: ='SB2'!D125 -> 0 | E12: ='SB2'!E125 -> 0 | F12: ='SB2'!F125 -> 0 | G12: ='SB2'!G125 -> 0 | H12: ='SB2'!H125 -> 0 | I12: ='SB2'!I125 -> 92438570.34 | J12: 92438570.34 | K12: 451933039.3 | L12: ='SB2'!L125 -> -1861610833 | M12: ='SB2'!M125 -> -2927655613
A13: VAT | I13: 246824035 | J13: 246824035 | K13: 246824035
A14: Other current assets | I14: 44265425 | J14: 44265425 | K14: 44265425
A15: Total current assets | C15: =SUM(C8:C14) -> 2928028759 | D15: 0 | E15: 0 | F15: 0 | G15: 0 | H15: 0 | I15: 1880169198 | J15: 1880169198 | K15: 4808197957 | L15: 856619638.6 | M15: 168826755.7
A16: Non current assets
A17: Investments | J17: =SUM(E17:I17) -> 0 | K17: =IF(D17=0,C17+J17,D17+J17) -> 0
A18: Investment property | C18: 974255980.8 | I18: -49450796.81 | J18: =SUM(E18:I18) -> -49450796.81 | K18: =IF(D18=0,C18+J18,D18+J18) -> 924805184 | L18: 1021994524 | M18: 1070028266
A19: Property, plant and equipment | B19: 3 | C19: =+'SB2'!C131 -> 7930887847 | D19: =+'SB2'!D131 -> 0 | E19: =+'SB2'!E131 -> 0 | F19: =+'SB2'!F131 -> 0 | G19: =+'SB2'!G131 -> 0 | H19: =+'SB2'!H131 -> 0 | I19: =+'SB2'!I131 -> -56284555 | J19: -56284555 | K19: 7874603292 | L19: =+'SB2'!L131 -> 7627894963 | M19: =+'SB2'!M131 -> 6486460770
A20: Biological assets | C20: 84450600 | I20: -8074710 | J20: -8074710 | K20: 76375890 | L20: 88588679.4 | M20: 92752347.33
A21: Living and non-living resources | C21: 733076.487 | I21: -733076.487 | J21: -733076.487 | K21: 0 | L21: 768997.2349 | M21: 805140.1049
A22: Heritage assets | C22: 287700639 | I22: -12918070 | J22: =SUM(E22:I22) -> -12918070 | K22: =IF(D22=0,C22+J22,D22+J22) -> 274782569 | L22: 301842090 | M22: 316036679
A23: Intangible assets | C23: 20954448 | I23: 3258809 | J23: =SUM(E23:I23) -> 3258809 | K23: =IF(D23=0,C23+J23,D23+J23) -> 24213257 | L23: 21981215.95 | M23: 23014333.1
A24: Trade and other receivables from exchange transactions | C24: 0 | J24: 0 | K24: 0
A25: Non-current receivables from non-exchange transactions | C25: 0 | J25: 0 | K25: 0
A26: Other non-current assets | C26: 0 | J26: 0 | K26: 0
A27: Total non current assets | C27: =SUM(C17:C26) -> 9298982591 | D27: =SUM(D17:D26) -> 0 | E27: 0 | F27: 0 | G27: 0 | H27: 0 | I27: -124202399.3 | J27: -124202399.3 | K27: 9174780192 | L27: =SUM(L17:L26) -> 9063070469 | M27: 7989097536
A28: TOTAL ASSETS | C28: =C15+C27 -> 1.222701135e+10 | D28: 0 | E28: 0 | F28: 0 | G28: 0 | H28: 0 | I28: 1755966799 | J28: 1755966799 | K28: 1.398297815e+10 | L28: 9919690108 | M28: 8157924292
A30: LIABILITIES
A31: Current liabilities
A32: Bank overdraft | J32: =SUM(E32:I32) -> 0 | K32: =IF(D32=0,C32+J32,D32+J32) -> 0
A33: Financial liabilities | C33: ='SB2'!C137 -> 83358533.7 | D33: ='SB2'!D137 -> 0 | E33: ='SB2'!E137 -> 0 | F33: ='SB2'!F137 -> 0 | G33: ='SB2'!G137 -> 0 | H33: ='SB2'!H137 -> 0 | I33: ='SB2'!I137 -> -9087578.7 | J33: =SUM(E33:I33) -> -9087578.7 | K33: =IF(D33=0,C33+J33,D33+J33) -> 74270955 | L33: ='SB2'!L137 -> 87443101.85 | M33: ='SB2'!M137 -> 91552927.64
A34: Consumer deposits | C34: 140009384 | I34: 2178519.966 | J34: =SUM(E34:I34) -> 2178519.966 | K34: =IF(D34=0,C34+J34,D34+J34) -> 142187904 | L34: 146869843.9 | M34: 153772726.5
A35: Trade and other payables from exchange transactions | C35: 1186508058 | D35: =+'SB2'!D140+'SB2'!D141 -> 0 | E35: =+'SB2'!E140+'SB2'!E141 -> 0 | F35: =+'SB2'!F140+'SB2'!F141 -> 0 | G35: =+'SB2'!G140+'SB2'!G141 -> 0 | H35: =+'SB2'!H140+'SB2'!H141 -> 0 | I35: =+'SB2'!I140+'SB2'!I141 -> 430249390.8 | J35: =SUM(E35:I35) -> 430249390.8 | K35: =IF(D35=0,C35+J35,D35+J35) -> 1616757449 | L35: =+'SB2'!L140+'SB2'!L141 -> 1841234880 | M35: =+'SB2'!M140+'SB2'!M141 -> 1927772919
A36: Trade and other payables from non-exchange transactions | C36: =+'SB2'!C142+'SB2'!C143 -> 0 | D36: =+'SB2'!D142+'SB2'!D143 -> 0 | E36: =+'SB2'!E142+'SB2'!E143 -> 0 | F36: =+'SB2'!F142+'SB2'!F143 -> 0 | G36: =+'SB2'!G142+'SB2'!G143 -> 0 | H36: =+'SB2'!H142+'SB2'!H143 -> 0 | I36: =+'SB2'!I142+'SB2'!I143 -> 0 | J36: 0 | K36: 0 | L36: =+'SB2'!L142+'SB2'!L143 -> 0 | M36: =+'SB2'!M142+'SB2'!M143 -> 0
A37: Provisions | C37: 50151238 | I37: 8093514 | J37: 8093514 | K37: 58244752 | L37: 51401000 | M37: 53816847
A38: VAT | C38: 187551752.5 | I38: 244284882.5 | J38: 244284882.5 | K38: 431836635 | L38: 196741778.7 | M38: 205988642.3
A39: Other current liabilities | J39: 0 | K39: 0
A40: Total current liabilities | C40: =SUM(C32:C39) -> 1647578966 | D40: =SUM(D32:D39) -> 0 | E40: 0 | F40: 0 | G40: 0 | H40: 0 | I40: 675718728.6 | J40: =SUM(J32:J39) -> 675718728.6 | K40: =SUM(K32:K39) -> 2323297695 | L40: =SUM(L32:L39) -> 2323690605 | M40: 2432904063
A42: Non current liabilities
A43: Borrowing | B43: 1 | C43: ='SB2'!C147 -> 131184437.4 | D43: ='SB2'!D147 -> 0 | E43: ='SB2'!E147 -> 0 | F43: ='SB2'!F147 -> 0 | G43: ='SB2'!G147 -> 0 | H43: ='SB2'!H147 -> 0 | I43: ='SB2'!I147 -> -80873782.44 | J43: =SUM(E43:I43) -> -80873782.44 | K43: =IF(D43=0,C43+J43,D43+J43) -> 50310655 | L43: ='SB2'!L147 -> 137612474.9 | M43: ='SB2'!M147 -> 144080261.2
A44: Provisions | B44: 1 | C44: ='SB2'!C162 -> 75576254.6 | D44: ='SB2'!D162 -> 0 | E44: ='SB2'!E162 -> 0 | F44: ='SB2'!F162 -> 0 | G44: ='SB2'!G162 -> 0 | H44: ='SB2'!H162 -> 0 | I44: ='SB2'!I162 -> 54671918.4 | J44: =SUM(E44:I44) -> 54671918.4 | K44: =IF(D44=0,C44+J44,D44+J44) -> 130248173 | L44: ='SB2'!L162 -> 631407144 | M44: ='SB2'!M162 -> 83005627.16
A45: Long term portion of trade payables | C45: ='SB2'!C151 -> 0 | D45: ='SB2'!D151 -> 0 | E45: ='SB2'!E151 -> 0 | F45: ='SB2'!F151 -> 0 | G45: ='SB2'!G151 -> 0 | H45: ='SB2'!H151 -> 0 | I45: ='SB2'!I151 -> 0 | J45: =SUM(E45:I45) -> 0 | K45: =IF(D45=0,C45+J45,D45+J45) -> 0 | L45: ='SB2'!L151 -> 0 | M45: ='SB2'!M151 -> 0
A46: Other non-current liabilities | C46: 648252000 | I46: -170337000 | J46: =SUM(E46:I46) -> -170337000 | K46: =IF(D46=0,C46+J46,D46+J46) -> 477915000 | L46: 680016348 | M46: 711977116
A47: Total non current liabilities | C47: =SUM(C43:C46) -> 855012692 | D47: =SUM(D43:D46) -> 0 | E47: 0 | F47: 0 | G47: 0 | H47: 0 | I47: -196538864 | J47: -196538864 | K47: 658473828 | L47: 1449035967 | M47: 939063004.3
A48: TOTAL LIABILITIES | C48: =C40+C47 -> 2502591658 | D48: 0 | E48: 0 | F48: 0 | G48: 0 | H48: 0 | I48: 479179864.6 | J48: 479179864.6 | K48: 2981771523 | L48: 3772726571 | M48: 3371967067
A50: NET ASSETS | B50: 2 | C50: =C28-C48 -> 9724419692 | D50: 0 | E50: 0 | F50: 0 | G50: 0 | H50: 0 | I50: 1276786934 | J50: 1276786934 | K50: 1.100120663e+10 | L50: 6146963537 | M50: 4785957224
A52: COMMUNITY WEALTH/EQUITY
A53: Accumulated Surplus/(Deficit) | C53: 9511891594 | D53: ='SB2'!D174 -> 0 | E53: ='SB2'!E174 -> 0 | F53: ='SB2'!F174 -> 0 | G53: ='SB2'!G174 -> 0 | H53: ='SB2'!H174 -> 0 | I53: ='SB2'!I174 -> 686771078.2 | J53: =SUM(E53:I53) -> 686771078.2 | K53: =IF(D53=0,C53+J53,D53+J53) -> 1.019866267e+10 | L53: ='SB2'!L174 -> 9042479663 | M53: ='SB2'!M174 -> 9817454558
A54: Funds and Reserves | C54: ='SB2'!C181 -> 212528097.8 | D54: ='SB2'!D181 -> 0 | E54: ='SB2'!E181 -> 0 | F54: ='SB2'!F181 -> 0 | G54: ='SB2'!G181 -> 0 | H54: ='SB2'!H181 -> 0 | I54: ='SB2'!I181 -> 590015856.2 | J54: =SUM(E54:I54) -> 590015856.2 | K54: =IF(D54=0,C54+J54,D54+J54) -> 802543954 | L54: ='SB2'!L181 -> 222941974.5 | M54: ='SB2'!M181 -> 233420247.3
A55: Other | J55: =SUM(E55:I55) -> 0 | K55: =IF(D55=0,C55+J55,D55+J55) -> 0
A56: TOTAL COMMUNITY WEALTH/EQUITY | C56: =SUM(C53:C55) -> 9724419692 | D56: =SUM(D53:D55) -> 0 | E56: 0 | F56: 0 | G56: 0 | H56: 0 | I56: 1276786934 | J56: 1276786934 | K56: 1.100120663e+10 | L56: 9265421637 | M56: 1.005087481e+10
A57: =head27a -> References
A58: 1. Detail to be provided in Table SA3
A59: 2. Net assets must balance with Total Community Wealth/Equity
A60: 3. Only complete if a previous adjusted budget has been approved in the same financial year. Reflect most recent adjusted budget.
A61: 4. Additional cash-backed accumulated funds/unspent funds (MFMA section 18(1)(b) and section 28(2)(e)) identified after the Original Budget approved and after annual financial statements audited (note: only where underspending could not reasonably have been foreseen)
A62: 5. Increases of funds approved under MFMA section 31
A63: 6. Adjustments approved in accordance with MFMA section 29
A64: 7. Adjustments to transfers from National or Provincial Government
A65: 8. Adjusts. = 'Other' Adjustments proposed to be approved; including revenue under-collection (MFMA section 28(2)(a)); additional revenue appropriation on existing programmes (section 28(2))(b); projected savings (section 28(2)(d)); error correction (section 28(2)(f))
A66: 9. G = B + C + D + E + F
A67: 10. Adjusted Budget H = (A or A1/2 etc) + G
A69: check balance | C69: =C50-C56 -> 0 | D69: 0 | E69: 0 | F69: 0 | G69: 0 | H69: 0 | I69: 0 | J69: 0 | K69: 0 | L69: -3118458101 | M69: -5264917581

Sheet B7-CFlow
A1: =muni&" - "&_ADJ7&" - "&Date -> Choose name from list - Table B7 Adjustments Budget Cash Flows -
A2: =desc -> Description | B2: =head27 -> Ref | C2: =Head2 -> Budget Year 2023/24 | L2: =Head10 -> Budget Year +1 2024/25 | M2: =Head11 -> Budget Year +2 2025/26
C3: =Head6 -> Original Budget | D3: =Head54 -> Prior Adjusted | E3: =Head51 -> Accum. Funds | F3: =Head52 -> Multi-year capital | G3: =Head53 -> Unfore. Unavoid. | H3: =Head55 -> Nat. or Prov. Govt | I3: =Head50 -> Other Adjusts. | J3: =Head56 -> Total Adjusts. | K3: =Head7 -> Adjusted Budget | L3: =Head7 -> Adjusted Budget | M3: =Head7 -> Adjusted Budget
D4: 3 | E4: 4 | F4: 5 | G4: 6 | H4: 7 | I4: 8 | J4: 9 | K4: 10
A5: R thousands | C5: A | D5: A1 | E5: B | F5: C | G5: D | H5: E | I5: F | J5: G | K5: H
A6: CASH FLOW FROM OPERATING ACTIVITIES
A7: Receipts
A8: Property rates | C8: 1435365977 | I8: 0 | J8: =SUM(E8:I8) -> 0 | K8: =IF(D8=0,C8+J8,D8+J8) -> 1435365977 | L8: 1521716983 | M8: 1593237681
A9: Service charges | C9: 4467999174 | I9: -190933106 | J9: =SUM(E9:I9) -> -190933106 | K9: =IF(D9=0,C9+J9,D9+J9) -> 4277066068 | L9: 6249508058 | M9: 7188209903
A10: Other revenue | C10: 1119062171 | I10: 0.5700001717 | J10: 0.5700001717 | K10: 1119062172 | L10: 228090666.1 | M10: 238805286.5
A11: Transfers and Subsidies - Operational | B11: 1 | C11: 834106196 | I11: 10809600 | J11: 10809600 | K11: 844915796 | L11: 906109405 | M11: 982491448
A12: Transfers and Subsidies - Capital | B12: 1 | C12: 452578009 | I12: 83578195 | J12: 83578195 | K12: 536156204 | L12: 321309343 | M12: 327881560
A13: Interest | C13: 18132025 | I13: 0 | J13: 0 | K13: 18132025 | L13: 19225407 | M13: 20494284
A14: Dividends | C14: 0 | J14: 0 | K14: 0 | L14: 0 | M14: 0
A15: Payments
A16: Suppliers and employees | C16: -7289158697 | I16: 162725736 | J16: =SUM(E16:I16) -> 162725736 | K16: =IF(D16=0,C16+J16,D16+J16) -> -7126432961 | L16: =-('SB15'!Q36+'SB15'!Q37+'SB15'!Q39+'SB15'!Q40+'SB15'!Q41+'SB15'!Q42+'SB15'!Q45+'SB15'!Q51) -> -6469703578 | M16: =-('SB15'!R36+'SB15'!R37+'SB15'!R39+'SB15'!R40+'SB15'!R41+'SB15'!R42+'SB15'!R45+'SB15'!R51) -> -7052248156
A17: Finance charges | C17: -40400878 | I17: 0 | J17: =SUM(E17:I17) -> 0 | K17: =IF(D17=0,C17+J17,D17+J17) -> -40400878 | L17: -42218918 | M17: -44118769
A18: Transfers and Subsidies | B18: 1 | C18: -51023536 | I18: 12536001 | J18: =SUM(E18:I18) -> 12536001 | K18: =IF(D18=0,C18+J18,D18+J18) -> -38487535 | L18: -53395332 | M18: -55899094
A19: NET CASH FROM/(USED) OPERATING ACTIVITIES | C19: =SUM(C8:C14)+SUM(C16:C18) -> 946660441.4 | D19: =SUM(D8:D14)+SUM(D16:D18) -> 0 | E19: 0 | F19: 0 | G19: 0 | H19: 0 | I19: 78716426.57 | J19: =SUM(J8:J18) -> 78716426.57 | K19: =SUM(K8:K18) -> 1025376868 | L19: =SUM(L8:L14)+SUM(L16:L18) -> 2680642034 | M19: =SUM(M8:M14)+SUM(M16:M18) -> 3198854144
A21: CASH FLOWS FROM INVESTING ACTIVITIES
A22: Receipts
A23: Proceeds on disposal of PPE | J23: =SUM(E23:I23) -> 0 | K23: =IF(D23=0,C23+J23,D23+J23) -> 0
A25: Decrease (increase) in non-current receivables | J25: =SUM(E25:I25) -> 0 | K25: =IF(D25=0,C25+J25,D25+J25) -> 0
A26: Decrease (increase) in non-current investments | J26: =SUM(E26:I26) -> 0 | K26: =IF(D26=0,C26+J26,D26+J26) -> 0
A27: Payments
A28: Capital assets | C28: -768501055 | I28: -52788517 | J28: =SUM(E28:I28) -> -52788517 | K28: =IF(D28=0,C28+J28,D28+J28) -> -821289572 | L28: -668665745 | M28: -515231794
A29: NET CASH FROM/(USED) INVESTING ACTIVITIES | C29: =+C23+C25+C26+C28 -> -768501055 | D29: =+D23+D25+D26+D28 -> 0 | E29: 0 | F29: 0 | G29: 0 | H29: 0 | I29: -52788517 | J29: -52788517 | K29: -821289572 | L29: -668665745 | M29: -515231794
A31: CASH FLOWS FROM FINANCING ACTIVITIES
A32: Receipts
A33: Short term loans | J33: =SUM(E33:I33) -> 0 | K33: =IF(D33=0,C33+J33,D33+J33) -> 0
A34: Borrowing long term/refinancing | C34: 200000000 | I34: -83725050 | J34: =SUM(E34:I34) -> -83725050 | K34: =IF(D34=0,C34+J34,D34+J34) -> 116274950 | L34: 150000000 | M34: 0
A35: Increase (decrease) in consumer deposits | J35: =SUM(E35:I35) -> 0 | K35: =IF(D35=0,C35+J35,D35+J35) -> 0
A36: Payments
A37: Repayment of borrowing | C37: -23000000 | J37: =SUM(E37:I37) -> 0 | K37: =IF(D37=0,C37+J37,D37+J37) -> -23000000 | L37: -24000000 | M37: -26000000
A38: NET CASH FROM/(USED) FINANCING ACTIVITIES | C38: =SUM(C33:C35)+C37 -> 177000000 | D38: =SUM(D33:D35)+D37 -> 0 | E38: 0 | F38: 0 | G38: 0 | H38: 0 | I38: -83725050 | J38: =SUM(J33:J37) -> -83725050 | K38: =SUM(K33:K37) -> 93274950 | L38: =SUM(L33:L35)+L37 -> 126000000 | M38: =SUM(M33:M35)+M37 -> -26000000
A40: NET INCREASE/ (DECREASE) IN CASH HELD | C40: =C19+C29+C38 -> 355159386.4 | D40: =D19+D29+D38 -> 0 | E40: 0 | F40: 0 | G40: 0 | H40: 0 | I40: -57797140.43 | J40: -57797140.43 | K40: 297362246 | L40: 2137976289 | M40: 2657622350
A41: Cash/cash equivalents at the year begin: | B41: 2 | C41: 247730000 | I41: 263672010 | J41: =SUM(E41:I41) -> 263672010 | K41: =IF(D41=0,C41+J41,D41+J41) -> 511402010 | L41: 766879964.7 | M41: 1280300179
A42: Cash/cash equivalents at the year end: | B42: 2 | C42: =C40+C41 -> 602889386.4 | D42: =D40+D41 -> 0 | E42: 0 | F42: 0 | G42: 0 | H42: 0 | I42: 205874869.6 | J42: 205874869.6 | K42: =K40+K41 -> 808764256 | L42: =L40+L41 -> 2904856254 | M42: =M40+M41 -> 3937922528
A43: =head27a -> References
A44: 1. Local/District municipalities to include transfers from/to District/Local Municipalities
A45: 2. Cash equivalents includes investments with maturities of 3 months or less
A46: 3. Only complete if a previous adjusted budget has been approved in the same financial year. Reflect most recent adjusted budget.
A47: 4. Additional cash-backed accumulated funds/unspent funds (MFMA section 18(1)(b) and section 28(2)(e)) identified after the Original Budget approved and after annual financial statements audited (note: only where underspending could not reasonably have been foreseen)
A48: 5. Increases of funds approved under MFMA section 31
A49: 6. Adjustments approved in accordance with MFMA section 29
A50: 7. Adjustments to transfers from National or Provincial Government
A51: 8. Adjusts. = 'Other' Adjustments proposed to be approved; including revenue under-collection (MFMA section 28(2)(a)); additional revenue appropriation on existing programmes (section 28(2))(b); projected savings (section 28(2)(d)); error correction (section 28(2)(f))
A52: 9. G = B + C + D + E + F
A53: 10. Adjusted Budget H = (A or A1) + G

Sheet B8-ResRecon
A1: =muni&" - "&_ADJ8&" - "&Date -> Choose name from list - Table B8 Cash backed reserves/accumulated surplus reconciliation -
A2: =desc -> Description | B2: =head27 -> Ref | C2: =Head2 -> Budget Year 2023/24 | L2: =Head10 -> Budget Year +1 2024/25 | M2: =Head11 -> Budget Year +2 2025/26
C3: =Head6 -> Original Budget | D3: =Head54 -> Prior Adjusted | E3: =Head51 -> Accum. Funds | F3: =Head52 -> Multi-year capital | G3: =Head53 -> Unfore. Unavoid. | H3: =Head55 -> Nat. or Prov. Govt | I3: =Head50 -> Other Adjusts. | J3: =Head56 -> Total Adjusts. | K3: =Head7 -> Adjusted Budget | L3: =Head7 -> Adjusted Budget | M3: =Head7 -> Adjusted Budget
D4: 3 | E4: 4 | F4: 5 | G4: 6 | H4: 7 | I4: 8 | J4: 9 | K4: 10
A5: R thousands | C5: A | D5: A1 | E5: B | F5: C | G5: D | H5: E | I5: F | J5: G | K5: H
A6: Cash and investments available
A7: Cash/cash equivalents at the year end | B7: 1 | C7: ='B7-CFlow'!C42 -> 602889386.4 | D7: ='B7-CFlow'!D42 -> 0 | E7: ='B7-CFlow'!E42 -> 0 | F7: ='B7-CFlow'!F42 -> 0 | G7: ='B7-CFlow'!G42 -> 0 | H7: ='B7-CFlow'!H42 -> 0 | I7: ='B7-CFlow'!I42 -> 205874869.6 | J7: =SUM(E7:I7) -> 205874869.6 | K7: =IF(D7=0,C7+J7,D7+J7) -> 808764256 | L7: ='B7-CFlow'!L42 -> 2904856254 | M7: ='B7-CFlow'!M42 -> 3937922528
A8: Other current investments > 90 days | C8: ='B6-FinPos'!C8+'B6-FinPos'!C10-'B6-FinPos'!C32-'B8-ResRecon'!C7 -> 669389758.6 | D8: ='B6-FinPos'!D8+'B6-FinPos'!D10-'B6-FinPos'!D32-'B8-ResRecon'!D7 -> 0 | E8: ='B6-FinPos'!E8+'B6-FinPos'!E10-'B6-FinPos'!E32-'B8-ResRecon'!E7 -> 0 | F8: ='B6-FinPos'!F8+'B6-FinPos'!F10-'B6-FinPos'!F32-'B8-ResRecon'!F7 -> 0 | G8: ='B6-FinPos'!G8+'B6-FinPos'!G10-'B6-FinPos'!G32-'B8-ResRecon'!G7 -> 0 | H8: ='B6-FinPos'!H8+'B6-FinPos'!H10-'B6-FinPos'!H32-'B8-ResRecon'!H7 -> 0 | I8: ='B6-FinPos'!I8+'B6-FinPos'!I10-'B6-FinPos'!I32-'B8-ResRecon'!I7 -> 87624662.43 | J8: =SUM(E8:I8) -> 87624662.43 | K8: =IF(D8=0,C8+J8,D8+J8) -> 757014421 | L8: ='B6-FinPos'!L8+'B6-FinPos'!L10-'B6-FinPos'!L32-'B8-ResRecon'!L7 -> -1546397430 | M8: ='B6-FinPos'!M8+'B6-FinPos'!M10-'B6-FinPos'!M32-'B8-ResRecon'!M7 -> -1632190849
A9: Non current assets - Investments | B9: 1 | C9: ='B6-FinPos'!C17 -> 0 | D9: ='B6-FinPos'!D17 -> 0 | E9: ='B6-FinPos'!E17 -> 0 | F9: ='B6-FinPos'!F17 -> 0 | G9: ='B6-FinPos'!G17 -> 0 | H9: ='B6-FinPos'!H17 -> 0 | I9: ='B6-FinPos'!I17 -> 0 | J9: =SUM(E9:I9) -> 0 | K9: =IF(D9=0,C9+J9,D9+J9) -> 0 | L9: ='B6-FinPos'!L17 -> 0 | M9: ='B6-FinPos'!M17 -> 0
A10: Cash and investments available: | C10: =SUM(C7:C9) -> 1272279145 | D10: 0 | E10: 0 | F10: 0 | G10: 0 | H10: 0 | I10: 293499532 | J10: 293499532 | K10: 1565778677 | L10: 1358458824 | M10: 2305731680
A12: Applications of cash and investments
A13: Unspent conditional transfers | C13: ='SB2'!C142 -> 0 | D13: ='SB2'!D142 -> 0 | E13: ='SB2'!E142 -> 0 | F13: ='SB2'!F142 -> 0 | G13: ='SB2'!G142 -> 0 | H13: ='SB2'!H142 -> 0 | I13: ='SB2'!I142 -> 0 | J13: =SUM(E13:I13) -> 0 | K13: =IF(D13=0,C13+J13,D13+J13) -> 0 | L13: ='SB2'!L142 -> 0 | M13: ='SB2'!M142 -> 0
A14: Unspent borrowing | J14: 0 | K14: =IF(D14=0,C14+J14,D14+J14) -> 0
A15: Statutory requirements | J15: 0 | K15: =IF(D15=0,C15+J15,D15+J15) -> 0
A16: Other working capital requirements | B16: 2 | C16: =-C40 -> -523024225.8 | D16: =-D40 -> 0 | I16: =IF(D16=0,(K16-C16)-SUM(E16:H16),(K16-D16)-SUM(E16:H16)) -> -698107717.2 | J16: -698107717.2 | K16: =-K40 -> -1221131943 | L16: =-L40 -> 223097416.1 | M16: =-M40 -> 791036987.4
A17: Other provisions | J17: 0 | K17: =IF(D17=0,C17+J17,D17+J17) -> 0
A18: Long term investments committed | C18: =C55 -> 0 | D18: =D55 -> 0 | I18: =IF(D18=0,(K18-C18)-SUM(E18:H18),(K18-D18)-SUM(E18:H18)) -> 0 | J18: 0 | K18: =K55 -> 0 | L18: =L55 -> 0 | M18: =M55 -> 0
A19: Reserves to be backed by cash/investments | C19: =C70 -> 0 | D19: =D70 -> 0 | I19: =IF(D19=0,(K19-C19)-SUM(E19:H19),(K19-D19)-SUM(E19:H19)) -> 0 | J19: 0 | K19: =K70 -> 0 | L19: =L70 -> 0 | M19: =M70 -> 0
A20: Total Application of cash and investments: | C20: =SUM(C13:C19) -> -523024225.8 | D20: 0 | E20: 0 | F20: 0 | G20: 0 | H20: 0 | I20: -698107717.2 | J20: -698107717.2 | K20: -1221131943 | L20: 223097416.1 | M20: 791036987.4
A21: Surplus(shortfall) | C21: =C10-C20 -> 1795303371 | D21: 0 | E21: 0 | F21: 0 | G21: 0 | H21: 0 | I21: 991607249.2 | J21: 991607249.2 | K21: 2786910620 | L21: 1135361408 | M21: 1514694692
A22: =head27a -> References
A23: 1. Must reconcile with the Adjustments Budget Cash Flow and Adjustements Budget Financial Position
A24: 2. Council approval for policy required - include sufficient working capital (e.g. allowing for a % of current debtors > 90 days as uncollectable)
A25: 3. Only complete if a previous adjusted budget has been approved in the same financial year. Reflect most recent adjusted budget.
A26: 4. Additional cash-backed accumulated funds/unspent funds (MFMA section 18(1)(b) and section 28(2)(e)) identified after the Original Budget approved and after annual financial statements audited (note: only where underspending could not reasonably have been foreseen)
A27: 5. Increases of funds approved under MFMA section 31
A28: 6. Adjustments approved in accordance with MFMA section 29
A29: 7. Adjustments to transfers from National or Provincial Government
A30: 8. Adjusts. = 'Other' Adjustments proposed to be approved; including revenue under-collection (MFMA section 28(2)(a)); additional revenue appropriation on existing programmes (section 28(2))(b); projected savings (section 28(2)(d)); error correction (section 28(2)(f))
A31: 9. G = B + C + D + E + F
A32: 10. Adjusted Budget H = (A or A1) + G
A37: =A16 -> Other working capital requirements
A38: Debtors | C38: =IF(ISERROR(ROUND(C43*C44,0)),0,(ROUND(C43*C44,0))) -> 1709532284 | D38: =IF(ISERROR(ROUND(D43*D44,0)),0,(ROUND(D43*D44,0))) -> 0 | K38: =IF(ISERROR(ROUND(K43*K44,0)),0,(ROUND(K43*K44,0))) -> 2837889392 | L38: =IF(ISERROR(ROUND(L43*L44,0)),0,(ROUND(L43*L44,0))) -> 1618137464 | M38: =IF(ISERROR(ROUND(M43*M44,0)),0,(ROUND(M43*M44,0))) -> 1136735932
A39: Creditors due | C39: ='SB2'!C140 -> 1186508058 | D39: ='SB2'!D140 -> 0 | K39: ='SB2'!K140 -> 1616757449 | L39: ='SB2'!L140 -> 1841234880 | M39: ='SB2'!M140 -> 1927772919
A40: Total | C40: =C38-C39 -> 523024225.8 | D40: =D38-D39 -> 0 | K40: =K38-K39 -> 1221131943 | L40: =L38-L39 -> -223097416.1 | M40: =M38-M39 -> -791036987.4
A42: Debtors collection assumptions:
A43: Balance outstanding - debtors | C43: ='B6-FinPos'!C9+'B6-FinPos'!C10+'B6-FinPos'!C11+'B6-FinPos'!C24+'B6-FinPos'!C25 -> 1964560741 | D43: ='B6-FinPos'!D9+'B6-FinPos'!D10+'B6-FinPos'!D11+'B6-FinPos'!D24+'B6-FinPos'!D25 -> 0 | K43: ='B6-FinPos'!K9+'B6-FinPos'!K10+'B6-FinPos'!K11+'B6-FinPos'!K24+'B6-FinPos'!K25 -> 3264500661 | L43: ='B6-FinPos'!L9+'B6-FinPos'!L10+'B6-FinPos'!L11+'B6-FinPos'!L24+'B6-FinPos'!L25 -> 1806078947 | M43: ='B6-FinPos'!M9+'B6-FinPos'!M10+'B6-FinPos'!M11+'B6-FinPos'!M24+'B6-FinPos'!M25 -> 1258034549
A44: Estimate of debtors collection rate | C44: =IF(ISERROR('SB6'!G10),0,('SB6'!G10)) -> 0.870185507 | D44: =IF(ISERROR('SB6'!H10),0,('SB6'!H10)) -> 0 | K44: =IF(ISERROR('SB6'!I10),0,('SB6'!I10)) -> 0.8693180633 | L44: =IF(ISERROR('SB6'!J10),0,('SB6'!J10)) -> 0.8959394973 | M44: =IF(ISERROR('SB6'!K10),0,('SB6'!K10)) -> 0.9035808537
A46: =A18 -> Long term investments committed
A47: (Insert description; eg sinking fund)
C55: =SUM(C47:C54) -> 0 | D55: =SUM(D47:D54) -> 0 | K55: =SUM(K47:K54) -> 0 | L55: =SUM(L47:L54) -> 0 | M55: =SUM(M47:M54) -> 0
A57: =A19 -> Reserves to be backed by cash/investments
A58: Housing Development Fund | C58: =+'SB2'!C176 -> 0 | D58: =+'SB2'!D176 -> 0 | K58: =+'SB2'!K176 -> 0 | L58: =+'SB2'!L176 -> 0 | M58: =+'SB2'!M176 -> 0
A59: Capital replacement | C59: ='SB2'!C177 -> 0 | D59: ='SB2'!D177 -> 0 | K59: ='SB2'!K177 -> 0 | L59: ='SB2'!L177 -> 0 | M59: ='SB2'!M177 -> 0
A60: Self-insurance
A61: Compensation for Occupational Injuries and Diseases
A62: Employee Benefit
A63: Non-current Provisions
A64: Valuation
A65: Investment in associate account
A66: Capitalisation
C69: ='SB2'!C179 -> 0 | D69: ='SB2'!D179 -> 0 | K69: ='SB2'!K179 -> 0 | L69: ='SB2'!L179 -> 0 | M69: ='SB2'!M179 -> 0
C70: =SUM(C58:C69) -> 0 | D70: =SUM(D58:D69) -> 0 | K70: =SUM(K58:K69) -> 0 | L70: 0 | M70: 0

Sheet B9-Asset
A1: =muni&" - "&_ADJ9&" - "&Date -> Choose name from list - Table B9 Asset Management -
A2: =desc -> Description | B2: =head27 -> Ref | C2: =Head2 -> Budget Year 2023/24 | L2: =Head10 -> Budget Year +1 2024/25 | M2: =Head11 -> Budget Year +2 2025/26
C3: =Head6 -> Original Budget | D3: =Head54 -> Prior Adjusted | E3: =Head51 -> Accum. Funds | F3: =Head52 -> Multi-year capital | G3: =Head53 -> Unfore. Unavoid. | H3: =Head55 -> Nat. or Prov. Govt | I3: =Head50 -> Other Adjusts. | J3: =Head56 -> Total Adjusts. | K3: =Head7 -> Adjusted Budget | L3: =Head7 -> Adjusted Budget | M3: =Head7 -> Adjusted Budget
D4: 7 | E4: 8 | F4: 9 | G4: 10 | H4: 11 | I4: 12 | J4: 13 | K4: 14
A5: R thousands | C5: A | D5: A1 | E5: B | F5: C | G5: D | H5: E | I5: F | J5: G | K5: H
A6: CAPITAL EXPENDITURE
A7: Total New Assets to be adjusted | B7: 1 | C7: =C17+C20+C21+C24+C27+C28+SUM(C31:C37)+C40 -> 507939554 | D7: =D17+D20+D21+D24+D27+D28+SUM(D31:D37)+D40 -> 0 | E7: 0 | F7: 0 | G7: 0 | H7: 0 | I7: -83712482.05 | J7: -83712482.05 | K7: 424227071.9 | L7: 176246098.2 | M7: 161493363.9
A8: Roads Infrastructure | C8: =SB18a!C9 -> 2250000 | D8: =SB18a!D9 -> 0 | E8: =SB18a!E9 -> 0 | F8: =SB18a!F9 -> 0 | G8: =SB18a!G9 -> 0 | H8: =SB18a!H9 -> 0 | I8: =SB18a!I9 -> 0 | J8: =SB18a!J9 -> 0 | K8: =SB18a!K9 -> 2250000 | L8: =SB18a!L9 -> 2250000 | M8: =SB18a!M9 -> 2250000
A9: Storm water Infrastructure | C9: =SB18a!C14 -> 0 | D9: =SB18a!D14 -> 0 | E9: =SB18a!E14 -> 0 | F9: =SB18a!F14 -> 0 | G9: =SB18a!G14 -> 0 | H9: =SB18a!H14 -> 0 | I9: =SB18a!I14 -> 0 | J9: =SB18a!J14 -> 0 | K9: =SB18a!K14 -> 0 | L9: =SB18a!L14 -> 0 | M9: =SB18a!M14 -> 0
A10: Electrical Infrastructure | C10: =SB18a!C18 -> 194000000 | D10: =SB18a!D18 -> 0 | E10: =SB18a!E18 -> 0 | F10: =SB18a!F18 -> 0 | G10: =SB18a!G18 -> 0 | H10: =SB18a!H18 -> 0 | I10: =SB18a!I18 -> -87325050 | J10: =SB18a!J18 -> -87325050 | K10: =SB18a!K18 -> 106674950 | L10: =SB18a!L18 -> 28967852 | M10: =SB18a!M18 -> 29632523.9
A11: Water Supply Infrastructure | C11: =SB18a!C28 -> 29860000 | D11: =SB18a!D28 -> 0 | E11: =SB18a!E28 -> 0 | F11: =SB18a!F28 -> 0 | G11: =SB18a!G28 -> 0 | H11: =SB18a!H28 -> 0 | I11: =SB18a!I28 -> -7000000 | J11: =SB18a!J28 -> -7000000 | K11: =SB18a!K28 -> 22860000 | L11: =SB18a!L28 -> 19780000 | M11: =SB18a!M28 -> 29360000
A12: Sanitation Infrastructure | C12: =SB18a!C39 -> 65477640 | D12: =SB18a!D39 -> 0 | E12: =SB18a!E39 -> 0 | F12: =SB18a!F39 -> 0 | G12: =SB18a!G39 -> 0 | H12: =SB18a!H39 -> 0 | I12: =SB18a!I39 -> -36101000 | J12: =SB18a!J39 -> -36101000 | K12: =SB18a!K39 -> 29376640 | L12: =SB18a!L39 -> 65339400 | M12: =SB18a!M39 -> 37182960
A13: Solid Waste Infrastructure | C13: =SB18a!C46 -> 0 | D13: =SB18a!D46 -> 0 | E13: =SB18a!E46 -> 0 | F13: =SB18a!F46 -> 0 | G13: =SB18a!G46 -> 0 | H13: =SB18a!H46 -> 0 | I13: =SB18a!I46 -> 0 | J13: =SB18a!J46 -> 0 | K13: =SB18a!K46 -> 0 | L13: =SB18a!L46 -> 0 | M13: =SB18a!M46 -> 0
A14: Rail Infrastructure | C14: =SB18a!C54 -> 0 | D14: =SB18a!D54 -> 0 | E14: =SB18a!E54 -> 0 | F14: =SB18a!F54 -> 0 | G14: =SB18a!G54 -> 0 | H14: =SB18a!H54 -> 0 | I14: =SB18a!I54 -> 0 | J14: =SB18a!J54 -> 0 | K14: =SB18a!K54 -> 0 | L14: =SB18a!L54 -> 0 | M14: =SB18a!M54 -> 0
A15: Coastal Infrastructure | C15: =SB18a!C64 -> 0 | D15: =SB18a!D64 -> 0 | E15: =SB18a!E64 -> 0 | F15: =SB18a!F64 -> 0 | G15: =SB18a!G64 -> 0 | H15: =SB18a!H64 -> 0 | I15: =SB18a!I64 -> 0 | J15: =SB18a!J64 -> 0 | K15: =SB18a!K64 -> 0 | L15: =SB18a!L64 -> 0 | M15: =SB18a!M64 -> 0
A16: Information and Communication Infrastructure | C16: =SB18a!C70 -> 0 | D16: =SB18a!D70 -> 0 | E16: =SB18a!E70 -> 0 | F16: =SB18a!F70 -> 0 | G16: =SB18a!G70 -> 0 | H16: =SB18a!H70 -> 0 | I16: =SB18a!I70 -> 0 | J16: =SB18a!J70 -> 0 | K16: =SB18a!K70 -> 0 | L16: =SB18a!L70 -> 0 | M16: =SB18a!M70 -> 0
A17: Infrastructure | C17: =SUM(C8:C16) -> 291587640 | D17: =SUM(D8:D16) -> 0 | E17: 0 | F17: 0 | G17: 0 | H17: 0 | I17: -130426050 | J17: -130426050 | K17: 161161590 | L17: 116337252 | M17: 98425483.9
A18: Community Facilities | C18: =SB18a!C77 -> 25607499.05 | D18: =SB18a!D77 -> 0 | E18: =SB18a!E77 -> 0 | F18: =SB18a!F77 -> 0 | G18: =SB18a!G77 -> 0 | H18: =SB18a!H77 -> 0 | I18: =SB18a!I77 -> -2364232.05 | J18: =SB18a!J77 -> -2364232.05 | K18: =SB18a!K77 -> 23243267 | L18: =SB18a!L77 -> 13770098.2 | M18: =SB18a!M77 -> 19929131.8
A19: Sport and Recreation Facilities | C19: =SB18a!C100 -> 0 | D19: =SB18a!D100 -> 0 | E19: =SB18a!E100 -> 0 | F19: =SB18a!F100 -> 0 | G19: =SB18a!G100 -> 0 | H19: =SB18a!H100 -> 0 | I19: =SB18a!I100 -> 0 | J19: =SB18a!J100 -> 0 | K19: =SB18a!K100 -> 0 | L19: =SB18a!L100 -> 0 | M19: =SB18a!M100 -> 0
A20: Community Assets | C20: =SUM(C18:C19) -> 25607499.05 | D20: =SUM(D18:D19) -> 0 | E20: 0 | F20: 0 | G20: 0 | H20: 0 | I20: -2364232.05 | J20: -2364232.05 | K20: 23243267 | L20: 13770098.2 | M20: 19929131.8
A21: Heritage Assets | C21: =SB18a!C105 -> 0 | D21: =SB18a!D105 -> 0 | E21: =SB18a!E105 -> 0 | F21: =SB18a!F105 -> 0 | G21: =SB18a!G105 -> 0 | H21: =SB18a!H105 -> 0 | I21: =SB18a!I105 -> 0 | J21: =SB18a!J105 -> 0 | K21: =SB18a!K105 -> 0 | L21: =SB18a!L105 -> 0 | M21: =SB18a!M105 -> 0
A22: Revenue Generating | C22: =SB18a!C113 -> 0 | D22: =SB18a!D113 -> 0 | E22: =SB18a!E113 -> 0 | F22: =SB18a!F113 -> 0 | G22: =SB18a!G113 -> 0 | H22: =SB18a!H113 -> 0 | I22: =SB18a!I113 -> 0 | J22: =SB18a!J113 -> 0 | K22: =SB18a!K113 -> 0 | L22: =SB18a!L113 -> 0 | M22: =SB18a!M113 -> 0
A23: Non-revenue Generating | C23: =SB18a!C116 -> 0 | D23: =SB18a!D116 -> 0 | E23: =SB18a!E116 -> 0 | F23: =SB18a!F116 -> 0 | G23: =SB18a!G116 -> 0 | H23: =SB18a!H116 -> 0 | I23: =SB18a!I116 -> 0 | J23: =SB18a!J116 -> 0 | K23: =SB18a!K116 -> 0 | L23: =SB18a!L116 -> 0 | M23: =SB18a!M116 -> 0
A24: Investment properties | C24: =SUM(C22:C23) -> 0 | D24: =SUM(D22:D23) -> 0 | E24: 0 | F24: 0 | G24: 0 | H24: 0 | I24: 0 | J24: 0 | K24: 0 | L24: 0 | M24: 0
A25: Operational Buildings | C25: =SB18a!C121 -> 10000000 | D25: =SB18a!D121 -> 0 | E25: =SB18a!E121 -> 0 | F25: =SB18a!F121 -> 0 | G25: =SB18a!G121 -> 0 | H25: =SB18a!H121 -> 0 | I25: =SB18a!I121 -> -6825260 | J25: =SB18a!J121 -> -6825260 | K25: =SB18a!K121 -> 3174740 | L25: =SB18a!L121 -> 3138748 | M25: =SB18a!M121 -> 0
A26: Housing | C26: =SB18a!C133 -> 135545414.9 | D26: =SB18a!D133 -> 0 | E26: =SB18a!E133 -> 0 | F26: =SB18a!F133 -> 0 | G26: =SB18a!G133 -> 0 | H26: =SB18a!H133 -> 0 | I26: =SB18a!I133 -> -4360000 | J26: =SB18a!J133 -> -4360000 | K26: =SB18a!K133 -> 131185415 | L26: =SB18a!L133 -> 3000000 | M26: =SB18a!M133 -> 3138748.2
A27: Other Assets | B27: 6 | C27: =SUM(C25:C26) -> 145545414.9 | D27: =SUM(D25:D26) -> 0 | E27: 0 | F27: 0 | G27: 0 | H27: 0 | I27: -11185260 | J27: -11185260 | K27: 134360154.9 | L27: 6138748 | M27: 3138748.2
A28: Biological or Cultivated Assets | C28: =SB18a!C138 -> 0 | D28: =SB18a!D138 -> 0 | E28: =SB18a!E138 -> 0 | F28: =SB18a!F138 -> 0 | G28: =SB18a!G138 -> 0 | H28: =SB18a!H138 -> 0 | I28: =SB18a!I138 -> 0 | J28: =SB18a!J138 -> 0 | K28: =SB18a!K138 -> 0 | L28: =SB18a!L138 -> 0 | M28: =SB18a!M138 -> 0
A29: Servitudes | C29: =SB18a!C142 -> 30000000 | D29: =SB18a!D142 -> 0 | E29: =SB18a!E142 -> 0 | F29: =SB18a!F142 -> 0 | G29: =SB18a!G142 -> 0 | H29: =SB18a!H142 -> 0 | I29: =SB18a!I142 -> 0 | J29: =SB18a!J142 -> 0 | K29: =SB18a!K142 -> 30000000 | L29: =SB18a!L142 -> 30000000 | M29: =SB18a!M142 -> 30000000
A30: Licences and Rights | C30: =SB18a!C143 -> 0 | D30: =SB18a!D143 -> 0 | E30: =SB18a!E143 -> 0 | F30: =SB18a!F143 -> 0 | G30: =SB18a!G143 -> 0 | H30: =SB18a!H143 -> 0 | I30: =SB18a!I143 -> 0 | J30: =SB18a!J143 -> 0 | K30: =SB18a!K143 -> 0 | L30: =SB18a!L143 -> 0 | M30: =SB18a!M143 -> 0
A31: Intangible Assets | C31: =SUM(C29:C30) -> 30000000 | D31: =SUM(D29:D30) -> 0 | E31: 0 | F31: 0 | G31: 0 | H31: 0 | I31: 0 | J31: 0 | K31: 30000000 | L31: 30000000 | M31: 30000000
A32: Computer Equipment | C32: =SB18a!C151 -> 0 | D32: =SB18a!D151 -> 0 | E32: =SB18a!E151 -> 0 | F32: =SB18a!F151 -> 0 | G32: =SB18a!G151 -> 0 | H32: =SB18a!H151 -> 0 | I32: =SB18a!I151 -> 0 | J32: =SB18a!J151 -> 0 | K32: =SB18a!K151 -> 0 | L32: =SB18a!L151 -> 0 | M32: =SB18a!M151 -> 0
A33: Furniture and Office Equipment | C33: =SB18a!C154 -> 15000000 | D33: =SB18a!D154 -> 0 | E33: =SB18a!E154 -> 0 | F33: =SB18a!F154 -> 0 | G33: =SB18a!G154 -> 0 | H33: =SB18a!H154 -> 0 | I33: =SB18a!I154 -> 9899006 | J33: =SB18a!J154 -> 9899006 | K33: =SB18a!K154 -> 24899006 | L33: =SB18a!L154 -> 10000000 | M33: =SB18a!M154 -> 10000000
A34: Machinery and Equipment | C34: =SB18a!C157 -> 199000 | D34: =SB18a!D157 -> 0 | E34: =SB18a!E157 -> 0 | F34: =SB18a!F157 -> 0 | G34: =SB18a!G157 -> 0 | H34: =SB18a!H157 -> 0 | I34: =SB18a!I157 -> 28261254 | J34: =SB18a!J157 -> 28261254 | K34: =SB18a!K157 -> 28460254 | L34: =SB18a!L157 -> 0 | M34: =SB18a!M157 -> 0
A35: Transport Assets | C35: =SB18a!C160 -> 0 | D35: =SB18a!D160 -> 0 | E35: =SB18a!E160 -> 0 | F35: =SB18a!F160 -> 0 | G35: =SB18a!G160 -> 0 | H35: =SB18a!H160 -> 0 | I35: =SB18a!I160 -> 22102800 | J35: =SB18a!J160 -> 22102800 | K35: =SB18a!K160 -> 22102800 | L35: =SB18a!L160 -> 0 | M35: =SB18a!M160 -> 0
A36: Land | C36: =SB18a!C163 -> 0 | D36: =SB18a!D163 -> 0 | E36: =SB18a!E163 -> 0 | F36: =SB18a!F163 -> 0 | G36: =SB18a!G163 -> 0 | H36: =SB18a!H163 -> 0 | I36: =SB18a!I163 -> 0 | J36: =SB18a!J163 -> 0 | K36: =SB18a!K163 -> 0 | L36: =SB18a!L163 -> 0 | M36: =SB18a!M163 -> 0
A37: Zoo's, Marine and Non-biological Animals | C37: =SB18a!C166 -> 0 | D37: =SB18a!D166 -> 0 | E37: =SB18a!E166 -> 0 | F37: =SB18a!F166 -> 0 | G37: =SB18a!G166 -> 0 | H37: =SB18a!H166 -> 0 | I37: =SB18a!I166 -> 0 | J37: =SB18a!J166 -> 0 | K37: =SB18a!K166 -> 0 | L37: =SB18a!L166 -> 0 | M37: =SB18a!M166 -> 0
A38: Mature | C38: =+SB18a!C170 -> 0 | D38: =+SB18a!D170 -> 0 | E38: =+SB18a!E170 -> 0 | F38: =+SB18a!F170 -> 0 | G38: =+SB18a!G170 -> 0 | H38: =+SB18a!H170 -> 0 | I38: =+SB18a!I170 -> 0 | J38: =+SB18a!J170 -> 0 | K38: =+SB18a!K170 -> 0 | L38: =+SB18a!L170 -> 0 | M38: =+SB18a!M170 -> 0
A39: Immature | C39: =+SB18a!C173 -> 0 | D39: =+SB18a!D173 -> 0 | E39: =+SB18a!E173 -> 0 | F39: =+SB18a!F173 -> 0 | G39: =+SB18a!G173 -> 0 | H39: =+SB18a!H173 -> 0 | I39: =+SB18a!I173 -> 0 | J39: =+SB18a!J173 -> 0 | K39: =+SB18a!K173 -> 0 | L39: =+SB18a!L173 -> 0 | M39: =+SB18a!M173 -> 0
A40: Living Resources | C40: =+C38+C39 -> 0 | D40: =+D38+D39 -> 0 | E40: 0 | F40: 0 | G40: 0 | H40: 0 | I40: 0 | J40: 0 | K40: 0 | L40: 0 | M40: 0
A42: Total Renewal of Existing Assets to be adjusted | B42: 2 | C42: =C52+C55+C56+C59+C62+C63+SUM(C66:C72)+C75 -> 55356000 | D42: =D52+D55+D56+D59+D62+D63+SUM(D66:D72)+D75 -> 0 | E42: 0 | F42: 0 | G42: 0 | H42: 0 | I42: -20847527.42 | J42: -20847527.42 | K42: 34508472.58 | L42: 60750000 | M42: 70750000
A43: Roads Infrastructure | C43: =SB18b!C9 -> 33150000 | D43: =SB18b!D9 -> 0 | E43: =SB18b!E9 -> 0 | F43: =SB18b!F9 -> 0 | G43: =SB18b!G9 -> 0 | H43: =SB18b!H9 -> 0 | I43: =SB18b!I9 -> -13150000 | J43: =SB18b!J9 -> -13150000 | K43: =SB18b!K9 -> 20000000 | L43: =SB18b!L9 -> 45750000 | M43: =SB18b!M9 -> 54750000
A44: Storm water Infrastructure | C44: =SB18b!C14 -> 0 | D44: =SB18b!D14 -> 0 | E44: =SB18b!E14 -> 0 | F44: =SB18b!F14 -> 0 | G44: =SB18b!G14 -> 0 | H44: =SB18b!H14 -> 0 | I44: =SB18b!I14 -> 0 | J44: =SB18b!J14 -> 0 | K44: =SB18b!K14 -> 0 | L44: =SB18b!L14 -> 0 | M44: =SB18b!M14 -> 0
A45: Electrical Infrastructure | C45: =SB18b!C18 -> 0 | D45: =SB18b!D18 -> 0 | E45: =SB18b!E18 -> 0 | F45: =SB18b!F18 -> 0 | G45: =SB18b!G18 -> 0 | H45: =SB18b!H18 -> 0 | I45: =SB18b!I18 -> 0 | J45: =SB18b!J18 -> 0 | K45: =SB18b!K18 -> 0 | L45: =SB18b!L18 -> 0 | M45: =SB18b!M18 -> 0
A46: Water Supply Infrastructure | C46: =SB18b!C28 -> 0 | D46: =SB18b!D28 -> 0 | E46: =SB18b!E28 -> 0 | F46: =SB18b!F28 -> 0 | G46: =SB18b!G28 -> 0 | H46: =SB18b!H28 -> 0 | I46: =SB18b!I28 -> 7000000 | J46: =SB18b!J28 -> 7000000 | K46: =SB18b!K28 -> 7000000 | L46: =SB18b!L28 -> 0 | M46: =SB18b!M28 -> 0
A47: Sanitation Infrastructure | C47: =SB18b!C39 -> 0 | D47: =SB18b!D39 -> 0 | E47: =SB18b!E39 -> 0 | F47: =SB18b!F39 -> 0 | G47: =SB18b!G39 -> 0 | H47: =SB18b!H39 -> 0 | I47: =SB18b!I39 -> 0 | J47: =SB18b!J39 -> 0 | K47: =SB18b!K39 -> 0 | L47: =SB18b!L39 -> 0 | M47: =SB18b!M39 -> 0
A48: Solid Waste Infrastructure | C48: =SB18b!C46 -> 0 | D48: =SB18b!D46 -> 0 | E48: =SB18b!E46 -> 0 | F48: =SB18b!F46 -> 0 | G48: =SB18b!G46 -> 0 | H48: =SB18b!H46 -> 0 | I48: =SB18b!I46 -> 0 | J48: =SB18b!J46 -> 0 | K48: =SB18b!K46 -> 0 | L48: =SB18b!L46 -> 0 | M48: =SB18b!M46 -> 0
A49: Rail Infrastructure | C49: =SB18b!C54 -> 0 | D49: =SB18b!D54 -> 0 | E49: =SB18b!E54 -> 0 | F49: =SB18b!F54 -> 0 | G49: =SB18b!G54 -> 0 | H49: =SB18b!H54 -> 0 | I49: =SB18b!I54 -> 0 | J49: =SB18b!J54 -> 0 | K49: =SB18b!K54 -> 0 | L49: =SB18b!L54 -> 0 | M49: =SB18b!M54 -> 0
A50: Coastal Infrastructure | C50: =SB18b!C64 -> 14206000 | D50: =SB18b!D64 -> 0 | E50: =SB18b!E64 -> 0 | F50: =SB18b!F64 -> 0 | G50: =SB18b!G64 -> 0 | H50: =SB18b!H64 -> 0 | I50: =SB18b!I64 -> -14206000 | J50: =SB18b!J64 -> -14206000 | K50: =SB18b!K64 -> 0 | L50: =SB18b!L64 -> 7500000 | M50: =SB18b!M64 -> 8000000
A51: Information and Communication Infrastructure | C51: =SB18b!C70 -> 0 | D51: =SB18b!D70 -> 0 | E51: =SB18b!E70 -> 0 | F51: =SB18b!F70 -> 0 | G51: =SB18b!G70 -> 0 | H51: =SB18b!H70 -> 0 | I51: =SB18b!I70 -> 0 | J51: =SB18b!J70 -> 0 | K51: =SB18b!K70 -> 0 | L51: =SB18b!L70 -> 0 | M51: =SB18b!M70 -> 0
A52: Infrastructure | C52: =SUM(C43:C51) -> 47356000 | D52: =SUM(D43:D51) -> 0 | E52: 0 | F52: 0 | G52: 0 | H52: 0 | I52: -20356000 | J52: -20356000 | K52: 27000000 | L52: 53250000 | M52: 62750000
A53: Community Facilities | C53: =SB18b!C77 -> 8000000 | D53: =SB18b!D77 -> 0 | E53: =SB18b!E77 -> 0 | F53: =SB18b!F77 -> 0 | G53: =SB18b!G77 -> 0 | H53: =SB18b!H77 -> 0 | I53: =SB18b!I77 -> -8000000 | J53: =SB18b!J77 -> -8000000 | K53: =SB18b!K77 -> 0 | L53: =SB18b!L77 -> 7500000 | M53: =SB18b!M77 -> 8000000
A54: Sport and Recreation Facilities | C54: =SB18b!C100 -> 0 | D54: =SB18b!D100 -> 0 | E54: =SB18b!E100 -> 0 | F54: =SB18b!F100 -> 0 | G54: =SB18b!G100 -> 0 | H54: =SB18b!H100 -> 0 | I54: =SB18b!I100 -> 0 | J54: =SB18b!J100 -> 0 | K54: =SB18b!K100 -> 0 | L54: =SB18b!L100 -> 0 | M54: =SB18b!M100 -> 0
A55: Community Assets | C55: =SUM(C53:C54) -> 8000000 | D55: =SUM(D53:D54) -> 0 | E55: 0 | F55: 0 | G55: 0 | H55: 0 | I55: -8000000 | J55: -8000000 | K55: 0 | L55: 7500000 | M55: 8000000
A56: Heritage Assets | C56: =SB18b!C105 -> 0 | D56: =SB18b!D105 -> 0 | E56: =SB18b!E105 -> 0 | F56: =SB18b!F105 -> 0 | G56: =SB18b!G105 -> 0 | H56: =SB18b!H105 -> 0 | I56: =SB18b!I105 -> 0 | J56: =SB18b!J105 -> 0 | K56: =SB18b!K105 -> 0 | L56: =SB18b!L105 -> 0 | M56: =SB18b!M105 -> 0
A57: Revenue Generating | C57: =SB18b!C113 -> 0 | D57: =SB18b!D113 -> 0 | E57: =SB18b!E113 -> 0 | F57: =SB18b!F113 -> 0 | G57: =SB18b!G113 -> 0 | H57: =SB18b!H113 -> 0 | I57: =SB18b!I113 -> 0 | J57: =SB18b!J113 -> 0 | K57: =SB18b!K113 -> 0 | L57: =SB18b!L113 -> 0 | M57: =SB18b!M113 -> 0
A58: Non-revenue Generating | C58: =SB18b!C116 -> 0 | D58: =SB18b!D116 -> 0 | E58: =SB18b!E116 -> 0 | F58: =SB18b!F116 -> 0 | G58: =SB18b!G116 -> 0 | H58: =SB18b!H116 -> 0 | I58: =SB18b!I116 -> 0 | J58: =SB18b!J116 -> 0 | K58: =SB18b!K116 -> 0 | L58: =SB18b!L116 -> 0 | M58: =SB18b!M116 -> 0
A59: Investment properties | C59: =SUM(C57:C58) -> 0 | D59: =SUM(D57:D58) -> 0 | E59: 0 | F59: 0 | G59: 0 | H59: 0 | I59: 0 | J59: 0 | K59: 0 | L59: 0 | M59: 0
A60: Operational Buildings | C60: =SB18b!C121 -> 0 | D60: =SB18b!D121 -> 0 | E60: =SB18b!E121 -> 0 | F60: =SB18b!F121 -> 0 | G60: =SB18b!G121 -> 0 | H60: =SB18b!H121 -> 0 | I60: =SB18b!I121 -> 7508472.58 | J60: =SB18b!J121 -> 7508472.58 | K60: =SB18b!K121 -> 7508472.58 | L60: =SB18b!L121 -> 0 | M60: =SB18b!M121 -> 0
A61: Housing | C61: =SB18b!C133 -> 0 | D61: =SB18b!D133 -> 0 | E61: =SB18b!E133 -> 0 | F61: =SB18b!F133 -> 0 | G61: =SB18b!G133 -> 0 | H61: =SB18b!H133 -> 0 | I61: =SB18b!I133 -> 0 | J61: =SB18b!J133 -> 0 | K61: =SB18b!K133 -> 0 | L61: =SB18b!L133 -> 0 | M61: =SB18b!M133 -> 0
A62: Other Assets | B62: 6 | C62: =SUM(C60:C61) -> 0 | D62: =SUM(D60:D61) -> 0 | E62: 0 | F62: 0 | G62: 0 | H62: 0 | I62: 7508472.58 | J62: 7508472.58 | K62: 7508472.58 | L62: 0 | M62: 0
A63: Biological or Cultivated Assets | C63: =SB18b!C138 -> 0 | D63: =SB18b!D138 -> 0 | E63: =SB18b!E138 -> 0 | F63: =SB18b!F138 -> 0 | G63: =SB18b!G138 -> 0 | H63: =SB18b!H138 -> 0 | I63: =SB18b!I138 -> 0 | J63: =SB18b!J138 -> 0 | K63: =SB18b!K138 -> 0 | L63: =SB18b!L138 -> 0 | M63: =SB18b!M138 -> 0
A64: Servitudes | C64: =SB18b!C142 -> 0 | D64: =SB18b!D142 -> 0 | E64: =SB18b!E142 -> 0 | F64: =SB18b!F142 -> 0 | G64: =SB18b!G142 -> 0 | H64: =SB18b!H142 -> 0 | I64: =SB18b!I142 -> 0 | J64: =SB18b!J142 -> 0 | K64: =SB18b!K142 -> 0 | L64: =SB18b!L142 -> 0 | M64: =SB18b!M142 -> 0
A65: Licences and Rights | C65: =SB18b!C143 -> 0 | D65: =SB18b!D143 -> 0 | E65: =SB18b!E143 -> 0 | F65: =SB18b!F143 -> 0 | G65: =SB18b!G143 -> 0 | H65: =SB18b!H143 -> 0 | I65: =SB18b!I143 -> 0 | J65: =SB18b!J143 -> 0 | K65: =SB18b!K143 -> 0 | L65: =SB18b!L143 -> 0 | M65: =SB18b!M143 -> 0
A66: Intangible Assets | C66: =SUM(C64:C65) -> 0 | D66: =SUM(D64:D65) -> 0 | E66: 0 | F66: 0 | G66: 0 | H66: 0 | I66: 0 | J66: 0 | K66: 0 | L66: 0 | M66: 0
A67: Computer Equipment | C67: =SB18b!C151 -> 0 | D67: =SB18b!D151 -> 0 | E67: =SB18b!E151 -> 0 | F67: =SB18b!F151 -> 0 | G67: =SB18b!G151 -> 0 | H67: =SB18b!H151 -> 0 | I67: =SB18b!I151 -> 0 | J67: =SB18b!J151 -> 0 | K67: =SB18b!K151 -> 0 | L67: =SB18b!L151 -> 0 | M67: =SB18b!M151 -> 0
A68: Furniture and Office Equipment | C68: =SB18b!C154 -> 0 | D68: =SB18b!D154 -> 0 | E68: =SB18b!E154 -> 0 | F68: =SB18b!F154 -> 0 | G68: =SB18b!G154 -> 0 | H68: =SB18b!H154 -> 0 | I68: =SB18b!I154 -> 0 | J68: =SB18b!J154 -> 0 | K68: =SB18b!K154 -> 0 | L68: =SB18b!L154 -> 0 | M68: =SB18b!M154 -> 0
A69: Machinery and Equipment | C69: =SB18b!C157 -> 0 | D69: =SB18b!D157 -> 0 | E69: =SB18b!E157 -> 0 | F69: =SB18b!F157 -> 0 | G69: =SB18b!G157 -> 0 | H69: =SB18b!H157 -> 0 | I69: =SB18b!I157 -> 0 | J69: =SB18b!J157 -> 0 | K69: =SB18b!K157 -> 0 | L69: =SB18b!L157 -> 0 | M69: =SB18b!M157 -> 0
A70: Transport Assets | C70: =SB18b!C160 -> 0 | D70: =SB18b!D160 -> 0 | E70: =SB18b!E160 -> 0 | F70: =SB18b!F160 -> 0 | G70: =SB18b!G160 -> 0 | H70: =SB18b!H160 -> 0 | I70: =SB18b!I160 -> 0 | J70: =SB18b!J160 -> 0 | K70: =SB18b!K160 -> 0 | L70: =SB18b!L160 -> 0 | M70: =SB18b!M160 -> 0
A71: Land | C71: =SB18b!C163 -> 0 | D71: =SB18b!D163 -> 0 | E71: =SB18b!E163 -> 0 | F71: =SB18b!F163 -> 0 | G71: =SB18b!G163 -> 0 | H71: =SB18b!H163 -> 0 | I71: =SB18b!I163 -> 0 | J71: =SB18b!J163 -> 0 | K71: =SB18b!K163 -> 0 | L71: =SB18b!L163 -> 0 | M71: =SB18b!M163 -> 0
A72: Zoo's, Marine and Non-biological Animals | C72: =SB18b!C166 -> 0 | D72: =SB18b!D166 -> 0 | E72: =SB18b!E166 -> 0 | F72: =SB18b!F166 -> 0 | G72: =SB18b!G166 -> 0 | H72: =SB18b!H166 -> 0 | I72: =SB18b!I166 -> 0 | J72: =SB18b!J166 -> 0 | K72: =SB18b!K166 -> 0 | L72: =SB18b!L166 -> 0 | M72: =SB18b!M166 -> 0
A73: Mature | C73: =+SB18b!C170 -> 0 | D73: =+SB18b!D170 -> 0 | E73: =+SB18b!E170 -> 0 | F73: =+SB18b!F170 -> 0 | G73: =+SB18b!G170 -> 0 | H73: =+SB18b!H170 -> 0 | I73: =+SB18b!I170 -> 0 | J73: =+SB18b!J170 -> 0 | K73: =+SB18b!K170 -> 0 | L73: =+SB18b!L170 -> 0 | M73: =+SB18b!M170 -> 0
A74: Immature | C74: =+SB18b!C173 -> 0 | D74: =+SB18b!D173 -> 0 | E74: =+SB18b!E173 -> 0 | F74: =+SB18b!F173 -> 0 | G74: =+SB18b!G173 -> 0 | H74: =+SB18b!H173 -> 0 | I74: =+SB18b!I173 -> 0 | J74: =+SB18b!J173 -> 0 | K74: =+SB18b!K173 -> 0 | L74: =+SB18b!L173 -> 0 | M74: =+SB18b!M173 -> 0
A75: Living Resources | C75: =+C73+C74 -> 0 | D75: 0 | E75: 0 | F75: 0 | G75: 0 | H75: 0 | I75: 0 | J75: 0 | K75: 0 | L75: 0 | M75: 0
A77: Total Upgrading of Existing Assets to be adjusted | B77: 2a | C77: =C87+C90+C91+C94+C97+C98+SUM(C101:C107)+C110 -> 205464500 | D77: =D87+D90+D91+D94+D97+D98+SUM(D101:D107)+D110 -> 0 | E77: 0 | F77: 0 | G77: 0 | H77: 0 | I77: 138343908.9 | J77: 138343908.9 | K77: 343808408.9 | L77: 344313245 | M77: 215638196.1
A78: Roads Infrastructure | C78: =SB18e!C9 -> 38400000 | D78: =SB18e!D9 -> 0 | E78: =SB18e!E9 -> 0 | F78: =SB18e!F9 -> 0 | G78: =SB18e!G9 -> 0 | H78: =SB18e!H9 -> 0 | I78: =SB18e!I9 -> 107958849.1 | J78: =SB18e!J9 -> 107958849.1 | K78: =SB18e!K9 -> 146358849.1 | L78: =SB18e!L9 -> 51091846 | M78: =SB18e!M9 -> 53492336.1
A79: Storm water Infrastructure | C79: =SB18e!C14 -> 0 | D79: =SB18e!D14 -> 0 | E79: =SB18e!E14 -> 0 | F79: =SB18e!F14 -> 0 | G79: =SB18e!G14 -> 0 | H79: =SB18e!H14 -> 0 | I79: =SB18e!I14 -> 0 | J79: =SB18e!J14 -> 0 | K79: =SB18e!K14 -> 0 | L79: =SB18e!L14 -> 0 | M79: =SB18e!M14 -> 0
A80: Electrical Infrastructure | C80: =SB18e!C18 -> 0 | D80: =SB18e!D18 -> 0 | E80: =SB18e!E18 -> 0 | F80: =SB18e!F18 -> 0 | G80: =SB18e!G18 -> 0 | H80: =SB18e!H18 -> 0 | I80: =SB18e!I18 -> 11618316 | J80: =SB18e!J18 -> 11618316 | K80: =SB18e!K18 -> 11618316 | L80: =SB18e!L18 -> 0 | M80: =SB18e!M18 -> 0
A81: Water Supply Infrastructure | C81: =SB18e!C28 -> 106064500 | D81: =SB18e!D28 -> 0 | E81: =SB18e!E28 -> 0 | F81: =SB18e!F28 -> 0 | G81: =SB18e!G28 -> 0 | H81: =SB18e!H28 -> 0 | I81: =SB18e!I28 -> -36444900 | J81: =SB18e!J28 -> -36444900 | K81: =SB18e!K28 -> 69619600 | L81: =SB18e!L28 -> 213383235 | M81: =SB18e!M28 -> 77739423
A82: Sanitation Infrastructure | C82: =SB18e!C39 -> 40300000 | D82: =SB18e!D39 -> 0 | E82: =SB18e!E39 -> 0 | F82: =SB18e!F39 -> 0 | G82: =SB18e!G39 -> 0 | H82: =SB18e!H39 -> 0 | I82: =SB18e!I39 -> 2500000 | J82: =SB18e!J39 -> 2500000 | K82: =SB18e!K39 -> 42800000 | L82: =SB18e!L39 -> 59838164 | M82: =SB18e!M39 -> 64406437
A83: Solid Waste Infrastructure | C83: =SB18e!C46 -> 5000000 | D83: =SB18e!D46 -> 0 | E83: =SB18e!E46 -> 0 | F83: =SB18e!F46 -> 0 | G83: =SB18e!G46 -> 0 | H83: =SB18e!H46 -> 0 | I83: =SB18e!I46 -> 20000000 | J83: =SB18e!J46 -> 20000000 | K83: =SB18e!K46 -> 25000000 | L83: =SB18e!L46 -> 5000000 | M83: =SB18e!M46 -> 5000000
A84: Rail Infrastructure | C84: =SB18e!C54 -> 0 | D84: =SB18e!D54 -> 0 | E84: =SB18e!E54 -> 0 | F84: =SB18e!F54 -> 0 | G84: =SB18e!G54 -> 0 | H84: =SB18e!H54 -> 0 | I84: =SB18e!I54 -> 0 | J84: =SB18e!J54 -> 0 | K84: =SB18e!K54 -> 0 | L84: =SB18e!L54 -> 0 | M84: =SB18e!M54 -> 0
A85: Coastal Infrastructure | C85: =SB18e!C64 -> 0 | D85: =SB18e!D64 -> 0 | E85: =SB18e!E64 -> 0 | F85: =SB18e!F64 -> 0 | G85: =SB18e!G64 -> 0 | H85: =SB18e!H64 -> 0 | I85: =SB18e!I64 -> 0 | J85: =SB18e!J64 -> 0 | K85: =SB18e!K64 -> 0 | L85: =SB18e!L64 -> 0 | M85: =SB18e!M64 -> 0
A86: Information and Communication Infrastructure | C86: =SB18e!C70 -> 0 | D86: =SB18e!D70 -> 0 | E86: =SB18e!E70 -> 0 | F86: =SB18e!F70 -> 0 | G86: =SB18e!G70 -> 0 | H86: =SB18e!H70 -> 0 | I86: =SB18e!I70 -> 0 | J86: =SB18e!J70 -> 0 | K86: =SB18e!K70 -> 0 | L86: =SB18e!L70 -> 0 | M86: =SB18e!M70 -> 0
A87: Infrastructure | C87: =SUM(C78:C86) -> 189764500 | D87: =SUM(D78:D86) -> 0 | E87: 0 | F87: 0 | G87: 0 | H87: 0 | I87: 105632265.1 | J87: 105632265.1 | K87: 295396765.1 | L87: 329313245 | M87: 200638196.1
A88: Community Facilities | C88: =SB18e!C77 -> 0 | D88: =SB18e!D77 -> 0 | E88: =SB18e!E77 -> 0 | F88: =SB18e!F77 -> 0 | G88: =SB18e!G77 -> 0 | H88: =SB18e!H77 -> 0 | I88: =SB18e!I77 -> 0 | J88: =SB18e!J77 -> 0 | K88: =SB18e!K77 -> 0 | L88: =SB18e!L77 -> 0 | M88: =SB18e!M77 -> 0
A89: Sport and Recreation Facilities | C89: =SB18e!C100 -> 0 | D89: =SB18e!D100 -> 0 | E89: =SB18e!E100 -> 0 | F89: =SB18e!F100 -> 0 | G89: =SB18e!G100 -> 0 | H89: =SB18e!H100 -> 0 | I89: =SB18e!I100 -> 8000000 | J89: =SB18e!J100 -> 8000000 | K89: =SB18e!K100 -> 8000000 | L89: =SB18e!L100 -> 0 | M89: =SB18e!M100 -> 0
A90: Community Assets | C90: =SUM(C88:C89) -> 0 | D90: =SUM(D88:D89) -> 0 | E90: 0 | F90: 0 | G90: 0 | H90: 0 | I90: 8000000 | J90: 8000000 | K90: 8000000 | L90: 0 | M90: 0
A91: Heritage Assets | C91: =SB18e!C105 -> 0 | D91: =SB18e!D105 -> 0 | E91: =SB18e!E105 -> 0 | F91: =SB18e!F105 -> 0 | G91: =SB18e!G105 -> 0 | H91: =SB18e!H105 -> 0 | I91: =SB18e!I105 -> 0 | J91: =SB18e!J105 -> 0 | K91: =SB18e!K105 -> 0 | L91: =SB18e!L105 -> 0 | M91: =SB18e!M105 -> 0
A92: Revenue Generating | C92: =SB18e!C113 -> 0 | D92: =SB18e!D113 -> 0 | E92: =SB18e!E113 -> 0 | F92: =SB18e!F113 -> 0 | G92: =SB18e!G113 -> 0 | H92: =SB18e!H113 -> 0 | I92: =SB18e!I113 -> 0 | J92: =SB18e!J113 -> 0 | K92: =SB18e!K113 -> 0 | L92: =SB18e!L113 -> 0 | M92: =SB18e!M113 -> 0
A93: Non-revenue Generating | C93: =SB18e!C116 -> 0 | D93: =SB18e!D116 -> 0 | E93: =SB18e!E116 -> 0 | F93: =SB18e!F116 -> 0 | G93: =SB18e!G116 -> 0 | H93: =SB18e!H116 -> 0 | I93: =SB18e!I116 -> 0 | J93: =SB18e!J116 -> 0 | K93: =SB18e!K116 -> 0 | L93: =SB18e!L116 -> 0 | M93: =SB18e!M116 -> 0
A94: Investment properties | C94: =SUM(C92:C93) -> 0 | D94: =SUM(D92:D93) -> 0 | E94: 0 | F94: 0 | G94: 0 | H94: 0 | I94: 0 | J94: 0 | K94: 0 | L94: 0 | M94: 0
A95: Operational Buildings | C95: =SB18e!C121 -> 10700000 | D95: =SB18e!D121 -> 0 | E95: =SB18e!E121 -> 0 | F95: =SB18e!F121 -> 0 | G95: =SB18e!G121 -> 0 | H95: =SB18e!H121 -> 0 | I95: =SB18e!I121 -> 26411643.78 | J95: =SB18e!J121 -> 26411643.78 | K95: =SB18e!K121 -> 37111643.78 | L95: =SB18e!L121 -> 10000000 | M95: =SB18e!M121 -> 10000000
A96: Housing | C96: =SB18e!C133 -> 0 | D96: =SB18e!D133 -> 0 | E96: =SB18e!E133 -> 0 | F96: =SB18e!F133 -> 0 | G96: =SB18e!G133 -> 0 | H96: =SB18e!H133 -> 0 | I96: =SB18e!I133 -> 0 | J96: =SB18e!J133 -> 0 | K96: =SB18e!K133 -> 0 | L96: =SB18e!L133 -> 0 | M96: =SB18e!M133 -> 0
A97: Other Assets | B97: 6 | C97: =SUM(C95:C96) -> 10700000 | D97: =SUM(D95:D96) -> 0 | E97: 0 | F97: 0 | G97: 0 | H97: 0 | I97: 26411643.78 | J97: 26411643.78 | K97: 37111643.78 | L97: 10000000 | M97: 10000000
A98: Biological or Cultivated Assets | C98: =SB18e!C138 -> 0 | D98: =SB18e!D138 -> 0 | E98: =SB18e!E138 -> 0 | F98: =SB18e!F138 -> 0 | G98: =SB18e!G138 -> 0 | H98: =SB18e!H138 -> 0 | I98: =SB18e!I138 -> 0 | J98: =SB18e!J138 -> 0 | K98: =SB18e!K138 -> 0 | L98: =SB18e!L138 -> 0 | M98: =SB18e!M138 -> 0
A99: Servitudes | C99: =SB18e!C142 -> 0 | D99: =SB18e!D142 -> 0 | E99: =SB18e!E142 -> 0 | F99: =SB18e!F142 -> 0 | G99: =SB18e!G142 -> 0 | H99: =SB18e!H142 -> 0 | I99: =SB18e!I142 -> 0 | J99: =SB18e!J142 -> 0 | K99: =SB18e!K142 -> 0 | L99: =SB18e!L142 -> 0 | M99: =SB18e!M142 -> 0
A100: Licences and Rights | C100: =SB18e!C143 -> 0 | D100: =SB18e!D143 -> 0 | E100: =SB18e!E143 -> 0 | F100: =SB18e!F143 -> 0 | G100: =SB18e!G143 -> 0 | H100: =SB18e!H143 -> 0 | I100: =SB18e!I143 -> 0 | J100: =SB18e!J143 -> 0 | K100: =SB18e!K143 -> 0 | L100: =SB18e!L143 -> 0 | M100: =SB18e!M143 -> 0
A101: Intangible Assets | C101: =SUM(C99:C100) -> 0 | D101: =SUM(D99:D100) -> 0 | E101: 0 | F101: 0 | G101: 0 | H101: 0 | I101: 0 | J101: 0 | K101: 0 | L101: 0 | M101: 0
A102: Computer Equipment | C102: =SB18e!C151 -> 0 | D102: =SB18e!D151 -> 0 | E102: =SB18e!E151 -> 0 | F102: =SB18e!F151 -> 0 | G102: =SB18e!G151 -> 0 | H102: =SB18e!H151 -> 0 | I102: =SB18e!I151 -> 0 | J102: =SB18e!J151 -> 0 | K102: =SB18e!K151 -> 0 | L102: =SB18e!L151 -> 0 | M102: =SB18e!M151 -> 0
A103: Furniture and Office Equipment | C103: =SB18e!C154 -> 0 | D103: =SB18e!D154 -> 0 | E103: =SB18e!E154 -> 0 | F103: =SB18e!F154 -> 0 | G103: =SB18e!G154 -> 0 | H103: =SB18e!H154 -> 0 | I103: =SB18e!I154 -> 0 | J103: =SB18e!J154 -> 0 | K103: =SB18e!K154 -> 0 | L103: =SB18e!L154 -> 0 | M103: =SB18e!M154 -> 0
A104: Machinery and Equipment | C104: =SB18e!C157 -> 0 | D104: =SB18e!D157 -> 0 | E104: =SB18e!E157 -> 0 | F104: =SB18e!F157 -> 0 | G104: =SB18e!G157 -> 0 | H104: =SB18e!H157 -> 0 | I104: =SB18e!I157 -> 0 | J104: =SB18e!J157 -> 0 | K104: =SB18e!K157 -> 0 | L104: =SB18e!L157 -> 0 | M104: =SB18e!M157 -> 0
A105: Transport Assets | C105: =SB18e!C160 -> 5000000 | D105: =SB18e!D160 -> 0 | E105: =SB18e!E160 -> 0 | F105: =SB18e!F160 -> 0 | G105: =SB18e!G160 -> 0 | H105: =SB18e!H160 -> 0 | I105: =SB18e!I160 -> -1700000 | J105: =SB18e!J160 -> -1700000 | K105: =SB18e!K160 -> 3300000 | L105: =SB18e!L160 -> 5000000 | M105: =SB18e!M160 -> 5000000
A106: Land | C106: =SB18e!C163 -> 0 | D106: =SB18e!D163 -> 0 | E106: =SB18e!E163 -> 0 | F106: =SB18e!F163 -> 0 | G106: =SB18e!G163 -> 0 | H106: =SB18e!H163 -> 0 | I106: =SB18e!I163 -> 0 | J106: =SB18e!J163 -> 0 | K106: =SB18e!K163 -> 0 | L106: =SB18e!L163 -> 0 | M106: =SB18e!M163 -> 0
A107: Zoo's, Marine and Non-biological Animals | C107: =SB18e!C166 -> 0 | D107: =SB18e!D166 -> 0 | E107: =SB18e!E166 -> 0 | F107: =SB18e!F166 -> 0 | G107: =SB18e!G166 -> 0 | H107: =SB18e!H166 -> 0 | I107: =SB18e!I166 -> 0 | J107: =SB18e!J166 -> 0 | K107: =SB18e!K166 -> 0 | L107: =SB18e!L166 -> 0 | M107: =SB18e!M166 -> 0
A108: Mature | C108: =SB18e!C170 -> 0 | D108: =SB18e!D170 -> 0 | E108: =SB18e!E170 -> 0 | F108: =SB18e!F170 -> 0 | G108: =SB18e!G170 -> 0 | H108: =SB18e!H170 -> 0 | I108: =SB18e!I170 -> 0 | J108: =SB18e!J170 -> 0 | K108: =SB18e!K170 -> 0 | L108: =SB18e!L170 -> 0 | M108: =SB18e!M170 -> 0
A109: Immature | C109: =SB18e!C173 -> 0 | D109: =SB18e!D173 -> 0 | E109: =SB18e!E173 -> 0 | F109: =SB18e!F173 -> 0 | G109: =SB18e!G173 -> 0 | H109: =SB18e!H173 -> 0 | I109: =SB18e!I173 -> 0 | J109: =SB18e!J173 -> 0 | K109: =SB18e!K173 -> 0 | L109: =SB18e!L173 -> 0 | M109: =SB18e!M173 -> 0
A110: Living Resources | C110: =+C108+C109 -> 0 | D110: 0 | E110: 0 | F110: 0 | G110: 0 | H110: 0 | I110: 0 | J110: 0 | K110: 0 | L110: 0 | M110: 0
A112: Total Capital Expenditure to be adjusted | B112: 4 | C112: =C7+C42+C77 -> 768760054 | D112: 0 | E112: 0 | F112: 0 | G112: 0 | H112: 0 | I112: 33783899.45 | J112: 33783899.45 | K112: 802543953.4 | L112: 581309343.2 | M112: 447881560
A113: Roads Infrastructure | C113: =C8+C43+C78 -> 73800000 | D113: 0 | E113: 0 | F113: 0 | G113: 0 | H113: 0 | I113: 94808849.14 | J113: 94808849.14 | K113: 168608849.1 | L113: 99091846 | M113: 110492336.1
A114: Storm water Infrastructure | C114: =C9+C44+C79 -> 0 | D114: 0 | E114: 0 | F114: 0 | G114: 0 | H114: 0 | I114: 0 | J114: 0 | K114: 0 | L114: 0 | M114: 0
A115: Electrical Infrastructure | C115: =C10+C45+C80 -> 194000000 | D115: 0 | E115: 0 | F115: 0 | G115: 0 | H115: 0 | I115: -75706734 | J115: -75706734 | K115: 118293266 | L115: 28967852 | M115: 29632523.9
A116: Water Supply Infrastructure | C116: =C11+C46+C81 -> 135924500 | D116: 0 | E116: 0 | F116: 0 | G116: 0 | H116: 0 | I116: -36444900 | J116: -36444900 | K116: 99479600 | L116: 233163235 | M116: 107099423
A117: Sanitation Infrastructure | C117: =C12+C47+C82 -> 105777640 | D117: 0 | E117: 0 | F117: 0 | G117: 0 | H117: 0 | I117: -33601000 | J117: -33601000 | K117: 72176640 | L117: 125177564 | M117: 101589397
A118: Solid Waste Infrastructure | C118: =C13+C48+C83 -> 5000000 | D118: 0 | E118: 0 | F118: 0 | G118: 0 | H118: 0 | I118: 20000000 | J118: 20000000 | K118: 25000000 | L118: 5000000 | M118: 5000000
A119: Rail Infrastructure | C119: =C14+C49+C84 -> 0 | D119: 0 | E119: 0 | F119: 0 | G119: 0 | H119: 0 | I119: 0 | J119: 0 | K119: 0 | L119: 0 | M119: 0
A120: Coastal Infrastructure | C120: =C15+C50+C85 -> 14206000 | D120: 0 | E120: 0 | F120: 0 | G120: 0 | H120: 0 | I120: -14206000 | J120: -14206000 | K120: 0 | L120: 7500000 | M120: 8000000
A121: Information and Communication Infrastructure | C121: =C16+C51+C86 -> 0 | D121: 0 | E121: 0 | F121: 0 | G121: 0 | H121: 0 | I121: 0 | J121: 0 | K121: 0 | L121: 0 | M121: 0
A122: Infrastructure | C122: =C17+C52+C87 -> 528708140 | D122: 0 | E122: 0 | F122: 0 | G122: 0 | H122: 0 | I122: -45149784.86 | J122: -45149784.86 | K122: 483558355.1 | L122: 498900497 | M122: 361813680
A123: Community Facilities | C123: =C18+C53+C88 -> 33607499.05 | D123: 0 | E123: 0 | F123: 0 | G123: 0 | H123: 0 | I123: -10364232.05 | J123: -10364232.05 | K123: 23243267 | L123: 21270098.2 | M123: 27929131.8
A124: Sport and Recreation Facilities | C124: =C19+C54+C89 -> 0 | D124: 0 | E124: 0 | F124: 0 | G124: 0 | H124: 0 | I124: 8000000 | J124: 8000000 | K124: 8000000 | L124: 0 | M124: 0
A125: Community Assets | C125: =C20+C55+C90 -> 33607499.05 | D125: 0 | E125: 0 | F125: 0 | G125: 0 | H125: 0 | I125: -2364232.05 | J125: -2364232.05 | K125: 31243267 | L125: 21270098.2 | M125: 27929131.8
A126: Heritage Assets | C126: =C21+C56+C91 -> 0 | D126: 0 | E126: 0 | F126: 0 | G126: 0 | H126: 0 | I126: 0 | J126: 0 | K126: 0 | L126: 0 | M126: 0
A127: Revenue Generating | C127: =C22+C57+C92 -> 0 | D127: 0 | E127: 0 | F127: 0 | G127: 0 | H127: 0 | I127: 0 | J127: 0 | K127: 0 | L127: 0 | M127: 0
A128: Non-revenue Generating | C128: =C23+C58+C93 -> 0 | D128: =D23+D58+D93 -> 0 | E128: 0 | F128: 0 | G128: 0 | H128: 0 | I128: 0 | J128: 0 | K128: 0 | L128: 0 | M128: 0
A129: Investment properties | C129: 0 | D129: =D24+D59+D94 -> 0 | E129: 0 | F129: 0 | G129: 0 | H129: 0 | I129: 0 | J129: 0 | K129: 0 | L129: 0 | M129: 0
A130: Operational Buildings | C130: 20700000 | D130: =D25+D60+D95 -> 0 | E130: 0 | F130: 0 | G130: 0 | H130: 0 | I130: 27094856.36 | J130: 27094856.36 | K130: 47794856.36 | L130: 13138748 | M130: 10000000
A131: Housing | C131: 135545414.9 | D131: =D26+D61+D96 -> 0 | E131: 0 | F131: 0 | G131: 0 | H131: 0 | I131: -4360000 | J131: -4360000 | K131: 131185415 | L131: 3000000 | M131: 3138748.2
A132: Other Assets | C132: 156245414.9 | D132: =D27+D62+D97 -> 0 | E132: 0 | F132: 0 | G132: 0 | H132: 0 | I132: 22734856.36 | J132: 22734856.36 | K132: 178980271.3 | L132: 16138748 | M132: 13138748.2
A133: Biological or Cultivated Assets | C133: 0 | D133: =D28+D63+D98 -> 0 | E133: 0 | F133: 0 | G133: 0 | H133: 0 | I133: 0 | J133: 0 | K133: 0 | L133: 0 | M133: 0
A134: Servitudes | C134: 30000000 | D134: =D29+D64+D99 -> 0 | E134: 0 | F134: 0 | G134: 0 | H134: 0 | I134: 0 | J134: 0 | K134: 30000000 | L134: 30000000 | M134: 30000000
A135: Licences and Rights | C135: 0 | D135: =D30+D65+D100 -> 0 | E135: 0 | F135: 0 | G135: 0 | H135: 0 | I135: 0 | J135: 0 | K135: 0 | L135: 0 | M135: 0
A136: Intangible Assets | C136: 30000000 | D136: =D31+D66+D101 -> 0 | E136: 0 | F136: 0 | G136: 0 | H136: 0 | I136: 0 | J136: 0 | K136: 30000000 | L136: 30000000 | M136: 30000000
A137: Computer Equipment | C137: 0 | D137: =D32+D67+D102 -> 0 | E137: 0 | F137: 0 | G137: 0 | H137: 0 | I137: 0 | J137: 0 | K137: 0 | L137: 0 | M137: 0
A138: Furniture and Office Equipment | C138: 15000000 | D138: =D33+D68+D103 -> 0 | E138: 0 | F138: 0 | G138: 0 | H138: 0 | I138: 9899006 | J138: 9899006 | K138: 24899006 | L138: 10000000 | M138: 10000000
A139: Machinery and Equipment | C139: 199000 | D139: =D34+D69+D104 -> 0 | E139: 0 | F139: 0 | G139: 0 | H139: 0 | I139: 28261254 | J139: 28261254 | K139: 28460254 | L139: 0 | M139: 0
A140: Transport Assets | C140: 5000000 | D140: =D35+D70+D105 -> 0 | E140: 0 | F140: 0 | G140: 0 | H140: 0 | I140: 20402800 | J140: 20402800 | K140: 25402800 | L140: 5000000 | M140: 5000000
A141: Land | C141: 0 | D141: =D36+D71+D106 -> 0 | E141: 0 | F141: 0 | G141: 0 | H141: 0 | I141: 0 | J141: 0 | K141: 0 | L141: 0 | M141: 0
A142: Zoo's, Marine and Non-biological Animals | C142: 0 | D142: =D37+D72+D107 -> 0 | E142: 0 | F142: 0 | G142: 0 | H142: 0 | I142: 0 | J142: 0 | K142: 0 | L142: 0 | M142: 0
A143: Mature | C143: 0 | D143: 0 | E143: 0 | F143: 0 | G143: 0 | H143: 0 | I143: 0 | J143: 0 | K143: 0 | L143: 0 | M143: 0
A144: Immature | C144: 0 | D144: 0 | E144: 0 | F144: 0 | G144: 0 | H144: 0 | I144: 0 | J144: 0 | K144: 0 | L144: 0 | M144: 0
A145: Living Resources | C145: =+C40+C75+C110 -> 0 | D145: =+D40+D75+D110 -> 0 | E145: 0 | F145: 0 | G145: 0 | H145: 0 | I145: 0 | J145: 0 | K145: 0 | L145: 0 | M145: 0
A146: TOTAL CAPITAL EXPENDITURE to be adjusted | B146: 4 | C146: =C7+C42+C77 -> 768760054 | D146: =D7+D42+D77 -> 0 | E146: 0 | F146: 0 | G146: 0 | H146: 0 | I146: 33783899.45 | J146: 33783899.45 | K146: 802543953.4 | L146: 581309343.2 | M146: 447881560
A148: ASSET REGISTER SUMMARY - PPE (WDV) | B148: 5 | C148: =C158+C161+C162+C165+C168+C169+SUM(C172:C179) -> 7261155343 | D148: =D158+D161+D162+D165+D168+D169+SUM(D172:D179) -> 0 | E148: 0 | F148: 0 | G148: 0 | H148: 0 | I148: 0 | J148: 0 | K148: 7261155343 | L148: 7616951955 | M148: 7974948697
A149: =+A8 -> Roads Infrastructure | C149: 1927432775 | J149: =SUM(E149:I149) -> 0 | K149: =IF(D149=0,C149+J149,D149+J149) -> 1927432775 | L149: 2021876981 | M149: 2116905199
A150: Storm water Infrastructure | C150: 91697968.84 | J150: 0 | K150: =IF(D150=0,C150+J150,D150+J150) -> 91697968.84 | L150: 96191169.31 | M150: 100712154.3
A151: Electrical Infrastructure | C151: 861440121.3 | J151: 0 | K151: =IF(D151=0,C151+J151,D151+J151) -> 861440121.3 | L151: 903650687.2 | M151: 946122269.5
A152: Water Supply Infrastructure | C152: 1182715072 | J152: 0 | K152: =IF(D152=0,C152+J152,D152+J152) -> 1182715072 | L152: 1240668111 | M152: 1298979512
A153: Sanitation Infrastructure | C153: 632669809.4 | J153: 0 | K153: =IF(D153=0,C153+J153,D153+J153) -> 632669809.4 | L153: 663670630 | M153: 694863149.6
A154: Solid Waste Infrastructure | C154: 90000198.77 | J154: 0 | K154: 90000198.77 | L154: 94410208.51 | M154: 98847488.31
A155: Rail Infrastructure | C155: 1320467.339 | J155: 0 | K155: 1320467.339 | L155: 1385170.238 | M155: 1450273.24
A156: Coastal Infrastructure | C156: 4998463.704 | J156: 0 | K156: 4998463.704 | L156: 5243388.426 | M156: 5489827.682
A157: Information and Communication Infrastructure | C157: 5457675.291 | J157: 0 | K157: 5457675.291 | L157: 5725101.38 | M157: 5994181.145
A158: Infrastructure | C158: =SUM(C149:C157) -> 4797732552 | D158: 0 | E158: 0 | F158: 0 | G158: 0 | H158: 0 | I158: 0 | J158: 0 | K158: 4797732552 | L158: =SUM(L149:L157) -> 5032821447 | M158: =SUM(M149:M157) -> 5269364055
A161: =+A20 -> Community Assets | C161: 83806630.68 | J161: =SUM(E161:I161) -> 0 | K161: =IF(D161=0,C161+J161,D161+J161) -> 83806630.68 | L161: 87913155.58 | M161: 92045073.89
A162: =+A21 -> Heritage Assets | C162: 217905292.5 | J162: =SUM(E162:I162) -> 0 | K162: 217905292.5 | L162: 228582651.8 | M162: 239326036.5
C163: 0 | L163: 0 | M163: 0
C164: 0 | L164: 0 | M164: 0
A165: =+A24 -> Investment properties | C165: 704435062.3 | J165: =SUM(E165:I165) -> 0 | K165: =IF(D165=0,C165+J165,D165+J165) -> 704435062.3 | L165: 738952380.4 | M165: 773683142.3
C166: 0 | L166: 0 | M166: 0
C167: 0 | L167: 0 | M167: 0
A168: =+A27 -> Other Assets | C168: 650176756.2 | J168: =SUM(E168:I168) -> 0 | K168: =IF(D168=0,C168+J168,D168+J168) -> 650176756.2 | L168: 682035417.3 | M168: 714091081.9
A169: =+A28 -> Biological or Cultivated Assets | J169: =SUM(E169:I169) -> 0 | K169: =IF(D169=0,C169+J169,D169+J169) -> 0 | L169: 0 | M169: 0
L170: 0 | M170: 0
L171: 0 | M171: 0
A172: =+A31 -> Intangible Assets | C172: -1139996.249 | J172: =SUM(E172:I172) -> 0 | K172: =IF(D172=0,C172+J172,D172+J172) -> -1139996.249 | L172: -1195856.065 | M172: -1252061.3
A173: Computer Equipment | C173: -30304933.22 | J173: =SUM(E173:I173) -> 0 | K173: =IF(D173=0,C173+J173,D173+J173) -> -30304933.22 | L173: -31789874.94 | M173: -33283999.07
A174: Furniture and Office Equipment | C174: 18529043.49 | J174: 0 | K174: 18529043.49 | L174: 19436966.62 | M174: 20350504.05
A175: Machinery and Equipment | C175: 598818191.6 | J175: 0 | K175: 598818191.6 | L175: 628160282.9 | M175: 657683816.2
A176: Transport Assets | C176: 221196743.6 | J176: 0 | K176: 221196743.6 | L176: 232035384 | M176: 242941047
A177: Land | J177: 0 | K177: 0
A178: Zoo's, Marine and Non-biological Animals | J178: 0 | K178: 0
A179: Living Resources
A180: TOTAL ASSET REGISTER SUMMARY - PPE (WDV) | B180: 5 | C180: =C158+C161+C162+C165+C168+C169+SUM(C172:C179) -> 7261155343 | D180: =D158+D161+D162+D165+D168+D169+SUM(D172:D179) -> 0 | E180: 0 | F180: 0 | G180: 0 | H180: 0 | I180: 0 | J180: 0 | K180: 7261155343 | L180: 7616951955 | M180: 7974948697
A182: EXPENDITURE OTHER ITEMS
A183: Depreciation & asset impairment | C183: =SB18d!C177 -> 461615984 | D183: =SB18d!D177 -> 0 | E183: =SB18d!E177 -> 0 | F183: =SB18d!F177 -> 0 | G183: =SB18d!G177 -> 0 | H183: =SB18d!H177 -> 0 | I183: =SB18d!I177 -> 834162.6332 | J183: =SB18d!J177 -> 834162.6332 | K183: =SB18d!K177 -> 462450146.6 | L183: =SB18d!L177 -> 481526714 | M183: =SB18d!M177 -> 503215201
A184: Repairs and Maintenance by asset class | B184: 3 | C184: =C194+C197+C198+C201+C204+C205+SUM(C208:C214)+C217 -> 573286476.2 | D184: =D194+D197+D198+D201+D204+D205+SUM(D208:D214)+D217 -> 0 | E184: 0 | F184: 0 | G184: 0 | H184: 0 | I184: -87930353.89 | J184: -87930353.89 | K184: 485356122.3 | L184: 600586963.5 | M184: 630046846.8
A185: =+A8 -> Roads Infrastructure | C185: =SB18c!C9 -> 0 | D185: =SB18c!D9 -> 0 | E185: =SB18c!E9 -> 0 | F185: =SB18c!F9 -> 0 | G185: =SB18c!G9 -> 0 | H185: =SB18c!H9 -> 0 | I185: =SB18c!I9 -> 0 | J185: =SB18c!J9 -> 0 | K185: =SB18c!K9 -> 0 | L185: =SB18c!L9 -> 0 | M185: =SB18c!M9 -> 0
A186: Storm water Infrastructure | C186: =SB18c!C14 -> 0 | D186: =SB18c!D14 -> 0 | E186: =SB18c!E14 -> 0 | F186: =SB18c!F14 -> 0 | G186: =SB18c!G14 -> 0 | H186: =SB18c!H14 -> 0 | I186: =SB18c!I14 -> 0 | J186: =SB18c!J14 -> 0 | K186: =SB18c!K14 -> 0 | L186: =SB18c!L14 -> 0 | M186: =SB18c!M14 -> 0
A187: Electrical Infrastructure | C187: =SB18c!C18 -> 161182203.1 | D187: =SB18c!D18 -> 0 | E187: =SB18c!E18 -> 0 | F187: =SB18c!F18 -> 0 | G187: =SB18c!G18 -> 0 | H187: =SB18c!H18 -> 0 | I187: =SB18c!I18 -> -32843630 | J187: =SB18c!J18 -> -32843630 | K187: =SB18c!K18 -> 128338573.1 | L187: =SB18c!L18 -> 169080131.1 | M187: =SB18c!M18 -> 177026897.2
A188: Water Supply Infrastructure | C188: =SB18c!C28 -> 8680400 | D188: =SB18c!D28 -> 0 | E188: =SB18c!E28 -> 0 | F188: =SB18c!F28 -> 0 | G188: =SB18c!G28 -> 0 | H188: =SB18c!H28 -> 0 | I188: =SB18c!I28 -> 2075000 | J188: =SB18c!J28 -> 2075000 | K188: =SB18c!K28 -> 10755400 | L188: =SB18c!L28 -> 9105739.6 | M188: =SB18c!M28 -> 9533709.361
A189: Sanitation Infrastructure | C189: =SB18c!C39 -> 0 | D189: =SB18c!D39 -> 0 | E189: =SB18c!E39 -> 0 | F189: =SB18c!F39 -> 0 | G189: =SB18c!G39 -> 0 | H189: =SB18c!H39 -> 0 | I189: =SB18c!I39 -> 0 | J189: =SB18c!J39 -> 0 | K189: =SB18c!K39 -> 0 | L189: =SB18c!L39 -> 0 | M189: =SB18c!M39 -> 0
A190: Solid Waste Infrastructure | C190: =SB18c!C46 -> 0 | D190: =SB18c!D46 -> 0 | E190: =SB18c!E46 -> 0 | F190: =SB18c!F46 -> 0 | G190: =SB18c!G46 -> 0 | H190: =SB18c!H46 -> 0 | I190: =SB18c!I46 -> 0 | J190: =SB18c!J46 -> 0 | K190: =SB18c!K46 -> 0 | L190: =SB18c!L46 -> 0 | M190: =SB18c!M46 -> 0
A191: Rail Infrastructure | C191: =SB18c!C54 -> 0 | D191: =SB18c!D54 -> 0 | E191: =SB18c!E54 -> 0 | F191: =SB18c!F54 -> 0 | G191: =SB18c!G54 -> 0 | H191: =SB18c!H54 -> 0 | I191: =SB18c!I54 -> 0 | J191: =SB18c!J54 -> 0 | K191: =SB18c!K54 -> 0 | L191: =SB18c!L54 -> 0 | M191: =SB18c!M54 -> 0
A192: Coastal Infrastructure | C192: =SB18c!C64 -> 0 | D192: =SB18c!D64 -> 0 | E192: =SB18c!E64 -> 0 | F192: =SB18c!F64 -> 0 | G192: =SB18c!G64 -> 0 | H192: =SB18c!H64 -> 0 | I192: =SB18c!I64 -> 0 | J192: =SB18c!J64 -> 0 | K192: =SB18c!K64 -> 0 | L192: =SB18c!L64 -> 0 | M192: =SB18c!M64 -> 0
A193: Information and Communication Infrastructure | C193: =SB18c!C70 -> 0 | D193: =SB18c!D70 -> 0 | E193: =SB18c!E70 -> 0 | F193: =SB18c!F70 -> 0 | G193: =SB18c!G70 -> 0 | H193: =SB18c!H70 -> 0 | I193: =SB18c!I70 -> 0 | J193: =SB18c!J70 -> 0 | K193: =SB18c!K70 -> 0 | L193: =SB18c!L70 -> 0 | M193: =SB18c!M70 -> 0
A194: Infrastructure | C194: =SUM(C185:C193) -> 169862603.1 | D194: =SUM(D185:D193) -> 0 | E194: 0 | F194: 0 | G194: 0 | H194: 0 | I194: -30768630 | J194: -30768630 | K194: 139093973.1 | L194: 178185870.7 | M194: 186560606.6
A195: Community Facilities | C195: =SB18c!C77 -> 15000 | D195: =SB18c!D77 -> 0 | E195: =SB18c!E77 -> 0 | F195: =SB18c!F77 -> 0 | G195: =SB18c!G77 -> 0 | H195: =SB18c!H77 -> 0 | I195: =SB18c!I77 -> 5764 | J195: =SB18c!J77 -> 5764 | K195: =SB18c!K77 -> 20764 | L195: =SB18c!L77 -> 15735 | M195: =SB18c!M77 -> 16474.545
A196: Sport and Recreation Facilities | C196: =SB18c!C100 -> 0 | D196: =SB18c!D100 -> 0 | E196: =SB18c!E100 -> 0 | F196: =SB18c!F100 -> 0 | G196: =SB18c!G100 -> 0 | H196: =SB18c!H100 -> 0 | I196: =SB18c!I100 -> 0 | J196: =SB18c!J100 -> 0 | K196: =SB18c!K100 -> 0 | L196: =SB18c!L100 -> 0 | M196: =SB18c!M100 -> 0
A197: Community Assets | C197: =SUM(C195:C196) -> 15000 | D197: =SUM(D195:D196) -> 0 | E197: 0 | F197: 0 | G197: 0 | H197: 0 | I197: 5764 | J197: 5764 | K197: 20764 | L197: 15735 | M197: 16474.545
A198: Heritage Assets | C198: =SB18c!C105 -> 0 | D198: =SB18c!D105 -> 0 | E198: =SB18c!E105 -> 0 | F198: =SB18c!F105 -> 0 | G198: =SB18c!G105 -> 0 | H198: =SB18c!H105 -> 0 | I198: =SB18c!I105 -> 0 | J198: =SB18c!J105 -> 0 | K198: =SB18c!K105 -> 0 | L198: =SB18c!L105 -> 0 | M198: =SB18c!M105 -> 0
A199: Revenue Generating | C199: =SB18c!C113 -> 0 | D199: =SB18c!D113 -> 0 | E199: =SB18c!E113 -> 0 | F199: =SB18c!F113 -> 0 | G199: =SB18c!G113 -> 0 | H199: =SB18c!H113 -> 0 | I199: =SB18c!I113 -> 0 | J199: =SB18c!J113 -> 0 | K199: =SB18c!K113 -> 0 | L199: =SB18c!L113 -> 0 | M199: =SB18c!M113 -> 0
A200: Non-revenue Generating | C200: =SB18c!C116 -> 0 | D200: =SB18c!D116 -> 0 | E200: =SB18c!E116 -> 0 | F200: =SB18c!F116 -> 0 | G200: =SB18c!G116 -> 0 | H200: =SB18c!H116 -> 0 | I200: =SB18c!I116 -> 0 | J200: =SB18c!J116 -> 0 | K200: =SB18c!K116 -> 0 | L200: =SB18c!L116 -> 0 | M200: =SB18c!M116 -> 0
A201: Investment properties | C201: =SUM(C199:C200) -> 0 | D201: =SUM(D199:D200) -> 0 | E201: 0 | F201: 0 | G201: 0 | H201: 0 | I201: 0 | J201: 0 | K201: 0 | L201: 0 | M201: 0
A202: Operational Buildings | C202: =SB18c!C121 -> 163462034.6 | D202: =SB18c!D121 -> 0 | E202: =SB18c!E121 -> 0 | F202: =SB18c!F121 -> 0 | G202: =SB18c!G121 -> 0 | H202: =SB18c!H121 -> 0 | I202: =SB18c!I121 -> 6882812.651 | J202: =SB18c!J121 -> 6882812.651 | K202: =SB18c!K121 -> 170344847.2 | L202: =SB18c!L121 -> 171463424.3 | M202: =SB18c!M121 -> 179530851.2
A203: Housing | C203: =SB18c!C133 -> 0 | D203: =SB18c!D133 -> 0 | E203: =SB18c!E133 -> 0 | F203: =SB18c!F133 -> 0 | G203: =SB18c!G133 -> 0 | H203: =SB18c!H133 -> 0 | I203: =SB18c!I133 -> 0 | J203: =SB18c!J133 -> 0 | K203: =SB18c!K133 -> 0 | L203: =SB18c!L133 -> 0 | M203: =SB18c!M133 -> 0
A204: Other Assets | C204: =SUM(C202:C203) -> 163462034.6 | D204: =SUM(D202:D203) -> 0 | E204: 0 | F204: 0 | G204: 0 | H204: 0 | I204: 6882812.651 | J204: 6882812.651 | K204: 170344847.2 | L204: 171463424.3 | M204: 179530851.2
A205: Biological or Cultivated Assets | C205: =SB18c!C138 -> 0 | D205: =SB18c!D138 -> 0 | E205: =SB18c!E138 -> 0 | F205: =SB18c!F138 -> 0 | G205: =SB18c!G138 -> 0 | H205: =SB18c!H138 -> 0 | I205: =SB18c!I138 -> 0 | J205: =SB18c!J138 -> 0 | K205: =SB18c!K138 -> 0 | L205: =SB18c!L138 -> 0 | M205: =SB18c!M138 -> 0
A206: Servitudes | C206: =SB18c!C142 -> 0 | D206: =SB18c!D142 -> 0 | E206: =SB18c!E142 -> 0 | F206: =SB18c!F142 -> 0 | G206: =SB18c!G142 -> 0 | H206: =SB18c!H142 -> 0 | I206: =SB18c!I142 -> 0 | J206: =SB18c!J142 -> 0 | K206: =SB18c!K142 -> 0 | L206: =SB18c!L142 -> 0 | M206: =SB18c!M142 -> 0
A207: Licences and Rights | C207: =SB18c!C143 -> 0 | D207: =SB18c!D143 -> 0 | E207: =SB18c!E143 -> 0 | F207: =SB18c!F143 -> 0 | G207: =SB18c!G143 -> 0 | H207: =SB18c!H143 -> 0 | I207: =SB18c!I143 -> 0 | J207: =SB18c!J143 -> 0 | K207: =SB18c!K143 -> 0 | L207: =SB18c!L143 -> 0 | M207: =SB18c!M143 -> 0
... 32 more rows

Sheet B10-SerDel
A1: =muni&" - "&_ADJ10&" - "&Date -> Choose name from list - Table B10 Basic service delivery measurement -
A2: =desc -> Description | B2: =head27 -> Ref | C2: =Head2 -> Budget Year 2023/24 | L2: =Head10 -> Budget Year +1 2024/25 | M2: =Head11 -> Budget Year +2 2025/26
C3: =Head6 -> Original Budget | D3: =Head54 -> Prior Adjusted | E3: =Head51 -> Accum. Funds | F3: =Head52 -> Multi-year capital | G3: =Head53 -> Unfore. Unavoid. | H3: =Head55 -> Nat. or Prov. Govt | I3: =Head50 -> Other Adjusts. | J3: =Head56 -> Total Adjusts. | K3: =Head7 -> Adjusted Budget | L3: =Head7 -> Adjusted Budget | M3: =Head7 -> Adjusted Budget
D4: 7 | E4: 8 | F4: 9 | G4: 10 | H4: 11 | I4: 12 | J4: 13 | K4: 14
C5: A | D5: A1 | E5: B | F5: C | G5: D | H5: E | I5: F | J5: G | K5: H
A6: Household service targets | B6: 1
A7: Water:
A8: Piped water inside dwelling | C8: 84782.196 | J8: =SUM(E8:I8) -> 0 | K8: =IF(D8=0,C8+J8,D8+J8) -> 84782.196
A9: Piped water inside yard (but not in dwelling) | C9: 67480.5196 | J9: 0 | K9: 67480.5196
A10: Using public tap (at least min.service level) | B10: 2 | C10: 6654.3984 | J10: 0 | K10: 6654.3984
A11: Other water supply (at least min.service level) | C11: 3196.1088 | J11: 0 | K11: 3196.1088
A12: Minimum Service Level and Above sub-total | C12: =SUM(C8:C11) -> 162113.2228 | D12: 0 | E12: 0 | F12: 0 | G12: 0 | H12: 0 | I12: 0 | J12: 0 | K12: 162113.2228 | L12: 0 | M12: 0
A13: Using public tap (< min.service level) | B13: 3 | C13: 6654.3984 | J13: 0 | K13: 6654.3984
A14: Other water supply (< min.service level) | B14: 3,4 | C14: 1850.696 | J14: 0 | K14: 1850.696
A15: No water supply | C15: 0 | J15: 0 | K15: 0
A16: Below Minimum Servic Level sub-total | C16: =SUM(C13:C15) -> 8505.0944 | D16: 0 | E16: 0 | F16: 0 | G16: 0 | H16: 0 | I16: 0 | J16: 0 | K16: 8505.0944 | L16: 0 | M16: 0
A17: Total number of households | B17: 5 | C17: =C12+C16 -> 170618.3172 | D17: 0 | E17: 0 | F17: 0 | G17: 0 | H17: 0 | I17: 0 | J17: 0 | K17: 170618.3172 | L17: 0 | M17: 0
A18: Sanitation/sewerage:
A19: Flush toilet (connected to sewerage) | C19: 91589.0196 | J19: =SUM(E19:I19) -> 0 | K19: =IF(D19=0,C19+J19,D19+J19) -> 91589.0196
A20: Flush toilet (with septic tank) | C20: 8655.0876 | J20: 0 | K20: 8655.0876
A21: Chemical toilet | C21: 7361.8704 | J21: 0 | K21: 7361.8704
A22: Pit toilet (ventilated) | C22: 61827.8508 | J22: 0 | K22: 61827.8508
A23: Other toilet provisions (> min.service level) | C23: 0 | J23: 0 | K23: 0
A24: =$A$12 -> Minimum Service Level and Above sub-total | C24: =SUM(C19:C23) -> 169433.8284 | D24: 0 | E24: 0 | F24: 0 | G24: 0 | H24: 0 | I24: 0 | J24: 0 | K24: 169433.8284 | L24: 0 | M24: 0
A25: Bucket toilet | J25: 0 | K25: 0
A26: Other toilet provisions (< min.service level) | C26: 1184.4888 | J26: 0 | K26: 1184.4888
A27: No toilet provisions | J27: 0 | K27: 0
A28: =$A$16 -> Below Minimum Servic Level sub-total | C28: =SUM(C25:C27) -> 1184.4888 | D28: 0 | E28: 0 | F28: 0 | G28: 0 | H28: 0 | I28: 0 | J28: 0 | K28: 1184.4888 | L28: 0 | M28: 0
A29: =$A$17 -> Total number of households | B29: =$B$17 -> 5 | C29: =C24+C28 -> 170618.3172 | D29: 0 | E29: 0 | F29: 0 | G29: 0 | H29: 0 | I29: 0 | J29: 0 | K29: 170618.3172 | L29: 0 | M29: 0
A30: Energy:
A31: Electricity (at least min. service level) | C31: 135271.4032 | J31: =SUM(E31:I31) -> 0 | K31: =IF(D31=0,C31+J31,D31+J31) -> 135271.4032
A32: Electricity - prepaid (> min.service level) | C32: 27346.914 | J32: 0 | K32: 27346.914
A33: =$A$12 -> Minimum Service Level and Above sub-total | C33: =SUM(C31:C32) -> 162618.3172 | D33: 0 | E33: 0 | F33: 0 | G33: 0 | H33: 0 | I33: 0 | J33: 0 | K33: 162618.3172 | L33: 0 | M33: 0
A34: Electricity (< min.service level) | C34: 0 | J34: 0 | K34: 0
A35: Electricity - prepaid (< min. service level) | C35: 0 | J35: 0 | K35: 0
A36: Other energy sources | C36: 8000 | J36: 0 | K36: 8000
A37: =$A$16 -> Below Minimum Servic Level sub-total | C37: =SUM(C34:C36) -> 8000 | D37: 0 | E37: 0 | F37: 0 | G37: 0 | H37: 0 | I37: 0 | J37: 0 | K37: 8000 | L37: 0 | M37: 0
A38: =$A$17 -> Total number of households | B38: =$B$17 -> 5 | C38: =C33+C37 -> 170618.3172 | D38: 0 | E38: 0 | F38: 0 | G38: 0 | H38: 0 | I38: 0 | J38: 0 | K38: 170618.3172 | L38: 0 | M38: 0
A39: Refuse:
A40: Removed at least once a week (min.service) | C40: 129848 | J40: =SUM(E40:I40) -> 0 | K40: =IF(D40=0,C40+J40,D40+J40) -> 129848
A41: =$A$12 -> Minimum Service Level and Above sub-total | C41: =SUM(C40) -> 129848 | D41: 0 | E41: 0 | F41: 0 | G41: 0 | H41: 0 | I41: 0 | J41: =SUM(E41:I41) -> 0 | K41: 129848 | L41: =SUM(L40) -> 0 | M41: =SUM(M40) -> 0
A42: Removed less frequently than once a week | C42: 40770.3172 | J42: 0 | K42: 40770.3172
A43: Using communal refuse dump | C43: 0 | J43: 0 | K43: 0
A44: Using own refuse dump | C44: 0 | J44: 0 | K44: 0
A45: Other rubbish disposal | C45: 0 | J45: 0 | K45: 0
A46: No rubbish disposal | C46: 0 | J46: 0 | K46: 0
A47: =$A$16 -> Below Minimum Servic Level sub-total | C47: =SUM(C42:C46) -> 40770.3172 | D47: 0 | E47: 0 | F47: 0 | G47: 0 | H47: 0 | I47: 0 | J47: 0 | K47: 40770.3172 | L47: 0 | M47: 0
A48: =$A$17 -> Total number of households | B48: =$B$17 -> 5 | C48: =C41+C47 -> 170618.3172 | D48: 0 | E48: 0 | F48: 0 | G48: 0 | H48: 0 | I48: 0 | J48: =J40+J47 -> 0 | K48: =K40+K47 -> 170618.3172 | L48: =L41+L47 -> 0 | M48: =M41+M47 -> 0
A50: Households receiving Free Basic Service | B50: 15
A51: Water (6 kilolitres per household per month) | C51: ='SB5'!E263 -> 0 | D51: ='SB5'!F263 -> 0 | E51: ='SB5'!G263 -> 0 | F51: ='SB5'!H263 -> 0 | G51: ='SB5'!I263 -> 0 | H51: ='SB5'!J263 -> 0 | I51: ='SB5'!K263 -> 0 | J51: =SUM(E51:I51) -> 0 | K51: =IF(D51=0,C51+J51,D51+J51) -> 0 | L51: ='SB5'!N263 -> 0 | M51: ='SB5'!O263 -> 0
A52: Sanitation (free minimum level service) | C52: ='SB5'!E275 -> 0 | D52: ='SB5'!F275 -> 0 | E52: ='SB5'!G275 -> 0 | F52: ='SB5'!H275 -> 0 | G52: ='SB5'!I275 -> 0 | H52: ='SB5'!J275 -> 0 | I52: ='SB5'!K275 -> 0 | J52: =SUM(E52:I52) -> 0 | K52: =IF(D52=0,C52+J52,D52+J52) -> 0 | L52: ='SB5'!N275 -> 0 | M52: ='SB5'!O275 -> 0
A53: Electricity/other energy (50kwh per household per month) | C53: ='SB5'!E251 -> 0 | D53: ='SB5'!F251 -> 0 | E53: ='SB5'!G251 -> 0 | F53: ='SB5'!H251 -> 0 | G53: ='SB5'!I251 -> 0 | H53: ='SB5'!J251 -> 0 | I53: ='SB5'!K251 -> 0 | J53: =SUM(E53:I53) -> 0 | K53: =IF(D53=0,C53+J53,D53+J53) -> 0 | L53: ='SB5'!N251 -> 0 | M53: ='SB5'!O251 -> 0
A54: Refuse (removed at least once a week) | C54: ='SB5'!E287 -> 0 | D54: ='SB5'!F287 -> 0 | E54: ='SB5'!G287 -> 0 | F54: ='SB5'!H287 -> 0 | G54: ='SB5'!I287 -> 0 | H54: ='SB5'!J287 -> 0 | I54: ='SB5'!K287 -> 0 | J54: ='SB5'!L287 -> 0 | K54: ='SB5'!M287 -> 0 | L54: ='SB5'!N287 -> 0 | M54: ='SB5'!O287 -> 0
A55: Informal Settlements
A56: Cost of Free Basic Services provided (R'000) | B56: 16
A57: Water (6 kilolitres per indigent household per month) | C57: ='SB1'!C23 -> 0 | D57: ='SB1'!D23 -> 0 | E57: ='SB1'!E23 -> 0 | F57: ='SB1'!F23 -> 0 | G57: ='SB1'!G23 -> 0 | H57: ='SB1'!H23 -> 0 | I57: ='SB1'!I23 -> 0 | J57: =SUM(E57:I57) -> 0 | K57: =IF(D57=0,C57+J57,D57+J57) -> 0 | L57: ='SB1'!L23 -> 0 | M57: ='SB1'!M23 -> 0
A58: Sanitation (free sanitation service to indigent households) | C58: ='SB1'!C29 -> 0 | D58: ='SB1'!D29 -> 0 | E58: ='SB1'!E29 -> 0 | F58: ='SB1'!F29 -> 0 | G58: ='SB1'!G29 -> 0 | H58: ='SB1'!H29 -> 0 | I58: ='SB1'!I29 -> 0 | J58: =SUM(E58:I58) -> 0 | K58: =IF(D58=0,C58+J58,D58+J58) -> 0 | L58: ='SB1'!L29 -> 0 | M58: ='SB1'!M29 -> 0
A59: Electricity/other energy (50kwh per indigent household per month) | C59: ='SB1'!C17 -> 0 | D59: ='SB1'!D17 -> 0 | E59: ='SB1'!E17 -> 0 | F59: ='SB1'!F17 -> 0 | G59: ='SB1'!G17 -> 0 | H59: ='SB1'!H17 -> 0 | I59: ='SB1'!I17 -> 0 | J59: =SUM(E59:I59) -> 0 | K59: =IF(D59=0,C59+J59,D59+J59) -> 0 | L59: ='SB1'!L17 -> 0 | M59: ='SB1'!M17 -> 0
A60: Refuse (removed once a week for indigent households) | C60: ='SB1'!C36 -> 0 | D60: ='SB1'!D36 -> 0 | E60: ='SB1'!E36 -> 0 | F60: ='SB1'!F36 -> 0 | G60: ='SB1'!G36 -> 0 | H60: ='SB1'!H36 -> 0 | I60: ='SB1'!I36 -> 0 | J60: =SUM(E60:I60) -> 0 | K60: =IF(D60=0,C60+J60,D60+J60) -> 0 | L60: ='SB1'!L36 -> 0 | M60: ='SB1'!M36 -> 0
A61: Cost of Free Basic Services provided - Informal Formal Settlements (R'000) | C61: ='SB5'!E260+'SB5'!E272+'SB5'!E284+'SB5'!E296 -> 0 | D61: ='SB5'!F260+'SB5'!F272+'SB5'!F284+'SB5'!F296 -> 0 | E61: ='SB5'!G260+'SB5'!G272+'SB5'!G284+'SB5'!G296 -> 0 | F61: ='SB5'!H260+'SB5'!H272+'SB5'!H284+'SB5'!H296 -> 0 | G61: ='SB5'!I260+'SB5'!I272+'SB5'!I284+'SB5'!I296 -> 0 | H61: ='SB5'!J260+'SB5'!J272+'SB5'!J284+'SB5'!J296 -> 0 | I61: ='SB5'!K260+'SB5'!K272+'SB5'!K284+'SB5'!K296 -> 0 | J61: =SUM(E61:I61) -> 0 | K61: =IF(D61=0,C61+J61,D61+J61) -> 0 | L61: ='SB5'!N260+'SB5'!N272+'SB5'!N284+'SB5'!N296 -> 0 | M61: ='SB5'!O260+'SB5'!O272+'SB5'!O284+'SB5'!O296 -> 0
A62: Total cost of FBS provided | C62: =SUM(C57:C61) -> 0 | D62: =SUM(D57:D61) -> 0 | E62: 0 | F62: 0 | G62: 0 | H62: 0 | I62: 0 | J62: 0 | K62: 0 | L62: 0 | M62: 0
A64: Highest level of free service provided
A65: Property rates (R'000 value threshold) | C65: 120000 | J65: =SUM(E65:I65) -> 0 | K65: =IF(D65=0,C65+J65,D65+J65) -> 120000 | L65: 120000 | M65: 120000
A66: Water (kilolitres per household per month) | C66: 6 | J66: 0 | K66: 6 | L66: 6 | M66: 6
A67: Sanitation (kilolitres per household per month) | C67: 0 | J67: 0 | K67: 0 | L67: 0 | M67: 0
A68: Sanitation (Rand per household per month) | C68: 162.551212 | J68: 0 | K68: 162.551212 | L68: 162.551212 | M68: 162.551212
A69: Electricity (kw per household per month) | C69: 70 | J69: 0 | K69: 70 | L69: 70 | M69: 70
A70: Refuse (average litres per week) | C70: 200 | J70: 0 | K70: 200 | L70: 200 | M70: 200
A71: Revenue cost of free services provided (R'000) | B71: 17
A72: Property rates (tariff adjustment) ( impermissable values per section 17 of MPRA) | J72: =SUM(E72:I72) -> 0 | K72: =IF(D72=0,C72+J72,D72+J72) -> 0
A73: Property rates exemptions, reductions and rebates and impermissable values in excess of section 17 of MPRA) | C73: ='SB1'!C10 -> 116757121.3 | D73: ='SB1'!D10 -> 0 | E73: ='SB1'!E10 -> 0 | F73: ='SB1'!F10 -> 0 | G73: ='SB1'!G10 -> 0 | H73: ='SB1'!H10 -> 0 | I73: ='SB1'!I10 -> 0 | J73: 0 | K73: 116757121.3 | L73: ='SB1'!L10 -> 124930119.8 | M73: ='SB1'!M10 -> 133675228.2
A74: Water (in excess of 6 kilolitres per indigent household per month) | C74: ='SB1'!C22 -> 222592034.8 | D74: ='SB1'!D22 -> 0 | E74: ='SB1'!E22 -> 0 | F74: ='SB1'!F22 -> 0 | G74: ='SB1'!G22 -> 0 | H74: ='SB1'!H22 -> 0 | I74: ='SB1'!I22 -> 0 | J74: 0 | K74: 222592034.8 | L74: ='SB1'!L22 -> 233499044.5 | M74: ='SB1'!M22 -> 244473499.6
A75: Sanitation (in excess of free sanitation service to indigent households) | C75: ='SB1'!C28 -> 16760851.68 | D75: ='SB1'!D28 -> 0 | E75: ='SB1'!E28 -> 0 | F75: ='SB1'!F28 -> 0 | G75: ='SB1'!G28 -> 0 | H75: ='SB1'!H28 -> 0 | I75: ='SB1'!I28 -> 0 | J75: 0 | K75: 16760851.68 | L75: ='SB1'!L28 -> 17582133.41 | M75: ='SB1'!M28 -> 18408493.68
A76: Electricity/other energy (in excess of 50 kwh per indigent household per month) | C76: ='SB1'!C16 -> 4671015.464 | D76: ='SB1'!D16 -> 0 | E76: ='SB1'!E16 -> 0 | F76: ='SB1'!F16 -> 0 | G76: ='SB1'!G16 -> 0 | H76: ='SB1'!H16 -> 0 | I76: ='SB1'!I16 -> 0 | J76: 0 | K76: 4671015.464 | L76: ='SB1'!L16 -> 5418377.938 | M76: ='SB1'!M16 -> 6393685.967
A77: Refuse (in excess of one removal a week for indigent households) | C77: ='SB1'!C35 -> 7899124.419 | D77: ='SB1'!D35 -> 0 | E77: ='SB1'!E35 -> 0 | F77: ='SB1'!F35 -> 0 | G77: ='SB1'!G35 -> 0 | H77: ='SB1'!H35 -> 0 | I77: ='SB1'!I35 -> 0 | J77: 0 | K77: 7899124.419 | L77: ='SB1'!L35 -> 8286181.515 | M77: ='SB1'!M35 -> 8692204.41
A78: Municipal Housing - rental rebates | J78: 0 | K78: 0
A79: Housing - top structure subsidies | B79: 6 | J79: 0 | K79: 0
A80: Other | J80: 0 | K80: 0
A81: Total revenue cost of subsidised services provided | C81: =SUM(C72:C80) -> 368680147.7 | D81: =SUM(D72:D80) -> 0 | E81: 0 | F81: 0 | G81: 0 | H81: 0 | I81: 0 | J81: 0 | K81: 368680147.7 | L81: 389715857.2 | M81: 411643111.9
A82: =head27a -> References
A83: 1. Include services provided by another entity; e.g. Eskom
A84: 2. Stand distance > 200m from dwelling
A85: 3. Stand distance <= 200m from dwelling
A86: 4. Borehole, spring, rain-water tank etc.
A87: 5. Must agree to total number of households in municipal area
A88: 6. Include value of subsidy provided by municipality above provincial subsidy level
A89: 7. Only complete if a previous adjusted budget has been approved in the same financial year. Reflect most recent adjusted budget.
A90: 8. Additional cash-backed accumulated funds/unspent funds (MFMA section 18(1)(b) and section 28(2)(e)) identified after the Original Budget approved and after annual financial statements audited (note: only where underspending could not reasonably have been foreseen)
A91: 9. Increases of funds approved under MFMA section 31
A92: 10. Adjustments approved in accordance with MFMA section 29
A93: 11. Adjustments to transfers from National or Provincial Government
A94: 12. Adjusts. = 'Other' Adjustments proposed to be approved; including revenue under-collection (MFMA section 28(2)(a)); additional revenue appropriation on existing programmes (section 28(2))(b); projected savings (section 28(2)(d)); error correction (section 28(2)(f))
A95: 13. G = B + C + D + E + F
A96: 14. Adjusted Budget H = (A or A1) + G
A97: 15. Show number of households receiving at least these levels of services completely free
A98: 16. Must reflect the cost to the municipality of providing the Free Basic Service
A99: 17.Reflect the cost of free or subsidised services in excess to the National policy that are not funded from the Free Basic Services component of the Equitable Share

Sheet SB1
A1: =muni&" - "&ADJB1&" - "&Date -> Choose name from list - Supporting Table SB1 Supporting detail to 'Budgeted Financial Performance' -
A2: =desc -> Description | B2: =head27 -> Ref | C2: =Head2 -> Budget Year 2023/24 | L2: =Head10 -> Budget Year +1 2024/25 | M2: =Head11 -> Budget Year +2 2025/26
C3: =Head6 -> Original Budget | D3: =Head54 -> Prior Adjusted | E3: =Head51 -> Accum. Funds | F3: =Head52 -> Multi-year capital | G3: =Head53 -> Unfore. Unavoid. | H3: =Head55 -> Nat. or Prov. Govt | I3: =Head50 -> Other Adjusts. | J3: =Head56 -> Total Adjusts. | K3: =Head7 -> Adjusted Budget | L3: =Head7 -> Adjusted Budget | M3: =Head7 -> Adjusted Budget
D4: 6 | E4: 7 | F4: 8 | G4: 9 | H4: 10 | I4: 11 | J4: 12 | K4: 13
A5: R thousands | C5: A | D5: A1 | E5: B | F5: C | G5: D | H5: E | I5: F | J5: G | K5: H
A6: REVENUE ITEMS
A7: Non-exchange revenue by source
A8: Property rates
A9: Total Property Rates | C9: 1643742203 | J9: =SUM(E9:I9) -> 0 | K9: =IF(D9=0,C9+J9,D9+J9) -> 1643742203 | L9: 1726737470 | M9: 1810767524
A10: Less Revenue Foregone (exemptions, reductions and rebates and impermissable values in excess of section 17 of MPRA) | C10: 116757121.3 | J10: =SUM(E10:I10) -> 0 | K10: =IF(D10=0,C10+J10,D10+J10) -> 116757121.3 | L10: 124930119.8 | M10: 133675228.2
A11: Net Property Rates | C11: =C9-C10 -> 1526985082 | D11: =D9-D10 -> 0 | E11: 0 | F11: 0 | G11: 0 | H11: 0 | I11: 0 | J11: 0 | K11: 1526985082 | L11: 1601807351 | M11: 1677092296
A13: Exchange revenue service charges
A14: Service charges - Electricity
A15: Total Service charges - Electricity | C15: 3897489111 | I15: -219463339.2 | J15: =SUM(E15:I15) -> -219463339.2 | K15: =IF(D15=0,C15+J15,D15+J15) -> 3678025772 | L15: 4521087369 | M15: 5334883095
A16: Less Revenue Foregone (in excess of 50 kwh per indigent household per month) | C16: 4671015.464 | J16: =SUM(E16:I16) -> 0 | K16: =IF(D16=0,C16+J16,D16+J16) -> 4671015.464 | L16: 5418377.938 | M16: 6393685.967
A17: Less Cost of Free Basis Services (50 kwh per indigent household per month) | C17: ='SB5'!E250 -> 0 | D17: ='SB5'!F250 -> 0 | E17: ='SB5'!G250 -> 0 | F17: ='SB5'!H250 -> 0 | G17: ='SB5'!I250 -> 0 | H17: ='SB5'!J250 -> 0 | I17: ='SB5'!K250 -> 0 | J17: =SUM(E17:I17) -> 0 | K17: =IF(D17=0,C17+J17,D17+J17) -> 0 | L17: ='SB5'!N250 -> 0 | M17: ='SB5'!O250 -> 0
A18: Net Service charges - Electricity | C18: =C15-C16-C17 -> 3892818096 | D18: =D15-D16-D17 -> 0 | E18: 0 | F18: 0 | G18: 0 | H18: 0 | I18: -219463339.2 | J18: -219463339.2 | K18: 3673354756 | L18: 4515668991 | M18: 5328489409
A20: Service charges - Water
A21: Total Service charges - water | C21: 1124163537 | J21: =SUM(E21:I21) -> 0 | K21: =IF(D21=0,C21+J21,D21+J21) -> 1124163537 | L21: 1179247550 | M21: 1234672185
A22: Less Revenue Foregone (in excess of 6 kilolitres per indigent household per month) | C22: 222592034.8 | J22: =SUM(E22:I22) -> 0 | K22: =IF(D22=0,C22+J22,D22+J22) -> 222592034.8 | L22: 233499044.5 | M22: 244473499.6
A23: Less Cost of Free Basis Services (6 kilolitres per indigent household per month) | C23: ='SB5'!E262 -> 0 | D23: ='SB5'!F262 -> 0 | E23: ='SB5'!G262 -> 0 | F23: ='SB5'!H262 -> 0 | G23: ='SB5'!I262 -> 0 | H23: ='SB5'!J262 -> 0 | I23: ='SB5'!K262 -> 0 | J23: =SUM(E23:I23) -> 0 | K23: =IF(D23=0,C23+J23,D23+J23) -> 0 | L23: ='SB5'!N262 -> 0 | M23: ='SB5'!O262 -> 0
A24: Net Service charges - Water | C24: =C21-C22-C23 -> 901571501.8 | D24: =D21-D22-D23 -> 0 | E24: 0 | F24: 0 | G24: 0 | H24: 0 | I24: 0 | J24: =J21-J22-J23 -> 0 | K24: 901571501.8 | L24: 945748505.4 | M24: 990198685.1
A26: Service charges - Waste Water Management
A27: Total Service charges - Waste Water Management | C27: 219260723.6 | J27: =SUM(E27:I27) -> 0 | K27: =IF(D27=0,C27+J27,D27+J27) -> 219260723.6 | L27: 230004499.1 | M27: 240814710.5
A28: Less Revenue Foregone (in excess of free sanitation service to indigent households) | C28: 16760851.68 | J28: =SUM(E28:I28) -> 0 | K28: =IF(D28=0,C28+J28,D28+J28) -> 16760851.68 | L28: 17582133.41 | M28: 18408493.68
A29: Less Cost of Free Basis Services (free sanitation service to indigent households) | C29: ='SB5'!E274 -> 0 | D29: ='SB5'!F274 -> 0 | E29: ='SB5'!G274 -> 0 | F29: ='SB5'!H274 -> 0 | G29: ='SB5'!I274 -> 0 | H29: ='SB5'!J274 -> 0 | I29: ='SB5'!K274 -> 0 | J29: =SUM(E29:I29) -> 0 | K29: =IF(D29=0,C29+J29,D29+J29) -> 0 | L29: ='SB5'!N274 -> 0 | M29: ='SB5'!O274 -> 0
A30: Net Service charges - Waste Water Management | C30: =C27-C28-C29 -> 202499871.9 | D30: =D27-D28-D29 -> 0 | E30: 0 | F30: 0 | G30: 0 | H30: 0 | I30: 0 | J30: 0 | K30: 202499871.9 | L30: 212422365.7 | M30: 222406216.9
C31: .
A32: Service charges - Waste Management
A33: Total refuse removal revenue | C33: 146640889.5 | J33: =SUM(E33:I33) -> 0 | K33: =IF(D33=0,C33+J33,D33+J33) -> 146640889.5 | L33: 153826293.1 | M33: 161072701.3
A34: Total landfill revenue | J34: =SUM(E34:I34) -> 0 | K34: =IF(D34=0,C34+J34,D34+J34) -> 0
A35: Less Revenue Foregone (in excess of one removal a week to indigent households) | C35: 7899124.419 | J35: =SUM(E35:I35) -> 0 | K35: =IF(D35=0,C35+J35,D35+J35) -> 7899124.419 | L35: 8286181.515 | M35: 8692204.41
A36: Less Cost of Free Basis Services (removed once a week to indigent households) | C36: ='SB5'!E286 -> 0 | D36: ='SB5'!F286 -> 0 | E36: ='SB5'!G286 -> 0 | F36: ='SB5'!H286 -> 0 | G36: ='SB5'!I286 -> 0 | H36: ='SB5'!J286 -> 0 | I36: ='SB5'!K286 -> 0 | J36: =SUM(E36:I36) -> 0 | K36: =IF(D36=0,C36+J36,D36+J36) -> 0 | L36: ='SB5'!N286 -> 0 | M36: ='SB5'!O286 -> 0
A37: Service charges - Waste Management | C37: =SUM(C33:C34)-SUM(C35:C36) -> 138741765.1 | D37: =SUM(D33:D34)-SUM(D35:D36) -> 0 | E37: 0 | F37: 0 | G37: 0 | H37: 0 | I37: 0 | J37: 0 | K37: 138741765.1 | L37: 145540111.6 | M37: 152380496.9
A42: EXPENDITURE ITEMS
A43: Employee related costs
A44: Basic Salaries and Wages | C44: 1037740915 | I44: -76576633.36 | J44: =SUM(E44:I44) -> -76576633.36 | K44: =IF(D44=0,C44+J44,D44+J44) -> 961164281.6 | L44: 964976596 | M44: 995849663.6
A45: Pension and UIF Contributions | C45: 292640838.6 | J45: 0 | K45: 292640838.6 | L45: 305182676.3 | M45: 318915896.7
A46: Medical Aid Contributions | C46: 183283220.1 | J46: 0 | K46: 183283220.1 | L46: 190594169.6 | M46: 199170907.2
A47: Overtime | C47: 101451919.9 | J47: 0 | K47: 101451919.9 | L47: 105879316.3 | M47: 110643885.6
A48: Performance Bonus | J48: 0 | K48: 0 | L48: 91857905.32 | M48: 95991511.06
A49: Motor Vehicle Allowance | C49: 39130534.92 | J49: =SUM(E49:I49) -> 0 | K49: =IF(D49=0,C49+J49,D49+J49) -> 39130534.92 | L49: 40892648.99 | M49: 42733468.58
A50: Cellphone Allowance | C50: 5678824.283 | J50: =SUM(E50:I50) -> 0 | K50: =IF(D50=0,C50+J50,D50+J50) -> 5678824.283 | L50: 5550699.626 | M50: 5800481.109
A51: Housing Allowances | C51: 74941667.96 | J51: =SUM(E51:I51) -> 0 | K51: =IF(D51=0,C51+J51,D51+J51) -> 74941667.96 | L51: 78314043.02 | M51: 81838174.95
A52: Other benefits and allowances | C52: 39950483.13 | J52: 0 | K52: 39950483.13 | L52: 41748254.87 | M52: 43626926.34
A53: Payments in lieu of leave | C53: 0 | J53: 0 | K53: 0 | L53: 0 | M53: 0
A54: Long service awards | C54: 18329951.14 | J54: 0 | K54: 18329951.14 | L54: 19154798.94 | M54: 20016764.9
A55: Post-retirement benefit obligations | B55: 4 | C55: 0 | J55: =SUM(E55:I55) -> 0 | K55: =IF(D55=0,C55+J55,D55+J55) -> 0 | L55: 0 | M55: 0
A56: Entertainment | J56: =SUM(E56:I56) -> 0 | K56: =IF(D56=0,C56+J56,D56+J56) -> 0
A57: Scarcity | J57: =SUM(E57:I57) -> 0 | K57: =IF(D57=0,C57+J57,D57+J57) -> 0
A58: Acting and post related allowance | J58: =SUM(E58:I58) -> 0 | K58: =IF(D58=0,C58+J58,D58+J58) -> 0
A59: In kind benefits | J59: =SUM(E59:I59) -> 0 | K59: =IF(D59=0,C59+J59,D59+J59) -> 0
A60: sub-total | C60: =SUM(C44:C59) -> 1793148355 | D60: 0 | E60: 0 | F60: 0 | G60: 0 | H60: 0 | I60: -76576633.36 | J60: =SUM(J44:J59) -> -76576633.36 | K60: =SUM(K44:K59) -> 1716571722 | L60: =SUM(L44:L59) -> 1844151109 | M60: 1914587680
A61: Less: Employees costs capitalised to PPE | J61: =SUM(E61:I61) -> 0 | K61: =IF(D61=0,C61+J61,D61+J61) -> 0
A62: ="Total "&A43 -> Total Employee related costs | B62: 1 | C62: =C60-C61 -> 1793148355 | D62: =D60-D61 -> 0 | E62: 0 | F62: 0 | G62: 0 | H62: 0 | I62: -76576633.36 | J62: =SUM(J60:J61) -> -76576633.36 | K62: =SUM(K60:K61) -> 1716571722 | L62: =L60-L61 -> 1844151109 | M62: =M60-M61 -> 1914587680
A73: Depreciation and amortisation
A74: Depreciation of Property, Plant & Equipment | C74: 460781797 | J74: =SUM(E74:I74) -> 0 | K74: =IF(D74=0,C74+J74,D74+J74) -> 460781797 | L74: 481526714 | M74: 503215201
A75: Lease amortisation | J75: =SUM(E75:I75) -> 0 | K75: =IF(D75=0,C75+J75,D75+J75) -> 0
A76: Capital asset impairment | J76: =SUM(E76:I76) -> 0 | K76: =IF(D76=0,C76+J76,D76+J76) -> 0
A78: ="Total "&LEFT(A73,35) -> Total Depreciation and amortisation | B78: 1 | C78: =SUM(C74:C76) -> 460781797 | D78: =SUM(D74:D76) -> 0 | E78: 0 | F78: 0 | G78: 0 | H78: 0 | I78: 0 | J78: 0 | K78: 460781797 | L78: 481526714 | M78: 503215201
A80: Bulk purchases
A81: Electricity Bulk Purchases | C81: 2514000000 | I81: 200000000 | J81: =SUM(E81:I81) -> 200000000 | K81: =IF(D81=0,C81+J81,D81+J81) -> 2714000000 | L81: 3066820000 | M81: 3526843000
A82: Water Bulk Purchases | J82: =SUM(E82:I82) -> 0 | K82: =IF(D82=0,C82+J82,D82+J82) -> 0
A83: Total bulk purchases | B83: 1 | C83: =C81 -> 2514000000 | D83: =D81 -> 0 | E83: 0 | F83: 0 | G83: 0 | H83: 0 | I83: 200000000 | J83: 200000000 | K83: 2714000000 | L83: 3066820000 | M83: 3526843000
A85: Transfers and grants
A86: Cash transfers and grants | C86: 65884469.29 | J86: =SUM(E86:I86) -> 0 | K86: =IF(D86=0,C86+J86,D86+J86) -> 65884469.29 | L86: 69096411.35 | M86: 72361126.67
A87: Non-cash transfers and grants | J87: =SUM(E87:I87) -> 0 | K87: =IF(D87=0,C87+J87,D87+J87) -> 0 | L87: 0 | M87: 0
A88: Total transfers and grants | C88: =SUM(C86:C87) -> 65884469.29 | D88: 0 | E88: 0 | F88: 0 | G88: 0 | H88: 0 | I88: 0 | J88: =SUM(J86:J87) -> 0 | K88: =SUM(K86:K87) -> 65884469.29 | L88: =SUM(L86:L87) -> 69096411.35 | M88: =SUM(M86:M87) -> 72361126.67
A90: Contracted services
A91: Outsourced Services | C91: 994887837 | I91: -139097277.4 | J91: =SUM(E91:I91) -> -139097277.4 | K91: =IF(D91=0,C91+J91,D91+J91) -> 855790559.6 | L91: 1048521830 | M91: 1096908810
A92: Consultants and Professional Services | J92: =SUM(E92:I92) -> 0 | K92: =IF(D92=0,C92+J92,D92+J92) -> 0
A93: Contractors | J93: =SUM(E93:I93) -> 0 | K93: =IF(D93=0,C93+J93,D93+J93) -> 0
A94: Total contracted services | C94: =SUM(C91:C93) -> 994887837 | D94: 0 | E94: 0 | F94: 0 | G94: 0 | H94: 0 | I94: -139097277.4 | J94: -139097277.4 | K94: 855790559.6 | L94: 1048521830 | M94: 1096908810
A96: Operational Costs
A97: Collection costs | J97: =SUM(E97:I97) -> 0 | K97: =IF(D97=0,C97+J97,D97+J97) -> 0
A98: Contributions to 'other' provisions | J98: =SUM(E98:I98) -> 0 | K98: =IF(D98=0,C98+J98,D98+J98) -> 0
A100: Audit fees | J100: =SUM(E100:I100) -> 0 | K100: =IF(D100=0,C100+J100,D100+J100) -> 0
A103: Other Operational Costs | C103: 215382233 | J103: =SUM(E103:I103) -> 0 | K103: =IF(D103=0,C103+J103,D103+J103) -> 215382233 | L103: 225684860 | M103: 236252431
A124: Total Other Operational Costs | B124: 1 | C124: =+C97+C98+C100+C103 -> 215382233 | D124: =+D97+D98+D100+D103 -> 0 | E124: 0 | F124: 0 | G124: 0 | H124: 0 | I124: 0 | J124: 0 | K124: 215382233 | L124: 225684860 | M124: 236252431
A126: Repairs and Maintenance by Expenditure Item | B126: 14
A127: Employee related costs | J127: =SUM(E127:I127) -> 0 | K127: =IF(D127=0,C127+J127,D127+J127) -> 0
A128: Inventory Consumed (Project Maintenance) | C128: 100689568.7 | J128: =SUM(E128:I128) -> 0 | K128: =IF(D128=0,C128+J128,D128+J128) -> 100689568.7 | L128: 92595693.85 | M128: 102645746.9
A129: Contracted Services | C129: 464042757.5 | J129: =SUM(E129:I129) -> 0 | K129: =IF(D129=0,C129+J129,D129+J129) -> 464042757.5 | L129: 445738053.6 | M129: 489851883.8
A130: Other Expenditure | C130: 11004150 | J130: =SUM(E130:I130) -> 0 | K130: =IF(D130=0,C130+J130,D130+J130) -> 11004150 | L130: 12490435.27 | M130: 14183260.18
A131: Total Repairs and Maintenance Expenditure | B131: 15 | C131: =SUM(C127:C130) -> 575736476.2 | D131: =SUM(D127:D130) -> 0 | E131: 0 | F131: 0 | G131: 0 | H131: 0 | I131: 0 | J131: 0 | K131: 575736476.2 | L131: 550824182.8 | M131: 606680890.9
A133: Inventory Consumed
A134: Inventory Consumed - Water | C134: =-'SB2'!C38 -> 807480597 | D134: =-'SB2'!D38 -> 0 | E134: =-'SB2'!E38 -> 0 | F134: =-'SB2'!F38 -> 0 | G134: =-'SB2'!G38 -> 0 | H134: =-'SB2'!H38 -> 0 | I134: =-'SB2'!I38 -> -92438570.34 | J134: =SUM(E134:I134) -> -92438570.34 | K134: =IF(D134=0,C134+J134,D134+J134) -> 715042026.7 | L134: =-'SB2'!L38 -> 847047146.3 | M134: =-'SB2'!M38 -> 886858362.1
A135: Inventory Consumed - Other | C135: =-'SB2'!C67-'SB2'!C76-'SB2'!C83-'SB2'!C91-'SB2'!C99 -> 163148439 | D135: =-'SB2'!D67-'SB2'!D76-'SB2'!D83-'SB2'!D91-'SB2'!D99 -> 0 | E135: =-'SB2'!E67-'SB2'!E76-'SB2'!E83-'SB2'!E91-'SB2'!E99 -> 0 | F135: =-'SB2'!F67-'SB2'!F76-'SB2'!F83-'SB2'!F91-'SB2'!F99 -> 0 | G135: =-'SB2'!G67-'SB2'!G76-'SB2'!G83-'SB2'!G91-'SB2'!G99 -> 0 | H135: =-'SB2'!H67-'SB2'!H76-'SB2'!H83-'SB2'!H91-'SB2'!H99 -> 0 | I135: =-'SB2'!I67-'SB2'!I76-'SB2'!I83-'SB2'!I91-'SB2'!I99 -> 0 | J135: =SUM(E135:I135) -> 0 | K135: =IF(D135=0,C135+J135,D135+J135) -> 163148439 | L135: =-'SB2'!L67-'SB2'!L76-'SB2'!L83-'SB2'!L91-'SB2'!L99 -> 171142719.7 | M135: =-'SB2'!M67-'SB2'!M76-'SB2'!M83-'SB2'!M91-'SB2'!M99 -> 179186417.9
A136: Total Inventory Consumed & Other Material | C136: =SUM(C134:C135) -> 970629036 | D136: =SUM(D134:D135) -> 0 | E136: 0 | F136: 0 | G136: 0 | H136: 0 | I136: -92438570.34 | J136: -92438570.34 | K136: 878190465.7 | L136: 1018189866 | M136: 1066044780
A138: =head27a -> References
A139: 1. Must reconcile with 'Budgeted Financial Performance (Revenue and Expenditure)
A140: 2. Must reconcile to supporting documentation on staff salaries
A142: 4. Expenditure to meet any unfunded obligations
A143: 5. Special consideration may have to be given to including 'goodwill arising' or 'joint venture' budgets where circumstances require this (include separately under relevant notes)
A144: 6. Only complete if a previous adjusted budget has been approved in the same financial year. Reflect most recent adjusted budget.
A145: 7. Additional cash-backed accumulated funds/unspent funds (section 18(1)(b) and section 28(2)(e) MFMA) identified after Original Budget approved and after annual financial statements audited (note: only where underspending could not reasonably be have for
A146: 8. Increases of funds approved under section 31 MFMA
A147: 9. Adjustments approved in accordance with section 29 MFMA
A148: 10. Adjustments to funding allocations from National or Provincial Government
A149: 11. Adjusts. = 'Other' Adjustments proposed to be approved; including revenue under-collection (MFMA section 28(2)(a)); additional revenue appropriation on existing programmes (section 28(2))(b); projected savings (section 28(2)(d)); error correction (sec
A150: 12. G = B + C + D + E + F
A151: 13. Adjusted Budget H = (A or A1) + G
A152: 14. Repairs and Maintenance is not a GRAP item. However to facilitate transparency, municipalities must provide a breakdown of the amounts included in the relevant GRAP items that will be spent on Repairs and Maintenance.
A153: 15. Must reconcile with Repairs and Maintenance by Asset Class (Total Repairs and Maintenance) on Table SA34c.

Sheet SB2
A1: =muni&" - "&ADJB2&" - "&Date -> Choose name from list - Supporting Table SB2 Supporting detail to 'Financial Position Budget' -
A2: =desc -> Description | B2: =head27 -> Ref | C2: =Head2 -> Budget Year 2023/24 | L2: =Head10 -> Budget Year +1 2024/25 | M2: =Head11 -> Budget Year +2 2025/26
C3: =Head6 -> Original Budget | D3: =Head54 -> Prior Adjusted | E3: =Head51 -> Accum. Funds | F3: =Head52 -> Multi-year capital | G3: =Head53 -> Unfore. Unavoid. | H3: =Head55 -> Nat. or Prov. Govt | I3: =Head50 -> Other Adjusts. | J3: =Head56 -> Total Adjusts. | K3: =Head7 -> Adjusted Budget | L3: =Head7 -> Adjusted Budget | M3: =Head7 -> Adjusted Budget
D4: 4 | E4: 5 | F4: 6 | G4: 7 | H4: 8 | I4: 9 | J4: 10 | K4: 11
A5: R thousands | C5: A | D5: A1 | E5: B | F5: C | G5: D | H5: E | I5: F | J5: G | K5: H
A6: ASSETS
A7: Trade and other receivables from exchange transactions
A8: Electricity | C8: 1016049367 | J8: =SUM(E8:I8) -> 0 | K8: =IF(D8=0,C8+J8,D8+J8) -> 1016049367 | L8: 1065835786 | M8: 1115930063
A9: Water | C9: 2689648170 | J9: 0 | K9: 2689648170 | L9: 2821440930 | M9: 2954048654
A10: Waste | C10: 246473305.3 | J10: 0 | K10: 246473305.3 | L10: 258550497.3 | M10: 270702371
A11: Waste Water | C11: 439422227.4 | J11: 0 | K11: 439422227.4 | L11: 460953916.5 | M11: -829923788
A12: Other trade receivables from exchange transactions | C12: 296431437 | J12: 0 | K12: 296431437 | L12: 310956577.4 | M12: 850203328
A13: Gross: Trade and other receivables from exchange transactions | C13: =SUM(C8:C12) -> 4688024506 | D13: =SUM(D8:D12) -> 0 | E13: 0 | F13: 0 | G13: 0 | H13: 0 | I13: 0 | J13: 0 | K13: 4688024506 | L13: 4917737707 | M13: 4360960628
A14: Less: Impairment for debt | B14: 1 | C14: =SUM(C15:C19) -> -3391769361 | D14: =SUM(D15:D19) -> 0 | E14: 0 | F14: 0 | G14: 0 | H14: 0 | I14: 1203048590 | J14: 1203048590 | K14: -2188720771 | L14: -3557966060 | M14: -3570209939
A15: Impairment for Electricity | C15: -621921905.9 | J15: =SUM(E15:I15) -> 0 | K15: =IF(D15=0,C15+J15,D15+J15) -> -621921905.9 | L15: -652396079.3 | M15: -683058695
A16: Impairment for Water | C16: -2053299646 | I16: 1203048590 | J16: 1203048590 | K16: -850251055.6 | L16: -2153911328 | M16: -2255145161
A17: Impairment for Waste | C17: -179598334.3 | J17: 0 | K17: -179598334.3 | L17: -188398652.7 | M17: -197253389.4
A18: Impairment for Waste Water | C18: -320707413.4 | J18: 0 | K18: -320707413.4 | L18: -336422076.6 | M18: -197253389
A19: Impairment for other trade receivalbes from exchange transactions | C19: -216242062 | J19: 0 | K19: -216242062 | L19: -226837923 | M19: -237499305.4
A20: Total net Trade and other receivables from Exchange Transactions | C20: =+C13+C14 -> 1296255145 | D20: =+D13+D14 -> 0 | E20: 0 | F20: 0 | G20: 0 | H20: 0 | I20: 1203048590 | J20: 1203048590 | K20: 2499303735 | L20: 1359771647 | M20: 790750688.5
A22: Receivables from non-exchange transactions
A23: Property rates | C23: 1501815101 | J23: =SUM(E23:I23) -> 0 | K23: =IF(D23=0,C23+J23,D23+J23) -> 1501815101 | L23: 1575404041 | M23: 1649448031
A24: Less: Impairment of Property rates | C24: -839688383.8 | J24: 0 | K24: -839688383.8 | L24: -880835737.3 | M24: -922235017
A25: Net Property rates | C25: =+C23+C24 -> 662126717.3 | D25: =+D23+D24 -> 0 | E25: 0 | F25: 0 | G25: 0 | H25: 0 | I25: 0 | J25: 0 | K25: 662126717.3 | L25: 694568303.8 | M25: 727213014.1
A26: Other receivables from non-exchange transactions | C26: 115910232.4 | J26: =SUM(E26:I26) -> 0 | K26: =IF(D26=0,C26+J26,D26+J26) -> 115910232.4 | L26: -133152936 | M26: -139411124
A27: Impairment for other receivalbes from non-exchange transactions | C27: -109731353.8 | I27: 96798284 | J27: 96798284 | K27: -12933069.77 | L27: -115108067.6 | M27: -120518029.3
A28: Net other receivables from non-exchange transactions | C28: =+C26+C27 -> 6178878.657 | D28: =+D26+D27 -> 0 | E28: 0 | F28: 0 | G28: 0 | H28: 0 | I28: 96798284 | J28: 96798284 | K28: 102977162.7 | L28: -248261003.6 | M28: -259929153.3
A29: Total net Receivables from non-exchange transactions | C29: =+C25+C28 -> 668305596 | D29: =+D25+D28 -> 0 | E29: 0 | F29: 0 | G29: 0 | H29: 0 | I29: 96798284 | J29: 96798284 | K29: 765103880 | L29: 446307300.2 | M29: 467283860.8
A31: Inventory
A32: Water
A33: Opening Balance | C33: 34769499 | J33: =SUM(E33:I33) -> 0 | K33: =IF(D33=0,C33+J33,D33+J33) -> 34769499 | L33: =K62 -> -680272527.7 | M33: =L62 -> -1527319674
A34: System Input Volume | C34: =SUM(C35:C37) -> 0 | D34: =SUM(D35:D37) -> 0 | E34: =SUM(E35:E37) -> 0 | F34: 0 | G34: 0 | H34: 0 | I34: 0 | J34: 0 | K34: 0 | L34: 0 | M34: 0
A35: Water Treatment Works | J35: =SUM(E35:I35) -> 0 | K35: =IF(D35=0,C35+J35,D35+J35) -> 0 | L35: =C35*1.055 -> 0 | M35: =L35*1.0655 -> 0
A36: Bulk Purchases | J36: =SUM(E36:I36) -> 0 | K36: =IF(D36=0,C36+J36,D36+J36) -> 0 | L36: =C36*1.055 -> 0 | M36: =L36*1.0655 -> 0
A37: Natural Sources | J37: =SUM(E37:I37) -> 0 | K37: =IF(D37=0,C37+J37,D37+J37) -> 0 | L37: =C37*1.055 -> 0 | M37: =L37*1.0655 -> 0
